Workbook

Sheet Couverture
I2: Version 1.9
B5: Les instructions se trouvent dans la feuille de calcul Vue d'ensemble et instructions, ainsi que dans chaque feuille de calcul dont l'onglet apparaît en noir.
B6: Veuillez vous assurer que les macros sont activées avant d'utiliser ce document ou ce dernier ne fonctionnera pas correctement.
B7: Cliquez ici pour obtenir des instructions Google.
B8: Pour consulter la dernière mise à jour de l'outil Coût total de possession (CTP), cliquez sur le lien pour comparer les versions.
B9: Site de l'outil CTP
B11: Liens rapides | D11: Vue d'ensemble | E11: Instructions | G11: Acronymes | I11: FAQ
D13: Arbre de décision ECF | F13: Outils de comparaison | H13: Coût total de la solution
B15: Hypothèses nationales/locales | D15: Hypothèses et données relatives au pays et au marché | G15: Hypothèses relatives à la main-d'œuvre, l'entretien et l'installation
B17: Feuilles de calcul d'hypothèses relatives à la technologie/au modèle | D17: Chambre froide/chambre congelée (CC CF) | F17: Réfrigérateur à garniture de glace (RGG) | H17: Congélateur
D19: Réfrigérateur dispositif solaire à connexion directe (SDD) | G19: Coffre isotherme à longue durée
D21: Solaire avec batterie | F21: Réfrigérateur à gaz | H21: Réfrigérateur au kérosène
C24: © 2016 PATH Ce travail est autorisé par la licence Creative Commons, Attribution - Pas d'Utilisation Commerciale - Partage dans les Mêmes Conditions 4.0 International Pour consulter une copie de cette licence, rendez-vous sur le site http://creativecommons.org/licenses/by-nc-sa/4.0/.
B27: Veuillez envoyer vos commentaires, suggestions ou remarques à Matt Morio. | F27: mmorio@path.org
B29: Version
B30: v.0.1.0 | C30: 2013 | D30: Version originale du modèle Coût total de la vie développé par PATH et partagé en 2013
B31: v.0.5.1 | C31: 2014-10-01 | D31: Révision des modèles et des données sur les coûts
B32: v.0.5.2 | C32: 2015-04-01 | D32: addition of total solution cost approach
B33: v0.5.3 | C33: 2015-07-15 | D33: general modifications and enhancements
B34: v0.5.4 | C34: 2015-08-01 | D34: incorporate feedback and release for review and comments prior to country sharing
B35: v0.6 | C35: 2015-08-20 | D35: Version mise à jour avec commentaires intégrés
B36: v1.x | C36: 2016-01-01 | D36: Publication de la version 1.0
B37: v1.4 | C37: 2017-04-26 | D37: Version mise à jour avec CCEOP eligibility
B38: v1.5 | C38: 2018-05-01 | D38: Version mise à jour avec amélioration de la garantie et de l'analyse du parquet de services CCEOP
B39: v1.5.1 | C39: 2018-07-18 | D39: Correction mineure à Coûts totaux de la solution
B40: v1.7 | C40: 2019-07-08 | D40: Version mise à jour avec prix pour les nouveaux équipements
B41: v1.8 | C41: 2020-02-28 | D41: Version mise à jour avec prix pour les nouveaux équipements
B42: v1.9 | C42: 2020-06-24 | D42: Version mise à jour avec prix pour les nouveaux équipements
I43: 2020-06-24

Sheet Updates (hidden)
A1: Notes:
A3: version | C3: Comments
A4: 1.0.0 | C4: Release for review - frozen version until 1.1 release
A5: 1.0.1 | C5: added freezer capcity to Walk in Freezer Rooms and Cold room/ Freezer room combos
C6: Add column in solution costs to show the Annualized Opex costs for each unit
C7: adjusted installation delivery costs and hours based on McK Archetypes 3 and 4 for installation and delivery costs.
C8: edit Country input transport to "first mile"
C9: Explain tab colors
C10: Add gross weight to PQS table
A12: 1.0.2 | C12: Add 5 new PQS models E003/055 - E003/059
D13: PQS, SDD and Parts tabs are done
D14: Calculations, Comparison data, Cash flow data are left (invalid password)
A16: 1.0.3 | C16: Added more lines for immunization schedule in Country Input
C17: formatting changes to tables in Total Solution Costs for better readability
C18: Changed holdover and autonomy in Total Soulution Costs to look at all temperature ranges, not just 43. Holdover default is 43 if both are listed as indicated in operating range column
C19: Reflected consolidated operating range to one column in PQS vs 32 and 43 to align with PQS database
C20: Added new PQS models and parts
C21: edits to instructions and guidance pop-ups
C22: repaired links between L&M and tech worksheets
C23: Updated pricing for PQS items and parts per latest UNICEF and PQS catalogs on Dec 11
A25: 1.0.5 | C25: sort vaccines for better presentation
C26: minor formula edits
C27: Minor text edits
C28: vaccine table update (price & volume)
A30: next release | C30: Create reference table for general values. Eg freight rates, training costs, installation,etc. The Organge cells generally
C31: SML sizing for solar arrays etc.
C32: Add CCEOP pricing and approved equip if available

Sheet Acronymes
A1: Acronymes
A2: BCG | B2: Bacille de Calmette-Guérin
A3: CAPEX | B3: Dépenses d'investissement
A4: CF CC | B4: Chambre froide / Chambre congelée
A5: CTP | B5: Coût total de possession
A6: CCEOP | B6: Cold chain equipment optimization platform
A7: DTC | B7: Diphtérie, tétanos, coqueluche
A8: ECF | B8: Équipements de la chaîne du froid
A9: FAQ | B9: Foire aux questions
A10: HepB | B10: Hépatite B
A11: Hib | B11: Haemophilus influenzae de type b
A12: LT | B12: Long terme
A13: OMS | B13: Organisation mondiale de la Santé
A14: OPEX | B14: Dépenses d'exploitation
A15: PCV | B15: Vaccin conjugué antipneumococcique
A16: PL | B16: Pétrole liquéfié
A17: PQS | B17: Performances, qualité et sécurité
A18: RGG | B18: Réfrigérateur à garniture de glace (ILR)
A19: ROR | B19: Rougeole, oreillons, rubéole
A20: Rota | B20: Rotavirus
A21: RR | B21: Rougeole-rubéole
A22: SDD | B22: Réfrigérateur dispositif solaire à connexion directe
A23: UNICEF | B23: Fonds des Nations Unies pour l'enfance
A24: VAA | B24: Vaccine anti-amaril
A25: VAR | B25: Vaccin anti-rougeoleux
A26: VAT | B26: Vaccin anatoxine tetanique
A27: VPO | B27: Vaccin anti-polio oral

Sheet Vue d'ensemble et instructions
A1: Mise en route
A2: Avant d'utiliser l'outil, veuillez vous assurer que les macros sont activées. En général, une notification ou une alerte contextuelle sera affichée dans la partie supérieure du classeur, vous permettant de confirmer l'utilisation des macros. Cliquez sur « Activer le contenu » pour confirmer l'utilisation de macros avant de poursuivre. Il est également plus sûr d'enregistrer ce fichier en tant que « document approuvé », si vous y êtes invité. Exemple :
A3: Compatibilité Mac : Malheureusement, l'outil CTP n'est pas compatible avec les ordinateurs Mac en raison d'une restriction de Microsoft Office pour Mac. Nous avons demandé à Microsoft la date de disponibilité d'une mise à jour, mais nous n'avons pas de date fixe.
A4: Vue d'ensemble de l'outil
A5: Cliquez ici pour passer aux instructions | E5: Cliquez ici pour passer à la FAQ
A6: Qu'est-ce que le coût total de possession ?
A7: Le concept de coût total de possession (CTP) consiste à évaluer une décision d'achat en fonction de l'intégralité des coûts liés à la possession et à l'exploitation d'un équipement au cours de sa durée de vie utile ou d'une période définie. Le CTP inclut non seulement le prix d'achat, mais également les coûts de l'installation, des pièces de rechange (dépenses d'investissement, communément appelées CAPEX) et les coûts d'exploitation récurrents, tels que l'électricité, l'entretien courant et les réparations au fil du temps (dépenses d'exploitation, communément appelées OPEX). L'expression « durée de vie utile » fait référence à la longévité attendue de l'équipement avant de devoir être remplacé. La durée de vie utile est appliquée dans le calcul de l'OPEX récurrent total au cours de l'utilisation et du fonctionnement d'un dispositif.
A8: Qu'est-ce que le coût total de la solution ?
A9: Le coût total de la solution est une comparaison exhaustive des options de l'équipement. Le coût total de la solution fait référence aux coûts totaux relatifs à l'équipement (CAPEX et OPEX) plus les coûts de formation au cours d'une période définie, multipliés par le nombre d'unités nécessaires pour garantir une capacité de stockage adaptée. La quantité d'unités nécessaires est calculée en fonction des valeurs saisies dans la feuille de calcul Données relatives au pays, principalement le nombre d'installations à équiper et le volume de stockage nécessaire par installation par livraison. Cette quantité d'unités nécessaires peut varier, car les modèles d'équipement peuvent présenter des fonctionnalités ou une durée de vie utile variables. Cette donnée figure dans la feuille de calcul Coûts totaux de la solution.
A10: À quoi sert cet outil ? Comment fonctionne-t-il ?
A11: L'outil CTP est conçu pour aider les décideurs à évaluer les options d'équipement de la chaîne du froid (ECF) disponibles du point de vue des coûts. L'outil permet aux utilisateurs d'explorer les coûts d'investissement et d'exploitation associés dans diverses catégories de technologie d'ECF, ainsi que de comparer les coûts pour des modèles spécifiques au sein d'une catégorie de technologie ou de plusieurs technologies.
A12: Cet outil permet de saisir des valeurs localisées, telles que les coûts énergétiques, les taux d'actualisation et les besoins propres à la vaccination, de fournir une plate-forme cohérente pour la comparaison d'équipements une fois que la segmentation d'une installation a été réalisée afin d'identifier les besoins.
A13: Les utilisateurs peuvent filtrer les équipements disponibles pour effectuer une comparaison par éligibilité CCEOP, source d'énergie (réseau électrique, SDD, coffre isotherme à longue durée, SDD avec batterie, énergie solaire avec batterie, absorption), type d'équipment (réfrigérateur, réfrigérateur/congélateur, ice-pack congélateur, etc.), capacité de stockage, ou même des modèles spécifiques à des fins d'évaluation en utilisant les filtres situés dans la partie supérieure de chaque feuille de calcul de comparaison.
A14: Le flux de travail général de l'outil est illustré ci-dessous. Les utilisateurs peuvent ignorer des étapes s'ils ont déjà une idée des technologies ou des modèles à comparer. Néanmoins, il est important de remplir la feuille de calcul Données relatives au pays afin de produire un scénario d'analyse de coût total approprié.
B20: Comparaison de technologies
B21: L'outil intègre également des hypothèses pour chaque catégorie de technologie, comme les coûts d'installation, d'entretien et de réparation, et la durée de vie utile des équipements. Cette approche permet aux utilisateurs d'évaluer des comparaisons générales entre une technologie et une autre (par exemple : les réfrigérateurs ESD et ceux au kérosène).
B23: Comparaison de modèles
B24: Pour une analyse plus fine, l'outil comporte également des champs propres aux modèles que les utilisateurs peuvent modifier en fonction de leur expérience ou de l'avis d'experts pour une comparaison modèle à modèle plus précise (par exemple, la durée de vie utile peut varier selon les modèles ou la fréquence des réparations peut différer).
B26: Évaluation des coûts totaux de la solution d'un pays
B27: L'outil calculera le coût total de possession pour les équipements pendant une période définie d'après les données relatives au pays, en particulier le nombre d'installations à équiper et le volume par installation*. Ces comparaisons consistent à faire correspondre les coûts totaux de la solution et les besoins du pays avec des quantités d'équipements appropriées nécessaires à la chaîne du froid ; il ne s'agit pas seulement d'une comparaison modèle par modèle. Ces feuilles de calcul permettent aux utilisateurs de consulter les dépenses d'exploitation récurrentes, les coûts d'investissement initiaux et les coûts de remplacement des équipements et de l'installation dans le temps présentés de plusieurs façons. Ceci est utile pour projeter des estimations et des comparaisons budgétaires sur une période définie (par l'utilisateur).
B29: *Déterminé par des besoins de programmation, l'évaluation des stocks de parc informatique et la segmentation des installations.
A30: Instructions
A31: Comment utiliser l'outil ?
A32: L'outil peut fonctionner de façon autonome ou être complété par d'autres outils et analyses pour aider à guider les décisions d'achat d'ECF. Les données clés sont les principales informations nécessaires à l'outil. Les cellules jaunes et vertes doivent être mises à jour avant de commencer une analyse. Les utilisateurs peuvent saisir des données en fonction de leurs besoins et de leurs expériences dans plusieurs emplacements, en s'appuyant sur le guide de code couleur décrit ci-dessous. Toutefois, les feuilles de calcul Données relatives au pays et Main-d'œuvre et entretien sont les plus importantes.
A33: Code couleur pour la saisie de données
B34: L'outil utilise un code couleur simple pour les cellules du classeur afin d'identifier le moment et l'emplacement où un utilisateur doit revoir ou mettre à jour les valeurs. Le nombre d'entrées est minimal pour faciliter l'utilisation.
C36: Les cellules jaunes correspondent aux questions clés qui doivent toujours être examinées et mises à jour avant chaque comparaison.
C37: Les cellules vertes correspondent aux hypothèses importantes qui doivent être examinées après avoir renseigné les questions clés. Celles-ci peuvent être mises à jour pour chaque comparaison. Toutefois, elles sont généralement applicables à plusieurs scénarios de comparaison une fois saisies.
C38: Les cellules orange correspondent aux hypothèses par défaut qui ont été compilées pour une utilisation générale dans l'outil. Les valeurs des hypothèses par défaut qui figurent dans les feuilles de calcul Données relatives au pays et Main d'œuvre et entretien peuvent être remplacées selon vos besoins en fonction des coûts locaux ou des expériences avec une technologie.
C39: Pour les variances de modèles individuels, veuillez vous reporter à la feuille de calcul de la technologie adéquate et repérer le modèle spécifique à mettre à jour s'il diffère de l'hypothèse par défaut (par exemple, le CC : Vestfrost MK204 a une durée de vie utile égale à XX ans au lieu de la durée de 10 ans par défaut).
C40: Les cellules grises correspondent aux valeurs calculées. Pour éviter d'endommager les formules et les flux de données, elles ne doivent pas être modifiées.
A42: En général, une fois que les cellules en vert et orange sont mises à jour pour un pays ou une segmentation, elles n'ont pas besoin d'être mises à jour pour chaque scénario ou comparaison réalisée.
A43: Lors d'une comparaison des coûts totaux d'une solution, il est important de saisir les données appropriées dans la feuille de calcul Données relatives au pays. Ces données doivent orienter l'analyse sur un segment particulier d'installations à équiper. Ces données doivent être disponibles une fois que les opérations suivantes ont été réalisées : un inventaire des ECF et une analyse de la segmentation des installations afin de déterminer le nombre et le type d'installations à équiper et les équipements à acheter. Les ressources nécessaires au calcul des valeurs pour les données clés se trouvent dans le programme d'assistance technique du pays sur le site Web TechNet21. Ce programme fournit des ressources d'assistance technique pour l'analyse et la planification de l'achat d'ECF.
A44: L'outil peut fonctionner de façon autonome ou être complété par d'autres outils et analyses pour aider à guider les décisions d'achat d'ECF. Les utilisateurs peuvent saisir des données en fonction de leurs besoins dans la feuille de calcul Données clés à l'aide du guide de code couleur décrit ci-dessous. Les ressources nécessaires au calcul des valeurs pour les données clés se trouvent dans le programme d'assistance technique du pays sur le site Web TechNet21, le cas échéant.
A45: Flux de travail
B46: L'outil est structuré de telle sorte que les données et les décisions passent entre les feuilles de calcul de gauche à droite. De plus, les feuilles ont un code couleur (voir ci-dessous).
B47: <Nom de la section> | D47: Au début de chaque section, une feuille de calcul de couleur noire contient des instructions détaillées pour clarifier les cellules ou les étapes individuelles.
B48: Données clés | D48: Ces deux onglets permettent à l'utilisateur de saisir des valeurs propres à chaque pays dans les hypothèses et les facteurs de l'outil. Ces valeurs comprennent les données de segmentation des installations, les coûts relatifs à l'énergie et à la main-d'œuvre, et les hypothèses générales concernant les équipements.
B49: Résultats clés | D49: Les feuilles de calcul en vert foncé correspondent aux comparaisons des coûts totaux de la solution, qui utilisent les hypothèses des feuilles de calcul Données relatives au pays et Main-d'œuvre et entretien pour calculer les coûts totaux sur une période sélectionnée (1 à 20 ans). La cellule mise en surbrillance en jaune est un menu déroulant pour le nombre d'années à calculer et un facteur clé pour la période de prévision.
B50: Comparaisons | D50: Il s'agit en général de comparaisons du coût total de possession pour les catégories de technologie et/ou pour des modèles d'équipement spécifiques. Ces feuilles de calcul comprennent les informations suivantes : Le coût total de possession au cours de la durée de vie utile d'une unité, le coût total de possession par litre au cours de la durée vie utile d'une unité et les charges d'exploitation par unité au cours de la durée de vie utile.
B51: Données et hypothèses | D51: Ces feuilles de calcul permettent de saisir des valeurs propres au modèle en fonction des expériences locales ou de commentaires d'utilisateurs concernant la durée de vie utile, les pièces, l'entretien et la réparation.
A53: Conseils d'utilisation de l'outil
A54: Filtres
D55: Pour chaque comparaison, un ensemble de trois filtres est proposé pour aider à affiner les informations sur l'équipement à comparer. Ces filtres sont divisés en trois catégories : capacité de stockage du vaccin, technologie de l'équipement et liste des modèles.
D56: Les éléments disponibles pour la sélection/le filtrage sont en bleu. Si une sélection n'est pas applicable ou a déjà été filtrée, elle apparaîtra en bleu clair ou en blanc.
D57: Pour sélectionner un critère de filtrage, il vous suffit de cliquer sur le bouton pour filtrer. Par exemple, si vous voulez seulement regarder des CCo dotés d'une capacité de 60 à 90 litres, vous pouvez cliquer sur le bouton 60-89 sous le filtre Capacité et sur le bouton CC sous le filtre Technologie.
D58: Pour sélectionner plusieurs options dans un filtre, maintenez la touche Ctrl enfoncée, puis cliquez sur les boutons associés aux options que vous souhaiteriez ajouter à votre sélection. Par exemple, pour comparer les équipements au kérosène, au gaz et ESD, maintenez la touche Ctrl enfoncée, puis cliquez sur Kérosène, Gaz et ESD sous le filtre Technologie. Lorsque vous relâchez la touche Ctrl, les options sont actualisées et reflètent vos choix de filtre.
D60: Pour supprimer les filtres, cliquez sur l'icône en forme d'entonnoir en haut à droite du filtre.
B65: Remarque : lors de la sélection d'un segment de capacité, il peut être utile de sélectionner le prochain plus grand segment, en plus du segment représentant la capacité nécessaire, pour comparer les coûts de modèles à capacités d'équipement plus grandes.
A67: Élargissement des sélections
B68: Les options de technologie sont réduites ou les filtres sont appliqués. C'est donc l'occasion d'examiner les modèles individuels dans les comparaisons afin d'affiner les options de l'équipement. Pour ce faire, cliquez sur le bouton + à gauche d'une technologie dans les listes filtrées.
B69: La sélection sera ainsi élargie, et différents modèles seront affichés, ainsi que les coûts d'investissement et d'exploitation associés plutôt qu'une moyenne de la technologie.
B70: Pour consolider une liste élargie, cliquez sur le bouton -.
B75: Sélection élargie
A82: Foire aux questions (FAQ)
A84: Qu'est-ce que CAPEX ?
B85: CAPEX est l'abréviation de « dépenses d'investissement », qui correspondent aux coûts ponctuels impliqués au moment de l'achat. CAPEX comprend les coûts liés à l'équipement, aux pièces de rechange recommandées, au transport dans le pays, au kit d'installation et à la main-d'œuvre d'installation. En raison de la grande variabilité de ce composant, la formation n'est pas comprise dans le CAPEX ou le coût total de possession. Les coûts de formation sont pris en compte dans les coûts totaux de la solution comme coûts ponctuels pour l'année 1.
A86: Qu'est-ce qu'OPEX ?
B87: OPEX est l'abréviation de « dépenses d'exploitation », qui sont des dépenses récurrentes pendant la durée de vie utile d'un équipement. Elles comprennent le coût énergétique (électricité, gaz, pétrole), de l'entretien et des réparations.
A88: Comment sont calculés les prix ?
B89: La tarification provient de la dernière tarification du catalogue de la division des approvisionnements du Fonds des Nations Unies pour l'enfance (UNICEF) si disponible. Si la tarification de l'UNICEF n'est pas disponible, la tarification correspond au prix PQS par défaut (Performance, Qualité et Sécurité de l'Organisation mondiale de la Santé) fourni par le fabricant.
A90: Est-il possible d'utiliser des devises locales ?
B91: Actuellement, l'outil ne prend pas en charge les devises autres que le dollar US. L'intégration de devises locales est prévue dans les prochaines versions de l'outil.
A92: Quelle est la différence entre le coût total de possession et le coût total de la solution ?
B93: Le coût total de possession inclut les dépenses d'investissement et d'exploitation (CAPEX et OPEX) pour une unité d'équipement au cours de sa durée de vie utile. Le coût total de la solution inclut également les coûts de formation et étudie le nombre total d'unités nécessaires par rapport à une seule unité. La comparaison du coût total de la solution applique le coût total de possession au nombre total d'unités requises pour répondre aux besoins et exigences spécifiques de la segmentation du pays pendant une période définie par l'utilisateur. Ceci permet des variances au niveau de la capacité de réfrigération ou de la durée de vie utile à prendre en compte dans les comparaisons. Par exemple, plusieurs unités de certains équipements peuvent être nécessaires pour répondre aux besoins de capacité ou une unité avec une durée de vie utile plus courte que d'autres aurait besoin d'être remplacée au cours de la période donnée. Ces variances sont indiquées visuellement dans la comparaison du coût total des solutions :
B94: Couleurs des coûts de la solution
D95: La couleur des coûts de la solution est un indicateur visuel de la gamme des coûts de la solution. La gamme s'étend du vert au jaune clair, vert indiquant les modèles dont le coût total est le plus faible de l'équipement choisi.
B97: Icônes de la durée de vie utile
D98: La durée de vie utile est représentée en nombre d'années. Si la durée de vie utile est la même que la période de prévision, un cercle gris apparaît en regard du nombre d'années. Dans le cas de différences entre la durée de vie utile et les prévisions, une flèche verte ou rouge apparaît en regard de la durée de vie utile de l'équipement. Une flèche verte orientée vers le haut indique que les unités ont une durée de vie utile supérieure à la prévision. Une flèche rouge orientée vers le bas indique que les unités ont une durée de vie utile inférieure à la prévision. Par conséquent, les unités devront être remplacées au cours de la période prévue. Ces paramètres sont reflétés dans le nombre d'unités nécessaires.
B99: Barres de la capacité de stockage
D100: La capacité pour une température comprise entre 2 °Cet8 °C et celle de stockage du congélateur est représentée par des barres, qui permettent une comparaison visuelle de la capacité disponible pour chaque unité par rapport à d'autres équipements sélectionnés. Comme l'équipement est filtré par taille, technologie ou modèle(s), les barres de capacité permettront de comparer l'équipement choisi.

Sheet Arbre décision technologie
A1: Arbre décision technologie
A3: `
A29: Source : Organisation mondiale de la Santé (OMS), Fonds des Nations Unies pour l'enfance. Introduction aux systèmes de réfrigération et de congélation à l'énergie solaire pour les vaccins. Guide à l'intention des responsables des programmes nationaux de vaccination. Genève : OMS ; 2015
A32: Disponible sur : http://www.who.int/immunization/documents/9789241509862/en/

Sheet Données clés ==>
A1: Données clés
B2: Deux feuilles de calcul dans la section Données clés permettent la localisation des hypothèses et des coûts afin d'améliorer la précision de l'analyse et des comparaisons.
B3: La première feuille de calcul est Données relatives au pays dans laquelle les utilisateurs peuvent saisir des données clés qui guideront les scénarios de coûts.
B4: La deuxième feuille de calcul est Main-d'œuvre et entretien. Elle permet une évaluation des coûts localisés des tarifs de main-d'œuvre, des coûts d'installation et des hypothèses pour l'entretien courant et préventif, ainsi que la main-d'œuvre affectée à la réparation par technologie. (Ces valeurs peuvent également être saisies modèle par modèle dans les feuilles de calcul Technologie).
A6: En général, une fois que les cellules en vert et orange sont mises à jour pour un pays ou une segmentation, elles n'ont pas besoin d'être mises à jour pour chaque scénario ou comparaison réalisée.
B8: Légende des cellules de saisie
C9: Question clé
C10: Valeur de saisie requise
C11: L'hypothèse générale peut être remplacée le cas échéant.
C12: Valeur calculée ; ne pas modifier
C13: Données liées ; ne pas modifier
B15: Données relatives au pays
B16: 1 | C16: Sélectionnez la feuille de calcul Données relatives au pays.
B17: 2 | C17: Nommez le segment de l'installation à évaluer : commence généralement par un inventaire de l'équipement de la chaîne du froid, une analyse des écarts de capacité ou un exercice de segmentation de l'installation.
B18: 3 | C18: Répondez aux questions clés : nombre d'installations à équiper, nombre de livraisons par an et besoin en volume (annuel) s'il est connu.
B19: 4 | C19: Examinez et indiquez dans les cellules vertes des informations appropriées pour le segment dans la comparaison.
C20: Si le besoin en volume est connu, saisissez des données dans la cellule « D14 ». Si le besoin en volume n'est pas connu, respectez les étapes suivantes : saisissez la population couverte par les installations dans la segmentation et le taux de natalité annuel. Sélectionnez un vaccin dans la liste déroulante, entrez l'objectif de couverture et répétez l'action, en ajoutant au besoin des vaccins.
B23: 5 | C23: Faites défiler jusqu'à la section Hypothèses financières.
B24: 6 | C24: Mettez à jour les valeurs pour le taux d'actualisation (le cas échéant), pour le taux de change de l'euro en dollar US et pour les frais de transport (au port du pays).
B25: 7 | C25: Faites défiler jusqu'à la section Coûts énergétiques.
B26: 8 | C26: Mettez à jour les valeurs concernant l'énergie (électricité, carburant, besoins en panneaux solaires).
B28: Main-d'œuvre et entretien
B29: 1 | C29: Sélectionnez la feuille de calcul Main d'œuvre et entretien.
B30: 2 | C30: Mettez à jour les valeurs adéquates pour les tarifs de main-d'œuvre.
B31: 3 | C31: Passez en revue les valeurs d'installation par unité en orange et mettez-les à jour pour le marché local si besoin.
B32: 4 | C32: Entrer les valeurs pour service bundle pricing si une estimation du fabricant est disponible pour le pays.
B33: Remarque : le prix moyen pondéré devait être utilisé comme hors tension service bundle pricing.
B35: 5 | C35: Examinez les valeurs d'entretien général par unité en orange et mettez-les à jour pour le marché local si besoin.
B37: Remarque : la fréquence d'entretien ou des réparations est exprimée en années.
B38: Exemple : si une activité a lieu tous les 3 mois, saisissez 0,25 ; si une activité a lieu tous les 2 ans, saisissez 2.

Sheet Données relatives au pays
A1: Données relatives au pays
A3: Données sur la demande en volume et sélection des vaccins
A5: Facteurs de capacité annuelle du vaccin | F5: Légende des couleurs des cellules de saisie
B6: Segmentation de la chaîne du froid en cours d'évaluation | D6: nom?
B7: Nombre d'installations de stockage de vaccins à équiper | D7: 10 | G7: Questions clés
B8: Livraisons de vaccins par an | D8: 4 | G8: Valeur de saisie requise
B9: Stock de sécurité (%) | D9: 0 | G9: L'hypothèse générale peut être remplacée le cas échéant.
B10: Utilisation du réfrigérateur (% de remplissage) | D10: 1 | G10: Valeur calculée ; ne pas modifier
G11: Données liées à partir du modèle ; ne pas modifier
A12: Le volume de stockage nécessaire provient-il d'un autre outil de prévision? | D12: OUI | E12: (sélectionner)
A13: Si oui, quel est le volume de stockage annuel nécessaire en litres ? | D13: 500 | F13: Pour effacer les hypothèses jaunes et vertes, cliquez ici --->
A14: Si non, remplissez les tableaux suivants dans la section ci-dessous. | F14: ***Une fois effacées, les hypothèses ne peuvent pas être restaurées.***
B16: Population d'installations à équiper | D16: 5000000
B17: Taux de natalité annuel | D17: 0.025
A19: Vaccins inclus dans le programme (sélectionner tous les vaccins utilisés)
B21: Vaccins (choisir dans la liste déroulante) | C21: Objectif national de couverture | D21: Demande annuelle en volume de vaccin (cm3)
B22: BCG-lyophilized-20 | C22: 0.9 | D22: =IF(B22="--","",IF(B22="","",VLOOKUP(B22,vaccines!$B:$O,14,FALSE)*Population*BirthRate*NationalCoverage)) -> 365625
B23: VAT-liquid-20 | C23: 0.8 | D23: =IF(B23="--","",IF(B23="","",VLOOKUP(B23,vaccines!$B:$O,14,FALSE)*Population*BirthRate*NationalCoverage)) -> 535150
B24: VAR-lyophilized-5 | C24: 0.9 | D24: =IF(B24="--","",IF(B24="","",VLOOKUP(B24,vaccines!$B:$O,14,FALSE)*Population*BirthRate*NationalCoverage)) -> 3234705.882
B25: VPO-liquid-20 | C25: 0.9 | D25: =IF(B25="--","",IF(B25="","",VLOOKUP(B25,vaccines!$B:$O,14,FALSE)*Population*BirthRate*NationalCoverage)) -> 388125
B26: DTC-HepB-Hib-liquid-10 | C26: 0.9 | D26: =IF(B26="--","",IF(B26="","",VLOOKUP(B26,vaccines!$B:$O,14,FALSE)*Population*BirthRate*NationalCoverage)) -> 1091911.765
B27: PCV-13-liquid-1 | C27: 0.9 | D27: =IF(B27="--","",IF(B27="","",VLOOKUP(B27,vaccines!$B:$O,14,FALSE)*Population*BirthRate*NationalCoverage)) -> 4094318.182
B28: Rota_RV1-liquid-1 | C28: 0.9 | D28: =IF(B28="--","",IF(B28="","",VLOOKUP(B28,vaccines!$B:$O,14,FALSE)*Population*BirthRate*NationalCoverage)) -> 3938636.364
D29: =IF(B29="--","",IF(B29="","",VLOOKUP(B29,vaccines!$B:$O,14,FALSE)*Population*BirthRate*NationalCoverage)) -> 
D30: =IF(B30="--","",IF(B30="","",VLOOKUP(B30,vaccines!$B:$O,14,FALSE)*Population*BirthRate*NationalCoverage)) -> 
D31: =IF(B31="--","",IF(B31="","",VLOOKUP(B31,vaccines!$B:$O,14,FALSE)*Population*BirthRate*NationalCoverage)) -> 
D32: =IF(B32="--","",IF(B32="","",VLOOKUP(B32,vaccines!$B:$O,14,FALSE)*Population*BirthRate*NationalCoverage)) -> 
D33: =IF(B33="--","",IF(B33="","",VLOOKUP(B33,vaccines!$B:$O,14,FALSE)*Population*BirthRate*NationalCoverage)) -> 
D34: =IF(B34="--","",IF(B34="","",VLOOKUP(B34,vaccines!$B:$O,14,FALSE)*Population*BirthRate*NationalCoverage)) -> 
D35: =IF(B35="--","",IF(B35="","",VLOOKUP(B35,vaccines!$B:$O,14,FALSE)*Population*BirthRate*NationalCoverage)) -> 
D36: =IF(B36="--","",IF(B36="","",VLOOKUP(B36,vaccines!$B:$O,14,FALSE)*Population*BirthRate*NationalCoverage)) -> 
B38: Estimated vaccine volume (liters) per delivery | D38: =(1+D9)*IF(D12="NON",(SUM(D22:D36)*0.001)*(1+(1-RefrigeratorUtilization))/DeliveryFrequency,(D13)*(1+(1-RefrigeratorUtilization))/DeliveryFrequency) -> 125
B39: Volume de vaccin estimé par installation et par livraison | D39: =LitersPerDelivery/D7 -> 12.5
A42: Paramètres financiers
E43: Visite :
B44: Discount Rate
B45: Inflation Rate | E45: Average inflation rate of countries included in World Bank 2014 "Inflation, consumer prices (annual %)" http://data.worldbank.org/indicator/FP.CPI.TOTL.ZG/countries?display=default
B46: Taux de change : 1 € = | C46: 1.13 | E46: www.xe.com
B47: Frais de transport (en % de la valeur) | C47: 0.07 | E47: pour l'estimation des frais de transport du « premier kilomètre » au port d'entrée.
A50: Coûts énergétiques
C51: Coûts locaux
B52: Kérosène (dollar US/litre) | C52: 1.17
B53: GPL (dollar US/kg) | C53: 1.83
B54: Électricité (dollar US/kWh) | C54: 0.2
B56: Pourcentage de carburant d'un réfrigérateur à absorption
B57: Consommation de kérosène ou de gaz | C57: 1 | E57: Remarque : Il s'agit de la combinaison de sources d'énergie si l'électricité est disponible.
B58: Consommation d'électricité | C58: =1-C57 -> 0
B60: Panneaux solaires (le cas échéant)
B61: Taille des panneaux solaires | C61: Petite | E61: Source : D'après les données des estimations du catalogue de la Division des approvisionnements de l'UNICEF

Sheet Main-d'œuvre et entretien
A1: Hypothèses relatives à la main-d'œuvre, l'entretien et l'installation
A2: Tarif de la main-d'œuvre
B3: Tarif en dollar US
A4: Salaire horaire d'un technicien de la chaîne du froid | B4: 2
A5: Frais de déplacement moyens pour les réparations sur site | B5: 40 | D5: Les frais de déplacement pour le technicien de la chaîne du froid ne doivent pas être différents selon la technologie.
A6: Frais de déplacement moyens annuels pour les pleins de carburant | B6: =0.33*0.06*200 -> 3.96 | D6: Pour ECF à absorption au kérosène ou au gaz
A7: Frais de déplacement moyens pour un technicien | B7: 150 | D7: Les frais de déplacement moyens pour un technicien vers un site d'ECF. Variable en fonction du segment de l'installation qui est en cours de modélisation.
A8: Coût de transport moyen de l'équipement | B8: 150 | D8: Le coût du transport de l'équipement doit être semblable à celui de l'installation, mais pas à celui d'un transport en vrac. Il sert à amener l'ECF dans un atelier et à le ramener
A9: Coût moyen pour obtenir de la glace (par trajet) | D9: TBD avec des études passives à partir de 2015.
A11: Coûts de formation (total)
A12: Formation totale comprise dans le budget pour les installations segmentées | B12: 0 | D12: Les coûts de formation sont très variables. Représente un élément de ligne simple à calculer avec les coûts totaux de la solution CAPEX (non compris dans le coût total de possession).
A14: Installation par unité
C16: Nombre de techniciens nécessaires par unité installée | D16: Nombre d'heures d'installation pour chaque technicien | E16: Transport de l'unité de réfrigération jusqu'au site d'installation dans le pays | F16: Matériel d'installation | G16: Transport des techniciens en installation | H16: Main-d'œuvre d'installation | I16: Coût total d'installation par unité | J16: Coûts d'installation sans le matériel
A17: Chambre froide/chambre de congélation | C17: 4 | D17: 16 | E17: 1000 | F17: 3000 | G17: =InstallationTechnicianTravelCost*TechniciansPerUnit -> 600 | H17: =TechniciansPerUnit*HoursPerTechnician*TechnicianHourlyWage -> 128 | I17: =SUM(E17:H17) -> 4728 | J17: =I17-E17-F17 -> 728
A18: Énergie solaire directe | C18: 2 | D18: 48 | E18: 550 | F18: 120 | G18: =InstallationTechnicianTravelCost*TechniciansPerUnit -> 300 | H18: 192 | I18: =SUM(E18:H18) -> 1162 | J18: =I18-E18-F18 -> 492
A19: Énergie solaire avec batteries | C19: 2 | D19: 48 | E19: 550 | F19: =F18*1.2 -> 144 | G19: =InstallationTechnicianTravelCost*TechniciansPerUnit -> 300 | H19: 192 | I19: 1186 | J19: 492
A20: Énergie électrique avec kérosène | C20: 1 | D20: 8 | E20: =E18/2 -> 275 | F20: 0 | G20: 150 | H20: 16 | I20: 441 | J20: 166
A21: Énergie électrique avec gaz | C21: 1 | D21: 8 | E21: =E18/2 -> 275 | F21: 0 | G21: 150 | H21: 16 | I21: 441 | J21: 166
A22: Congélateur coffre (CC) | C22: 1 | D22: 24 | E22: 550 | F22: 50 | G22: 150 | H22: 48 | I22: 798 | J22: 198
A23: Congélateur | C23: 1 | D23: 8 | E23: 550 | F23: 50 | G23: 150 | H23: 16 | I23: 766 | J23: 166
A24: Dispositif de stockage passif à long terme | C24: 1 | D24: 8 | E24: 150 | F24: 100 | G24: 150 | H24: 16 | I24: 416 | J24: 166
A27: Paquet de services du CCEOP
A28: Entrer les valeurs pour service bundle pricing si une estimation du fabricant est disponible pour le pays.
C30: Aucma | D30: B Medical | E30: Dulas | F30: Godrej | G30: Haier | H30: SunDanzer | I30: Vestfrost | J30: Zero
A31: Sur le réseau électrique
A32: Hors du réseau électrique
A33: Note : le prix moyen pondéré devait être utilisé comme off-grid service bundle pricing.
A35: Entretien général par unité
A37: Type de réfrigérateur | B37: Durée de l'équipement (en années) | C37: Nombre d'heures de travail requises | D37: Coût par unité ou activité | E37: Fréquence (en années) | F37: Réparation effectuée | G37: Description/commentaires
A39: Kérosène | B39: 10
A40: Frais d'entretien : remplacement de la mèche | C40: 1 | D40: =(C40*TechnicianHourlyWage) -> 2 | E40: =1/12 -> 0.08333333333 | F40: Mensuel
A41: Réparations sur site 1 : changement d'un ou de plusieurs des éléments suivants : jet de gaz, thermocouple, dispositif d'extinction ou thermostat | C41: 3 | D41: =(C41*TechnicianHourlyWage)+IF(C41=0,0,RemoteTravelCostPerDay) -> 46 | E41: 5 | F41: Tous les 5 ans
A42: Réparations sur site 2 : remplacement d'un radiateur électrique | C42: 3 | D42: =(C42*TechnicianHourlyWage)+IF(C42=0,0,RemoteTravelCostPerDay) -> 46 | E42: 2 | F42: Tous les 2 ans
A43: Réparations importantes effectuées dans un atelier par un technicien | C43: 16 | D43: =(C43*TechnicianHourlyWage)+IF(C43>0,EquipTransportRate,0) -> 182 | E43: 5 | F43: Tous les 5 ans | G43: Estimation de panne majeure
A45: Gaz | B45: 10
A46: Entretien courant | C46: 1 | D46: =(C46*TechnicianHourlyWage) -> 2 | E46: =1/12 -> 0.08333333333 | F46: Mensuel
A47: Réparations sur site 1 | C47: 0 | D47: =(C47*TechnicianHourlyWage)+IF(C47=0,0,RemoteTravelCostPerDay) -> 0 | E47: 0
A48: Réparations sur site 2 | C48: 0 | D48: =(C48*TechnicianHourlyWage)+IF(C48=0,0,RemoteTravelCostPerDay) -> 0 | E48: 0
A49: Réparations importantes effectuées dans un atelier par un technicien | C49: 10 | D49: =(C49*TechnicianHourlyWage)+IF(C49>0,EquipTransportRate,0) -> 170 | E49: 5 | F49: Tous les 5 ans | G49: Estimation de panne majeure
A51: Réfrigérateur à garniture de glace (RGG) | B51: 10
A52: Entretien courant | C52: 3 | D52: =(C52*TechnicianHourlyWage) -> 6 | E52: 0.25 | F52: Trimestriel | G52: Dégivrage/nettoyage
A53: Réparations sur site 1 | C53: 1 | D53: =(C53*TechnicianHourlyWage)+IF(C53=0,0,RemoteTravelCostPerDay) -> 42 | E53: 1
A54: Réparations sur site 2 | C54: 0 | D54: =(C54*TechnicianHourlyWage)+IF(C54=0,0,RemoteTravelCostPerDay) -> 0 | E54: 0
A55: Réparations importantes effectuées dans un atelier par un technicien | C55: 4 | D55: =(C55*TechnicianHourlyWage)+IF(C55>0,EquipTransportRate,0) -> 158 | E55: 3 | F55: Tous les 3 ans | G55: Estimation de réparation périodique (besoin de données sur le pays pour justification)
A57: Énergie solaire avec batterie | B57: 10
A58: Entretien courant | C58: 2 | D58: =(C58*TechnicianHourlyWage) -> 4 | E58: 0.25 | F58: Trimestriel
A59: Entretien courant : coût d'élimination des batteries | C59: 0 | D59: =[7]Parts!$E$71*0.08 -> 21.4664 | E59: 3 | F59: Tous les 3 ans | G59: Il faut supposer que l'élimination de la batterie correspond à 8 % de son prix d'achat. Deux batteries doivent être éliminées sur une période de 10 ans.
A60: Réparations sur site 1 | C60: 0 | D60: =(C60*TechnicianHourlyWage)+IF(C60=0,0,RemoteTravelCostPerDay) -> 0 | E60: 0
A61: Réparations sur site 2 | C61: 0 | D61: =(C61*TechnicianHourlyWage)+IF(C61=0,0,RemoteTravelCostPerDay) -> 0 | E61: 0
A62: Réparations importantes effectuées dans un atelier par un technicien | C62: 4 | D62: =(C62*TechnicianHourlyWage)+IF(C62>0,EquipTransportRate,0) -> 158 | E62: 1 | G62: Vérification du niveau d'électrolyte dans les batteries
A64: Énergie solaire directe | B64: 10
A65: Panneaux de nettoyage + entretien général | C65: 1 | D65: =(C65*TechnicianHourlyWage) -> 2 | E65: =1/12 -> 0.08333333333 | F65: Mensuel
A66: Réparations sur site 1 | C66: 2 | D66: =(C66*TechnicianHourlyWage)+IF(C66=0,0,RemoteTravelCostPerDay) -> 44 | E66: 1
A67: Réparations sur site 2 | C67: 0 | D67: =(C67*TechnicianHourlyWage)+IF(C67=0,0,RemoteTravelCostPerDay) -> 0 | E67: 0
A68: Réparations importantes effectuées dans un atelier par un technicien | C68: 4 | D68: =(C68*TechnicianHourlyWage)+IF(C68>0,EquipTransportRate,0) -> 158 | E68: 4
A70: Congélateur | B70: 10
A71: Entretien courant | C71: 3 | D71: =(C71*TechnicianHourlyWage) -> 6 | E71: 0.25 | F71: Trimestriel | G71: Dégivrage/nettoyage
A72: Réparations sur site 1 | C72: 1 | D72: =(C72*TechnicianHourlyWage)+IF(C72=0,0,RemoteTravelCostPerDay) -> 42 | E72: 1
A73: Réparations sur site 2 | C73: 0 | D73: =(C73*TechnicianHourlyWage)+IF(C73=0,0,RemoteTravelCostPerDay) -> 0 | E73: 0
A74: Réparations importantes effectuées dans un atelier par un technicien | C74: 4 | D74: =(C74*TechnicianHourlyWage)+IF(C74>0,EquipTransportRate,0) -> 158 | E74: 3 | F74: Tous les 3 ans | G74: Estimation de réparation périodique (besoin de données sur le pays pour justification)
A76: Chambre froide/chambre congelée | B76: 15
A77: Nettoyage et entretien général | C77: 4 | D77: =(C77*TechnicianHourlyWage) -> 8 | E77: 0.25 | F77: Trimestriel
A78: Réparations sur site 1 | C78: 16 | D78: =(C78*TechnicianHourlyWage)+IF(C78=0,0,RemoteTravelCostPerDay) -> 72 | E78: 3
A79: Réparations sur site 2 | C79: 0 | D79: =(C79*TechnicianHourlyWage)+IF(C79=0,0,RemoteTravelCostPerDay) -> 0 | E79: 0
A80: Réparations importantes par un technicien | C80: 0 | D80: =(C80*TechnicianHourlyWage)+IF(C80>0,EquipTransportRate,0) -> 0 | E80: 0
A82: Coffre isotherme à longue durée | B82: 8
A83: Entretien courant | C83: 1 | D83: =(C83*TechnicianHourlyWage) -> 2 | E83: =1/12 -> 0.08333333333 | F83: Mensuel | G83: Nettoyage de l'équipement et vérification de la batterie
A84: Réparations sur site 1 | C84: 1 | D84: =(C84*TechnicianHourlyWage)+IF(C84=0,0,RemoteTravelCostPerDay) -> 42 | E84: 1
A85: Réparations sur site 2 | C85: 0 | D85: =(C85*TechnicianHourlyWage)+IF(C85=0,0,RemoteTravelCostPerDay) -> 0 | E85: 0
A86: Réparations importantes effectuées dans un atelier par un technicien | C86: 0 | D86: =(C86*TechnicianHourlyWage)+IF(C86>0,EquipTransportRate,0) -> 0
A87: Livraison de glace | D87: =AvgIceDelivery -> 0 | E87: =1/12 -> 0.08333333333 | F87: Mensuel | G87: Hypothèse de livraison de glace

Sheet Comparisons ==>
A1: Comparaisons
B2: Utilisez ces feuilles de calcul pour comparer les différentes technologies d'équipement de la chaîne du froid (ECF).
C3: Les données récapitulatives sont affichées en tant que coûts moyens pour une technologie.
C4: Les filtres permettent d'analyser par la capacité de stockage, la technologie ou un modèle spécifique. Pour sélectionner plusieurs filtres, maintenez la touche Ctrl enfoncée tout en cliquant sur une sélection.
C5: Pour analyser les modèles dans une technologie, cliquez sur le + situé à gauche des tableaux de données. Le tableau s'élargira pour afficher des modèles d'équipements individuels dans la catégorie de cette technologie.
B8: Arbre décision technologie
C9: Ce graphique a été développé par le groupe de travail de l'ECF de l'Organisation mondiale de la Santé (OMS) pour aider les utilisateurs à visualiser les matrices de décision pour le choix d'ECF.
B11: Comparaison du CTP
C12: Cette feuille de calcul affiche le coût total de possession par technologie ventilé par les coûts d'investissement et les dépenses d'exploitation totales pendant la durée de vie utile d'une unité d'équipement.
B14: Comparaison du coût par litre
C15: Cette feuille de calcul affiche les coûts totaux moyens divisés par la capacité de stockage d'une unité afin de comparer les dépenses d'investissement et d'exploitation par litre de stockage pendant la durée de vie utile d'un équipement.
B17: Comparaison OPEX
C18: Cette feuille de calcul décompose les dépenses annuelles d'exploitation d'un équipement par énergie, entretien, réparations majeures et coût des pièces de rechange pendant la durée de vie utile d'un équipement.
A20: Les calculs effectués pour les comparaisons reposent sur les hypothèses qui se trouvent dans les feuilles de calcul Données relatives au pays, Main-d'œuvre et entretien et Technologie.
B23: Coûts totaux de la solution
C24: Cette feuille de calcul indique les coûts totaux pour une solution qui répond aux besoins du scénario d'ECF. Elle comprend le nombre d'installations à équiper et les besoins de stockage par période de réapprovisionnement, ainsi que la durée de vie utile de l'équipement par rapport à la période prévue.
B26: Comparaison flux de trésorerie
C27: Représentation graphique des coûts de la solution par année pour l'équipement sélectionné. Elle permet de visualiser la planification des flux de trésorerie en fonction de la durée de vie utile de l'équipement (matériel, panneaux solaires, batteries). Les pièces détachées ne sont pas incluses dans le graphique.

Sheet Comparaison du CTP
A1: Comparaison des coûts totaux pendant la durée de vie utile (par unité)
B20: Pour filtrer les technologies, cliquez sur la flèche en regard de « Étiquettes de ligne ». Pour élargir une technologie et consulter des modèles, cliquez sur le bouton plus (+).
C22: Moyenne des CAPEX | D22: Moyenne des OPEX pendant la vie utile | F22: Coût total de possession
B23: RGG | C23: 2781.703724 | D23: 1704.800617 | F23: =IF(C23="","",C23+D23) -> 4486.504341
B24: SDD | C24: 6147.738134 | D24: 717.8055556 | F24: =IF(C24="","",C24+D24) -> 6865.543689
B25: Congélateur | C25: 2512.972442 | D25: 2370.463333 | F25: 4883.435776
B26: Coffre isotherme à longue durée | C26: 2983.51 | D26: 528 | F26: 3511.51
F88: =IF(C88="","",C88+D88) -> 
F152: =IF(C152="","",C152+D152) -> 

Sheet Comparaison détaillée du CTP
A1: Comparaison du coût par litre de stockage
B19: Pour filtrer les technologies, cliquez sur la flèche en regard de « Étiquettes de ligne ». Pour élargir une technologie et consulter des modèles, cliquez sur le bouton plus (+).
C21: Coût unitaire moyen | D21: Coût moyen pour les pièces de rechange | E21: Coût moyen d’installation (de l’équipement) | F21: Coûts moyen d’énergie | G21: Coût moyen de l’entretien et réparation
B22: RGG | C22: 1943.559445 | D22: 50.62576029 | E22: 748 | F22: 724.9981481 | G22: 979.8024691
B23: SDD | C23: 5052.145289 | D23: 53.59284461 | E23: 1042 | F23: 0 | G23: 717.8055556
B24: Congélateur | C24: 1689.41414 | D24: 39.65830195 | E24: 716 | F24: 1373.13 | G24: 997.3333333
B25: Coffre isotherme à longue durée | C25: 2667.51 | D25: 0 | E25: 316 | F25: 0 | G25: 528

Sheet Comparaison du coût par litre
A1: Comparaison des dépenses d'exploitation par rapport à la vie utile (par unité)
B19: Pour filtrer les technologies, cliquez sur la flèche en regard de « Étiquettes de ligne ». Pour élargir une technologie et consulter des modèles, cliquez sur le bouton plus (+).
C21: Moyenne des CAPEX par litre | D21: Moyenne des OPEX pendant la vie utile par litre | E21: Moyenne du coût total par litre
B22: RGG | C22: 39.06048803 | D22: 25.49246657 | E22: 64.55295459
B23: SDD | C23: 145.8982464 | D23: 16.05869141 | E23: 161.9569378
B24: Congélateur | C24: 28.96003682 | D24: 18.10405758 | E24: 47.0640944
B25: Coffre isotherme à longue durée | C25: 552.5018519 | D25: 97.77777778 | E25: 650.2796296

Sheet ROI (hidden)
B1: Return on investment and impact analysis
B2: Immunization Schedule
B3: Vaccines (select from dropdown) | C3: National coverage | D3: Annual vaccine volume demand (cm3) | E3: # of vaccinated children per year | F3: # of doses (children x schedule) | G3: Value of vaccines per year | H3: Cost over forecast horizon | I3: present value of vaccines over forecast
B4: BCG-lyophilized-20 | C4: 0.9 | D4: =IF(B4="--","",VLOOKUP(B4,vaccines!$B:$O,14,FALSE)*Population*BirthRate*ROI!C4) -> 365625 | E4: =IF(B4="--","",D4/VLOOKUP(ROI!B4,vaccines!$B:$O,14,FALSE)) -> 112500 | F4: =IF(B4="--","",VLOOKUP(B4,vaccines!$B:$W,7,FALSE)*E4) -> 112500 | G4: =IF(B4="--","",F4*VLOOKUP(B4,vaccines!$B:$W,22,FALSE)) -> 15412.5 | H4: =IF(B4="--","",G4*'Coûts totaux de la solution'!$B$2) -> 154125 | I4: =IF(B4="--","",PV(DiscountRate,'Coûts totaux de la solution'!$B$2,-G4,,1)) -> 154125
B5: TT-liquid-20 | C5: 0.9 | D5: =IF(B5="--","",VLOOKUP(B5,vaccines!$B:$O,14,FALSE)*Population*BirthRate*ROI!C5) ->  | E5: =IF(B5="--","",D5/VLOOKUP(ROI!B5,vaccines!$B:$O,14,FALSE)) ->  | F5: =IF(B5="--","",VLOOKUP(B5,vaccines!$B:$W,7,FALSE)*E5) ->  | G5: =IF(B5="--","",F5*VLOOKUP(B5,vaccines!$B:$W,22,FALSE)) ->  | H5: =IF(B5="--","",G5*'Coûts totaux de la solution'!$B$2) ->  | I5: =IF(B5="--","",PV(DiscountRate,'Coûts totaux de la solution'!$B$2,-G5,,1)) -> 
B6: Measles-lyophilized-5 | C6: 0.9 | D6: =IF(B6="--","",VLOOKUP(B6,vaccines!$B:$O,14,FALSE)*Population*BirthRate*ROI!C6) ->  | E6: =IF(B6="--","",D6/VLOOKUP(ROI!B6,vaccines!$B:$O,14,FALSE)) ->  | F6: =IF(B6="--","",VLOOKUP(B6,vaccines!$B:$W,7,FALSE)*E6) ->  | G6: =IF(B6="--","",F6*VLOOKUP(B6,vaccines!$B:$W,22,FALSE)) ->  | H6: =IF(B6="--","",G6*'Coûts totaux de la solution'!$B$2) ->  | I6: =IF(B6="--","",PV(DiscountRate,'Coûts totaux de la solution'!$B$2,-G6,,1)) -> 
B7: OPV-liquid-20 | C7: 0.9 | D7: =IF(B7="--","",VLOOKUP(B7,vaccines!$B:$O,14,FALSE)*Population*BirthRate*ROI!C7) ->  | E7: =IF(B7="--","",D7/VLOOKUP(ROI!B7,vaccines!$B:$O,14,FALSE)) ->  | F7: =IF(B7="--","",VLOOKUP(B7,vaccines!$B:$W,7,FALSE)*E7) ->  | G7: =IF(B7="--","",F7*VLOOKUP(B7,vaccines!$B:$W,22,FALSE)) ->  | H7: =IF(B7="--","",G7*'Coûts totaux de la solution'!$B$2) ->  | I7: =IF(B7="--","",PV(DiscountRate,'Coûts totaux de la solution'!$B$2,-G7,,1)) -> 
B8: DTP-HepB-Hib-liquid-10 | C8: 0.9 | D8: =IF(B8="--","",VLOOKUP(B8,vaccines!$B:$O,14,FALSE)*Population*BirthRate*ROI!C8) ->  | E8: =IF(B8="--","",D8/VLOOKUP(ROI!B8,vaccines!$B:$O,14,FALSE)) ->  | F8: =IF(B8="--","",VLOOKUP(B8,vaccines!$B:$W,7,FALSE)*E8) ->  | G8: =IF(B8="--","",F8*VLOOKUP(B8,vaccines!$B:$W,22,FALSE)) ->  | H8: =IF(B8="--","",G8*'Coûts totaux de la solution'!$B$2) ->  | I8: =IF(B8="--","",PV(DiscountRate,'Coûts totaux de la solution'!$B$2,-G8,,1)) -> 
B9: PCV-13-liquid-1 | C9: 0.9 | D9: =IF(B9="--","",VLOOKUP(B9,vaccines!$B:$O,14,FALSE)*Population*BirthRate*ROI!C9) -> 4094318.182 | E9: =IF(B9="--","",D9/VLOOKUP(ROI!B9,vaccines!$B:$O,14,FALSE)) -> 112500 | F9: =IF(B9="--","",VLOOKUP(B9,vaccines!$B:$W,7,FALSE)*E9) -> 337500 | G9: =IF(B9="--","",F9*VLOOKUP(B9,vaccines!$B:$W,22,FALSE)) -> 1113750 | H9: =IF(B9="--","",G9*'Coûts totaux de la solution'!$B$2) -> 11137500 | I9: =IF(B9="--","",PV(DiscountRate,'Coûts totaux de la solution'!$B$2,-G9,,1)) -> 11137500
B10: Rota_liq-liquid-1 | C10: 0.9 | D10: =IF(B10="--","",VLOOKUP(B10,vaccines!$B:$O,14,FALSE)*Population*BirthRate*ROI!C10) ->  | E10: =IF(B10="--","",D10/VLOOKUP(ROI!B10,vaccines!$B:$O,14,FALSE)) ->  | F10: =IF(B10="--","",VLOOKUP(B10,vaccines!$B:$W,7,FALSE)*E10) ->  | G10: =IF(B10="--","",F10*VLOOKUP(B10,vaccines!$B:$W,22,FALSE)) ->  | H10: =IF(B10="--","",G10*'Coûts totaux de la solution'!$B$2) ->  | I10: =IF(B10="--","",PV(DiscountRate,'Coûts totaux de la solution'!$B$2,-G10,,1)) -> 
B11: -- | D11: =IF(B11="--","",VLOOKUP(B11,vaccines!$B:$O,14,FALSE)*Population*BirthRate*ROI!C11) ->  | E11: =IF(B11="--","",D11/VLOOKUP(ROI!B11,vaccines!$B:$O,14,FALSE)) ->  | F11: =IF(B11="--","",VLOOKUP(B11,vaccines!$B:$W,7,FALSE)*E11) ->  | G11: =IF(B11="--","",F11*VLOOKUP(B11,vaccines!$B:$W,22,FALSE)) ->  | H11: =IF(B11="--","",G11*'Coûts totaux de la solution'!$B$2) ->  | I11: =IF(B11="--","",PV(DiscountRate,'Coûts totaux de la solution'!$B$2,-G11,,1)) -> 
B12: -- | D12: =IF(B12="--","",VLOOKUP(B12,vaccines!$B:$O,14,FALSE)*Population*BirthRate*ROI!C12) ->  | E12: =IF(B12="--","",D12/VLOOKUP(ROI!B12,vaccines!$B:$O,14,FALSE)) ->  | F12: =IF(B12="--","",VLOOKUP(B12,vaccines!$B:$W,7,FALSE)*E12) ->  | G12: =IF(B12="--","",F12*VLOOKUP(B12,vaccines!$B:$W,22,FALSE)) ->  | H12: =IF(B12="--","",G12*'Coûts totaux de la solution'!$B$2) ->  | I12: =IF(B12="--","",PV(DiscountRate,'Coûts totaux de la solution'!$B$2,-G12,,1)) -> 
B13: -- | D13: =IF(B13="--","",VLOOKUP(B13,vaccines!$B:$O,14,FALSE)*Population*BirthRate*ROI!C13) ->  | E13: =IF(B13="--","",D13/VLOOKUP(ROI!B13,vaccines!$B:$O,14,FALSE)) ->  | F13: =IF(B13="--","",VLOOKUP(B13,vaccines!$B:$W,7,FALSE)*E13) ->  | G13: =IF(B13="--","",F13*VLOOKUP(B13,vaccines!$B:$W,22,FALSE)) ->  | H13: =IF(B13="--","",G13*'Coûts totaux de la solution'!$B$2) ->  | I13: =IF(B13="--","",PV(DiscountRate,'Coûts totaux de la solution'!$B$2,-G13,,1)) -> 
B14: -- | D14: =IF(B14="--","",VLOOKUP(B14,vaccines!$B:$O,14,FALSE)*Population*BirthRate*ROI!C14) ->  | E14: =IF(B14="--","",D14/VLOOKUP(ROI!B14,vaccines!$B:$O,14,FALSE)) ->  | F14: =IF(B14="--","",VLOOKUP(B14,vaccines!$B:$W,7,FALSE)*E14) ->  | G14: =IF(B14="--","",F14*VLOOKUP(B14,vaccines!$B:$W,22,FALSE)) ->  | H14: =IF(B14="--","",G14*'Coûts totaux de la solution'!$B$2) ->  | I14: =IF(B14="--","",PV(DiscountRate,'Coûts totaux de la solution'!$B$2,-G14,,1)) -> 
B16: Financial metrics
B17: Values are calculated in # of years in the forecast horizon in "Forecasted NPV Costs" worksheet
B18: CCE solution cost (NPV) | C18: ------> | D18: =GETPIVOTDATA("Average of Net Present Value (Driven by years of planning)",'Coûts totaux de la solution'!$A$26) ->  | H18: Net Present Value of vaccines | I18: =SUM(I4:I14) -> 
B19: Note: The default value above ^ is the average solution cost of ALL CCE. For proper analysis enter the solution cost for a specific model found in the "Forecasted NPV Costs" worksheet.
B22: Total investment | D22: =D18+I18 ->  | F22: Total net present value of the vaccines procured and CCE for the target population
B23: Number of vaccinations | D23: =SUM(E4:E14)*'Coûts totaux de la solution'!B2 ->  | F23: Total # of full vaccine schedules completed over forecast (not including a wastage factor yet)
B24: Number of doses | D24: =SUM(F4:F14)*'Coûts totaux de la solution'!B2 -> 
B25: Total cost per fully vaccinated child | D25: =D22/D23 ->  | F25: Based on the immunization schedule and coverage targets above
B26: Total Cost per dose | D26: =D22/D24 -> 
B27: Total storage cost per vaccinated child | D27: =D18/D23 ->  | F27: Cost of storage solution divided by # of vaccinated children
B28: Total storage cost per dose | D28: =D18/D24 ->  | F28: Cost of storage solution divided by # of doses
B29: Breakeven (years) | D29: =(D18/I18)*'Coûts totaux de la solution'!B2 ->  | F29: Years it will take for value of vaccines protected to equal the cost of CCE solution
B30: Storage as a % of total solution | D30: =D18/D22 -> 
B32: Energy savings of new equipment? | D32: NPV of fuel costs over forecast | G32: Current absorption equipment (drop down)
B34: Health impact metrics
B35: Wastage reduction | D35: 0.02 | G35: =D23*D35*D25 ->  | I35: how much impact freezing? Heat?
B36: Incremental vaccinations | D36: 0.01 | G36: =D23*D36*D25 -> 
B38: Add screen scrape macro to pull findings per solution.

Sheet Résultats clés ===>
A1: Résultats clés
B2: Coûts totaux de la solution
B3: Indique les coûts totaux d'une solution qui répond aux besoins du scénario d'équipement de la chaîne du froid. Les éléments entrant en ligne de compte sont le nombre d'installations à équiper, les besoins de stockage par période de réapprovisionnement et la durée de vie utile de l'équipement par rapport à la période prévue.
B5: Comparaison des flux de trésorerie
B6: Représentation graphique des coûts de la solution par année pour l'équipement sélectionné. Permet la visualisation de la planification des flux de trésorerie en fonction de la durée de vie utile de l'équipement (matériel, panneaux solaires, batteries). Les pièces détachées ne sont pas incluses dans le graphique.

Sheet Coûts totaux de la solution
A1: Coûts totaux de la solution pendant les années prévues
A2: Période de prévision | B2: 10 | C2: <- Sélectionnez le nombre d'années à calculer (20 au maximum).
A21: Niveau de la chaîne du froid (segmentation) évalué | C21: =facilitysegment -> nom?
A22: Nombre d'installations à équiper | C22: =NumberFacilitiestoEquip -> 10
A23: Volume de stockage nécessaire par installation | C23: =LitersPerFacility -> 12.5
A24: Lors de la sélection d'un segment de capacité, il peut être utile de sélectionner le prochain plus grand segment et de comparer les coûts pour les équipements plus grands.
A26: Technologie/Modèle | B26: Coût de la solution | C26: Nombre d'unités requises | D26: Durée de vie utile (années) | E26: Prix unitaire | F26: OPEX par an | G26: CTP par unité | H26: Capacité nette du vaccin (en litres) | I26: Capacité brute de congélation (en litres) | J26: Plage d'exploitation (en °C) | K26: Délai (heures) | L26: Poids à l'expédition (en kg) | M26: Dimensions | N26: Évaluation TechNet
A27: RGG | B27: 44822.46916 | C27: 10 | D27: 10 | E27: =IFERROR(VLOOKUP($A27,PQS!$F$5:$AR$137,MATCH(PQS!$AN$3, PQS!$F$3:$AR$3,0),FALSE),"") ->  | F27: =IFERROR(VLOOKUP($A27,PQS!$F$5:$AW$137,MATCH(PQS!$AM$3,PQS!$F$3:$AW$3,0),FALSE),"") ->  | G27: =IF(E27="","",(B27/C27)) ->  | H27: =IFERROR(VLOOKUP($A27,PQS!$F$5:$AW$137,MATCH(PQS!$K$3,PQS!$F$3:$AW$3,0),FALSE),"") ->  | I27: =IFERROR(VLOOKUP($A27,PQS!$F$5:$AW$137,MATCH(PQS!$L$3,PQS!$F$3:$AW$3,0),FALSE),"") ->  | J27: =IFERROR(VLOOKUP($A27,PQS!$F$5:$AW$137,MATCH(PQS!$AL$3,PQS!$F$3:$AW$3,0),FALSE),"") ->  | K27: =IFERROR(VLOOKUP($A27,PQS!$F$5:$AW$137,COLUMN(PQS!$AC$5)-3,FALSE),"") ->  | L27: =IFERROR(VLOOKUP($A27,PQS!$F$5:$AW$137,MATCH(PQS!$J$3,PQS!$F$3:$AW$3,0),FALSE),"") ->  | M27: =IFERROR(VLOOKUP($A27,PQS!$F$5:$AW$137,MATCH(PQS!$AG$3,PQS!$F$3:$AW$3,0),FALSE),"") ->  | N27: =IFERROR(HYPERLINK(VLOOKUP($A27,PQS!$F$5:$AW$137,MATCH(PQS!$AK$3,PQS!$F$3:$AW$3,0),FALSE),VLOOKUP($A27,PQS!$F$5:$AW$137,MATCH(PQS!$AJ$3,PQS!$F$3:$AW$3,0),FALSE)),"") -> 
A28: Zero ZLF 100 AC* | B28: 55149.97333 | C28: 10 | D28: 10 | E28: =IFERROR(VLOOKUP($A28,PQS!$F$5:$AR$137,MATCH(PQS!$AN$3, PQS!$F$3:$AR$3,0),FALSE),"") -> 1950 | F28: =IFERROR(VLOOKUP($A28,PQS!$F$5:$AW$137,MATCH(PQS!$AM$3,PQS!$F$3:$AW$3,0),FALSE),"") -> 242.8133333 | G28: =IF(E28="","",(B28/C28)) -> 5514.997333 | H28: =IFERROR(VLOOKUP($A28,PQS!$F$5:$AW$137,MATCH(PQS!$K$3,PQS!$F$3:$AW$3,0),FALSE),"") -> 99 | I28: =IFERROR(VLOOKUP($A28,PQS!$F$5:$AW$137,MATCH(PQS!$L$3,PQS!$F$3:$AW$3,0),FALSE),"") -> 0 | J28: =IFERROR(VLOOKUP($A28,PQS!$F$5:$AW$137,MATCH(PQS!$AL$3,PQS!$F$3:$AW$3,0),FALSE),"") -> 5 to 43 | K28: =IFERROR(VLOOKUP($A28,PQS!$F$5:$AW$137,COLUMN(PQS!$AC$5)-3,FALSE),"") -> 143.08 | L28: =IFERROR(VLOOKUP($A28,PQS!$F$5:$AW$137,MATCH(PQS!$J$3,PQS!$F$3:$AW$3,0),FALSE),"") -> 100 | M28: =IFERROR(VLOOKUP($A28,PQS!$F$5:$AW$137,MATCH(PQS!$AG$3,PQS!$F$3:$AW$3,0),FALSE),"") -> 178 x 85 x 71 | N28: =IFERROR(HYPERLINK(VLOOKUP($A28,PQS!$F$5:$AW$137,MATCH(PQS!$AK$3,PQS!$F$3:$AW$3,0),FALSE),VLOOKUP($A28,PQS!$F$5:$AW$137,MATCH(PQS!$AJ$3,PQS!$F$3:$AW$3,0),FALSE)),"") -> ZLF 100 AC* TechNet Page
A29: Zero ZLF 150 AC* | B29: 59124.86133 | C29: 10 | D29: 10 | E29: =IFERROR(VLOOKUP($A29,PQS!$F$5:$AR$137,MATCH(PQS!$AN$3, PQS!$F$3:$AR$3,0),FALSE),"") -> 2300 | F29: =IFERROR(VLOOKUP($A29,PQS!$F$5:$AW$137,MATCH(PQS!$AM$3,PQS!$F$3:$AW$3,0),FALSE),"") -> 244.2733333 | G29: 5912.486133 | H29: =IFERROR(VLOOKUP($A29,PQS!$F$5:$AW$137,MATCH(PQS!$K$3,PQS!$F$3:$AW$3,0),FALSE),"") -> 128 | I29: =IFERROR(VLOOKUP($A29,PQS!$F$5:$AW$137,MATCH(PQS!$L$3,PQS!$F$3:$AW$3,0),FALSE),"") -> 0 | J29: =IFERROR(VLOOKUP($A29,PQS!$F$5:$AW$137,MATCH(PQS!$AL$3,PQS!$F$3:$AW$3,0),FALSE),"") -> 5 to 43 | K29: =IFERROR(VLOOKUP($A29,PQS!$F$5:$AW$137,COLUMN(PQS!$AC$5)-3,FALSE),"") -> 144.54 | L29: =IFERROR(VLOOKUP($A29,PQS!$F$5:$AW$137,MATCH(PQS!$J$3,PQS!$F$3:$AW$3,0),FALSE),"") -> 116 | M29: =IFERROR(VLOOKUP($A29,PQS!$F$5:$AW$137,MATCH(PQS!$AG$3,PQS!$F$3:$AW$3,0),FALSE),"") -> 190 x 85 x 72 | N29: =IFERROR(HYPERLINK(VLOOKUP($A29,PQS!$F$5:$AW$137,MATCH(PQS!$AK$3,PQS!$F$3:$AW$3,0),FALSE),VLOOKUP($A29,PQS!$F$5:$AW$137,MATCH(PQS!$AJ$3,PQS!$F$3:$AW$3,0),FALSE)),"") -> ZLF 150 AC* TechNet Page
A30: Zero ZLF 30 AC* | B30: 45541.54933 | C30: 10 | D30: 10 | E30: =IFERROR(VLOOKUP($A30,PQS!$F$5:$AR$137,MATCH(PQS!$AN$3, PQS!$F$3:$AR$3,0),FALSE),"") -> 1250 | F30: =IFERROR(VLOOKUP($A30,PQS!$F$5:$AW$137,MATCH(PQS!$AM$3,PQS!$F$3:$AW$3,0),FALSE),"") -> 222.5193333 | G30: 4554.154933 | H30: =IFERROR(VLOOKUP($A30,PQS!$F$5:$AW$137,MATCH(PQS!$K$3,PQS!$F$3:$AW$3,0),FALSE),"") -> 27 | I30: =IFERROR(VLOOKUP($A30,PQS!$F$5:$AW$137,MATCH(PQS!$L$3,PQS!$F$3:$AW$3,0),FALSE),"") -> 0 | J30: =IFERROR(VLOOKUP($A30,PQS!$F$5:$AW$137,MATCH(PQS!$AL$3,PQS!$F$3:$AW$3,0),FALSE),"") -> 5 to 43 | K30: =IFERROR(VLOOKUP($A30,PQS!$F$5:$AW$137,COLUMN(PQS!$AC$5)-3,FALSE),"") -> 122.786 | L30: =IFERROR(VLOOKUP($A30,PQS!$F$5:$AW$137,MATCH(PQS!$J$3,PQS!$F$3:$AW$3,0),FALSE),"") -> 65 | M30: =IFERROR(VLOOKUP($A30,PQS!$F$5:$AW$137,MATCH(PQS!$AG$3,PQS!$F$3:$AW$3,0),FALSE),"") -> 102.8 x 61.9 x 56.3 | N30: =IFERROR(HYPERLINK(VLOOKUP($A30,PQS!$F$5:$AW$137,MATCH(PQS!$AK$3,PQS!$F$3:$AW$3,0),FALSE),VLOOKUP($A30,PQS!$F$5:$AW$137,MATCH(PQS!$AJ$3,PQS!$F$3:$AW$3,0),FALSE)),"") -> ZLF 30 AC* TechNet Page
A31: B Medical TCW 4000 AC* | B31: 73665.3255 | C31: 10 | D31: 10 | E31: =IFERROR(VLOOKUP($A31,PQS!$F$5:$AR$137,MATCH(PQS!$AN$3, PQS!$F$3:$AR$3,0),FALSE),"") -> 4474.8 | F31: =IFERROR(VLOOKUP($A31,PQS!$F$5:$AW$137,MATCH(PQS!$AM$3,PQS!$F$3:$AW$3,0),FALSE),"") -> 161.7833333 | G31: 7366.53255 | H31: =IFERROR(VLOOKUP($A31,PQS!$F$5:$AW$137,MATCH(PQS!$K$3,PQS!$F$3:$AW$3,0),FALSE),"") -> 240 | I31: =IFERROR(VLOOKUP($A31,PQS!$F$5:$AW$137,MATCH(PQS!$L$3,PQS!$F$3:$AW$3,0),FALSE),"") -> 0 | J31: =IFERROR(VLOOKUP($A31,PQS!$F$5:$AW$137,MATCH(PQS!$AL$3,PQS!$F$3:$AW$3,0),FALSE),"") -> 5 to 43 | K31: =IFERROR(VLOOKUP($A31,PQS!$F$5:$AW$137,COLUMN(PQS!$AC$5)-3,FALSE),"") -> 62.05 | L31: =IFERROR(VLOOKUP($A31,PQS!$F$5:$AW$137,MATCH(PQS!$J$3,PQS!$F$3:$AW$3,0),FALSE),"") -> 174 | M31: =IFERROR(VLOOKUP($A31,PQS!$F$5:$AW$137,MATCH(PQS!$AG$3,PQS!$F$3:$AW$3,0),FALSE),"") -> 162.5 x 78 x 91.5 | N31: =IFERROR(HYPERLINK(VLOOKUP($A31,PQS!$F$5:$AW$137,MATCH(PQS!$AK$3,PQS!$F$3:$AW$3,0),FALSE),VLOOKUP($A31,PQS!$F$5:$AW$137,MATCH(PQS!$AJ$3,PQS!$F$3:$AW$3,0),FALSE)),"") -> TCW 4000 AC* TechNet Page
A32: Haier HBC-260* | B32: 41374.40667 | C32: 10 | D32: 10 | E32: =IFERROR(VLOOKUP($A32,PQS!$F$5:$AR$137,MATCH(PQS!$AN$3, PQS!$F$3:$AR$3,0),FALSE),"") -> 1053 | F32: =IFERROR(VLOOKUP($A32,PQS!$F$5:$AW$137,MATCH(PQS!$AM$3,PQS!$F$3:$AW$3,0),FALSE),"") -> 208.5266667 | G32: 4137.440667 | H32: =IFERROR(VLOOKUP($A32,PQS!$F$5:$AW$137,MATCH(PQS!$K$3,PQS!$F$3:$AW$3,0),FALSE),"") -> 211 | I32: =IFERROR(VLOOKUP($A32,PQS!$F$5:$AW$137,MATCH(PQS!$L$3,PQS!$F$3:$AW$3,0),FALSE),"") -> 0 | J32: =IFERROR(VLOOKUP($A32,PQS!$F$5:$AW$137,MATCH(PQS!$AL$3,PQS!$F$3:$AW$3,0),FALSE),"") -> 5 to 43 | K32: =IFERROR(VLOOKUP($A32,PQS!$F$5:$AW$137,COLUMN(PQS!$AC$5)-3,FALSE),"") -> 118.26 | L32: =IFERROR(VLOOKUP($A32,PQS!$F$5:$AW$137,MATCH(PQS!$J$3,PQS!$F$3:$AW$3,0),FALSE),"") -> 132 | M32: =IFERROR(VLOOKUP($A32,PQS!$F$5:$AW$137,MATCH(PQS!$AG$3,PQS!$F$3:$AW$3,0),FALSE),"") -> 165.0 x 65.4 x 78.8 | N32: =IFERROR(HYPERLINK(VLOOKUP($A32,PQS!$F$5:$AW$137,MATCH(PQS!$AK$3,PQS!$F$3:$AW$3,0),FALSE),VLOOKUP($A32,PQS!$F$5:$AW$137,MATCH(PQS!$AJ$3,PQS!$F$3:$AW$3,0),FALSE)),"") -> HBC-260* TechNet Page
A33: Haier HBC-150* | B33: 31865.90667 | C33: 10 | D33: 10 | E33: =IFERROR(VLOOKUP($A33,PQS!$F$5:$AR$137,MATCH(PQS!$AN$3, PQS!$F$3:$AR$3,0),FALSE),"") -> 908 | F33: =IFERROR(VLOOKUP($A33,PQS!$F$5:$AW$137,MATCH(PQS!$AM$3,PQS!$F$3:$AW$3,0),FALSE),"") -> 128.9566667 | G33: 3186.590667 | H33: =IFERROR(VLOOKUP($A33,PQS!$F$5:$AW$137,MATCH(PQS!$K$3,PQS!$F$3:$AW$3,0),FALSE),"") -> 122 | I33: =IFERROR(VLOOKUP($A33,PQS!$F$5:$AW$137,MATCH(PQS!$L$3,PQS!$F$3:$AW$3,0),FALSE),"") -> 0 | J33: =IFERROR(VLOOKUP($A33,PQS!$F$5:$AW$137,MATCH(PQS!$AL$3,PQS!$F$3:$AW$3,0),FALSE),"") -> 5 to 43 | K33: =IFERROR(VLOOKUP($A33,PQS!$F$5:$AW$137,COLUMN(PQS!$AC$5)-3,FALSE),"") -> 38.69 | L33: =IFERROR(VLOOKUP($A33,PQS!$F$5:$AW$137,MATCH(PQS!$J$3,PQS!$F$3:$AW$3,0),FALSE),"") -> 85 | M33: =IFERROR(VLOOKUP($A33,PQS!$F$5:$AW$137,MATCH(PQS!$AG$3,PQS!$F$3:$AW$3,0),FALSE),"") -> 112.8 x 65.4 x 78.8 | N33: =IFERROR(HYPERLINK(VLOOKUP($A33,PQS!$F$5:$AW$137,MATCH(PQS!$AK$3,PQS!$F$3:$AW$3,0),FALSE),VLOOKUP($A33,PQS!$F$5:$AW$137,MATCH(PQS!$AJ$3,PQS!$F$3:$AW$3,0),FALSE)),"") -> HBC-150* TechNet Page
A34: Haier HBC-80* | B34: 30017.90667 | C34: 10 | D34: 10 | E34: =IFERROR(VLOOKUP($A34,PQS!$F$5:$AR$137,MATCH(PQS!$AN$3, PQS!$F$3:$AR$3,0),FALSE),"") -> 708 | F34: =IFERROR(VLOOKUP($A34,PQS!$F$5:$AW$137,MATCH(PQS!$AM$3,PQS!$F$3:$AW$3,0),FALSE),"") -> 131.8766667 | G34: 3001.790667 | H34: =IFERROR(VLOOKUP($A34,PQS!$F$5:$AW$137,MATCH(PQS!$K$3,PQS!$F$3:$AW$3,0),FALSE),"") -> 61 | I34: =IFERROR(VLOOKUP($A34,PQS!$F$5:$AW$137,MATCH(PQS!$L$3,PQS!$F$3:$AW$3,0),FALSE),"") -> 0 | J34: =IFERROR(VLOOKUP($A34,PQS!$F$5:$AW$137,MATCH(PQS!$AL$3,PQS!$F$3:$AW$3,0),FALSE),"") -> 5 to 43 | K34: =IFERROR(VLOOKUP($A34,PQS!$F$5:$AW$137,COLUMN(PQS!$AC$5)-3,FALSE),"") -> 41.61 | L34: =IFERROR(VLOOKUP($A34,PQS!$F$5:$AW$137,MATCH(PQS!$J$3,PQS!$F$3:$AW$3,0),FALSE),"") -> 73 | M34: =IFERROR(VLOOKUP($A34,PQS!$F$5:$AW$137,MATCH(PQS!$AG$3,PQS!$F$3:$AW$3,0),FALSE),"") -> 87.5 x 65.4 x 78.8 | N34: =IFERROR(HYPERLINK(VLOOKUP($A34,PQS!$F$5:$AW$137,MATCH(PQS!$AK$3,PQS!$F$3:$AW$3,0),FALSE),VLOOKUP($A34,PQS!$F$5:$AW$137,MATCH(PQS!$AJ$3,PQS!$F$3:$AW$3,0),FALSE)),"") -> HBC-80* TechNet Page
A35: Godrej GVR 50 AC* | B35: 40030.07733 | C35: 10 | D35: 10 | E35: =IFERROR(VLOOKUP($A35,PQS!$F$5:$AR$137,MATCH(PQS!$AN$3, PQS!$F$3:$AR$3,0),FALSE),"") -> 1642 | F35: =IFERROR(VLOOKUP($A35,PQS!$F$5:$AW$137,MATCH(PQS!$AM$3,PQS!$F$3:$AW$3,0),FALSE),"") -> 140.6133333 | G35: 4003.007733 | H35: =IFERROR(VLOOKUP($A35,PQS!$F$5:$AW$137,MATCH(PQS!$K$3,PQS!$F$3:$AW$3,0),FALSE),"") -> 46.5 | I35: =IFERROR(VLOOKUP($A35,PQS!$F$5:$AW$137,MATCH(PQS!$L$3,PQS!$F$3:$AW$3,0),FALSE),"") -> 0 | J35: =IFERROR(VLOOKUP($A35,PQS!$F$5:$AW$137,MATCH(PQS!$AL$3,PQS!$F$3:$AW$3,0),FALSE),"") -> 10 to 43 | K35: =IFERROR(VLOOKUP($A35,PQS!$F$5:$AW$137,COLUMN(PQS!$AC$5)-3,FALSE),"") -> 40.88 | L35: =IFERROR(VLOOKUP($A35,PQS!$F$5:$AW$137,MATCH(PQS!$J$3,PQS!$F$3:$AW$3,0),FALSE),"") -> 125 | M35: =IFERROR(VLOOKUP($A35,PQS!$F$5:$AW$137,MATCH(PQS!$AG$3,PQS!$F$3:$AW$3,0),FALSE),"") -> 122 x 79.5 x 75 | N35: =IFERROR(HYPERLINK(VLOOKUP($A35,PQS!$F$5:$AW$137,MATCH(PQS!$AK$3,PQS!$F$3:$AW$3,0),FALSE),VLOOKUP($A35,PQS!$F$5:$AW$137,MATCH(PQS!$AJ$3,PQS!$F$3:$AW$3,0),FALSE)),"") -> GVR 50 AC* TechNet Page
A36: Godrej GVR 100 AC* | B36: 49046.17733 | C36: 10 | D36: 10 | E36: =IFERROR(VLOOKUP($A36,PQS!$F$5:$AR$137,MATCH(PQS!$AN$3, PQS!$F$3:$AR$3,0),FALSE),"") -> 2355 | F36: =IFERROR(VLOOKUP($A36,PQS!$F$5:$AW$137,MATCH(PQS!$AM$3,PQS!$F$3:$AW$3,0),FALSE),"") -> 154.4833333 | G36: 4904.617733 | H36: =IFERROR(VLOOKUP($A36,PQS!$F$5:$AW$137,MATCH(PQS!$K$3,PQS!$F$3:$AW$3,0),FALSE),"") -> 99 | I36: =IFERROR(VLOOKUP($A36,PQS!$F$5:$AW$137,MATCH(PQS!$L$3,PQS!$F$3:$AW$3,0),FALSE),"") -> 0 | J36: =IFERROR(VLOOKUP($A36,PQS!$F$5:$AW$137,MATCH(PQS!$AL$3,PQS!$F$3:$AW$3,0),FALSE),"") -> 10 to 43 | K36: =IFERROR(VLOOKUP($A36,PQS!$F$5:$AW$137,COLUMN(PQS!$AC$5)-3,FALSE),"") -> 54.75 | L36: =IFERROR(VLOOKUP($A36,PQS!$F$5:$AW$137,MATCH(PQS!$J$3,PQS!$F$3:$AW$3,0),FALSE),"") -> 160 | M36: =IFERROR(VLOOKUP($A36,PQS!$F$5:$AW$137,MATCH(PQS!$AG$3,PQS!$F$3:$AW$3,0),FALSE),"") -> 182 x 79.5 x 75 | N36: =IFERROR(HYPERLINK(VLOOKUP($A36,PQS!$F$5:$AW$137,MATCH(PQS!$AK$3,PQS!$F$3:$AW$3,0),FALSE),VLOOKUP($A36,PQS!$F$5:$AW$137,MATCH(PQS!$AJ$3,PQS!$F$3:$AW$3,0),FALSE)),"") -> GVR 100 AC* TechNet Page
A37: Dulas VC 225 ILR* | B37: 56225.93901 | C37: 10 | D37: 10 | E37: =IFERROR(VLOOKUP($A37,PQS!$F$5:$AR$137,MATCH(PQS!$AN$3, PQS!$F$3:$AR$3,0),FALSE),"") -> 2938 | F37: =IFERROR(VLOOKUP($A37,PQS!$F$5:$AW$137,MATCH(PQS!$AM$3,PQS!$F$3:$AW$3,0),FALSE),"") -> 148.8856667 | G37: 5622.593901 | H37: =IFERROR(VLOOKUP($A37,PQS!$F$5:$AW$137,MATCH(PQS!$K$3,PQS!$F$3:$AW$3,0),FALSE),"") -> 184 | I37: =IFERROR(VLOOKUP($A37,PQS!$F$5:$AW$137,MATCH(PQS!$L$3,PQS!$F$3:$AW$3,0),FALSE),"") -> 0 | J37: =IFERROR(VLOOKUP($A37,PQS!$F$5:$AW$137,MATCH(PQS!$AL$3,PQS!$F$3:$AW$3,0),FALSE),"") -> 5 to 43 | K37: =IFERROR(VLOOKUP($A37,PQS!$F$5:$AW$137,COLUMN(PQS!$AC$5)-3,FALSE),"") -> 58.619 | L37: =IFERROR(VLOOKUP($A37,PQS!$F$5:$AW$137,MATCH(PQS!$J$3,PQS!$F$3:$AW$3,0),FALSE),"") -> 172 | M37: =IFERROR(VLOOKUP($A37,PQS!$F$5:$AW$137,MATCH(PQS!$AG$3,PQS!$F$3:$AW$3,0),FALSE),"") -> 98.6 x 128.7 x 78 | N37: =IFERROR(HYPERLINK(VLOOKUP($A37,PQS!$F$5:$AW$137,MATCH(PQS!$AK$3,PQS!$F$3:$AW$3,0),FALSE),VLOOKUP($A37,PQS!$F$5:$AW$137,MATCH(PQS!$AJ$3,PQS!$F$3:$AW$3,0),FALSE)),"") -> VC 225 ILR* TechNet Page
A38: Godrej GVR 51 LITE AC* | B38: 40819.73733 | C38: 10 | D38: 10 | E38: =IFERROR(VLOOKUP($A38,PQS!$F$5:$AR$137,MATCH(PQS!$AN$3, PQS!$F$3:$AR$3,0),FALSE),"") -> 989 | F38: =IFERROR(VLOOKUP($A38,PQS!$F$5:$AW$137,MATCH(PQS!$AM$3,PQS!$F$3:$AW$3,0),FALSE),"") -> 218.7233333 | G38: 4081.973733 | H38: =IFERROR(VLOOKUP($A38,PQS!$F$5:$AW$137,MATCH(PQS!$K$3,PQS!$F$3:$AW$3,0),FALSE),"") -> 51 | I38: =IFERROR(VLOOKUP($A38,PQS!$F$5:$AW$137,MATCH(PQS!$L$3,PQS!$F$3:$AW$3,0),FALSE),"") -> 0 | J38: =IFERROR(VLOOKUP($A38,PQS!$F$5:$AW$137,MATCH(PQS!$AL$3,PQS!$F$3:$AW$3,0),FALSE),"") -> 10 to 43 | K38: =IFERROR(VLOOKUP($A38,PQS!$F$5:$AW$137,COLUMN(PQS!$AC$5)-3,FALSE),"") -> 118.99 | L38: =IFERROR(VLOOKUP($A38,PQS!$F$5:$AW$137,MATCH(PQS!$J$3,PQS!$F$3:$AW$3,0),FALSE),"") -> 115 | M38: =IFERROR(VLOOKUP($A38,PQS!$F$5:$AW$137,MATCH(PQS!$AG$3,PQS!$F$3:$AW$3,0),FALSE),"") -> 62 x 73.5 x 151.5 | N38: =IFERROR(HYPERLINK(VLOOKUP($A38,PQS!$F$5:$AW$137,MATCH(PQS!$AK$3,PQS!$F$3:$AW$3,0),FALSE),VLOOKUP($A38,PQS!$F$5:$AW$137,MATCH(PQS!$AJ$3,PQS!$F$3:$AW$3,0),FALSE)),"") -> GVR 51 LITE AC* TechNet Page
A39: Godrej GVR 75 Lite* | B39: 39951.33733 | C39: 10 | D39: 10 | E39: =IFERROR(VLOOKUP($A39,PQS!$F$5:$AR$137,MATCH(PQS!$AN$3, PQS!$F$3:$AR$3,0),FALSE),"") -> 1017 | F39: =IFERROR(VLOOKUP($A39,PQS!$F$5:$AW$137,MATCH(PQS!$AM$3,PQS!$F$3:$AW$3,0),FALSE),"") -> 207.0433333 | G39: 3995.133733 | H39: =IFERROR(VLOOKUP($A39,PQS!$F$5:$AW$137,MATCH(PQS!$K$3,PQS!$F$3:$AW$3,0),FALSE),"") -> 72.5 | I39: =IFERROR(VLOOKUP($A39,PQS!$F$5:$AW$137,MATCH(PQS!$L$3,PQS!$F$3:$AW$3,0),FALSE),"") -> 0 | J39: =IFERROR(VLOOKUP($A39,PQS!$F$5:$AW$137,MATCH(PQS!$AL$3,PQS!$F$3:$AW$3,0),FALSE),"") -> 10 to 43 | K39: =IFERROR(VLOOKUP($A39,PQS!$F$5:$AW$137,COLUMN(PQS!$AC$5)-3,FALSE),"") -> 107.31 | L39: =IFERROR(VLOOKUP($A39,PQS!$F$5:$AW$137,MATCH(PQS!$J$3,PQS!$F$3:$AW$3,0),FALSE),"") -> 115 | M39: =IFERROR(VLOOKUP($A39,PQS!$F$5:$AW$137,MATCH(PQS!$AG$3,PQS!$F$3:$AW$3,0),FALSE),"") -> 151.5 x 62 x 73.5 | N39: =IFERROR(HYPERLINK(VLOOKUP($A39,PQS!$F$5:$AW$137,MATCH(PQS!$AK$3,PQS!$F$3:$AW$3,0),FALSE),VLOOKUP($A39,PQS!$F$5:$AW$137,MATCH(PQS!$AJ$3,PQS!$F$3:$AW$3,0),FALSE)),"") -> GVR 75 Lite* TechNet Page
A40: Godrej GVR 99 Lite* | B40: 38667.99733 | C40: 10 | D40: 10 | E40: =IFERROR(VLOOKUP($A40,PQS!$F$5:$AR$137,MATCH(PQS!$AN$3, PQS!$F$3:$AR$3,0),FALSE),"") -> 1060 | F40: =IFERROR(VLOOKUP($A40,PQS!$F$5:$AW$137,MATCH(PQS!$AM$3,PQS!$F$3:$AW$3,0),FALSE),"") -> 189.5233333 | G40: 3866.799733 | H40: =IFERROR(VLOOKUP($A40,PQS!$F$5:$AW$137,MATCH(PQS!$K$3,PQS!$F$3:$AW$3,0),FALSE),"") -> 98.5 | I40: =IFERROR(VLOOKUP($A40,PQS!$F$5:$AW$137,MATCH(PQS!$L$3,PQS!$F$3:$AW$3,0),FALSE),"") -> 0 | J40: =IFERROR(VLOOKUP($A40,PQS!$F$5:$AW$137,MATCH(PQS!$AL$3,PQS!$F$3:$AW$3,0),FALSE),"") -> 10 to 43 | K40: =IFERROR(VLOOKUP($A40,PQS!$F$5:$AW$137,COLUMN(PQS!$AC$5)-3,FALSE),"") -> 89.79 | L40: =IFERROR(VLOOKUP($A40,PQS!$F$5:$AW$137,MATCH(PQS!$J$3,PQS!$F$3:$AW$3,0),FALSE),"") -> 125 | M40: =IFERROR(VLOOKUP($A40,PQS!$F$5:$AW$137,MATCH(PQS!$AG$3,PQS!$F$3:$AW$3,0),FALSE),"") -> 62 x 73.5 x 170 | N40: =IFERROR(HYPERLINK(VLOOKUP($A40,PQS!$F$5:$AW$137,MATCH(PQS!$AK$3,PQS!$F$3:$AW$3,0),FALSE),VLOOKUP($A40,PQS!$F$5:$AW$137,MATCH(PQS!$AJ$3,PQS!$F$3:$AW$3,0),FALSE)),"") -> GVR 99 Lite* TechNet Page
A41: Godrej GVR 225 AC* | B41: 53660.58933 | C41: 10 | D41: 10 | E41: =IFERROR(VLOOKUP($A41,PQS!$F$5:$AR$137,MATCH(PQS!$AN$3, PQS!$F$3:$AR$3,0),FALSE),"") -> 1910 | F41: =IFERROR(VLOOKUP($A41,PQS!$F$5:$AW$137,MATCH(PQS!$AM$3,PQS!$F$3:$AW$3,0),FALSE),"") -> 248.6533333 | G41: 5366.058933 | H41: =IFERROR(VLOOKUP($A41,PQS!$F$5:$AW$137,MATCH(PQS!$K$3,PQS!$F$3:$AW$3,0),FALSE),"") -> 225 | I41: =IFERROR(VLOOKUP($A41,PQS!$F$5:$AW$137,MATCH(PQS!$L$3,PQS!$F$3:$AW$3,0),FALSE),"") -> 0 | J41: =IFERROR(VLOOKUP($A41,PQS!$F$5:$AW$137,MATCH(PQS!$AL$3,PQS!$F$3:$AW$3,0),FALSE),"") -> 10 to 43 | K41: =IFERROR(VLOOKUP($A41,PQS!$F$5:$AW$137,COLUMN(PQS!$AC$5)-3,FALSE),"") -> 148.92 | L41: =IFERROR(VLOOKUP($A41,PQS!$F$5:$AW$137,MATCH(PQS!$J$3,PQS!$F$3:$AW$3,0),FALSE),"") -> 160 | M41: =IFERROR(VLOOKUP($A41,PQS!$F$5:$AW$137,MATCH(PQS!$AG$3,PQS!$F$3:$AW$3,0),FALSE),"") -> 79.5 x 75 x 182 | N41: =IFERROR(HYPERLINK(VLOOKUP($A41,PQS!$F$5:$AW$137,MATCH(PQS!$AK$3,PQS!$F$3:$AW$3,0),FALSE),VLOOKUP($A41,PQS!$F$5:$AW$137,MATCH(PQS!$AJ$3,PQS!$F$3:$AW$3,0),FALSE)),"") -> GVR 225 AC* TechNet Page
A42: Zero ZLF 80 AC* | B42: 50614.13333 | C42: 10 | D42: 10 | E42: =IFERROR(VLOOKUP($A42,PQS!$F$5:$AR$137,MATCH(PQS!$AN$3, PQS!$F$3:$AR$3,0),FALSE),"") -> 1990 | F42: =IFERROR(VLOOKUP($A42,PQS!$F$5:$AW$137,MATCH(PQS!$AM$3,PQS!$F$3:$AW$3,0),FALSE),"") -> 201.9333333 | G42: 5061.413333 | H42: =IFERROR(VLOOKUP($A42,PQS!$F$5:$AW$137,MATCH(PQS!$K$3,PQS!$F$3:$AW$3,0),FALSE),"") -> 77 | I42: =IFERROR(VLOOKUP($A42,PQS!$F$5:$AW$137,MATCH(PQS!$L$3,PQS!$F$3:$AW$3,0),FALSE),"") -> 0 | J42: =IFERROR(VLOOKUP($A42,PQS!$F$5:$AW$137,MATCH(PQS!$AL$3,PQS!$F$3:$AW$3,0),FALSE),"") -> 5 to 43 | K42: =IFERROR(VLOOKUP($A42,PQS!$F$5:$AW$137,COLUMN(PQS!$AC$5)-3,FALSE),"") -> 102.2 | L42: =IFERROR(VLOOKUP($A42,PQS!$F$5:$AW$137,MATCH(PQS!$J$3,PQS!$F$3:$AW$3,0),FALSE),"") -> 142 | M42: =IFERROR(VLOOKUP($A42,PQS!$F$5:$AW$137,MATCH(PQS!$AG$3,PQS!$F$3:$AW$3,0),FALSE),"") -> 167 x 85 x 71 | N42: =IFERROR(HYPERLINK(VLOOKUP($A42,PQS!$F$5:$AW$137,MATCH(PQS!$AK$3,PQS!$F$3:$AW$3,0),FALSE),VLOOKUP($A42,PQS!$F$5:$AW$137,MATCH(PQS!$AJ$3,PQS!$F$3:$AW$3,0),FALSE)),"") -> ZLF 80 AC* TechNet Page
A43: Haier HBCD-90* | B43: 41046.30667 | C43: 10 | D43: 10 | E43: =IFERROR(VLOOKUP($A43,PQS!$F$5:$AR$137,MATCH(PQS!$AN$3, PQS!$F$3:$AR$3,0),FALSE),"") -> 1650 | F43: =IFERROR(VLOOKUP($A43,PQS!$F$5:$AW$137,MATCH(PQS!$AM$3,PQS!$F$3:$AW$3,0),FALSE),"") -> 141.3666667 | G43: 4104.630667 | H43: =IFERROR(VLOOKUP($A43,PQS!$F$5:$AW$137,MATCH(PQS!$K$3,PQS!$F$3:$AW$3,0),FALSE),"") -> 30 | I43: =IFERROR(VLOOKUP($A43,PQS!$F$5:$AW$137,MATCH(PQS!$L$3,PQS!$F$3:$AW$3,0),FALSE),"") -> 32 | J43: =IFERROR(VLOOKUP($A43,PQS!$F$5:$AW$137,MATCH(PQS!$AL$3,PQS!$F$3:$AW$3,0),FALSE),"") -> 5 to 43 | K43: =IFERROR(VLOOKUP($A43,PQS!$F$5:$AW$137,COLUMN(PQS!$AC$5)-3,FALSE),"") -> 51.1 | L43: =IFERROR(VLOOKUP($A43,PQS!$F$5:$AW$137,MATCH(PQS!$J$3,PQS!$F$3:$AW$3,0),FALSE),"") -> 118 | M43: =IFERROR(VLOOKUP($A43,PQS!$F$5:$AW$137,MATCH(PQS!$AG$3,PQS!$F$3:$AW$3,0),FALSE),"") -> 112.8 x 65.4 x 87.5 | N43: =IFERROR(HYPERLINK(VLOOKUP($A43,PQS!$F$5:$AW$137,MATCH(PQS!$AK$3,PQS!$F$3:$AW$3,0),FALSE),VLOOKUP($A43,PQS!$F$5:$AW$137,MATCH(PQS!$AJ$3,PQS!$F$3:$AW$3,0),FALSE)),"") -> HBCD-90* TechNet Page
A44: B Medical TCW 40R AC* | B44: 58788.15401 | C44: 10 | D44: 10 | E44: =IFERROR(VLOOKUP($A44,PQS!$F$5:$AR$137,MATCH(PQS!$AN$3, PQS!$F$3:$AR$3,0),FALSE),"") -> 3211.46 | F44: =IFERROR(VLOOKUP($A44,PQS!$F$5:$AW$137,MATCH(PQS!$AM$3,PQS!$F$3:$AW$3,0),FALSE),"") -> 158.1333333 | G44: 5878.815401 | H44: =IFERROR(VLOOKUP($A44,PQS!$F$5:$AW$137,MATCH(PQS!$K$3,PQS!$F$3:$AW$3,0),FALSE),"") -> 36.5 | I44: =IFERROR(VLOOKUP($A44,PQS!$F$5:$AW$137,MATCH(PQS!$L$3,PQS!$F$3:$AW$3,0),FALSE),"") -> 0 | J44: =IFERROR(VLOOKUP($A44,PQS!$F$5:$AW$137,MATCH(PQS!$AL$3,PQS!$F$3:$AW$3,0),FALSE),"") -> 5 to 43 | K44: =IFERROR(VLOOKUP($A44,PQS!$F$5:$AW$137,COLUMN(PQS!$AC$5)-3,FALSE),"") -> 58.4 | L44: =IFERROR(VLOOKUP($A44,PQS!$F$5:$AW$137,MATCH(PQS!$J$3,PQS!$F$3:$AW$3,0),FALSE),"") -> 128 | M44: =IFERROR(VLOOKUP($A44,PQS!$F$5:$AW$137,MATCH(PQS!$AG$3,PQS!$F$3:$AW$3,0),FALSE),"") -> 103 x 78 x 90 | N44: =IFERROR(HYPERLINK(VLOOKUP($A44,PQS!$F$5:$AW$137,MATCH(PQS!$AK$3,PQS!$F$3:$AW$3,0),FALSE),VLOOKUP($A44,PQS!$F$5:$AW$137,MATCH(PQS!$AJ$3,PQS!$F$3:$AW$3,0),FALSE)),"") -> TCW 40R AC* TechNet Page
A45: B Medical TCW 80 AC* | B45: 64100.35601 | C45: 10 | D45: 10 | E45: =IFERROR(VLOOKUP($A45,PQS!$F$5:$AR$137,MATCH(PQS!$AN$3, PQS!$F$3:$AR$3,0),FALSE),"") -> 3462.32 | F45: =IFERROR(VLOOKUP($A45,PQS!$F$5:$AW$137,MATCH(PQS!$AM$3,PQS!$F$3:$AW$3,0),FALSE),"") -> 184.4133333 | G45: 6410.035601 | H45: =IFERROR(VLOOKUP($A45,PQS!$F$5:$AW$137,MATCH(PQS!$K$3,PQS!$F$3:$AW$3,0),FALSE),"") -> 80.5 | I45: =IFERROR(VLOOKUP($A45,PQS!$F$5:$AW$137,MATCH(PQS!$L$3,PQS!$F$3:$AW$3,0),FALSE),"") -> 0 | J45: =IFERROR(VLOOKUP($A45,PQS!$F$5:$AW$137,MATCH(PQS!$AL$3,PQS!$F$3:$AW$3,0),FALSE),"") -> 5 to 43 | K45: =IFERROR(VLOOKUP($A45,PQS!$F$5:$AW$137,COLUMN(PQS!$AC$5)-3,FALSE),"") -> 84.68 | L45: =IFERROR(VLOOKUP($A45,PQS!$F$5:$AW$137,MATCH(PQS!$J$3,PQS!$F$3:$AW$3,0),FALSE),"") -> 0 | M45: =IFERROR(VLOOKUP($A45,PQS!$F$5:$AW$137,MATCH(PQS!$AG$3,PQS!$F$3:$AW$3,0),FALSE),"") -> 103 x 78 x 90 | N45: =IFERROR(HYPERLINK(VLOOKUP($A45,PQS!$F$5:$AW$137,MATCH(PQS!$AK$3,PQS!$F$3:$AW$3,0),FALSE),VLOOKUP($A45,PQS!$F$5:$AW$137,MATCH(PQS!$AJ$3,PQS!$F$3:$AW$3,0),FALSE)),"") -> TCW 80 AC* TechNet Page
A46: Godrej GVR 55 FF AC* | B46: 47360.73333 | C46: 10 | D46: 10 | E46: =IFERROR(VLOOKUP($A46,PQS!$F$5:$AR$137,MATCH(PQS!$AN$3, PQS!$F$3:$AR$3,0),FALSE),"") -> 1410 | F46: =IFERROR(VLOOKUP($A46,PQS!$F$5:$AW$137,MATCH(PQS!$AM$3,PQS!$F$3:$AW$3,0),FALSE),"") -> 239.1633333 | G46: 4736.073333 | H46: =IFERROR(VLOOKUP($A46,PQS!$F$5:$AW$137,MATCH(PQS!$K$3,PQS!$F$3:$AW$3,0),FALSE),"") -> 58 | I46: =IFERROR(VLOOKUP($A46,PQS!$F$5:$AW$137,MATCH(PQS!$L$3,PQS!$F$3:$AW$3,0),FALSE),"") -> 44 | J46: =IFERROR(VLOOKUP($A46,PQS!$F$5:$AW$137,MATCH(PQS!$AL$3,PQS!$F$3:$AW$3,0),FALSE),"") -> 5 to 43 | K46: =IFERROR(VLOOKUP($A46,PQS!$F$5:$AW$137,COLUMN(PQS!$AC$5)-3,FALSE),"") -> 139.43 | L46: =IFERROR(VLOOKUP($A46,PQS!$F$5:$AW$137,MATCH(PQS!$J$3,PQS!$F$3:$AW$3,0),FALSE),"") -> 180 | M46: =IFERROR(VLOOKUP($A46,PQS!$F$5:$AW$137,MATCH(PQS!$AG$3,PQS!$F$3:$AW$3,0),FALSE),"") -> 182 x 79.5 x 75 | N46: =IFERROR(HYPERLINK(VLOOKUP($A46,PQS!$F$5:$AW$137,MATCH(PQS!$AK$3,PQS!$F$3:$AW$3,0),FALSE),VLOOKUP($A46,PQS!$F$5:$AW$137,MATCH(PQS!$AJ$3,PQS!$F$3:$AW$3,0),FALSE)),"") -> N/A
A47: Godrej GVR 25 Lite* | B47: 33502.91733 | C47: 10 | D47: 10 | E47: =IFERROR(VLOOKUP($A47,PQS!$F$5:$AR$137,MATCH(PQS!$AN$3, PQS!$F$3:$AR$3,0),FALSE),"") -> 800 | F47: =IFERROR(VLOOKUP($A47,PQS!$F$5:$AW$137,MATCH(PQS!$AM$3,PQS!$F$3:$AW$3,0),FALSE),"") -> 166.1633333 | G47: 3350.291733 | H47: =IFERROR(VLOOKUP($A47,PQS!$F$5:$AW$137,MATCH(PQS!$K$3,PQS!$F$3:$AW$3,0),FALSE),"") -> 27.5 | I47: =IFERROR(VLOOKUP($A47,PQS!$F$5:$AW$137,MATCH(PQS!$L$3,PQS!$F$3:$AW$3,0),FALSE),"") -> 0 | J47: =IFERROR(VLOOKUP($A47,PQS!$F$5:$AW$137,MATCH(PQS!$AL$3,PQS!$F$3:$AW$3,0),FALSE),"") -> 5 to 43 | K47: =IFERROR(VLOOKUP($A47,PQS!$F$5:$AW$137,COLUMN(PQS!$AC$5)-3,FALSE),"") -> 66.43 | L47: =IFERROR(VLOOKUP($A47,PQS!$F$5:$AW$137,MATCH(PQS!$J$3,PQS!$F$3:$AW$3,0),FALSE),"") -> 95 | M47: =IFERROR(VLOOKUP($A47,PQS!$F$5:$AW$137,MATCH(PQS!$AG$3,PQS!$F$3:$AW$3,0),FALSE),"") -> 109.7 x 61.8 x 77.4 | N47: =IFERROR(HYPERLINK(VLOOKUP($A47,PQS!$F$5:$AW$137,MATCH(PQS!$AK$3,PQS!$F$3:$AW$3,0),FALSE),VLOOKUP($A47,PQS!$F$5:$AW$137,MATCH(PQS!$AJ$3,PQS!$F$3:$AW$3,0),FALSE)),"") -> N/A
A48: Vestfrost VLS 064 RF* | B48: 44933.26768 | C48: 10 | D48: 10 | E48: =IFERROR(VLOOKUP($A48,PQS!$F$5:$AR$137,MATCH(PQS!$AN$3, PQS!$F$3:$AR$3,0),FALSE),"") -> 1352.61 | F48: =IFERROR(VLOOKUP($A48,PQS!$F$5:$AW$137,MATCH(PQS!$AM$3,PQS!$F$3:$AW$3,0),FALSE),"") -> 209.2333333 | G48: 4493.326768 | H48: =IFERROR(VLOOKUP($A48,PQS!$F$5:$AW$137,MATCH(PQS!$K$3,PQS!$F$3:$AW$3,0),FALSE),"") -> 52.5 | I48: =IFERROR(VLOOKUP($A48,PQS!$F$5:$AW$137,MATCH(PQS!$L$3,PQS!$F$3:$AW$3,0),FALSE),"") -> 5.1 | J48: =IFERROR(VLOOKUP($A48,PQS!$F$5:$AW$137,MATCH(PQS!$AL$3,PQS!$F$3:$AW$3,0),FALSE),"") -> 10 to 43 | K48: =IFERROR(VLOOKUP($A48,PQS!$F$5:$AW$137,COLUMN(PQS!$AC$5)-3,FALSE),"") -> 109.5 | L48: =IFERROR(VLOOKUP($A48,PQS!$F$5:$AW$137,MATCH(PQS!$J$3,PQS!$F$3:$AW$3,0),FALSE),"") -> 98 | M48: =IFERROR(VLOOKUP($A48,PQS!$F$5:$AW$137,MATCH(PQS!$AG$3,PQS!$F$3:$AW$3,0),FALSE),"") -> 84.5 x 72.5 x 71 | N48: =IFERROR(HYPERLINK(VLOOKUP($A48,PQS!$F$5:$AW$137,MATCH(PQS!$AK$3,PQS!$F$3:$AW$3,0),FALSE),VLOOKUP($A48,PQS!$F$5:$AW$137,MATCH(PQS!$AJ$3,PQS!$F$3:$AW$3,0),FALSE)),"") -> VLS 064 RF* TechNet Page
A49: Aucma CFD-50* | B49: 40241.32533 | C49: 10 | D49: 10 | E49: =IFERROR(VLOOKUP($A49,PQS!$F$5:$AR$137,MATCH(PQS!$AN$3, PQS!$F$3:$AR$3,0),FALSE),"") -> 1400 | F49: =IFERROR(VLOOKUP($A49,PQS!$F$5:$AW$137,MATCH(PQS!$AM$3,PQS!$F$3:$AW$3,0),FALSE),"") -> 155.2133333 | G49: 4024.132533 | H49: =IFERROR(VLOOKUP($A49,PQS!$F$5:$AW$137,MATCH(PQS!$K$3,PQS!$F$3:$AW$3,0),FALSE),"") -> 50 | I49: =IFERROR(VLOOKUP($A49,PQS!$F$5:$AW$137,MATCH(PQS!$L$3,PQS!$F$3:$AW$3,0),FALSE),"") -> 0 | J49: =IFERROR(VLOOKUP($A49,PQS!$F$5:$AW$137,MATCH(PQS!$AL$3,PQS!$F$3:$AW$3,0),FALSE),"") -> 10 to 43 | K49: =IFERROR(VLOOKUP($A49,PQS!$F$5:$AW$137,COLUMN(PQS!$AC$5)-3,FALSE),"") -> 55.48 | L49: =IFERROR(VLOOKUP($A49,PQS!$F$5:$AW$137,MATCH(PQS!$J$3,PQS!$F$3:$AW$3,0),FALSE),"") -> 100 | M49: =IFERROR(VLOOKUP($A49,PQS!$F$5:$AW$137,MATCH(PQS!$AG$3,PQS!$F$3:$AW$3,0),FALSE),"") -> 158.8 x 54.5 x 65.5 | N49: =IFERROR(HYPERLINK(VLOOKUP($A49,PQS!$F$5:$AW$137,MATCH(PQS!$AK$3,PQS!$F$3:$AW$3,0),FALSE),VLOOKUP($A49,PQS!$F$5:$AW$137,MATCH(PQS!$AJ$3,PQS!$F$3:$AW$3,0),FALSE)),"") -> CFD-50* TechNet Page
A50: Vestfrost VLS 204A* | B50: 32119.55259 | C50: 10 | D50: 10 | E50: =IFERROR(VLOOKUP($A50,PQS!$F$5:$AR$137,MATCH(PQS!$AN$3, PQS!$F$3:$AR$3,0),FALSE),"") -> 906.26 | F50: =IFERROR(VLOOKUP($A50,PQS!$F$5:$AW$137,MATCH(PQS!$AM$3,PQS!$F$3:$AW$3,0),FALSE),"") -> 141.3433333 | G50: 3211.955259 | H50: =IFERROR(VLOOKUP($A50,PQS!$F$5:$AW$137,MATCH(PQS!$K$3,PQS!$F$3:$AW$3,0),FALSE),"") -> 60 | I50: =IFERROR(VLOOKUP($A50,PQS!$F$5:$AW$137,MATCH(PQS!$L$3,PQS!$F$3:$AW$3,0),FALSE),"") -> 0 | J50: =IFERROR(VLOOKUP($A50,PQS!$F$5:$AW$137,MATCH(PQS!$AL$3,PQS!$F$3:$AW$3,0),FALSE),"") -> 5 to 43 | K50: =IFERROR(VLOOKUP($A50,PQS!$F$5:$AW$137,COLUMN(PQS!$AC$5)-3,FALSE),"") -> 41.61 | L50: =IFERROR(VLOOKUP($A50,PQS!$F$5:$AW$137,MATCH(PQS!$J$3,PQS!$F$3:$AW$3,0),FALSE),"") -> 70 | M50: =IFERROR(VLOOKUP($A50,PQS!$F$5:$AW$137,MATCH(PQS!$AG$3,PQS!$F$3:$AW$3,0),FALSE),"") -> 85 x 73 x 70 | N50: =IFERROR(HYPERLINK(VLOOKUP($A50,PQS!$F$5:$AW$137,MATCH(PQS!$AK$3,PQS!$F$3:$AW$3,0),FALSE),VLOOKUP($A50,PQS!$F$5:$AW$137,MATCH(PQS!$AJ$3,PQS!$F$3:$AW$3,0),FALSE)),"") -> VLS 204A* TechNet Page
A51: Vestfrost VLS 304A AC* | B51: 34188.47559 | C51: 10 | D51: 10 | E51: =IFERROR(VLOOKUP($A51,PQS!$F$5:$AR$137,MATCH(PQS!$AN$3, PQS!$F$3:$AR$3,0),FALSE),"") -> 1079.15 | F51: =IFERROR(VLOOKUP($A51,PQS!$F$5:$AW$137,MATCH(PQS!$AM$3,PQS!$F$3:$AW$3,0),FALSE),"") -> 143.5333333 | G51: 3418.847559 | H51: =IFERROR(VLOOKUP($A51,PQS!$F$5:$AW$137,MATCH(PQS!$K$3,PQS!$F$3:$AW$3,0),FALSE),"") -> 98 | I51: =IFERROR(VLOOKUP($A51,PQS!$F$5:$AW$137,MATCH(PQS!$L$3,PQS!$F$3:$AW$3,0),FALSE),"") -> 0 | J51: =IFERROR(VLOOKUP($A51,PQS!$F$5:$AW$137,MATCH(PQS!$AL$3,PQS!$F$3:$AW$3,0),FALSE),"") -> 5 to 43 | K51: =IFERROR(VLOOKUP($A51,PQS!$F$5:$AW$137,COLUMN(PQS!$AC$5)-3,FALSE),"") -> 43.8 | L51: =IFERROR(VLOOKUP($A51,PQS!$F$5:$AW$137,MATCH(PQS!$J$3,PQS!$F$3:$AW$3,0),FALSE),"") -> 93 | M51: =IFERROR(VLOOKUP($A51,PQS!$F$5:$AW$137,MATCH(PQS!$AG$3,PQS!$F$3:$AW$3,0),FALSE),"") -> 85 x 92 x 70 | N51: =IFERROR(HYPERLINK(VLOOKUP($A51,PQS!$F$5:$AW$137,MATCH(PQS!$AK$3,PQS!$F$3:$AW$3,0),FALSE),VLOOKUP($A51,PQS!$F$5:$AW$137,MATCH(PQS!$AJ$3,PQS!$F$3:$AW$3,0),FALSE)),"") -> VLS 304A AC* TechNet Page
A52: Vestfrost VLS 354A AC* | B52: 35582.15071 | C52: 10 | D52: 10 | E52: =IFERROR(VLOOKUP($A52,PQS!$F$5:$AR$137,MATCH(PQS!$AN$3, PQS!$F$3:$AR$3,0),FALSE),"") -> 1194.41 | F52: =IFERROR(VLOOKUP($A52,PQS!$F$5:$AW$137,MATCH(PQS!$AM$3,PQS!$F$3:$AW$3,0),FALSE),"") -> 144.9933333 | G52: 3558.215071 | H52: =IFERROR(VLOOKUP($A52,PQS!$F$5:$AW$137,MATCH(PQS!$K$3,PQS!$F$3:$AW$3,0),FALSE),"") -> 127 | I52: =IFERROR(VLOOKUP($A52,PQS!$F$5:$AW$137,MATCH(PQS!$L$3,PQS!$F$3:$AW$3,0),FALSE),"") -> 0 | J52: =IFERROR(VLOOKUP($A52,PQS!$F$5:$AW$137,MATCH(PQS!$AL$3,PQS!$F$3:$AW$3,0),FALSE),"") -> 5 to 43 | K52: =IFERROR(VLOOKUP($A52,PQS!$F$5:$AW$137,COLUMN(PQS!$AC$5)-3,FALSE),"") -> 45.26 | L52: =IFERROR(VLOOKUP($A52,PQS!$F$5:$AW$137,MATCH(PQS!$J$3,PQS!$F$3:$AW$3,0),FALSE),"") -> 110 | M52: =IFERROR(VLOOKUP($A52,PQS!$F$5:$AW$137,MATCH(PQS!$AG$3,PQS!$F$3:$AW$3,0),FALSE),"") -> 85 x 113 x 70 | N52: =IFERROR(HYPERLINK(VLOOKUP($A52,PQS!$F$5:$AW$137,MATCH(PQS!$AK$3,PQS!$F$3:$AW$3,0),FALSE),VLOOKUP($A52,PQS!$F$5:$AW$137,MATCH(PQS!$AJ$3,PQS!$F$3:$AW$3,0),FALSE)),"") -> VLS 354A AC* TechNet Page
A53: Vestfrost VLS 404A AC* | B53: 36926.52171 | C53: 10 | D53: 10 | E53: =IFERROR(VLOOKUP($A53,PQS!$F$5:$AR$137,MATCH(PQS!$AN$3, PQS!$F$3:$AR$3,0),FALSE),"") -> 1285.94 | F53: =IFERROR(VLOOKUP($A53,PQS!$F$5:$AW$137,MATCH(PQS!$AM$3,PQS!$F$3:$AW$3,0),FALSE),"") -> 148.6433333 | G53: 3692.652171 | H53: =IFERROR(VLOOKUP($A53,PQS!$F$5:$AW$137,MATCH(PQS!$K$3,PQS!$F$3:$AW$3,0),FALSE),"") -> 145 | I53: =IFERROR(VLOOKUP($A53,PQS!$F$5:$AW$137,MATCH(PQS!$L$3,PQS!$F$3:$AW$3,0),FALSE),"") -> 0 | J53: =IFERROR(VLOOKUP($A53,PQS!$F$5:$AW$137,MATCH(PQS!$AL$3,PQS!$F$3:$AW$3,0),FALSE),"") -> 5 to 43 | K53: =IFERROR(VLOOKUP($A53,PQS!$F$5:$AW$137,COLUMN(PQS!$AC$5)-3,FALSE),"") -> 48.91 | L53: =IFERROR(VLOOKUP($A53,PQS!$F$5:$AW$137,MATCH(PQS!$J$3,PQS!$F$3:$AW$3,0),FALSE),"") -> 126 | M53: =IFERROR(VLOOKUP($A53,PQS!$F$5:$AW$137,MATCH(PQS!$AG$3,PQS!$F$3:$AW$3,0),FALSE),"") -> 86 x 127 x 70 | N53: =IFERROR(HYPERLINK(VLOOKUP($A53,PQS!$F$5:$AW$137,MATCH(PQS!$AK$3,PQS!$F$3:$AW$3,0),FALSE),VLOOKUP($A53,PQS!$F$5:$AW$137,MATCH(PQS!$AJ$3,PQS!$F$3:$AW$3,0),FALSE)),"") -> VLS 404A AC* TechNet Page
A54: Vestfrost VLS 504A AC* | B54: 44748.31348 | C54: 10 | D54: 10 | E54: =IFERROR(VLOOKUP($A54,PQS!$F$5:$AR$137,MATCH(PQS!$AN$3, PQS!$F$3:$AR$3,0),FALSE),"") -> 2028.35 | F54: =IFERROR(VLOOKUP($A54,PQS!$F$5:$AW$137,MATCH(PQS!$AM$3,PQS!$F$3:$AW$3,0),FALSE),"") -> 146.3073333 | G54: 4474.831348 | H54: =IFERROR(VLOOKUP($A54,PQS!$F$5:$AW$137,MATCH(PQS!$K$3,PQS!$F$3:$AW$3,0),FALSE),"") -> 242 | I54: =IFERROR(VLOOKUP($A54,PQS!$F$5:$AW$137,MATCH(PQS!$L$3,PQS!$F$3:$AW$3,0),FALSE),"") -> 0 | J54: =IFERROR(VLOOKUP($A54,PQS!$F$5:$AW$137,MATCH(PQS!$AL$3,PQS!$F$3:$AW$3,0),FALSE),"") -> 5 to 43 | K54: =IFERROR(VLOOKUP($A54,PQS!$F$5:$AW$137,COLUMN(PQS!$AC$5)-3,FALSE),"") -> 46.574 | L54: =IFERROR(VLOOKUP($A54,PQS!$F$5:$AW$137,MATCH(PQS!$J$3,PQS!$F$3:$AW$3,0),FALSE),"") -> 150 | M54: =IFERROR(VLOOKUP($A54,PQS!$F$5:$AW$137,MATCH(PQS!$AG$3,PQS!$F$3:$AW$3,0),FALSE),"") -> 84.5 x 156.3 x 70.0 | N54: =IFERROR(HYPERLINK(VLOOKUP($A54,PQS!$F$5:$AW$137,MATCH(PQS!$AK$3,PQS!$F$3:$AW$3,0),FALSE),VLOOKUP($A54,PQS!$F$5:$AW$137,MATCH(PQS!$AJ$3,PQS!$F$3:$AW$3,0),FALSE)),"") -> VLS 504A AC* TechNet Page
A55: Haier HBC-120* | B55: 39026.30667 | C55: 10 | D55: 10 | E55: =IFERROR(VLOOKUP($A55,PQS!$F$5:$AR$137,MATCH(PQS!$AN$3, PQS!$F$3:$AR$3,0),FALSE),"") -> 1700 | F55: =IFERROR(VLOOKUP($A55,PQS!$F$5:$AW$137,MATCH(PQS!$AM$3,PQS!$F$3:$AW$3,0),FALSE),"") -> 115.8166667 | G55: 3902.630667 | H55: =IFERROR(VLOOKUP($A55,PQS!$F$5:$AW$137,MATCH(PQS!$K$3,PQS!$F$3:$AW$3,0),FALSE),"") -> 100 | I55: =IFERROR(VLOOKUP($A55,PQS!$F$5:$AW$137,MATCH(PQS!$L$3,PQS!$F$3:$AW$3,0),FALSE),"") -> 0 | J55: =IFERROR(VLOOKUP($A55,PQS!$F$5:$AW$137,MATCH(PQS!$AL$3,PQS!$F$3:$AW$3,0),FALSE),"") -> 5 to 43 | K55: =IFERROR(VLOOKUP($A55,PQS!$F$5:$AW$137,COLUMN(PQS!$AC$5)-3,FALSE),"") -> 25.55 | L55: =IFERROR(VLOOKUP($A55,PQS!$F$5:$AW$137,MATCH(PQS!$J$3,PQS!$F$3:$AW$3,0),FALSE),"") -> 160 | M55: =IFERROR(VLOOKUP($A55,PQS!$F$5:$AW$137,MATCH(PQS!$AG$3,PQS!$F$3:$AW$3,0),FALSE),"") -> 89 x 82.9 x 142.5 | N55: =IFERROR(HYPERLINK(VLOOKUP($A55,PQS!$F$5:$AW$137,MATCH(PQS!$AK$3,PQS!$F$3:$AW$3,0),FALSE),VLOOKUP($A55,PQS!$F$5:$AW$137,MATCH(PQS!$AJ$3,PQS!$F$3:$AW$3,0),FALSE)),"") -> N/A
A56: Haier HBC-240* | B56: 41531.30667 | C56: 10 | D56: 10 | E56: =IFERROR(VLOOKUP($A56,PQS!$F$5:$AR$137,MATCH(PQS!$AN$3, PQS!$F$3:$AR$3,0),FALSE),"") -> 1900 | F56: =IFERROR(VLOOKUP($A56,PQS!$F$5:$AW$137,MATCH(PQS!$AM$3,PQS!$F$3:$AW$3,0),FALSE),"") -> 119.4666667 | G56: 4153.130667 | H56: =IFERROR(VLOOKUP($A56,PQS!$F$5:$AW$137,MATCH(PQS!$K$3,PQS!$F$3:$AW$3,0),FALSE),"") -> 200 | I56: =IFERROR(VLOOKUP($A56,PQS!$F$5:$AW$137,MATCH(PQS!$L$3,PQS!$F$3:$AW$3,0),FALSE),"") -> 0 | J56: =IFERROR(VLOOKUP($A56,PQS!$F$5:$AW$137,MATCH(PQS!$AL$3,PQS!$F$3:$AW$3,0),FALSE),"") -> 5 to 43 | K56: =IFERROR(VLOOKUP($A56,PQS!$F$5:$AW$137,COLUMN(PQS!$AC$5)-3,FALSE),"") -> 29.2 | L56: =IFERROR(VLOOKUP($A56,PQS!$F$5:$AW$137,MATCH(PQS!$J$3,PQS!$F$3:$AW$3,0),FALSE),"") -> 186 | M56: =IFERROR(VLOOKUP($A56,PQS!$F$5:$AW$137,MATCH(PQS!$AG$3,PQS!$F$3:$AW$3,0),FALSE),"") -> 89 x 82.9 x 182.0 | N56: =IFERROR(HYPERLINK(VLOOKUP($A56,PQS!$F$5:$AW$137,MATCH(PQS!$AK$3,PQS!$F$3:$AW$3,0),FALSE),VLOOKUP($A56,PQS!$F$5:$AW$137,MATCH(PQS!$AJ$3,PQS!$F$3:$AW$3,0),FALSE)),"") -> N/A
A57: SDD | B57: 67309.15589 | C57: 10 | D57: 10 | E57: =IFERROR(VLOOKUP($A57,PQS!$F$5:$AR$137,MATCH(PQS!$AN$3, PQS!$F$3:$AR$3,0),FALSE),"") ->  | F57: =IFERROR(VLOOKUP($A57,PQS!$F$5:$AW$137,MATCH(PQS!$AM$3,PQS!$F$3:$AW$3,0),FALSE),"") ->  | H57: =IFERROR(VLOOKUP($A57,PQS!$F$5:$AW$137,MATCH(PQS!$K$3,PQS!$F$3:$AW$3,0),FALSE),"") ->  | I57: =IFERROR(VLOOKUP($A57,PQS!$F$5:$AW$137,MATCH(PQS!$L$3,PQS!$F$3:$AW$3,0),FALSE),"") ->  | J57: =IFERROR(VLOOKUP($A57,PQS!$F$5:$AW$137,MATCH(PQS!$AL$3,PQS!$F$3:$AW$3,0),FALSE),"") ->  | K57: =IFERROR(VLOOKUP($A57,PQS!$F$5:$AW$137,COLUMN(PQS!$AC$5)-3,FALSE),"") ->  | L57: =IFERROR(VLOOKUP($A57,PQS!$F$5:$AW$137,MATCH(PQS!$J$3,PQS!$F$3:$AW$3,0),FALSE),"") ->  | M57: =IFERROR(VLOOKUP($A57,PQS!$F$5:$AW$137,MATCH(PQS!$AG$3,PQS!$F$3:$AW$3,0),FALSE),"") ->  | N57: =IFERROR(HYPERLINK(VLOOKUP($A57,PQS!$F$5:$AW$137,MATCH(PQS!$AK$3,PQS!$F$3:$AW$3,0),FALSE),VLOOKUP($A57,PQS!$F$5:$AW$137,MATCH(PQS!$AJ$3,PQS!$F$3:$AW$3,0),FALSE)),"") -> 
A58: SunDanzer BFRV 55* | B58: 54050.3 | C58: 10 | D58: 10 | E58: =IFERROR(VLOOKUP($A58,PQS!$F$5:$AR$137,MATCH(PQS!$AN$3, PQS!$F$3:$AR$3,0),FALSE),"") -> 3065 | F58: =IFERROR(VLOOKUP($A58,PQS!$F$5:$AW$137,MATCH(PQS!$AM$3,PQS!$F$3:$AW$3,0),FALSE),"") -> 90.8 | G58: 5405.03 | H58: =IFERROR(VLOOKUP($A58,PQS!$F$5:$AW$137,MATCH(PQS!$K$3,PQS!$F$3:$AW$3,0),FALSE),"") -> 54.5 | I58: =IFERROR(VLOOKUP($A58,PQS!$F$5:$AW$137,MATCH(PQS!$L$3,PQS!$F$3:$AW$3,0),FALSE),"") -> 0 | J58: =IFERROR(VLOOKUP($A58,PQS!$F$5:$AW$137,MATCH(PQS!$AL$3,PQS!$F$3:$AW$3,0),FALSE),"") -> 5 to 43 | K58: =IFERROR(VLOOKUP($A58,PQS!$F$5:$AW$137,COLUMN(PQS!$AC$5)-3,FALSE),"") -> 0 | L58: =IFERROR(VLOOKUP($A58,PQS!$F$5:$AW$137,MATCH(PQS!$J$3,PQS!$F$3:$AW$3,0),FALSE),"") -> 218 | M58: =IFERROR(VLOOKUP($A58,PQS!$F$5:$AW$137,MATCH(PQS!$AG$3,PQS!$F$3:$AW$3,0),FALSE),"") -> 88 x 96.5 x 71 | N58: =IFERROR(HYPERLINK(VLOOKUP($A58,PQS!$F$5:$AW$137,MATCH(PQS!$AK$3,PQS!$F$3:$AW$3,0),FALSE),VLOOKUP($A58,PQS!$F$5:$AW$137,MATCH(PQS!$AJ$3,PQS!$F$3:$AW$3,0),FALSE)),"") -> BFRV 55* TechNet Page
A59: Zero ZLF 100 DC* | B59: 73870.98 | C59: 10 | D59: 10 | E59: =IFERROR(VLOOKUP($A59,PQS!$F$5:$AR$137,MATCH(PQS!$AN$3, PQS!$F$3:$AR$3,0),FALSE),"") -> 4847 | F59: =IFERROR(VLOOKUP($A59,PQS!$F$5:$AW$137,MATCH(PQS!$AM$3,PQS!$F$3:$AW$3,0),FALSE),"") -> 90.8 | G59: 7387.098 | H59: =IFERROR(VLOOKUP($A59,PQS!$F$5:$AW$137,MATCH(PQS!$K$3,PQS!$F$3:$AW$3,0),FALSE),"") -> 99 | I59: =IFERROR(VLOOKUP($A59,PQS!$F$5:$AW$137,MATCH(PQS!$L$3,PQS!$F$3:$AW$3,0),FALSE),"") -> 0 | J59: =IFERROR(VLOOKUP($A59,PQS!$F$5:$AW$137,MATCH(PQS!$AL$3,PQS!$F$3:$AW$3,0),FALSE),"") -> 5 to 43 | K59: =IFERROR(VLOOKUP($A59,PQS!$F$5:$AW$137,COLUMN(PQS!$AC$5)-3,FALSE),"") -> 0 | L59: =IFERROR(VLOOKUP($A59,PQS!$F$5:$AW$137,MATCH(PQS!$J$3,PQS!$F$3:$AW$3,0),FALSE),"") -> 115 | M59: =IFERROR(VLOOKUP($A59,PQS!$F$5:$AW$137,MATCH(PQS!$AG$3,PQS!$F$3:$AW$3,0),FALSE),"") -> 180 x 85 x 73 | N59: =IFERROR(HYPERLINK(VLOOKUP($A59,PQS!$F$5:$AW$137,MATCH(PQS!$AK$3,PQS!$F$3:$AW$3,0),FALSE),VLOOKUP($A59,PQS!$F$5:$AW$137,MATCH(PQS!$AJ$3,PQS!$F$3:$AW$3,0),FALSE)),"") -> ZLF 100 DC* TechNet Page
A60: SunDanzer BFRV 15 SDD* | B60: 40715.7 | C60: 10 | D60: 10 | E60: =IFERROR(VLOOKUP($A60,PQS!$F$5:$AR$137,MATCH(PQS!$AN$3, PQS!$F$3:$AR$3,0),FALSE),"") -> 2320 | F60: =IFERROR(VLOOKUP($A60,PQS!$F$5:$AW$137,MATCH(PQS!$AM$3,PQS!$F$3:$AW$3,0),FALSE),"") -> 40.7 | G60: 4071.57 | H60: =IFERROR(VLOOKUP($A60,PQS!$F$5:$AW$137,MATCH(PQS!$K$3,PQS!$F$3:$AW$3,0),FALSE),"") -> 15 | I60: =IFERROR(VLOOKUP($A60,PQS!$F$5:$AW$137,MATCH(PQS!$L$3,PQS!$F$3:$AW$3,0),FALSE),"") -> 0 | J60: =IFERROR(VLOOKUP($A60,PQS!$F$5:$AW$137,MATCH(PQS!$AL$3,PQS!$F$3:$AW$3,0),FALSE),"") -> 5 to 43 | K60: =IFERROR(VLOOKUP($A60,PQS!$F$5:$AW$137,COLUMN(PQS!$AC$5)-3,FALSE),"") -> 0 | L60: =IFERROR(VLOOKUP($A60,PQS!$F$5:$AW$137,MATCH(PQS!$J$3,PQS!$F$3:$AW$3,0),FALSE),"") -> 147 | M60: =IFERROR(VLOOKUP($A60,PQS!$F$5:$AW$137,MATCH(PQS!$AG$3,PQS!$F$3:$AW$3,0),FALSE),"") -> 77 x 69 x 59.5 | N60: =IFERROR(HYPERLINK(VLOOKUP($A60,PQS!$F$5:$AW$137,MATCH(PQS!$AK$3,PQS!$F$3:$AW$3,0),FALSE),VLOOKUP($A60,PQS!$F$5:$AW$137,MATCH(PQS!$AJ$3,PQS!$F$3:$AW$3,0),FALSE)),"") -> BFRV 15 SDD* TechNet Page
A61: B Medical TCW 40 SDD* | B61: 79201.944 | C61: 10 | D61: 10 | E61: =IFERROR(VLOOKUP($A61,PQS!$F$5:$AR$137,MATCH(PQS!$AN$3, PQS!$F$3:$AR$3,0),FALSE),"") -> 6083.92 | F61: =IFERROR(VLOOKUP($A61,PQS!$F$5:$AW$137,MATCH(PQS!$AM$3,PQS!$F$3:$AW$3,0),FALSE),"") -> 24 | G61: 7920.1944 | H61: =IFERROR(VLOOKUP($A61,PQS!$F$5:$AW$137,MATCH(PQS!$K$3,PQS!$F$3:$AW$3,0),FALSE),"") -> 36 | I61: =IFERROR(VLOOKUP($A61,PQS!$F$5:$AW$137,MATCH(PQS!$L$3,PQS!$F$3:$AW$3,0),FALSE),"") -> 4.8 | J61: =IFERROR(VLOOKUP($A61,PQS!$F$5:$AW$137,MATCH(PQS!$AL$3,PQS!$F$3:$AW$3,0),FALSE),"") -> 5 to 43 | K61: =IFERROR(VLOOKUP($A61,PQS!$F$5:$AW$137,COLUMN(PQS!$AC$5)-3,FALSE),"") -> 0 | L61: =IFERROR(VLOOKUP($A61,PQS!$F$5:$AW$137,MATCH(PQS!$J$3,PQS!$F$3:$AW$3,0),FALSE),"") -> 120 | M61: =IFERROR(VLOOKUP($A61,PQS!$F$5:$AW$137,MATCH(PQS!$AG$3,PQS!$F$3:$AW$3,0),FALSE),"") -> 78 x 103 x 90 | N61: =IFERROR(HYPERLINK(VLOOKUP($A61,PQS!$F$5:$AW$137,MATCH(PQS!$AK$3,PQS!$F$3:$AW$3,0),FALSE),VLOOKUP($A61,PQS!$F$5:$AW$137,MATCH(PQS!$AJ$3,PQS!$F$3:$AW$3,0),FALSE)),"") -> TCW 40 SDD* TechNet Page
A62: B Medical TCW 2043 SDD* | B62: 123684.733 | C62: 10 | D62: 10 | E62: =IFERROR(VLOOKUP($A62,PQS!$F$5:$AR$137,MATCH(PQS!$AN$3, PQS!$F$3:$AR$3,0),FALSE),"") -> 10241.19 | F62: =IFERROR(VLOOKUP($A62,PQS!$F$5:$AW$137,MATCH(PQS!$AM$3,PQS!$F$3:$AW$3,0),FALSE),"") -> 24 | G62: 12368.4733 | H62: =IFERROR(VLOOKUP($A62,PQS!$F$5:$AW$137,MATCH(PQS!$K$3,PQS!$F$3:$AW$3,0),FALSE),"") -> 70 | I62: =IFERROR(VLOOKUP($A62,PQS!$F$5:$AW$137,MATCH(PQS!$L$3,PQS!$F$3:$AW$3,0),FALSE),"") -> 42 | J62: =IFERROR(VLOOKUP($A62,PQS!$F$5:$AW$137,MATCH(PQS!$AL$3,PQS!$F$3:$AW$3,0),FALSE),"") -> 5 to 43 | K62: =IFERROR(VLOOKUP($A62,PQS!$F$5:$AW$137,COLUMN(PQS!$AC$5)-3,FALSE),"") -> 0 | L62: =IFERROR(VLOOKUP($A62,PQS!$F$5:$AW$137,MATCH(PQS!$J$3,PQS!$F$3:$AW$3,0),FALSE),"") -> 160 | M62: =IFERROR(VLOOKUP($A62,PQS!$F$5:$AW$137,MATCH(PQS!$AG$3,PQS!$F$3:$AW$3,0),FALSE),"") -> 91 x 127 x 78 | N62: =IFERROR(HYPERLINK(VLOOKUP($A62,PQS!$F$5:$AW$137,MATCH(PQS!$AK$3,PQS!$F$3:$AW$3,0),FALSE),VLOOKUP($A62,PQS!$F$5:$AW$137,MATCH(PQS!$AJ$3,PQS!$F$3:$AW$3,0),FALSE)),"") -> TCW 2043 SDD* TechNet Page
A63: B Medical TCW 3043 SDD* | B63: 89563.931 | C63: 10 | D63: 10 | E63: =IFERROR(VLOOKUP($A63,PQS!$F$5:$AR$137,MATCH(PQS!$AN$3, PQS!$F$3:$AR$3,0),FALSE),"") -> 7052.33 | F63: =IFERROR(VLOOKUP($A63,PQS!$F$5:$AW$137,MATCH(PQS!$AM$3,PQS!$F$3:$AW$3,0),FALSE),"") -> 24 | G63: 8956.3931 | H63: =IFERROR(VLOOKUP($A63,PQS!$F$5:$AW$137,MATCH(PQS!$K$3,PQS!$F$3:$AW$3,0),FALSE),"") -> 89 | I63: =IFERROR(VLOOKUP($A63,PQS!$F$5:$AW$137,MATCH(PQS!$L$3,PQS!$F$3:$AW$3,0),FALSE),"") -> 0 | J63: =IFERROR(VLOOKUP($A63,PQS!$F$5:$AW$137,MATCH(PQS!$AL$3,PQS!$F$3:$AW$3,0),FALSE),"") -> 5 to 43 | K63: =IFERROR(VLOOKUP($A63,PQS!$F$5:$AW$137,COLUMN(PQS!$AC$5)-3,FALSE),"") -> 0 | L63: =IFERROR(VLOOKUP($A63,PQS!$F$5:$AW$137,MATCH(PQS!$J$3,PQS!$F$3:$AW$3,0),FALSE),"") -> 169 | M63: =IFERROR(VLOOKUP($A63,PQS!$F$5:$AW$137,MATCH(PQS!$AG$3,PQS!$F$3:$AW$3,0),FALSE),"") -> 91 x 127 x 78 | N63: =IFERROR(HYPERLINK(VLOOKUP($A63,PQS!$F$5:$AW$137,MATCH(PQS!$AK$3,PQS!$F$3:$AW$3,0),FALSE),VLOOKUP($A63,PQS!$F$5:$AW$137,MATCH(PQS!$AJ$3,PQS!$F$3:$AW$3,0),FALSE)),"") -> TCW 3043 SDD* TechNet Page
A64: Zero ZLF 150DC* | B64: 79039.08 | C64: 10 | D64: 10 | E64: =IFERROR(VLOOKUP($A64,PQS!$F$5:$AR$137,MATCH(PQS!$AN$3, PQS!$F$3:$AR$3,0),FALSE),"") -> 5330 | F64: =IFERROR(VLOOKUP($A64,PQS!$F$5:$AW$137,MATCH(PQS!$AM$3,PQS!$F$3:$AW$3,0),FALSE),"") -> 90.8 | G64: 7903.908 | H64: =IFERROR(VLOOKUP($A64,PQS!$F$5:$AW$137,MATCH(PQS!$K$3,PQS!$F$3:$AW$3,0),FALSE),"") -> 128 | I64: =IFERROR(VLOOKUP($A64,PQS!$F$5:$AW$137,MATCH(PQS!$L$3,PQS!$F$3:$AW$3,0),FALSE),"") -> 0 | J64: =IFERROR(VLOOKUP($A64,PQS!$F$5:$AW$137,MATCH(PQS!$AL$3,PQS!$F$3:$AW$3,0),FALSE),"") -> 5 to 43 | K64: =IFERROR(VLOOKUP($A64,PQS!$F$5:$AW$137,COLUMN(PQS!$AC$5)-3,FALSE),"") -> 0 | L64: =IFERROR(VLOOKUP($A64,PQS!$F$5:$AW$137,MATCH(PQS!$J$3,PQS!$F$3:$AW$3,0),FALSE),"") -> 120 | M64: =IFERROR(VLOOKUP($A64,PQS!$F$5:$AW$137,MATCH(PQS!$AG$3,PQS!$F$3:$AW$3,0),FALSE),"") -> 189 x 83 x 71 | N64: =IFERROR(HYPERLINK(VLOOKUP($A64,PQS!$F$5:$AW$137,MATCH(PQS!$AK$3,PQS!$F$3:$AW$3,0),FALSE),VLOOKUP($A64,PQS!$F$5:$AW$137,MATCH(PQS!$AJ$3,PQS!$F$3:$AW$3,0),FALSE)),"") -> ZLF 150DC* TechNet Page
A65: Zero ZLF 30DC SDD* | B65: 53252.08 | C65: 10 | D65: 10 | E65: =IFERROR(VLOOKUP($A65,PQS!$F$5:$AR$137,MATCH(PQS!$AN$3, PQS!$F$3:$AR$3,0),FALSE),"") -> 2920 | F65: =IFERROR(VLOOKUP($A65,PQS!$F$5:$AW$137,MATCH(PQS!$AM$3,PQS!$F$3:$AW$3,0),FALSE),"") -> 90.8 | G65: 5325.208 | H65: =IFERROR(VLOOKUP($A65,PQS!$F$5:$AW$137,MATCH(PQS!$K$3,PQS!$F$3:$AW$3,0),FALSE),"") -> 27 | I65: =IFERROR(VLOOKUP($A65,PQS!$F$5:$AW$137,MATCH(PQS!$L$3,PQS!$F$3:$AW$3,0),FALSE),"") -> 0 | J65: =IFERROR(VLOOKUP($A65,PQS!$F$5:$AW$137,MATCH(PQS!$AL$3,PQS!$F$3:$AW$3,0),FALSE),"") -> 5 to 32 | K65: =IFERROR(VLOOKUP($A65,PQS!$F$5:$AW$137,COLUMN(PQS!$AC$5)-3,FALSE),"") -> 0 | L65: =IFERROR(VLOOKUP($A65,PQS!$F$5:$AW$137,MATCH(PQS!$J$3,PQS!$F$3:$AW$3,0),FALSE),"") -> 65 | M65: =IFERROR(VLOOKUP($A65,PQS!$F$5:$AW$137,MATCH(PQS!$AG$3,PQS!$F$3:$AW$3,0),FALSE),"") -> 102.5 x 56 x 60 | N65: =IFERROR(HYPERLINK(VLOOKUP($A65,PQS!$F$5:$AW$137,MATCH(PQS!$AK$3,PQS!$F$3:$AW$3,0),FALSE),VLOOKUP($A65,PQS!$F$5:$AW$137,MATCH(PQS!$AJ$3,PQS!$F$3:$AW$3,0),FALSE)),"") -> ZLF 30DC SDD* TechNet Page
A66: Haier HTCD-160* | B66: 81553.18 | C66: 10 | D66: 10 | E66: =IFERROR(VLOOKUP($A66,PQS!$F$5:$AR$137,MATCH(PQS!$AN$3, PQS!$F$3:$AR$3,0),FALSE),"") -> 5700 | F66: =IFERROR(VLOOKUP($A66,PQS!$F$5:$AW$137,MATCH(PQS!$AM$3,PQS!$F$3:$AW$3,0),FALSE),"") -> 82.45 | G66: 8155.318 | H66: =IFERROR(VLOOKUP($A66,PQS!$F$5:$AW$137,MATCH(PQS!$K$3,PQS!$F$3:$AW$3,0),FALSE),"") -> 100 | I66: =IFERROR(VLOOKUP($A66,PQS!$F$5:$AW$137,MATCH(PQS!$L$3,PQS!$F$3:$AW$3,0),FALSE),"") -> 40 | J66: =IFERROR(VLOOKUP($A66,PQS!$F$5:$AW$137,MATCH(PQS!$AL$3,PQS!$F$3:$AW$3,0),FALSE),"") -> 5 to 43 | K66: =IFERROR(VLOOKUP($A66,PQS!$F$5:$AW$137,COLUMN(PQS!$AC$5)-3,FALSE),"") -> 0 | L66: =IFERROR(VLOOKUP($A66,PQS!$F$5:$AW$137,MATCH(PQS!$J$3,PQS!$F$3:$AW$3,0),FALSE),"") -> 186 | M66: =IFERROR(VLOOKUP($A66,PQS!$F$5:$AW$137,MATCH(PQS!$AG$3,PQS!$F$3:$AW$3,0),FALSE),"") -> 169.5 x 86.5 x 82.5 | N66: =IFERROR(HYPERLINK(VLOOKUP($A66,PQS!$F$5:$AW$137,MATCH(PQS!$AK$3,PQS!$F$3:$AW$3,0),FALSE),VLOOKUP($A66,PQS!$F$5:$AW$137,MATCH(PQS!$AJ$3,PQS!$F$3:$AW$3,0),FALSE)),"") -> HTCD-160* TechNet Page
A67: B Medical TCW 15R SDD* | B67: 66300.847 | C67: 10 | D67: 10 | E67: =IFERROR(VLOOKUP($A67,PQS!$F$5:$AR$137,MATCH(PQS!$AN$3, PQS!$F$3:$AR$3,0),FALSE),"") -> 4878.21 | F67: =IFERROR(VLOOKUP($A67,PQS!$F$5:$AW$137,MATCH(PQS!$AM$3,PQS!$F$3:$AW$3,0),FALSE),"") -> 24 | G67: 6630.0847 | H67: =IFERROR(VLOOKUP($A67,PQS!$F$5:$AW$137,MATCH(PQS!$K$3,PQS!$F$3:$AW$3,0),FALSE),"") -> 16 | I67: =IFERROR(VLOOKUP($A67,PQS!$F$5:$AW$137,MATCH(PQS!$L$3,PQS!$F$3:$AW$3,0),FALSE),"") -> 0 | J67: =IFERROR(VLOOKUP($A67,PQS!$F$5:$AW$137,MATCH(PQS!$AL$3,PQS!$F$3:$AW$3,0),FALSE),"") -> 10 to 43 | K67: =IFERROR(VLOOKUP($A67,PQS!$F$5:$AW$137,COLUMN(PQS!$AC$5)-3,FALSE),"") -> 0 | L67: =IFERROR(VLOOKUP($A67,PQS!$F$5:$AW$137,MATCH(PQS!$J$3,PQS!$F$3:$AW$3,0),FALSE),"") -> 85 | M67: =IFERROR(VLOOKUP($A67,PQS!$F$5:$AW$137,MATCH(PQS!$AG$3,PQS!$F$3:$AW$3,0),FALSE),"") -> 95 x 73 x 73 | N67: =IFERROR(HYPERLINK(VLOOKUP($A67,PQS!$F$5:$AW$137,MATCH(PQS!$AK$3,PQS!$F$3:$AW$3,0),FALSE),VLOOKUP($A67,PQS!$F$5:$AW$137,MATCH(PQS!$AJ$3,PQS!$F$3:$AW$3,0),FALSE)),"") -> TCW 15R SDD* TechNet Page
A68: B Medical TCW 40R SDD* | B68: 75889.01 | C68: 10 | D68: 10 | E68: =IFERROR(VLOOKUP($A68,PQS!$F$5:$AR$137,MATCH(PQS!$AN$3, PQS!$F$3:$AR$3,0),FALSE),"") -> 5774.3 | F68: =IFERROR(VLOOKUP($A68,PQS!$F$5:$AW$137,MATCH(PQS!$AM$3,PQS!$F$3:$AW$3,0),FALSE),"") -> 24 | G68: 7588.901 | H68: =IFERROR(VLOOKUP($A68,PQS!$F$5:$AW$137,MATCH(PQS!$K$3,PQS!$F$3:$AW$3,0),FALSE),"") -> 36 | I68: =IFERROR(VLOOKUP($A68,PQS!$F$5:$AW$137,MATCH(PQS!$L$3,PQS!$F$3:$AW$3,0),FALSE),"") -> 0 | J68: =IFERROR(VLOOKUP($A68,PQS!$F$5:$AW$137,MATCH(PQS!$AL$3,PQS!$F$3:$AW$3,0),FALSE),"") -> 5 to 43 | K68: =IFERROR(VLOOKUP($A68,PQS!$F$5:$AW$137,COLUMN(PQS!$AC$5)-3,FALSE),"") -> 0 | L68: =IFERROR(VLOOKUP($A68,PQS!$F$5:$AW$137,MATCH(PQS!$J$3,PQS!$F$3:$AW$3,0),FALSE),"") -> 120 | M68: =IFERROR(VLOOKUP($A68,PQS!$F$5:$AW$137,MATCH(PQS!$AG$3,PQS!$F$3:$AW$3,0),FALSE),"") -> 90 x 78 x 103 | N68: =IFERROR(HYPERLINK(VLOOKUP($A68,PQS!$F$5:$AW$137,MATCH(PQS!$AK$3,PQS!$F$3:$AW$3,0),FALSE),VLOOKUP($A68,PQS!$F$5:$AW$137,MATCH(PQS!$AJ$3,PQS!$F$3:$AW$3,0),FALSE)),"") -> TCW 40R SDD* TechNet Page
A69: Vestfrost VLS 024 SDD* | B69: 53679.93534 | C69: 10 | D69: 10 | E69: =IFERROR(VLOOKUP($A69,PQS!$F$5:$AR$137,MATCH(PQS!$AN$3, PQS!$F$3:$AR$3,0),FALSE),"") -> 3017.1 | F69: =IFERROR(VLOOKUP($A69,PQS!$F$5:$AW$137,MATCH(PQS!$AM$3,PQS!$F$3:$AW$3,0),FALSE),"") -> 90.8 | G69: 5367.993534 | H69: =IFERROR(VLOOKUP($A69,PQS!$F$5:$AW$137,MATCH(PQS!$K$3,PQS!$F$3:$AW$3,0),FALSE),"") -> 25.5 | I69: =IFERROR(VLOOKUP($A69,PQS!$F$5:$AW$137,MATCH(PQS!$L$3,PQS!$F$3:$AW$3,0),FALSE),"") -> 0 | J69: =IFERROR(VLOOKUP($A69,PQS!$F$5:$AW$137,MATCH(PQS!$AL$3,PQS!$F$3:$AW$3,0),FALSE),"") -> 5 to 43 | K69: =IFERROR(VLOOKUP($A69,PQS!$F$5:$AW$137,COLUMN(PQS!$AC$5)-3,FALSE),"") -> 0 | L69: =IFERROR(VLOOKUP($A69,PQS!$F$5:$AW$137,MATCH(PQS!$J$3,PQS!$F$3:$AW$3,0),FALSE),"") -> 75 | M69: =IFERROR(VLOOKUP($A69,PQS!$F$5:$AW$137,MATCH(PQS!$AG$3,PQS!$F$3:$AW$3,0),FALSE),"") -> 83 x 55.5 x 64.5 | N69: =IFERROR(HYPERLINK(VLOOKUP($A69,PQS!$F$5:$AW$137,MATCH(PQS!$AK$3,PQS!$F$3:$AW$3,0),FALSE),VLOOKUP($A69,PQS!$F$5:$AW$137,MATCH(PQS!$AJ$3,PQS!$F$3:$AW$3,0),FALSE)),"") -> VLS 024 SDD* TechNet Page
A70: Haier HTCD 90 SDD* | B70: 62400.18 | C70: 10 | D70: 10 | E70: =IFERROR(VLOOKUP($A70,PQS!$F$5:$AR$137,MATCH(PQS!$AN$3, PQS!$F$3:$AR$3,0),FALSE),"") -> 3910 | F70: =IFERROR(VLOOKUP($A70,PQS!$F$5:$AW$137,MATCH(PQS!$AM$3,PQS!$F$3:$AW$3,0),FALSE),"") -> 82.45 | G70: 6240.018 | H70: =IFERROR(VLOOKUP($A70,PQS!$F$5:$AW$137,MATCH(PQS!$K$3,PQS!$F$3:$AW$3,0),FALSE),"") -> 37.5 | I70: =IFERROR(VLOOKUP($A70,PQS!$F$5:$AW$137,MATCH(PQS!$L$3,PQS!$F$3:$AW$3,0),FALSE),"") -> 32 | J70: =IFERROR(VLOOKUP($A70,PQS!$F$5:$AW$137,MATCH(PQS!$AL$3,PQS!$F$3:$AW$3,0),FALSE),"") -> 5 to 43 | K70: =IFERROR(VLOOKUP($A70,PQS!$F$5:$AW$137,COLUMN(PQS!$AC$5)-3,FALSE),"") -> 0 | L70: =IFERROR(VLOOKUP($A70,PQS!$F$5:$AW$137,MATCH(PQS!$J$3,PQS!$F$3:$AW$3,0),FALSE),"") -> 108 | M70: =IFERROR(VLOOKUP($A70,PQS!$F$5:$AW$137,MATCH(PQS!$AG$3,PQS!$F$3:$AW$3,0),FALSE),"") -> 112 x 65.4 x 87.5 | N70: =IFERROR(HYPERLINK(VLOOKUP($A70,PQS!$F$5:$AW$137,MATCH(PQS!$AK$3,PQS!$F$3:$AW$3,0),FALSE),VLOOKUP($A70,PQS!$F$5:$AW$137,MATCH(PQS!$AJ$3,PQS!$F$3:$AW$3,0),FALSE)),"") -> HTCD 90 SDD* TechNet Page
A71: Haier HTC 40 SDD* | B71: 46029.18 | C71: 10 | D71: 10 | E71: =IFERROR(VLOOKUP($A71,PQS!$F$5:$AR$137,MATCH(PQS!$AN$3, PQS!$F$3:$AR$3,0),FALSE),"") -> 2380 | F71: =IFERROR(VLOOKUP($A71,PQS!$F$5:$AW$137,MATCH(PQS!$AM$3,PQS!$F$3:$AW$3,0),FALSE),"") -> 82.45 | G71: 4602.918 | H71: =IFERROR(VLOOKUP($A71,PQS!$F$5:$AW$137,MATCH(PQS!$K$3,PQS!$F$3:$AW$3,0),FALSE),"") -> 22.5 | I71: =IFERROR(VLOOKUP($A71,PQS!$F$5:$AW$137,MATCH(PQS!$L$3,PQS!$F$3:$AW$3,0),FALSE),"") -> 0 | J71: =IFERROR(VLOOKUP($A71,PQS!$F$5:$AW$137,MATCH(PQS!$AL$3,PQS!$F$3:$AW$3,0),FALSE),"") -> 5 to 43 | K71: =IFERROR(VLOOKUP($A71,PQS!$F$5:$AW$137,COLUMN(PQS!$AC$5)-3,FALSE),"") -> 0 | L71: =IFERROR(VLOOKUP($A71,PQS!$F$5:$AW$137,MATCH(PQS!$J$3,PQS!$F$3:$AW$3,0),FALSE),"") -> 75 | M71: =IFERROR(VLOOKUP($A71,PQS!$F$5:$AW$137,MATCH(PQS!$AG$3,PQS!$F$3:$AW$3,0),FALSE),"") -> 78.8 x 65.4 x 87.5 | N71: =IFERROR(HYPERLINK(VLOOKUP($A71,PQS!$F$5:$AW$137,MATCH(PQS!$AK$3,PQS!$F$3:$AW$3,0),FALSE),VLOOKUP($A71,PQS!$F$5:$AW$137,MATCH(PQS!$AJ$3,PQS!$F$3:$AW$3,0),FALSE)),"") -> HTC 40 SDD* TechNet Page
A72: Haier HTC 110 SDD* | B72: 48704.18 | C72: 10 | D72: 10 | E72: =IFERROR(VLOOKUP($A72,PQS!$F$5:$AR$137,MATCH(PQS!$AN$3, PQS!$F$3:$AR$3,0),FALSE),"") -> 2630 | F72: =IFERROR(VLOOKUP($A72,PQS!$F$5:$AW$137,MATCH(PQS!$AM$3,PQS!$F$3:$AW$3,0),FALSE),"") -> 82.45 | G72: 4870.418 | H72: =IFERROR(VLOOKUP($A72,PQS!$F$5:$AW$137,MATCH(PQS!$K$3,PQS!$F$3:$AW$3,0),FALSE),"") -> 59 | I72: =IFERROR(VLOOKUP($A72,PQS!$F$5:$AW$137,MATCH(PQS!$L$3,PQS!$F$3:$AW$3,0),FALSE),"") -> 0 | J72: =IFERROR(VLOOKUP($A72,PQS!$F$5:$AW$137,MATCH(PQS!$AL$3,PQS!$F$3:$AW$3,0),FALSE),"") -> 5 to 43 | K72: =IFERROR(VLOOKUP($A72,PQS!$F$5:$AW$137,COLUMN(PQS!$AC$5)-3,FALSE),"") -> 0 | L72: =IFERROR(VLOOKUP($A72,PQS!$F$5:$AW$137,MATCH(PQS!$J$3,PQS!$F$3:$AW$3,0),FALSE),"") -> 94 | M72: =IFERROR(VLOOKUP($A72,PQS!$F$5:$AW$137,MATCH(PQS!$AG$3,PQS!$F$3:$AW$3,0),FALSE),"") -> 78.8 x 65.4 x 112.8 | N72: =IFERROR(HYPERLINK(VLOOKUP($A72,PQS!$F$5:$AW$137,MATCH(PQS!$AK$3,PQS!$F$3:$AW$3,0),FALSE),VLOOKUP($A72,PQS!$F$5:$AW$137,MATCH(PQS!$AJ$3,PQS!$F$3:$AW$3,0),FALSE)),"") -> HTC 110 SDD* TechNet Page
A73: B Medical TCW 15 SDD* | B73: 66711.941 | C73: 10 | D73: 10 | E73: =IFERROR(VLOOKUP($A73,PQS!$F$5:$AR$137,MATCH(PQS!$AN$3, PQS!$F$3:$AR$3,0),FALSE),"") -> 4916.63 | F73: =IFERROR(VLOOKUP($A73,PQS!$F$5:$AW$137,MATCH(PQS!$AM$3,PQS!$F$3:$AW$3,0),FALSE),"") -> 24 | G73: 6671.1941 | H73: =IFERROR(VLOOKUP($A73,PQS!$F$5:$AW$137,MATCH(PQS!$K$3,PQS!$F$3:$AW$3,0),FALSE),"") -> 16 | I73: =IFERROR(VLOOKUP($A73,PQS!$F$5:$AW$137,MATCH(PQS!$L$3,PQS!$F$3:$AW$3,0),FALSE),"") -> 2.4 | J73: =IFERROR(VLOOKUP($A73,PQS!$F$5:$AW$137,MATCH(PQS!$AL$3,PQS!$F$3:$AW$3,0),FALSE),"") -> 5 to 43 | K73: =IFERROR(VLOOKUP($A73,PQS!$F$5:$AW$137,COLUMN(PQS!$AC$5)-3,FALSE),"") -> 0 | L73: =IFERROR(VLOOKUP($A73,PQS!$F$5:$AW$137,MATCH(PQS!$J$3,PQS!$F$3:$AW$3,0),FALSE),"") -> 87 | M73: =IFERROR(VLOOKUP($A73,PQS!$F$5:$AW$137,MATCH(PQS!$AG$3,PQS!$F$3:$AW$3,0),FALSE),"") -> 95 x 73 x 73 | N73: =IFERROR(HYPERLINK(VLOOKUP($A73,PQS!$F$5:$AW$137,MATCH(PQS!$AK$3,PQS!$F$3:$AW$3,0),FALSE),VLOOKUP($A73,PQS!$F$5:$AW$137,MATCH(PQS!$AJ$3,PQS!$F$3:$AW$3,0),FALSE)),"") -> TCW 15 SDD* TechNet Page
A74: B Medical Ultra 16 SDD* | B74: 77376.203 | C74: 10 | D74: 10 | E74: =IFERROR(VLOOKUP($A74,PQS!$F$5:$AR$137,MATCH(PQS!$AN$3, PQS!$F$3:$AR$3,0),FALSE),"") -> 5913.29 | F74: =IFERROR(VLOOKUP($A74,PQS!$F$5:$AW$137,MATCH(PQS!$AM$3,PQS!$F$3:$AW$3,0),FALSE),"") -> 24 | G74: 7737.6203 | H74: =IFERROR(VLOOKUP($A74,PQS!$F$5:$AW$137,MATCH(PQS!$K$3,PQS!$F$3:$AW$3,0),FALSE),"") -> 16 | I74: =IFERROR(VLOOKUP($A74,PQS!$F$5:$AW$137,MATCH(PQS!$L$3,PQS!$F$3:$AW$3,0),FALSE),"") -> 0 | J74: =IFERROR(VLOOKUP($A74,PQS!$F$5:$AW$137,MATCH(PQS!$AL$3,PQS!$F$3:$AW$3,0),FALSE),"") -> 5 to 43 | K74: =IFERROR(VLOOKUP($A74,PQS!$F$5:$AW$137,COLUMN(PQS!$AC$5)-3,FALSE),"") -> 0 | L74: =IFERROR(VLOOKUP($A74,PQS!$F$5:$AW$137,MATCH(PQS!$J$3,PQS!$F$3:$AW$3,0),FALSE),"") -> 200 | M74: =IFERROR(VLOOKUP($A74,PQS!$F$5:$AW$137,MATCH(PQS!$AG$3,PQS!$F$3:$AW$3,0),FALSE),"") -> 113 x 85 x 78 | N74: =IFERROR(HYPERLINK(VLOOKUP($A74,PQS!$F$5:$AW$137,MATCH(PQS!$AK$3,PQS!$F$3:$AW$3,0),FALSE),VLOOKUP($A74,PQS!$F$5:$AW$137,MATCH(PQS!$AJ$3,PQS!$F$3:$AW$3,0),FALSE)),"") -> Ultra 16 SDD* TechNet Page
A75: Vestfrost VLS 056 RF SDD* | B75: 79635.53994 | C75: 10 | D75: 10 | E75: =IFERROR(VLOOKUP($A75,PQS!$F$5:$AR$137,MATCH(PQS!$AN$3, PQS!$F$3:$AR$3,0),FALSE),"") -> 5435.3 | F75: =IFERROR(VLOOKUP($A75,PQS!$F$5:$AW$137,MATCH(PQS!$AM$3,PQS!$F$3:$AW$3,0),FALSE),"") -> 90.8 | G75: 7963.553994 | H75: =IFERROR(VLOOKUP($A75,PQS!$F$5:$AW$137,MATCH(PQS!$K$3,PQS!$F$3:$AW$3,0),FALSE),"") -> 36 | I75: =IFERROR(VLOOKUP($A75,PQS!$F$5:$AW$137,MATCH(PQS!$L$3,PQS!$F$3:$AW$3,0),FALSE),"") -> 34.3 | J75: =IFERROR(VLOOKUP($A75,PQS!$F$5:$AW$137,MATCH(PQS!$AL$3,PQS!$F$3:$AW$3,0),FALSE),"") -> 5 to 43 | K75: =IFERROR(VLOOKUP($A75,PQS!$F$5:$AW$137,COLUMN(PQS!$AC$5)-3,FALSE),"") -> 0 | L75: =IFERROR(VLOOKUP($A75,PQS!$F$5:$AW$137,MATCH(PQS!$J$3,PQS!$F$3:$AW$3,0),FALSE),"") -> 140 | M75: =IFERROR(VLOOKUP($A75,PQS!$F$5:$AW$137,MATCH(PQS!$AG$3,PQS!$F$3:$AW$3,0),FALSE),"") -> 88 x 111 x 65 | N75: =IFERROR(HYPERLINK(VLOOKUP($A75,PQS!$F$5:$AW$137,MATCH(PQS!$AK$3,PQS!$F$3:$AW$3,0),FALSE),VLOOKUP($A75,PQS!$F$5:$AW$137,MATCH(PQS!$AJ$3,PQS!$F$3:$AW$3,0),FALSE)),"") -> VLS 056 RF SDD* TechNet Page
A76: Dulas VC 200 SDD* | B76: 67159.5186 | C76: 10 | D76: 10 | E76: =IFERROR(VLOOKUP($A76,PQS!$F$5:$AR$137,MATCH(PQS!$AN$3, PQS!$F$3:$AR$3,0),FALSE),"") -> 4350.5 | F76: =IFERROR(VLOOKUP($A76,PQS!$F$5:$AW$137,MATCH(PQS!$AM$3,PQS!$F$3:$AW$3,0),FALSE),"") -> 82.45 | G76: 6715.95186 | H76: =IFERROR(VLOOKUP($A76,PQS!$F$5:$AW$137,MATCH(PQS!$K$3,PQS!$F$3:$AW$3,0),FALSE),"") -> 132 | I76: =IFERROR(VLOOKUP($A76,PQS!$F$5:$AW$137,MATCH(PQS!$L$3,PQS!$F$3:$AW$3,0),FALSE),"") -> 0 | J76: =IFERROR(VLOOKUP($A76,PQS!$F$5:$AW$137,MATCH(PQS!$AL$3,PQS!$F$3:$AW$3,0),FALSE),"") -> 5 to 43 | K76: =IFERROR(VLOOKUP($A76,PQS!$F$5:$AW$137,COLUMN(PQS!$AC$5)-3,FALSE),"") -> 0 | L76: =IFERROR(VLOOKUP($A76,PQS!$F$5:$AW$137,MATCH(PQS!$J$3,PQS!$F$3:$AW$3,0),FALSE),"") -> 129 | M76: =IFERROR(VLOOKUP($A76,PQS!$F$5:$AW$137,MATCH(PQS!$AG$3,PQS!$F$3:$AW$3,0),FALSE),"") -> 73.1 x 94.5 x 128.5 | N76: =IFERROR(HYPERLINK(VLOOKUP($A76,PQS!$F$5:$AW$137,MATCH(PQS!$AK$3,PQS!$F$3:$AW$3,0),FALSE),VLOOKUP($A76,PQS!$F$5:$AW$137,MATCH(PQS!$AJ$3,PQS!$F$3:$AW$3,0),FALSE)),"") -> VC 200 SDD* TechNet Page
A77: Dulas VC 150 SDD* | B77: 86239.1166 | C77: 10 | D77: 10 | E77: =IFERROR(VLOOKUP($A77,PQS!$F$5:$AR$137,MATCH(PQS!$AN$3, PQS!$F$3:$AR$3,0),FALSE),"") -> 6102 | F77: =IFERROR(VLOOKUP($A77,PQS!$F$5:$AW$137,MATCH(PQS!$AM$3,PQS!$F$3:$AW$3,0),FALSE),"") -> 82.45 | G77: 8623.91166 | H77: =IFERROR(VLOOKUP($A77,PQS!$F$5:$AW$137,MATCH(PQS!$K$3,PQS!$F$3:$AW$3,0),FALSE),"") -> 102 | I77: =IFERROR(VLOOKUP($A77,PQS!$F$5:$AW$137,MATCH(PQS!$L$3,PQS!$F$3:$AW$3,0),FALSE),"") -> 42.9 | J77: =IFERROR(VLOOKUP($A77,PQS!$F$5:$AW$137,MATCH(PQS!$AL$3,PQS!$F$3:$AW$3,0),FALSE),"") -> 5 to 43 | K77: =IFERROR(VLOOKUP($A77,PQS!$F$5:$AW$137,COLUMN(PQS!$AC$5)-3,FALSE),"") -> 0 | L77: =IFERROR(VLOOKUP($A77,PQS!$F$5:$AW$137,MATCH(PQS!$J$3,PQS!$F$3:$AW$3,0),FALSE),"") -> 171 | M77: =IFERROR(VLOOKUP($A77,PQS!$F$5:$AW$137,MATCH(PQS!$AG$3,PQS!$F$3:$AW$3,0),FALSE),"") -> 735 x 992 x 1283 | N77: =IFERROR(HYPERLINK(VLOOKUP($A77,PQS!$F$5:$AW$137,MATCH(PQS!$AK$3,PQS!$F$3:$AW$3,0),FALSE),VLOOKUP($A77,PQS!$F$5:$AW$137,MATCH(PQS!$AJ$3,PQS!$F$3:$AW$3,0),FALSE)),"") -> VC 150 SDD* TechNet Page
A78: Godrej GVR 50DC SDD* | B78: 58634.608 | C78: 10 | D78: 10 | E78: =IFERROR(VLOOKUP($A78,PQS!$F$5:$AR$137,MATCH(PQS!$AN$3, PQS!$F$3:$AR$3,0),FALSE),"") -> 3450 | F78: =IFERROR(VLOOKUP($A78,PQS!$F$5:$AW$137,MATCH(PQS!$AM$3,PQS!$F$3:$AW$3,0),FALSE),"") -> 90.8 | G78: 5863.4608 | H78: =IFERROR(VLOOKUP($A78,PQS!$F$5:$AW$137,MATCH(PQS!$K$3,PQS!$F$3:$AW$3,0),FALSE),"") -> 46.5 | I78: =IFERROR(VLOOKUP($A78,PQS!$F$5:$AW$137,MATCH(PQS!$L$3,PQS!$F$3:$AW$3,0),FALSE),"") -> 0 | J78: =IFERROR(VLOOKUP($A78,PQS!$F$5:$AW$137,MATCH(PQS!$AL$3,PQS!$F$3:$AW$3,0),FALSE),"") -> 10 to 43 | K78: =IFERROR(VLOOKUP($A78,PQS!$F$5:$AW$137,COLUMN(PQS!$AC$5)-3,FALSE),"") -> 0 | L78: =IFERROR(VLOOKUP($A78,PQS!$F$5:$AW$137,MATCH(PQS!$J$3,PQS!$F$3:$AW$3,0),FALSE),"") -> 240 | M78: =IFERROR(VLOOKUP($A78,PQS!$F$5:$AW$137,MATCH(PQS!$AG$3,PQS!$F$3:$AW$3,0),FALSE),"") -> 121.5 x 79.5 x 75 | N78: =IFERROR(HYPERLINK(VLOOKUP($A78,PQS!$F$5:$AW$137,MATCH(PQS!$AK$3,PQS!$F$3:$AW$3,0),FALSE),VLOOKUP($A78,PQS!$F$5:$AW$137,MATCH(PQS!$AJ$3,PQS!$F$3:$AW$3,0),FALSE)),"") -> GVR 50DC SDD* TechNet Page
A79: Godrej GVR 100DC (SureChill)* | B79: 72544.608 | C79: 10 | D79: 10 | E79: =IFERROR(VLOOKUP($A79,PQS!$F$5:$AR$137,MATCH(PQS!$AN$3, PQS!$F$3:$AR$3,0),FALSE),"") -> 4750 | F79: =IFERROR(VLOOKUP($A79,PQS!$F$5:$AW$137,MATCH(PQS!$AM$3,PQS!$F$3:$AW$3,0),FALSE),"") -> 90.8 | G79: 7254.4608 | H79: =IFERROR(VLOOKUP($A79,PQS!$F$5:$AW$137,MATCH(PQS!$K$3,PQS!$F$3:$AW$3,0),FALSE),"") -> 99 | I79: =IFERROR(VLOOKUP($A79,PQS!$F$5:$AW$137,MATCH(PQS!$L$3,PQS!$F$3:$AW$3,0),FALSE),"") -> 0 | J79: =IFERROR(VLOOKUP($A79,PQS!$F$5:$AW$137,MATCH(PQS!$AL$3,PQS!$F$3:$AW$3,0),FALSE),"") -> 10 to 43 | K79: =IFERROR(VLOOKUP($A79,PQS!$F$5:$AW$137,COLUMN(PQS!$AC$5)-3,FALSE),"") -> 0 | L79: =IFERROR(VLOOKUP($A79,PQS!$F$5:$AW$137,MATCH(PQS!$J$3,PQS!$F$3:$AW$3,0),FALSE),"") -> 275 | M79: =IFERROR(VLOOKUP($A79,PQS!$F$5:$AW$137,MATCH(PQS!$AG$3,PQS!$F$3:$AW$3,0),FALSE),"") -> 182 x 79.5 x 75 | N79: =IFERROR(HYPERLINK(VLOOKUP($A79,PQS!$F$5:$AW$137,MATCH(PQS!$AK$3,PQS!$F$3:$AW$3,0),FALSE),VLOOKUP($A79,PQS!$F$5:$AW$137,MATCH(PQS!$AJ$3,PQS!$F$3:$AW$3,0),FALSE)),"") -> GVR 100DC (SureChill)* TechNet Page
A80: Dulas VC 110 SDD* | B80: 64741.3186 | C80: 10 | D80: 10 | E80: =IFERROR(VLOOKUP($A80,PQS!$F$5:$AR$137,MATCH(PQS!$AN$3, PQS!$F$3:$AR$3,0),FALSE),"") -> 4124.5 | F80: =IFERROR(VLOOKUP($A80,PQS!$F$5:$AW$137,MATCH(PQS!$AM$3,PQS!$F$3:$AW$3,0),FALSE),"") -> 82.45 | G80: 6474.13186 | H80: =IFERROR(VLOOKUP($A80,PQS!$F$5:$AW$137,MATCH(PQS!$K$3,PQS!$F$3:$AW$3,0),FALSE),"") -> 110 | I80: =IFERROR(VLOOKUP($A80,PQS!$F$5:$AW$137,MATCH(PQS!$L$3,PQS!$F$3:$AW$3,0),FALSE),"") -> 0 | J80: =IFERROR(VLOOKUP($A80,PQS!$F$5:$AW$137,MATCH(PQS!$AL$3,PQS!$F$3:$AW$3,0),FALSE),"") -> 5 to 43 | K80: =IFERROR(VLOOKUP($A80,PQS!$F$5:$AW$137,COLUMN(PQS!$AC$5)-3,FALSE),"") -> 0 | L80: =IFERROR(VLOOKUP($A80,PQS!$F$5:$AW$137,MATCH(PQS!$J$3,PQS!$F$3:$AW$3,0),FALSE),"") -> 129 | M80: =IFERROR(VLOOKUP($A80,PQS!$F$5:$AW$137,MATCH(PQS!$AG$3,PQS!$F$3:$AW$3,0),FALSE),"") -> 74 x 95.9 x 128.2 | N80: =IFERROR(HYPERLINK(VLOOKUP($A80,PQS!$F$5:$AW$137,MATCH(PQS!$AK$3,PQS!$F$3:$AW$3,0),FALSE),VLOOKUP($A80,PQS!$F$5:$AW$137,MATCH(PQS!$AJ$3,PQS!$F$3:$AW$3,0),FALSE)),"") -> VC 110 SDD* TechNet Page
A81: Dulas VC 88 SDD* | B81: 64741.3186 | C81: 10 | D81: 10 | E81: =IFERROR(VLOOKUP($A81,PQS!$F$5:$AR$137,MATCH(PQS!$AN$3, PQS!$F$3:$AR$3,0),FALSE),"") -> 4124.5 | F81: =IFERROR(VLOOKUP($A81,PQS!$F$5:$AW$137,MATCH(PQS!$AM$3,PQS!$F$3:$AW$3,0),FALSE),"") -> 82.45 | G81: 6474.13186 | H81: =IFERROR(VLOOKUP($A81,PQS!$F$5:$AW$137,MATCH(PQS!$K$3,PQS!$F$3:$AW$3,0),FALSE),"") -> 88 | I81: =IFERROR(VLOOKUP($A81,PQS!$F$5:$AW$137,MATCH(PQS!$L$3,PQS!$F$3:$AW$3,0),FALSE),"") -> 0 | J81: =IFERROR(VLOOKUP($A81,PQS!$F$5:$AW$137,MATCH(PQS!$AL$3,PQS!$F$3:$AW$3,0),FALSE),"") -> 5 to 43 | K81: =IFERROR(VLOOKUP($A81,PQS!$F$5:$AW$137,COLUMN(PQS!$AC$5)-3,FALSE),"") -> 0 | L81: =IFERROR(VLOOKUP($A81,PQS!$F$5:$AW$137,MATCH(PQS!$J$3,PQS!$F$3:$AW$3,0),FALSE),"") -> 129 | M81: =IFERROR(VLOOKUP($A81,PQS!$F$5:$AW$137,MATCH(PQS!$AG$3,PQS!$F$3:$AW$3,0),FALSE),"") -> 74 x 95.9 x 128.2 | N81: =IFERROR(HYPERLINK(VLOOKUP($A81,PQS!$F$5:$AW$137,MATCH(PQS!$AK$3,PQS!$F$3:$AW$3,0),FALSE),VLOOKUP($A81,PQS!$F$5:$AW$137,MATCH(PQS!$AJ$3,PQS!$F$3:$AW$3,0),FALSE)),"") -> VC 88 SDD* TechNet Page
A82: Dulas VC 50 SDD* | B82: 53280.2597 | C82: 10 | D82: 10 | E82: =IFERROR(VLOOKUP($A82,PQS!$F$5:$AR$137,MATCH(PQS!$AN$3, PQS!$F$3:$AR$3,0),FALSE),"") -> 3051 | F82: =IFERROR(VLOOKUP($A82,PQS!$F$5:$AW$137,MATCH(PQS!$AM$3,PQS!$F$3:$AW$3,0),FALSE),"") -> 82.45 | G82: 5328.02597 | H82: =IFERROR(VLOOKUP($A82,PQS!$F$5:$AW$137,MATCH(PQS!$K$3,PQS!$F$3:$AW$3,0),FALSE),"") -> 52.5 | I82: =IFERROR(VLOOKUP($A82,PQS!$F$5:$AW$137,MATCH(PQS!$L$3,PQS!$F$3:$AW$3,0),FALSE),"") -> 0 | J82: =IFERROR(VLOOKUP($A82,PQS!$F$5:$AW$137,MATCH(PQS!$AL$3,PQS!$F$3:$AW$3,0),FALSE),"") -> 5 to 43 | K82: =IFERROR(VLOOKUP($A82,PQS!$F$5:$AW$137,COLUMN(PQS!$AC$5)-3,FALSE),"") -> 0 | L82: =IFERROR(VLOOKUP($A82,PQS!$F$5:$AW$137,MATCH(PQS!$J$3,PQS!$F$3:$AW$3,0),FALSE),"") -> 129 | M82: =IFERROR(VLOOKUP($A82,PQS!$F$5:$AW$137,MATCH(PQS!$AG$3,PQS!$F$3:$AW$3,0),FALSE),"") -> 96 x 100 x 74 | N82: =IFERROR(HYPERLINK(VLOOKUP($A82,PQS!$F$5:$AW$137,MATCH(PQS!$AK$3,PQS!$F$3:$AW$3,0),FALSE),VLOOKUP($A82,PQS!$F$5:$AW$137,MATCH(PQS!$AJ$3,PQS!$F$3:$AW$3,0),FALSE)),"") -> VC 50 SDD* TechNet Page
A83: Dulas VC 60 SDD* | B83: 75961.7666 | C83: 10 | D83: 10 | E83: =IFERROR(VLOOKUP($A83,PQS!$F$5:$AR$137,MATCH(PQS!$AN$3, PQS!$F$3:$AR$3,0),FALSE),"") -> 5141.5 | F83: =IFERROR(VLOOKUP($A83,PQS!$F$5:$AW$137,MATCH(PQS!$AM$3,PQS!$F$3:$AW$3,0),FALSE),"") -> 82.45 | G83: 7596.17666 | H83: =IFERROR(VLOOKUP($A83,PQS!$F$5:$AW$137,MATCH(PQS!$K$3,PQS!$F$3:$AW$3,0),FALSE),"") -> 57 | I83: =IFERROR(VLOOKUP($A83,PQS!$F$5:$AW$137,MATCH(PQS!$L$3,PQS!$F$3:$AW$3,0),FALSE),"") -> 24 | J83: =IFERROR(VLOOKUP($A83,PQS!$F$5:$AW$137,MATCH(PQS!$AL$3,PQS!$F$3:$AW$3,0),FALSE),"") -> 5 to 43 | K83: =IFERROR(VLOOKUP($A83,PQS!$F$5:$AW$137,COLUMN(PQS!$AC$5)-3,FALSE),"") -> 0 | L83: =IFERROR(VLOOKUP($A83,PQS!$F$5:$AW$137,MATCH(PQS!$J$3,PQS!$F$3:$AW$3,0),FALSE),"") -> 170 | M83: =IFERROR(VLOOKUP($A83,PQS!$F$5:$AW$137,MATCH(PQS!$AG$3,PQS!$F$3:$AW$3,0),FALSE),"") -> 95.9 x 128.2 x 74 | N83: =IFERROR(HYPERLINK(VLOOKUP($A83,PQS!$F$5:$AW$137,MATCH(PQS!$AK$3,PQS!$F$3:$AW$3,0),FALSE),VLOOKUP($A83,PQS!$F$5:$AW$137,MATCH(PQS!$AJ$3,PQS!$F$3:$AW$3,0),FALSE)),"") -> VC 60 SDD* TechNet Page
A84: Dulas VC 30 SDD* | B84: 50257.5097 | C84: 10 | D84: 10 | E84: =IFERROR(VLOOKUP($A84,PQS!$F$5:$AR$137,MATCH(PQS!$AN$3, PQS!$F$3:$AR$3,0),FALSE),"") -> 2768.5 | F84: =IFERROR(VLOOKUP($A84,PQS!$F$5:$AW$137,MATCH(PQS!$AM$3,PQS!$F$3:$AW$3,0),FALSE),"") -> 82.45 | G84: 5025.75097 | H84: =IFERROR(VLOOKUP($A84,PQS!$F$5:$AW$137,MATCH(PQS!$K$3,PQS!$F$3:$AW$3,0),FALSE),"") -> 25.5 | I84: =IFERROR(VLOOKUP($A84,PQS!$F$5:$AW$137,MATCH(PQS!$L$3,PQS!$F$3:$AW$3,0),FALSE),"") -> 0 | J84: =IFERROR(VLOOKUP($A84,PQS!$F$5:$AW$137,MATCH(PQS!$AL$3,PQS!$F$3:$AW$3,0),FALSE),"") -> 5 to 43 | K84: =IFERROR(VLOOKUP($A84,PQS!$F$5:$AW$137,COLUMN(PQS!$AC$5)-3,FALSE),"") -> 0 | L84: =IFERROR(VLOOKUP($A84,PQS!$F$5:$AW$137,MATCH(PQS!$J$3,PQS!$F$3:$AW$3,0),FALSE),"") -> 129 | M84: =IFERROR(VLOOKUP($A84,PQS!$F$5:$AW$137,MATCH(PQS!$AG$3,PQS!$F$3:$AW$3,0),FALSE),"") -> 98.7 x 89.0 x 75.5 | N84: =IFERROR(HYPERLINK(VLOOKUP($A84,PQS!$F$5:$AW$137,MATCH(PQS!$AK$3,PQS!$F$3:$AW$3,0),FALSE),VLOOKUP($A84,PQS!$F$5:$AW$137,MATCH(PQS!$AJ$3,PQS!$F$3:$AW$3,0),FALSE)),"") -> VC 30 SDD* TechNet Page
A85: Vestfrost VLS 026 RF SDD* | B85: 76189.60494 | C85: 10 | D85: 10 | E85: =IFERROR(VLOOKUP($A85,PQS!$F$5:$AR$137,MATCH(PQS!$AN$3, PQS!$F$3:$AR$3,0),FALSE),"") -> 5113.25 | F85: =IFERROR(VLOOKUP($A85,PQS!$F$5:$AW$137,MATCH(PQS!$AM$3,PQS!$F$3:$AW$3,0),FALSE),"") -> 90.8 | G85: 7618.960494 | H85: =IFERROR(VLOOKUP($A85,PQS!$F$5:$AW$137,MATCH(PQS!$K$3,PQS!$F$3:$AW$3,0),FALSE),"") -> 20 | I85: =IFERROR(VLOOKUP($A85,PQS!$F$5:$AW$137,MATCH(PQS!$L$3,PQS!$F$3:$AW$3,0),FALSE),"") -> 34.3 | J85: =IFERROR(VLOOKUP($A85,PQS!$F$5:$AW$137,MATCH(PQS!$AL$3,PQS!$F$3:$AW$3,0),FALSE),"") -> 5 to 43 | K85: =IFERROR(VLOOKUP($A85,PQS!$F$5:$AW$137,COLUMN(PQS!$AC$5)-3,FALSE),"") -> 0 | L85: =IFERROR(VLOOKUP($A85,PQS!$F$5:$AW$137,MATCH(PQS!$J$3,PQS!$F$3:$AW$3,0),FALSE),"") -> 141 | M85: =IFERROR(VLOOKUP($A85,PQS!$F$5:$AW$137,MATCH(PQS!$AG$3,PQS!$F$3:$AW$3,0),FALSE),"") -> 88 x 111 x 65 | N85: =IFERROR(HYPERLINK(VLOOKUP($A85,PQS!$F$5:$AW$137,MATCH(PQS!$AK$3,PQS!$F$3:$AW$3,0),FALSE),VLOOKUP($A85,PQS!$F$5:$AW$137,MATCH(PQS!$AJ$3,PQS!$F$3:$AW$3,0),FALSE)),"") -> VLS 026 RF SDD* TechNet Page
A86: B Medical TCW 4000 SDD* | B86: 96830.622 | C86: 10 | D86: 10 | E86: =IFERROR(VLOOKUP($A86,PQS!$F$5:$AR$137,MATCH(PQS!$AN$3, PQS!$F$3:$AR$3,0),FALSE),"") -> 7731.46 | F86: =IFERROR(VLOOKUP($A86,PQS!$F$5:$AW$137,MATCH(PQS!$AM$3,PQS!$F$3:$AW$3,0),FALSE),"") -> 24 | G86: 9683.0622 | H86: =IFERROR(VLOOKUP($A86,PQS!$F$5:$AW$137,MATCH(PQS!$K$3,PQS!$F$3:$AW$3,0),FALSE),"") -> 220 | I86: =IFERROR(VLOOKUP($A86,PQS!$F$5:$AW$137,MATCH(PQS!$L$3,PQS!$F$3:$AW$3,0),FALSE),"") -> 0 | J86: =IFERROR(VLOOKUP($A86,PQS!$F$5:$AW$137,MATCH(PQS!$AL$3,PQS!$F$3:$AW$3,0),FALSE),"") -> 5 to 43 | K86: =IFERROR(VLOOKUP($A86,PQS!$F$5:$AW$137,COLUMN(PQS!$AC$5)-3,FALSE),"") -> 0 | L86: =IFERROR(VLOOKUP($A86,PQS!$F$5:$AW$137,MATCH(PQS!$J$3,PQS!$F$3:$AW$3,0),FALSE),"") -> 192 | M86: =IFERROR(VLOOKUP($A86,PQS!$F$5:$AW$137,MATCH(PQS!$AG$3,PQS!$F$3:$AW$3,0),FALSE),"") -> 91.5 x 162.5 x 78 | N86: =IFERROR(HYPERLINK(VLOOKUP($A86,PQS!$F$5:$AW$137,MATCH(PQS!$AK$3,PQS!$F$3:$AW$3,0),FALSE),VLOOKUP($A86,PQS!$F$5:$AW$137,MATCH(PQS!$AJ$3,PQS!$F$3:$AW$3,0),FALSE)),"") -> TCW 4000 SDD* TechNet Page
A87: Godrej GVR 55 FF DC* | B87: 80736.528 | C87: 10 | D87: 10 | E87: =IFERROR(VLOOKUP($A87,PQS!$F$5:$AR$137,MATCH(PQS!$AN$3, PQS!$F$3:$AR$3,0),FALSE),"") -> 5500 | F87: =IFERROR(VLOOKUP($A87,PQS!$F$5:$AW$137,MATCH(PQS!$AM$3,PQS!$F$3:$AW$3,0),FALSE),"") -> 90.8 | G87: 8073.6528 | H87: =IFERROR(VLOOKUP($A87,PQS!$F$5:$AW$137,MATCH(PQS!$K$3,PQS!$F$3:$AW$3,0),FALSE),"") -> 58 | I87: =IFERROR(VLOOKUP($A87,PQS!$F$5:$AW$137,MATCH(PQS!$L$3,PQS!$F$3:$AW$3,0),FALSE),"") -> 44 | J87: =IFERROR(VLOOKUP($A87,PQS!$F$5:$AW$137,MATCH(PQS!$AL$3,PQS!$F$3:$AW$3,0),FALSE),"") -> 10 to 43 | K87: =IFERROR(VLOOKUP($A87,PQS!$F$5:$AW$137,COLUMN(PQS!$AC$5)-3,FALSE),"") -> 0 | L87: =IFERROR(VLOOKUP($A87,PQS!$F$5:$AW$137,MATCH(PQS!$J$3,PQS!$F$3:$AW$3,0),FALSE),"") -> 380 | M87: =IFERROR(VLOOKUP($A87,PQS!$F$5:$AW$137,MATCH(PQS!$AG$3,PQS!$F$3:$AW$3,0),FALSE),"") -> 183 x 79.5 x 75 | N87: =IFERROR(HYPERLINK(VLOOKUP($A87,PQS!$F$5:$AW$137,MATCH(PQS!$AK$3,PQS!$F$3:$AW$3,0),FALSE),VLOOKUP($A87,PQS!$F$5:$AW$137,MATCH(PQS!$AJ$3,PQS!$F$3:$AW$3,0),FALSE)),"") -> GVR 55 FF DC* TechNet Page
A88: Aucma CFD-50 SDD* | B88: 49249.424 | C88: 10 | D88: 10 | E88: =IFERROR(VLOOKUP($A88,PQS!$F$5:$AR$137,MATCH(PQS!$AN$3, PQS!$F$3:$AR$3,0),FALSE),"") -> 2600 | F88: =IFERROR(VLOOKUP($A88,PQS!$F$5:$AW$137,MATCH(PQS!$AM$3,PQS!$F$3:$AW$3,0),FALSE),"") -> 90.8 | G88: 4924.9424 | H88: =IFERROR(VLOOKUP($A88,PQS!$F$5:$AW$137,MATCH(PQS!$K$3,PQS!$F$3:$AW$3,0),FALSE),"") -> 50 | I88: =IFERROR(VLOOKUP($A88,PQS!$F$5:$AW$137,MATCH(PQS!$L$3,PQS!$F$3:$AW$3,0),FALSE),"") -> 0 | J88: =IFERROR(VLOOKUP($A88,PQS!$F$5:$AW$137,MATCH(PQS!$AL$3,PQS!$F$3:$AW$3,0),FALSE),"") -> 43 | K88: =IFERROR(VLOOKUP($A88,PQS!$F$5:$AW$137,COLUMN(PQS!$AC$5)-3,FALSE),"") -> 0 | L88: =IFERROR(VLOOKUP($A88,PQS!$F$5:$AW$137,MATCH(PQS!$J$3,PQS!$F$3:$AW$3,0),FALSE),"") -> 95 | M88: =IFERROR(VLOOKUP($A88,PQS!$F$5:$AW$137,MATCH(PQS!$AG$3,PQS!$F$3:$AW$3,0),FALSE),"") -> 158.8 x 54.5 x 65.5 | N88: =IFERROR(HYPERLINK(VLOOKUP($A88,PQS!$F$5:$AW$137,MATCH(PQS!$AK$3,PQS!$F$3:$AW$3,0),FALSE),VLOOKUP($A88,PQS!$F$5:$AW$137,MATCH(PQS!$AJ$3,PQS!$F$3:$AW$3,0),FALSE)),"") -> CFD-50 SDD* TechNet Page
A89: Haier HTC-112* | B89: 49092.376 | C89: 10 | D89: 10 | E89: =IFERROR(VLOOKUP($A89,PQS!$F$5:$AR$137,MATCH(PQS!$AN$3, PQS!$F$3:$AR$3,0),FALSE),"") -> 2680 | F89: =IFERROR(VLOOKUP($A89,PQS!$F$5:$AW$137,MATCH(PQS!$AM$3,PQS!$F$3:$AW$3,0),FALSE),"") -> 82.45 | G89: 4909.2376 | H89: =IFERROR(VLOOKUP($A89,PQS!$F$5:$AW$137,MATCH(PQS!$K$3,PQS!$F$3:$AW$3,0),FALSE),"") -> 75 | I89: =IFERROR(VLOOKUP($A89,PQS!$F$5:$AW$137,MATCH(PQS!$L$3,PQS!$F$3:$AW$3,0),FALSE),"") -> 0 | J89: =IFERROR(VLOOKUP($A89,PQS!$F$5:$AW$137,MATCH(PQS!$AL$3,PQS!$F$3:$AW$3,0),FALSE),"") -> 5 to 43 | K89: =IFERROR(VLOOKUP($A89,PQS!$F$5:$AW$137,COLUMN(PQS!$AC$5)-3,FALSE),"") -> 0 | L89: =IFERROR(VLOOKUP($A89,PQS!$F$5:$AW$137,MATCH(PQS!$J$3,PQS!$F$3:$AW$3,0),FALSE),"") -> 0 | M89: =IFERROR(VLOOKUP($A89,PQS!$F$5:$AW$137,MATCH(PQS!$AG$3,PQS!$F$3:$AW$3,0),FALSE),"") -> 112.8 x 65.4 x 87.5 | N89: =IFERROR(HYPERLINK(VLOOKUP($A89,PQS!$F$5:$AW$137,MATCH(PQS!$AK$3,PQS!$F$3:$AW$3,0),FALSE),VLOOKUP($A89,PQS!$F$5:$AW$137,MATCH(PQS!$AJ$3,PQS!$F$3:$AW$3,0),FALSE)),"") -> HTC-112* TechNet Page
A90: Godrej GVR 25 Lite DC* | B90: 46276.108 | C90: 10 | D90: 10 | E90: =IFERROR(VLOOKUP($A90,PQS!$F$5:$AR$137,MATCH(PQS!$AN$3, PQS!$F$3:$AR$3,0),FALSE),"") -> 2295 | F90: =IFERROR(VLOOKUP($A90,PQS!$F$5:$AW$137,MATCH(PQS!$AM$3,PQS!$F$3:$AW$3,0),FALSE),"") -> 90.8 | G90: 4627.6108 | H90: =IFERROR(VLOOKUP($A90,PQS!$F$5:$AW$137,MATCH(PQS!$K$3,PQS!$F$3:$AW$3,0),FALSE),"") -> 27.5 | I90: =IFERROR(VLOOKUP($A90,PQS!$F$5:$AW$137,MATCH(PQS!$L$3,PQS!$F$3:$AW$3,0),FALSE),"") -> 0 | J90: =IFERROR(VLOOKUP($A90,PQS!$F$5:$AW$137,MATCH(PQS!$AL$3,PQS!$F$3:$AW$3,0),FALSE),"") -> 10 to 43 | K90: =IFERROR(VLOOKUP($A90,PQS!$F$5:$AW$137,COLUMN(PQS!$AC$5)-3,FALSE),"") -> 0 | L90: =IFERROR(VLOOKUP($A90,PQS!$F$5:$AW$137,MATCH(PQS!$J$3,PQS!$F$3:$AW$3,0),FALSE),"") -> 190 | M90: =IFERROR(VLOOKUP($A90,PQS!$F$5:$AW$137,MATCH(PQS!$AG$3,PQS!$F$3:$AW$3,0),FALSE),"") -> 77.4 x 61.8 x 109.7 | N90: =IFERROR(HYPERLINK(VLOOKUP($A90,PQS!$F$5:$AW$137,MATCH(PQS!$AK$3,PQS!$F$3:$AW$3,0),FALSE),VLOOKUP($A90,PQS!$F$5:$AW$137,MATCH(PQS!$AJ$3,PQS!$F$3:$AW$3,0),FALSE)),"") -> GVR 25 Lite DC* TechNet Page
A91: Vestfrost VLS 054A SDD Green line* | B91: 57174.23434 | C91: 10 | D91: 10 | E91: =IFERROR(VLOOKUP($A91,PQS!$F$5:$AR$137,MATCH(PQS!$AN$3, PQS!$F$3:$AR$3,0),FALSE),"") -> 3343.67 | F91: =IFERROR(VLOOKUP($A91,PQS!$F$5:$AW$137,MATCH(PQS!$AM$3,PQS!$F$3:$AW$3,0),FALSE),"") -> 90.8 | G91: 5717.423434 | H91: =IFERROR(VLOOKUP($A91,PQS!$F$5:$AW$137,MATCH(PQS!$K$3,PQS!$F$3:$AW$3,0),FALSE),"") -> 55.5 | I91: =IFERROR(VLOOKUP($A91,PQS!$F$5:$AW$137,MATCH(PQS!$L$3,PQS!$F$3:$AW$3,0),FALSE),"") -> 0 | J91: =IFERROR(VLOOKUP($A91,PQS!$F$5:$AW$137,MATCH(PQS!$AL$3,PQS!$F$3:$AW$3,0),FALSE),"") -> 5 to 43 | K91: =IFERROR(VLOOKUP($A91,PQS!$F$5:$AW$137,COLUMN(PQS!$AC$5)-3,FALSE),"") -> 0 | L91: =IFERROR(VLOOKUP($A91,PQS!$F$5:$AW$137,MATCH(PQS!$J$3,PQS!$F$3:$AW$3,0),FALSE),"") -> 85 | M91: =IFERROR(VLOOKUP($A91,PQS!$F$5:$AW$137,MATCH(PQS!$AG$3,PQS!$F$3:$AW$3,0),FALSE),"") -> 85 x 72 x 60 | N91: =IFERROR(HYPERLINK(VLOOKUP($A91,PQS!$F$5:$AW$137,MATCH(PQS!$AK$3,PQS!$F$3:$AW$3,0),FALSE),VLOOKUP($A91,PQS!$F$5:$AW$137,MATCH(PQS!$AJ$3,PQS!$F$3:$AW$3,0),FALSE)),"") -> VLS 054A SDD Green line* TechNet Page
A92: Vestfrost VLS 094A SDD Greenline* | B92: 61285.17434 | C92: 10 | D92: 10 | E92: =IFERROR(VLOOKUP($A92,PQS!$F$5:$AR$137,MATCH(PQS!$AN$3, PQS!$F$3:$AR$3,0),FALSE),"") -> 3727.87 | F92: =IFERROR(VLOOKUP($A92,PQS!$F$5:$AW$137,MATCH(PQS!$AM$3,PQS!$F$3:$AW$3,0),FALSE),"") -> 90.8 | G92: =IF(E92="","",(B92/C92)) -> 6128.517434 | H92: =IFERROR(VLOOKUP($A92,PQS!$F$5:$AW$137,MATCH(PQS!$K$3,PQS!$F$3:$AW$3,0),FALSE),"") -> 92 | I92: =IFERROR(VLOOKUP($A92,PQS!$F$5:$AW$137,MATCH(PQS!$L$3,PQS!$F$3:$AW$3,0),FALSE),"") -> 0 | J92: =IFERROR(VLOOKUP($A92,PQS!$F$5:$AW$137,MATCH(PQS!$AL$3,PQS!$F$3:$AW$3,0),FALSE),"") -> 5 to 43 | K92: =IFERROR(VLOOKUP($A92,PQS!$F$5:$AW$137,COLUMN(PQS!$AC$5)-3,FALSE),"") -> 0 | L92: =IFERROR(VLOOKUP($A92,PQS!$F$5:$AW$137,MATCH(PQS!$J$3,PQS!$F$3:$AW$3,0),FALSE),"") -> 108 | M92: =IFERROR(VLOOKUP($A92,PQS!$F$5:$AW$137,MATCH(PQS!$AG$3,PQS!$F$3:$AW$3,0),FALSE),"") -> 86 x 93 x 70 | N92: =IFERROR(HYPERLINK(VLOOKUP($A92,PQS!$F$5:$AW$137,MATCH(PQS!$AK$3,PQS!$F$3:$AW$3,0),FALSE),VLOOKUP($A92,PQS!$F$5:$AW$137,MATCH(PQS!$AJ$3,PQS!$F$3:$AW$3,0),FALSE)),"") -> VLS 094A SDD Greenline* TechNet Page
A93: Vestfrost VLS 154A SDD Greenline* | B93: 71429.52334 | C93: 10 | D93: 10 | E93: =IFERROR(VLOOKUP($A93,PQS!$F$5:$AR$137,MATCH(PQS!$AN$3, PQS!$F$3:$AR$3,0),FALSE),"") -> 4675.94 | F93: =IFERROR(VLOOKUP($A93,PQS!$F$5:$AW$137,MATCH(PQS!$AM$3,PQS!$F$3:$AW$3,0),FALSE),"") -> 90.8 | G93: 7142.952334 | H93: =IFERROR(VLOOKUP($A93,PQS!$F$5:$AW$137,MATCH(PQS!$K$3,PQS!$F$3:$AW$3,0),FALSE),"") -> 170 | I93: =IFERROR(VLOOKUP($A93,PQS!$F$5:$AW$137,MATCH(PQS!$L$3,PQS!$F$3:$AW$3,0),FALSE),"") -> 0 | J93: =IFERROR(VLOOKUP($A93,PQS!$F$5:$AW$137,MATCH(PQS!$AL$3,PQS!$F$3:$AW$3,0),FALSE),"") -> 5 to 43 | K93: =IFERROR(VLOOKUP($A93,PQS!$F$5:$AW$137,COLUMN(PQS!$AC$5)-3,FALSE),"") -> 0 | L93: =IFERROR(VLOOKUP($A93,PQS!$F$5:$AW$137,MATCH(PQS!$J$3,PQS!$F$3:$AW$3,0),FALSE),"") -> 108 | M93: =IFERROR(VLOOKUP($A93,PQS!$F$5:$AW$137,MATCH(PQS!$AG$3,PQS!$F$3:$AW$3,0),FALSE),"") -> 86 x 127 x 70 | N93: =IFERROR(HYPERLINK(VLOOKUP($A93,PQS!$F$5:$AW$137,MATCH(PQS!$AK$3,PQS!$F$3:$AW$3,0),FALSE),VLOOKUP($A93,PQS!$F$5:$AW$137,MATCH(PQS!$AJ$3,PQS!$F$3:$AW$3,0),FALSE)),"") -> VLS 154A SDD Greenline* TechNet Page
A94: Haier HTC-120* | B94: 59297.18 | C94: 10 | D94: 10 | E94: =IFERROR(VLOOKUP($A94,PQS!$F$5:$AR$137,MATCH(PQS!$AN$3, PQS!$F$3:$AR$3,0),FALSE),"") -> 3620 | F94: =IFERROR(VLOOKUP($A94,PQS!$F$5:$AW$137,MATCH(PQS!$AM$3,PQS!$F$3:$AW$3,0),FALSE),"") -> 82.45 | G94: 5929.718 | H94: =IFERROR(VLOOKUP($A94,PQS!$F$5:$AW$137,MATCH(PQS!$K$3,PQS!$F$3:$AW$3,0),FALSE),"") -> 100 | I94: =IFERROR(VLOOKUP($A94,PQS!$F$5:$AW$137,MATCH(PQS!$L$3,PQS!$F$3:$AW$3,0),FALSE),"") -> 0 | J94: =IFERROR(VLOOKUP($A94,PQS!$F$5:$AW$137,MATCH(PQS!$AL$3,PQS!$F$3:$AW$3,0),FALSE),"") -> 5 to 43 | K94: =IFERROR(VLOOKUP($A94,PQS!$F$5:$AW$137,COLUMN(PQS!$AC$5)-3,FALSE),"") -> 0 | L94: =IFERROR(VLOOKUP($A94,PQS!$F$5:$AW$137,MATCH(PQS!$J$3,PQS!$F$3:$AW$3,0),FALSE),"") -> 160 | M94: =IFERROR(VLOOKUP($A94,PQS!$F$5:$AW$137,MATCH(PQS!$AG$3,PQS!$F$3:$AW$3,0),FALSE),"") -> 86.5 x 82.5 x 142.5 | N94: =IFERROR(HYPERLINK(VLOOKUP($A94,PQS!$F$5:$AW$137,MATCH(PQS!$AK$3,PQS!$F$3:$AW$3,0),FALSE),VLOOKUP($A94,PQS!$F$5:$AW$137,MATCH(PQS!$AJ$3,PQS!$F$3:$AW$3,0),FALSE)),"") -> N/A
A95: Haier HTC-240* | B95: 64968.18 | C95: 10 | D95: 10 | E95: =IFERROR(VLOOKUP($A95,PQS!$F$5:$AR$137,MATCH(PQS!$AN$3, PQS!$F$3:$AR$3,0),FALSE),"") -> 4150 | F95: =IFERROR(VLOOKUP($A95,PQS!$F$5:$AW$137,MATCH(PQS!$AM$3,PQS!$F$3:$AW$3,0),FALSE),"") -> 82.45 | G95: 6496.818 | H95: =IFERROR(VLOOKUP($A95,PQS!$F$5:$AW$137,MATCH(PQS!$K$3,PQS!$F$3:$AW$3,0),FALSE),"") -> 200 | I95: =IFERROR(VLOOKUP($A95,PQS!$F$5:$AW$137,MATCH(PQS!$L$3,PQS!$F$3:$AW$3,0),FALSE),"") -> 0 | J95: =IFERROR(VLOOKUP($A95,PQS!$F$5:$AW$137,MATCH(PQS!$AL$3,PQS!$F$3:$AW$3,0),FALSE),"") -> 5 to 43 | K95: =IFERROR(VLOOKUP($A95,PQS!$F$5:$AW$137,COLUMN(PQS!$AC$5)-3,FALSE),"") -> 0 | L95: =IFERROR(VLOOKUP($A95,PQS!$F$5:$AW$137,MATCH(PQS!$J$3,PQS!$F$3:$AW$3,0),FALSE),"") -> 185 | M95: =IFERROR(VLOOKUP($A95,PQS!$F$5:$AW$137,MATCH(PQS!$AG$3,PQS!$F$3:$AW$3,0),FALSE),"") -> 86.5 x 82.5 x 181.5 | N95: =IFERROR(HYPERLINK(VLOOKUP($A95,PQS!$F$5:$AW$137,MATCH(PQS!$AK$3,PQS!$F$3:$AW$3,0),FALSE),VLOOKUP($A95,PQS!$F$5:$AW$137,MATCH(PQS!$AJ$3,PQS!$F$3:$AW$3,0),FALSE)),"") -> N/A
A96: Congélateur | B96: 50922.68991 | C96: 10 | D96: 10 | E96: =IFERROR(VLOOKUP($A96,PQS!$F$5:$AR$137,MATCH(PQS!$AN$3, PQS!$F$3:$AR$3,0),FALSE),"") ->  | F96: =IFERROR(VLOOKUP($A96,PQS!$F$5:$AW$137,MATCH(PQS!$AM$3,PQS!$F$3:$AW$3,0),FALSE),"") ->  | H96: =IFERROR(VLOOKUP($A96,PQS!$F$5:$AW$137,MATCH(PQS!$K$3,PQS!$F$3:$AW$3,0),FALSE),"") ->  | I96: =IFERROR(VLOOKUP($A96,PQS!$F$5:$AW$137,MATCH(PQS!$L$3,PQS!$F$3:$AW$3,0),FALSE),"") ->  | J96: =IFERROR(VLOOKUP($A96,PQS!$F$5:$AW$137,MATCH(PQS!$AL$3,PQS!$F$3:$AW$3,0),FALSE),"") ->  | K96: =IFERROR(VLOOKUP($A96,PQS!$F$5:$AW$137,COLUMN(PQS!$AC$5)-3,FALSE),"") ->  | L96: =IFERROR(VLOOKUP($A96,PQS!$F$5:$AW$137,MATCH(PQS!$J$3,PQS!$F$3:$AW$3,0),FALSE),"") ->  | M96: =IFERROR(VLOOKUP($A96,PQS!$F$5:$AW$137,MATCH(PQS!$AG$3,PQS!$F$3:$AW$3,0),FALSE),"") ->  | N96: =IFERROR(HYPERLINK(VLOOKUP($A96,PQS!$F$5:$AW$137,MATCH(PQS!$AK$3,PQS!$F$3:$AW$3,0),FALSE),VLOOKUP($A96,PQS!$F$5:$AW$137,MATCH(PQS!$AJ$3,PQS!$F$3:$AW$3,0),FALSE)),"") -> 
A97: Coffre isotherme à longue durée | B97: 198810.6 | C97: 60 | D97: 8 | E97: =IFERROR(VLOOKUP($A97,PQS!$F$5:$AR$137,MATCH(PQS!$AN$3, PQS!$F$3:$AR$3,0),FALSE),"") ->  | F97: =IFERROR(VLOOKUP($A97,PQS!$F$5:$AW$137,MATCH(PQS!$AM$3,PQS!$F$3:$AW$3,0),FALSE),"") ->  | H97: =IFERROR(VLOOKUP($A97,PQS!$F$5:$AW$137,MATCH(PQS!$K$3,PQS!$F$3:$AW$3,0),FALSE),"") ->  | I97: =IFERROR(VLOOKUP($A97,PQS!$F$5:$AW$137,MATCH(PQS!$L$3,PQS!$F$3:$AW$3,0),FALSE),"") ->  | J97: =IFERROR(VLOOKUP($A97,PQS!$F$5:$AW$137,MATCH(PQS!$AL$3,PQS!$F$3:$AW$3,0),FALSE),"") ->  | K97: =IFERROR(VLOOKUP($A97,PQS!$F$5:$AW$137,COLUMN(PQS!$AC$5)-3,FALSE),"") ->  | L97: =IFERROR(VLOOKUP($A97,PQS!$F$5:$AW$137,MATCH(PQS!$J$3,PQS!$F$3:$AW$3,0),FALSE),"") ->  | M97: =IFERROR(VLOOKUP($A97,PQS!$F$5:$AW$137,MATCH(PQS!$AG$3,PQS!$F$3:$AW$3,0),FALSE),"") ->  | N97: =IFERROR(HYPERLINK(VLOOKUP($A97,PQS!$F$5:$AW$137,MATCH(PQS!$AK$3,PQS!$F$3:$AW$3,0),FALSE),VLOOKUP($A97,PQS!$F$5:$AW$137,MATCH(PQS!$AJ$3,PQS!$F$3:$AW$3,0),FALSE)),"") -> 
E98: =IFERROR(VLOOKUP($A98,PQS!$F$5:$AR$137,MATCH(PQS!$AN$3, PQS!$F$3:$AR$3,0),FALSE),"") ->  | F98: =IFERROR(VLOOKUP($A98,PQS!$F$5:$AW$137,MATCH(PQS!$AM$3,PQS!$F$3:$AW$3,0),FALSE),"") ->  | H98: =IFERROR(VLOOKUP($A98,PQS!$F$5:$AW$137,MATCH(PQS!$K$3,PQS!$F$3:$AW$3,0),FALSE),"") ->  | I98: =IFERROR(VLOOKUP($A98,PQS!$F$5:$AW$137,MATCH(PQS!$L$3,PQS!$F$3:$AW$3,0),FALSE),"") ->  | J98: =IFERROR(VLOOKUP($A98,PQS!$F$5:$AW$137,MATCH(PQS!$AL$3,PQS!$F$3:$AW$3,0),FALSE),"") ->  | K98: =IFERROR(VLOOKUP($A98,PQS!$F$5:$AW$137,COLUMN(PQS!$AC$5)-3,FALSE),"") ->  | L98: =IFERROR(VLOOKUP($A98,PQS!$F$5:$AW$137,MATCH(PQS!$J$3,PQS!$F$3:$AW$3,0),FALSE),"") ->  | M98: =IFERROR(VLOOKUP($A98,PQS!$F$5:$AW$137,MATCH(PQS!$AG$3,PQS!$F$3:$AW$3,0),FALSE),"") ->  | N98: =IFERROR(HYPERLINK(VLOOKUP($A98,PQS!$F$5:$AW$137,MATCH(PQS!$AK$3,PQS!$F$3:$AW$3,0),FALSE),VLOOKUP($A98,PQS!$F$5:$AW$137,MATCH(PQS!$AJ$3,PQS!$F$3:$AW$3,0),FALSE)),"") -> 
E99: =IFERROR(VLOOKUP($A99,PQS!$F$5:$AR$137,MATCH(PQS!$AN$3, PQS!$F$3:$AR$3,0),FALSE),"") ->  | F99: =IFERROR(VLOOKUP($A99,PQS!$F$5:$AW$137,MATCH(PQS!$AM$3,PQS!$F$3:$AW$3,0),FALSE),"") ->  | H99: =IFERROR(VLOOKUP($A99,PQS!$F$5:$AW$137,MATCH(PQS!$K$3,PQS!$F$3:$AW$3,0),FALSE),"") ->  | I99: =IFERROR(VLOOKUP($A99,PQS!$F$5:$AW$137,MATCH(PQS!$L$3,PQS!$F$3:$AW$3,0),FALSE),"") ->  | J99: =IFERROR(VLOOKUP($A99,PQS!$F$5:$AW$137,MATCH(PQS!$AL$3,PQS!$F$3:$AW$3,0),FALSE),"") ->  | K99: =IFERROR(VLOOKUP($A99,PQS!$F$5:$AW$137,COLUMN(PQS!$AC$5)-3,FALSE),"") ->  | L99: =IFERROR(VLOOKUP($A99,PQS!$F$5:$AW$137,MATCH(PQS!$J$3,PQS!$F$3:$AW$3,0),FALSE),"") ->  | M99: =IFERROR(VLOOKUP($A99,PQS!$F$5:$AW$137,MATCH(PQS!$AG$3,PQS!$F$3:$AW$3,0),FALSE),"") ->  | N99: =IFERROR(HYPERLINK(VLOOKUP($A99,PQS!$F$5:$AW$137,MATCH(PQS!$AK$3,PQS!$F$3:$AW$3,0),FALSE),VLOOKUP($A99,PQS!$F$5:$AW$137,MATCH(PQS!$AJ$3,PQS!$F$3:$AW$3,0),FALSE)),"") -> 
E100: =IFERROR(VLOOKUP($A100,PQS!$F$5:$AR$137,MATCH(PQS!$AN$3, PQS!$F$3:$AR$3,0),FALSE),"") ->  | F100: =IFERROR(VLOOKUP($A100,PQS!$F$5:$AW$137,MATCH(PQS!$AM$3,PQS!$F$3:$AW$3,0),FALSE),"") ->  | H100: =IFERROR(VLOOKUP($A100,PQS!$F$5:$AW$137,MATCH(PQS!$K$3,PQS!$F$3:$AW$3,0),FALSE),"") ->  | I100: =IFERROR(VLOOKUP($A100,PQS!$F$5:$AW$137,MATCH(PQS!$L$3,PQS!$F$3:$AW$3,0),FALSE),"") ->  | J100: =IFERROR(VLOOKUP($A100,PQS!$F$5:$AW$137,MATCH(PQS!$AL$3,PQS!$F$3:$AW$3,0),FALSE),"") ->  | K100: =IFERROR(VLOOKUP($A100,PQS!$F$5:$AW$137,COLUMN(PQS!$AC$5)-3,FALSE),"") ->  | L100: =IFERROR(VLOOKUP($A100,PQS!$F$5:$AW$137,MATCH(PQS!$J$3,PQS!$F$3:$AW$3,0),FALSE),"") ->  | M100: =IFERROR(VLOOKUP($A100,PQS!$F$5:$AW$137,MATCH(PQS!$AG$3,PQS!$F$3:$AW$3,0),FALSE),"") ->  | N100: =IFERROR(HYPERLINK(VLOOKUP($A100,PQS!$F$5:$AW$137,MATCH(PQS!$AK$3,PQS!$F$3:$AW$3,0),FALSE),VLOOKUP($A100,PQS!$F$5:$AW$137,MATCH(PQS!$AJ$3,PQS!$F$3:$AW$3,0),FALSE)),"") -> 
E101: =IFERROR(VLOOKUP($A101,PQS!$F$5:$AR$137,MATCH(PQS!$AN$3, PQS!$F$3:$AR$3,0),FALSE),"") ->  | F101: =IFERROR(VLOOKUP($A101,PQS!$F$5:$AW$137,MATCH(PQS!$AM$3,PQS!$F$3:$AW$3,0),FALSE),"") ->  | H101: =IFERROR(VLOOKUP($A101,PQS!$F$5:$AW$137,MATCH(PQS!$K$3,PQS!$F$3:$AW$3,0),FALSE),"") ->  | I101: =IFERROR(VLOOKUP($A101,PQS!$F$5:$AW$137,MATCH(PQS!$L$3,PQS!$F$3:$AW$3,0),FALSE),"") ->  | J101: =IFERROR(VLOOKUP($A101,PQS!$F$5:$AW$137,MATCH(PQS!$AL$3,PQS!$F$3:$AW$3,0),FALSE),"") ->  | K101: =IFERROR(VLOOKUP($A101,PQS!$F$5:$AW$137,COLUMN(PQS!$AC$5)-3,FALSE),"") ->  | L101: =IFERROR(VLOOKUP($A101,PQS!$F$5:$AW$137,MATCH(PQS!$J$3,PQS!$F$3:$AW$3,0),FALSE),"") ->  | M101: =IFERROR(VLOOKUP($A101,PQS!$F$5:$AW$137,MATCH(PQS!$AG$3,PQS!$F$3:$AW$3,0),FALSE),"") ->  | N101: =IFERROR(HYPERLINK(VLOOKUP($A101,PQS!$F$5:$AW$137,MATCH(PQS!$AK$3,PQS!$F$3:$AW$3,0),FALSE),VLOOKUP($A101,PQS!$F$5:$AW$137,MATCH(PQS!$AJ$3,PQS!$F$3:$AW$3,0),FALSE)),"") -> 
E102: =IFERROR(VLOOKUP($A102,PQS!$F$5:$AR$137,MATCH(PQS!$AN$3, PQS!$F$3:$AR$3,0),FALSE),"") ->  | F102: =IFERROR(VLOOKUP($A102,PQS!$F$5:$AW$137,MATCH(PQS!$AM$3,PQS!$F$3:$AW$3,0),FALSE),"") ->  | H102: =IFERROR(VLOOKUP($A102,PQS!$F$5:$AW$137,MATCH(PQS!$K$3,PQS!$F$3:$AW$3,0),FALSE),"") ->  | I102: =IFERROR(VLOOKUP($A102,PQS!$F$5:$AW$137,MATCH(PQS!$L$3,PQS!$F$3:$AW$3,0),FALSE),"") ->  | J102: =IFERROR(VLOOKUP($A102,PQS!$F$5:$AW$137,MATCH(PQS!$AL$3,PQS!$F$3:$AW$3,0),FALSE),"") ->  | K102: =IFERROR(VLOOKUP($A102,PQS!$F$5:$AW$137,COLUMN(PQS!$AC$5)-3,FALSE),"") ->  | L102: =IFERROR(VLOOKUP($A102,PQS!$F$5:$AW$137,MATCH(PQS!$J$3,PQS!$F$3:$AW$3,0),FALSE),"") ->  | M102: =IFERROR(VLOOKUP($A102,PQS!$F$5:$AW$137,MATCH(PQS!$AG$3,PQS!$F$3:$AW$3,0),FALSE),"") ->  | N102: =IFERROR(HYPERLINK(VLOOKUP($A102,PQS!$F$5:$AW$137,MATCH(PQS!$AK$3,PQS!$F$3:$AW$3,0),FALSE),VLOOKUP($A102,PQS!$F$5:$AW$137,MATCH(PQS!$AJ$3,PQS!$F$3:$AW$3,0),FALSE)),"") -> 
E103: =IFERROR(VLOOKUP($A103,PQS!$F$5:$AR$137,MATCH(PQS!$AN$3, PQS!$F$3:$AR$3,0),FALSE),"") ->  | F103: =IFERROR(VLOOKUP($A103,PQS!$F$5:$AW$137,MATCH(PQS!$AM$3,PQS!$F$3:$AW$3,0),FALSE),"") ->  | H103: =IFERROR(VLOOKUP($A103,PQS!$F$5:$AW$137,MATCH(PQS!$K$3,PQS!$F$3:$AW$3,0),FALSE),"") ->  | I103: =IFERROR(VLOOKUP($A103,PQS!$F$5:$AW$137,MATCH(PQS!$L$3,PQS!$F$3:$AW$3,0),FALSE),"") ->  | J103: =IFERROR(VLOOKUP($A103,PQS!$F$5:$AW$137,MATCH(PQS!$AL$3,PQS!$F$3:$AW$3,0),FALSE),"") ->  | K103: =IFERROR(VLOOKUP($A103,PQS!$F$5:$AW$137,COLUMN(PQS!$AC$5)-3,FALSE),"") ->  | L103: =IFERROR(VLOOKUP($A103,PQS!$F$5:$AW$137,MATCH(PQS!$J$3,PQS!$F$3:$AW$3,0),FALSE),"") ->  | M103: =IFERROR(VLOOKUP($A103,PQS!$F$5:$AW$137,MATCH(PQS!$AG$3,PQS!$F$3:$AW$3,0),FALSE),"") ->  | N103: =IFERROR(HYPERLINK(VLOOKUP($A103,PQS!$F$5:$AW$137,MATCH(PQS!$AK$3,PQS!$F$3:$AW$3,0),FALSE),VLOOKUP($A103,PQS!$F$5:$AW$137,MATCH(PQS!$AJ$3,PQS!$F$3:$AW$3,0),FALSE)),"") -> 
E104: =IFERROR(VLOOKUP($A104,PQS!$F$5:$AR$137,MATCH(PQS!$AN$3, PQS!$F$3:$AR$3,0),FALSE),"") ->  | F104: =IFERROR(VLOOKUP($A104,PQS!$F$5:$AW$137,MATCH(PQS!$AM$3,PQS!$F$3:$AW$3,0),FALSE),"") ->  | H104: =IFERROR(VLOOKUP($A104,PQS!$F$5:$AW$137,MATCH(PQS!$K$3,PQS!$F$3:$AW$3,0),FALSE),"") ->  | I104: =IFERROR(VLOOKUP($A104,PQS!$F$5:$AW$137,MATCH(PQS!$L$3,PQS!$F$3:$AW$3,0),FALSE),"") ->  | J104: =IFERROR(VLOOKUP($A104,PQS!$F$5:$AW$137,MATCH(PQS!$AL$3,PQS!$F$3:$AW$3,0),FALSE),"") ->  | K104: =IFERROR(VLOOKUP($A104,PQS!$F$5:$AW$137,COLUMN(PQS!$AC$5)-3,FALSE),"") ->  | L104: =IFERROR(VLOOKUP($A104,PQS!$F$5:$AW$137,MATCH(PQS!$J$3,PQS!$F$3:$AW$3,0),FALSE),"") ->  | M104: =IFERROR(VLOOKUP($A104,PQS!$F$5:$AW$137,MATCH(PQS!$AG$3,PQS!$F$3:$AW$3,0),FALSE),"") ->  | N104: =IFERROR(HYPERLINK(VLOOKUP($A104,PQS!$F$5:$AW$137,MATCH(PQS!$AK$3,PQS!$F$3:$AW$3,0),FALSE),VLOOKUP($A104,PQS!$F$5:$AW$137,MATCH(PQS!$AJ$3,PQS!$F$3:$AW$3,0),FALSE)),"") -> 
E105: =IFERROR(VLOOKUP($A105,PQS!$F$5:$AR$137,MATCH(PQS!$AN$3, PQS!$F$3:$AR$3,0),FALSE),"") ->  | F105: =IFERROR(VLOOKUP($A105,PQS!$F$5:$AW$137,MATCH(PQS!$AM$3,PQS!$F$3:$AW$3,0),FALSE),"") ->  | H105: =IFERROR(VLOOKUP($A105,PQS!$F$5:$AW$137,MATCH(PQS!$K$3,PQS!$F$3:$AW$3,0),FALSE),"") ->  | I105: =IFERROR(VLOOKUP($A105,PQS!$F$5:$AW$137,MATCH(PQS!$L$3,PQS!$F$3:$AW$3,0),FALSE),"") ->  | J105: =IFERROR(VLOOKUP($A105,PQS!$F$5:$AW$137,MATCH(PQS!$AL$3,PQS!$F$3:$AW$3,0),FALSE),"") ->  | K105: =IFERROR(VLOOKUP($A105,PQS!$F$5:$AW$137,COLUMN(PQS!$AC$5)-3,FALSE),"") ->  | L105: =IFERROR(VLOOKUP($A105,PQS!$F$5:$AW$137,MATCH(PQS!$J$3,PQS!$F$3:$AW$3,0),FALSE),"") ->  | M105: =IFERROR(VLOOKUP($A105,PQS!$F$5:$AW$137,MATCH(PQS!$AG$3,PQS!$F$3:$AW$3,0),FALSE),"") ->  | N105: =IFERROR(HYPERLINK(VLOOKUP($A105,PQS!$F$5:$AW$137,MATCH(PQS!$AK$3,PQS!$F$3:$AW$3,0),FALSE),VLOOKUP($A105,PQS!$F$5:$AW$137,MATCH(PQS!$AJ$3,PQS!$F$3:$AW$3,0),FALSE)),"") -> 
E106: =IFERROR(VLOOKUP($A106,PQS!$F$5:$AR$137,MATCH(PQS!$AN$3, PQS!$F$3:$AR$3,0),FALSE),"") ->  | F106: =IFERROR(VLOOKUP($A106,PQS!$F$5:$AW$137,MATCH(PQS!$AM$3,PQS!$F$3:$AW$3,0),FALSE),"") ->  | H106: =IFERROR(VLOOKUP($A106,PQS!$F$5:$AW$137,MATCH(PQS!$K$3,PQS!$F$3:$AW$3,0),FALSE),"") ->  | I106: =IFERROR(VLOOKUP($A106,PQS!$F$5:$AW$137,MATCH(PQS!$L$3,PQS!$F$3:$AW$3,0),FALSE),"") ->  | J106: =IFERROR(VLOOKUP($A106,PQS!$F$5:$AW$137,MATCH(PQS!$AL$3,PQS!$F$3:$AW$3,0),FALSE),"") ->  | K106: =IFERROR(VLOOKUP($A106,PQS!$F$5:$AW$137,COLUMN(PQS!$AC$5)-3,FALSE),"") ->  | L106: =IFERROR(VLOOKUP($A106,PQS!$F$5:$AW$137,MATCH(PQS!$J$3,PQS!$F$3:$AW$3,0),FALSE),"") ->  | M106: =IFERROR(VLOOKUP($A106,PQS!$F$5:$AW$137,MATCH(PQS!$AG$3,PQS!$F$3:$AW$3,0),FALSE),"") ->  | N106: =IFERROR(HYPERLINK(VLOOKUP($A106,PQS!$F$5:$AW$137,MATCH(PQS!$AK$3,PQS!$F$3:$AW$3,0),FALSE),VLOOKUP($A106,PQS!$F$5:$AW$137,MATCH(PQS!$AJ$3,PQS!$F$3:$AW$3,0),FALSE)),"") -> 
E107: =IFERROR(VLOOKUP($A107,PQS!$F$5:$AR$137,MATCH(PQS!$AN$3, PQS!$F$3:$AR$3,0),FALSE),"") ->  | F107: =IFERROR(VLOOKUP($A107,PQS!$F$5:$AW$137,MATCH(PQS!$AM$3,PQS!$F$3:$AW$3,0),FALSE),"") ->  | H107: =IFERROR(VLOOKUP($A107,PQS!$F$5:$AW$137,MATCH(PQS!$K$3,PQS!$F$3:$AW$3,0),FALSE),"") ->  | I107: =IFERROR(VLOOKUP($A107,PQS!$F$5:$AW$137,MATCH(PQS!$L$3,PQS!$F$3:$AW$3,0),FALSE),"") ->  | J107: =IFERROR(VLOOKUP($A107,PQS!$F$5:$AW$137,MATCH(PQS!$AL$3,PQS!$F$3:$AW$3,0),FALSE),"") ->  | K107: =IFERROR(VLOOKUP($A107,PQS!$F$5:$AW$137,COLUMN(PQS!$AC$5)-3,FALSE),"") ->  | L107: =IFERROR(VLOOKUP($A107,PQS!$F$5:$AW$137,MATCH(PQS!$J$3,PQS!$F$3:$AW$3,0),FALSE),"") ->  | M107: =IFERROR(VLOOKUP($A107,PQS!$F$5:$AW$137,MATCH(PQS!$AG$3,PQS!$F$3:$AW$3,0),FALSE),"") ->  | N107: =IFERROR(HYPERLINK(VLOOKUP($A107,PQS!$F$5:$AW$137,MATCH(PQS!$AK$3,PQS!$F$3:$AW$3,0),FALSE),VLOOKUP($A107,PQS!$F$5:$AW$137,MATCH(PQS!$AJ$3,PQS!$F$3:$AW$3,0),FALSE)),"") -> 
E108: =IFERROR(VLOOKUP($A108,PQS!$F$5:$AR$137,MATCH(PQS!$AN$3, PQS!$F$3:$AR$3,0),FALSE),"") ->  | F108: =IFERROR(VLOOKUP($A108,PQS!$F$5:$AW$137,MATCH(PQS!$AM$3,PQS!$F$3:$AW$3,0),FALSE),"") ->  | H108: =IFERROR(VLOOKUP($A108,PQS!$F$5:$AW$137,MATCH(PQS!$K$3,PQS!$F$3:$AW$3,0),FALSE),"") ->  | I108: =IFERROR(VLOOKUP($A108,PQS!$F$5:$AW$137,MATCH(PQS!$L$3,PQS!$F$3:$AW$3,0),FALSE),"") ->  | J108: =IFERROR(VLOOKUP($A108,PQS!$F$5:$AW$137,MATCH(PQS!$AL$3,PQS!$F$3:$AW$3,0),FALSE),"") ->  | K108: =IFERROR(VLOOKUP($A108,PQS!$F$5:$AW$137,COLUMN(PQS!$AC$5)-3,FALSE),"") ->  | L108: =IFERROR(VLOOKUP($A108,PQS!$F$5:$AW$137,MATCH(PQS!$J$3,PQS!$F$3:$AW$3,0),FALSE),"") ->  | M108: =IFERROR(VLOOKUP($A108,PQS!$F$5:$AW$137,MATCH(PQS!$AG$3,PQS!$F$3:$AW$3,0),FALSE),"") ->  | N108: =IFERROR(HYPERLINK(VLOOKUP($A108,PQS!$F$5:$AW$137,MATCH(PQS!$AK$3,PQS!$F$3:$AW$3,0),FALSE),VLOOKUP($A108,PQS!$F$5:$AW$137,MATCH(PQS!$AJ$3,PQS!$F$3:$AW$3,0),FALSE)),"") -> 
E109: =IFERROR(VLOOKUP($A109,PQS!$F$5:$AR$137,MATCH(PQS!$AN$3, PQS!$F$3:$AR$3,0),FALSE),"") ->  | F109: =IFERROR(VLOOKUP($A109,PQS!$F$5:$AW$137,MATCH(PQS!$AM$3,PQS!$F$3:$AW$3,0),FALSE),"") ->  | H109: =IFERROR(VLOOKUP($A109,PQS!$F$5:$AW$137,MATCH(PQS!$K$3,PQS!$F$3:$AW$3,0),FALSE),"") ->  | I109: =IFERROR(VLOOKUP($A109,PQS!$F$5:$AW$137,MATCH(PQS!$L$3,PQS!$F$3:$AW$3,0),FALSE),"") ->  | J109: =IFERROR(VLOOKUP($A109,PQS!$F$5:$AW$137,MATCH(PQS!$AL$3,PQS!$F$3:$AW$3,0),FALSE),"") ->  | K109: =IFERROR(VLOOKUP($A109,PQS!$F$5:$AW$137,COLUMN(PQS!$AC$5)-3,FALSE),"") ->  | L109: =IFERROR(VLOOKUP($A109,PQS!$F$5:$AW$137,MATCH(PQS!$J$3,PQS!$F$3:$AW$3,0),FALSE),"") ->  | M109: =IFERROR(VLOOKUP($A109,PQS!$F$5:$AW$137,MATCH(PQS!$AG$3,PQS!$F$3:$AW$3,0),FALSE),"") ->  | N109: =IFERROR(HYPERLINK(VLOOKUP($A109,PQS!$F$5:$AW$137,MATCH(PQS!$AK$3,PQS!$F$3:$AW$3,0),FALSE),VLOOKUP($A109,PQS!$F$5:$AW$137,MATCH(PQS!$AJ$3,PQS!$F$3:$AW$3,0),FALSE)),"") -> 
E110: =IFERROR(VLOOKUP($A110,PQS!$F$5:$AR$137,MATCH(PQS!$AN$3, PQS!$F$3:$AR$3,0),FALSE),"") ->  | F110: =IFERROR(VLOOKUP($A110,PQS!$F$5:$AW$137,MATCH(PQS!$AM$3,PQS!$F$3:$AW$3,0),FALSE),"") ->  | H110: =IFERROR(VLOOKUP($A110,PQS!$F$5:$AW$137,MATCH(PQS!$K$3,PQS!$F$3:$AW$3,0),FALSE),"") ->  | I110: =IFERROR(VLOOKUP($A110,PQS!$F$5:$AW$137,MATCH(PQS!$L$3,PQS!$F$3:$AW$3,0),FALSE),"") ->  | J110: =IFERROR(VLOOKUP($A110,PQS!$F$5:$AW$137,MATCH(PQS!$AL$3,PQS!$F$3:$AW$3,0),FALSE),"") ->  | K110: =IFERROR(VLOOKUP($A110,PQS!$F$5:$AW$137,COLUMN(PQS!$AC$5)-3,FALSE),"") ->  | L110: =IFERROR(VLOOKUP($A110,PQS!$F$5:$AW$137,MATCH(PQS!$J$3,PQS!$F$3:$AW$3,0),FALSE),"") ->  | M110: =IFERROR(VLOOKUP($A110,PQS!$F$5:$AW$137,MATCH(PQS!$AG$3,PQS!$F$3:$AW$3,0),FALSE),"") ->  | N110: =IFERROR(HYPERLINK(VLOOKUP($A110,PQS!$F$5:$AW$137,MATCH(PQS!$AK$3,PQS!$F$3:$AW$3,0),FALSE),VLOOKUP($A110,PQS!$F$5:$AW$137,MATCH(PQS!$AJ$3,PQS!$F$3:$AW$3,0),FALSE)),"") -> 
E111: =IFERROR(VLOOKUP($A111,PQS!$F$5:$AR$137,MATCH(PQS!$AN$3, PQS!$F$3:$AR$3,0),FALSE),"") ->  | F111: =IFERROR(VLOOKUP($A111,PQS!$F$5:$AW$137,MATCH(PQS!$AM$3,PQS!$F$3:$AW$3,0),FALSE),"") ->  | H111: =IFERROR(VLOOKUP($A111,PQS!$F$5:$AW$137,MATCH(PQS!$K$3,PQS!$F$3:$AW$3,0),FALSE),"") ->  | I111: =IFERROR(VLOOKUP($A111,PQS!$F$5:$AW$137,MATCH(PQS!$L$3,PQS!$F$3:$AW$3,0),FALSE),"") ->  | J111: =IFERROR(VLOOKUP($A111,PQS!$F$5:$AW$137,MATCH(PQS!$AL$3,PQS!$F$3:$AW$3,0),FALSE),"") ->  | K111: =IFERROR(VLOOKUP($A111,PQS!$F$5:$AW$137,COLUMN(PQS!$AC$5)-3,FALSE),"") ->  | L111: =IFERROR(VLOOKUP($A111,PQS!$F$5:$AW$137,MATCH(PQS!$J$3,PQS!$F$3:$AW$3,0),FALSE),"") ->  | M111: =IFERROR(VLOOKUP($A111,PQS!$F$5:$AW$137,MATCH(PQS!$AG$3,PQS!$F$3:$AW$3,0),FALSE),"") ->  | N111: =IFERROR(HYPERLINK(VLOOKUP($A111,PQS!$F$5:$AW$137,MATCH(PQS!$AK$3,PQS!$F$3:$AW$3,0),FALSE),VLOOKUP($A111,PQS!$F$5:$AW$137,MATCH(PQS!$AJ$3,PQS!$F$3:$AW$3,0),FALSE)),"") -> 
E112: =IFERROR(VLOOKUP($A112,PQS!$F$5:$AR$137,MATCH(PQS!$AN$3, PQS!$F$3:$AR$3,0),FALSE),"") ->  | F112: =IFERROR(VLOOKUP($A112,PQS!$F$5:$AW$137,MATCH(PQS!$AM$3,PQS!$F$3:$AW$3,0),FALSE),"") ->  | H112: =IFERROR(VLOOKUP($A112,PQS!$F$5:$AW$137,MATCH(PQS!$K$3,PQS!$F$3:$AW$3,0),FALSE),"") ->  | I112: =IFERROR(VLOOKUP($A112,PQS!$F$5:$AW$137,MATCH(PQS!$L$3,PQS!$F$3:$AW$3,0),FALSE),"") ->  | J112: =IFERROR(VLOOKUP($A112,PQS!$F$5:$AW$137,MATCH(PQS!$AL$3,PQS!$F$3:$AW$3,0),FALSE),"") ->  | K112: =IFERROR(VLOOKUP($A112,PQS!$F$5:$AW$137,COLUMN(PQS!$AC$5)-3,FALSE),"") ->  | L112: =IFERROR(VLOOKUP($A112,PQS!$F$5:$AW$137,MATCH(PQS!$J$3,PQS!$F$3:$AW$3,0),FALSE),"") ->  | M112: =IFERROR(VLOOKUP($A112,PQS!$F$5:$AW$137,MATCH(PQS!$AG$3,PQS!$F$3:$AW$3,0),FALSE),"") ->  | N112: =IFERROR(HYPERLINK(VLOOKUP($A112,PQS!$F$5:$AW$137,MATCH(PQS!$AK$3,PQS!$F$3:$AW$3,0),FALSE),VLOOKUP($A112,PQS!$F$5:$AW$137,MATCH(PQS!$AJ$3,PQS!$F$3:$AW$3,0),FALSE)),"") -> 
E113: =IFERROR(VLOOKUP($A113,PQS!$F$5:$AR$137,MATCH(PQS!$AN$3, PQS!$F$3:$AR$3,0),FALSE),"") ->  | F113: =IFERROR(VLOOKUP($A113,PQS!$F$5:$AW$137,MATCH(PQS!$AM$3,PQS!$F$3:$AW$3,0),FALSE),"") ->  | H113: =IFERROR(VLOOKUP($A113,PQS!$F$5:$AW$137,MATCH(PQS!$K$3,PQS!$F$3:$AW$3,0),FALSE),"") ->  | I113: =IFERROR(VLOOKUP($A113,PQS!$F$5:$AW$137,MATCH(PQS!$L$3,PQS!$F$3:$AW$3,0),FALSE),"") ->  | J113: =IFERROR(VLOOKUP($A113,PQS!$F$5:$AW$137,MATCH(PQS!$AL$3,PQS!$F$3:$AW$3,0),FALSE),"") ->  | K113: =IFERROR(VLOOKUP($A113,PQS!$F$5:$AW$137,COLUMN(PQS!$AC$5)-3,FALSE),"") ->  | L113: =IFERROR(VLOOKUP($A113,PQS!$F$5:$AW$137,MATCH(PQS!$J$3,PQS!$F$3:$AW$3,0),FALSE),"") ->  | M113: =IFERROR(VLOOKUP($A113,PQS!$F$5:$AW$137,MATCH(PQS!$AG$3,PQS!$F$3:$AW$3,0),FALSE),"") ->  | N113: =IFERROR(HYPERLINK(VLOOKUP($A113,PQS!$F$5:$AW$137,MATCH(PQS!$AK$3,PQS!$F$3:$AW$3,0),FALSE),VLOOKUP($A113,PQS!$F$5:$AW$137,MATCH(PQS!$AJ$3,PQS!$F$3:$AW$3,0),FALSE)),"") -> 
E114: =IFERROR(VLOOKUP($A114,PQS!$F$5:$AR$137,MATCH(PQS!$AN$3, PQS!$F$3:$AR$3,0),FALSE),"") ->  | F114: =IFERROR(VLOOKUP($A114,PQS!$F$5:$AW$137,MATCH(PQS!$AM$3,PQS!$F$3:$AW$3,0),FALSE),"") ->  | H114: =IFERROR(VLOOKUP($A114,PQS!$F$5:$AW$137,MATCH(PQS!$K$3,PQS!$F$3:$AW$3,0),FALSE),"") ->  | I114: =IFERROR(VLOOKUP($A114,PQS!$F$5:$AW$137,MATCH(PQS!$L$3,PQS!$F$3:$AW$3,0),FALSE),"") ->  | J114: =IFERROR(VLOOKUP($A114,PQS!$F$5:$AW$137,MATCH(PQS!$AL$3,PQS!$F$3:$AW$3,0),FALSE),"") ->  | K114: =IFERROR(VLOOKUP($A114,PQS!$F$5:$AW$137,COLUMN(PQS!$AC$5)-3,FALSE),"") ->  | L114: =IFERROR(VLOOKUP($A114,PQS!$F$5:$AW$137,MATCH(PQS!$J$3,PQS!$F$3:$AW$3,0),FALSE),"") ->  | M114: =IFERROR(VLOOKUP($A114,PQS!$F$5:$AW$137,MATCH(PQS!$AG$3,PQS!$F$3:$AW$3,0),FALSE),"") ->  | N114: =IFERROR(HYPERLINK(VLOOKUP($A114,PQS!$F$5:$AW$137,MATCH(PQS!$AK$3,PQS!$F$3:$AW$3,0),FALSE),VLOOKUP($A114,PQS!$F$5:$AW$137,MATCH(PQS!$AJ$3,PQS!$F$3:$AW$3,0),FALSE)),"") -> 
E115: =IFERROR(VLOOKUP($A115,PQS!$F$5:$AR$137,MATCH(PQS!$AN$3, PQS!$F$3:$AR$3,0),FALSE),"") ->  | F115: =IFERROR(VLOOKUP($A115,PQS!$F$5:$AW$137,MATCH(PQS!$AM$3,PQS!$F$3:$AW$3,0),FALSE),"") ->  | H115: =IFERROR(VLOOKUP($A115,PQS!$F$5:$AW$137,MATCH(PQS!$K$3,PQS!$F$3:$AW$3,0),FALSE),"") ->  | I115: =IFERROR(VLOOKUP($A115,PQS!$F$5:$AW$137,MATCH(PQS!$L$3,PQS!$F$3:$AW$3,0),FALSE),"") ->  | J115: =IFERROR(VLOOKUP($A115,PQS!$F$5:$AW$137,MATCH(PQS!$AL$3,PQS!$F$3:$AW$3,0),FALSE),"") ->  | K115: =IFERROR(VLOOKUP($A115,PQS!$F$5:$AW$137,COLUMN(PQS!$AC$5)-3,FALSE),"") ->  | L115: =IFERROR(VLOOKUP($A115,PQS!$F$5:$AW$137,MATCH(PQS!$J$3,PQS!$F$3:$AW$3,0),FALSE),"") ->  | M115: =IFERROR(VLOOKUP($A115,PQS!$F$5:$AW$137,MATCH(PQS!$AG$3,PQS!$F$3:$AW$3,0),FALSE),"") ->  | N115: =IFERROR(HYPERLINK(VLOOKUP($A115,PQS!$F$5:$AW$137,MATCH(PQS!$AK$3,PQS!$F$3:$AW$3,0),FALSE),VLOOKUP($A115,PQS!$F$5:$AW$137,MATCH(PQS!$AJ$3,PQS!$F$3:$AW$3,0),FALSE)),"") -> 
E116: =IFERROR(VLOOKUP($A116,PQS!$F$5:$AR$137,MATCH(PQS!$AN$3, PQS!$F$3:$AR$3,0),FALSE),"") ->  | F116: =IFERROR(VLOOKUP($A116,PQS!$F$5:$AW$137,MATCH(PQS!$AM$3,PQS!$F$3:$AW$3,0),FALSE),"") ->  | H116: =IFERROR(VLOOKUP($A116,PQS!$F$5:$AW$137,MATCH(PQS!$K$3,PQS!$F$3:$AW$3,0),FALSE),"") ->  | I116: =IFERROR(VLOOKUP($A116,PQS!$F$5:$AW$137,MATCH(PQS!$L$3,PQS!$F$3:$AW$3,0),FALSE),"") ->  | J116: =IFERROR(VLOOKUP($A116,PQS!$F$5:$AW$137,MATCH(PQS!$AL$3,PQS!$F$3:$AW$3,0),FALSE),"") ->  | K116: =IFERROR(VLOOKUP($A116,PQS!$F$5:$AW$137,COLUMN(PQS!$AC$5)-3,FALSE),"") ->  | L116: =IFERROR(VLOOKUP($A116,PQS!$F$5:$AW$137,MATCH(PQS!$J$3,PQS!$F$3:$AW$3,0),FALSE),"") ->  | M116: =IFERROR(VLOOKUP($A116,PQS!$F$5:$AW$137,MATCH(PQS!$AG$3,PQS!$F$3:$AW$3,0),FALSE),"") ->  | N116: =IFERROR(HYPERLINK(VLOOKUP($A116,PQS!$F$5:$AW$137,MATCH(PQS!$AK$3,PQS!$F$3:$AW$3,0),FALSE),VLOOKUP($A116,PQS!$F$5:$AW$137,MATCH(PQS!$AJ$3,PQS!$F$3:$AW$3,0),FALSE)),"") -> 
E117: =IFERROR(VLOOKUP($A117,PQS!$F$5:$AR$137,MATCH(PQS!$AN$3, PQS!$F$3:$AR$3,0),FALSE),"") ->  | F117: =IFERROR(VLOOKUP($A117,PQS!$F$5:$AW$137,MATCH(PQS!$AM$3,PQS!$F$3:$AW$3,0),FALSE),"") ->  | H117: =IFERROR(VLOOKUP($A117,PQS!$F$5:$AW$137,MATCH(PQS!$K$3,PQS!$F$3:$AW$3,0),FALSE),"") ->  | I117: =IFERROR(VLOOKUP($A117,PQS!$F$5:$AW$137,MATCH(PQS!$L$3,PQS!$F$3:$AW$3,0),FALSE),"") ->  | J117: =IFERROR(VLOOKUP($A117,PQS!$F$5:$AW$137,MATCH(PQS!$AL$3,PQS!$F$3:$AW$3,0),FALSE),"") ->  | K117: =IFERROR(VLOOKUP($A117,PQS!$F$5:$AW$137,COLUMN(PQS!$AC$5)-3,FALSE),"") ->  | L117: =IFERROR(VLOOKUP($A117,PQS!$F$5:$AW$137,MATCH(PQS!$J$3,PQS!$F$3:$AW$3,0),FALSE),"") ->  | M117: =IFERROR(VLOOKUP($A117,PQS!$F$5:$AW$137,MATCH(PQS!$AG$3,PQS!$F$3:$AW$3,0),FALSE),"") ->  | N117: =IFERROR(HYPERLINK(VLOOKUP($A117,PQS!$F$5:$AW$137,MATCH(PQS!$AK$3,PQS!$F$3:$AW$3,0),FALSE),VLOOKUP($A117,PQS!$F$5:$AW$137,MATCH(PQS!$AJ$3,PQS!$F$3:$AW$3,0),FALSE)),"") -> 
E118: =IFERROR(VLOOKUP($A118,PQS!$F$5:$AR$137,MATCH(PQS!$AN$3, PQS!$F$3:$AR$3,0),FALSE),"") ->  | F118: =IFERROR(VLOOKUP($A118,PQS!$F$5:$AW$137,MATCH(PQS!$AM$3,PQS!$F$3:$AW$3,0),FALSE),"") ->  | H118: =IFERROR(VLOOKUP($A118,PQS!$F$5:$AW$137,MATCH(PQS!$K$3,PQS!$F$3:$AW$3,0),FALSE),"") ->  | I118: =IFERROR(VLOOKUP($A118,PQS!$F$5:$AW$137,MATCH(PQS!$L$3,PQS!$F$3:$AW$3,0),FALSE),"") ->  | J118: =IFERROR(VLOOKUP($A118,PQS!$F$5:$AW$137,MATCH(PQS!$AL$3,PQS!$F$3:$AW$3,0),FALSE),"") ->  | K118: =IFERROR(VLOOKUP($A118,PQS!$F$5:$AW$137,COLUMN(PQS!$AC$5)-3,FALSE),"") ->  | L118: =IFERROR(VLOOKUP($A118,PQS!$F$5:$AW$137,MATCH(PQS!$J$3,PQS!$F$3:$AW$3,0),FALSE),"") ->  | M118: =IFERROR(VLOOKUP($A118,PQS!$F$5:$AW$137,MATCH(PQS!$AG$3,PQS!$F$3:$AW$3,0),FALSE),"") ->  | N118: =IFERROR(HYPERLINK(VLOOKUP($A118,PQS!$F$5:$AW$137,MATCH(PQS!$AK$3,PQS!$F$3:$AW$3,0),FALSE),VLOOKUP($A118,PQS!$F$5:$AW$137,MATCH(PQS!$AJ$3,PQS!$F$3:$AW$3,0),FALSE)),"") -> 
E119: =IFERROR(VLOOKUP($A119,PQS!$F$5:$AR$137,MATCH(PQS!$AN$3, PQS!$F$3:$AR$3,0),FALSE),"") ->  | F119: =IFERROR(VLOOKUP($A119,PQS!$F$5:$AW$137,MATCH(PQS!$AM$3,PQS!$F$3:$AW$3,0),FALSE),"") ->  | H119: =IFERROR(VLOOKUP($A119,PQS!$F$5:$AW$137,MATCH(PQS!$K$3,PQS!$F$3:$AW$3,0),FALSE),"") ->  | I119: =IFERROR(VLOOKUP($A119,PQS!$F$5:$AW$137,MATCH(PQS!$L$3,PQS!$F$3:$AW$3,0),FALSE),"") ->  | J119: =IFERROR(VLOOKUP($A119,PQS!$F$5:$AW$137,MATCH(PQS!$AL$3,PQS!$F$3:$AW$3,0),FALSE),"") ->  | K119: =IFERROR(VLOOKUP($A119,PQS!$F$5:$AW$137,COLUMN(PQS!$AC$5)-3,FALSE),"") ->  | L119: =IFERROR(VLOOKUP($A119,PQS!$F$5:$AW$137,MATCH(PQS!$J$3,PQS!$F$3:$AW$3,0),FALSE),"") ->  | M119: =IFERROR(VLOOKUP($A119,PQS!$F$5:$AW$137,MATCH(PQS!$AG$3,PQS!$F$3:$AW$3,0),FALSE),"") ->  | N119: =IFERROR(HYPERLINK(VLOOKUP($A119,PQS!$F$5:$AW$137,MATCH(PQS!$AK$3,PQS!$F$3:$AW$3,0),FALSE),VLOOKUP($A119,PQS!$F$5:$AW$137,MATCH(PQS!$AJ$3,PQS!$F$3:$AW$3,0),FALSE)),"") -> 
E120: =IFERROR(VLOOKUP($A120,PQS!$F$5:$AR$137,MATCH(PQS!$AN$3, PQS!$F$3:$AR$3,0),FALSE),"") ->  | F120: =IFERROR(VLOOKUP($A120,PQS!$F$5:$AW$137,MATCH(PQS!$AM$3,PQS!$F$3:$AW$3,0),FALSE),"") ->  | H120: =IFERROR(VLOOKUP($A120,PQS!$F$5:$AW$137,MATCH(PQS!$K$3,PQS!$F$3:$AW$3,0),FALSE),"") ->  | I120: =IFERROR(VLOOKUP($A120,PQS!$F$5:$AW$137,MATCH(PQS!$L$3,PQS!$F$3:$AW$3,0),FALSE),"") ->  | J120: =IFERROR(VLOOKUP($A120,PQS!$F$5:$AW$137,MATCH(PQS!$AL$3,PQS!$F$3:$AW$3,0),FALSE),"") ->  | K120: =IFERROR(VLOOKUP($A120,PQS!$F$5:$AW$137,COLUMN(PQS!$AC$5)-3,FALSE),"") ->  | L120: =IFERROR(VLOOKUP($A120,PQS!$F$5:$AW$137,MATCH(PQS!$J$3,PQS!$F$3:$AW$3,0),FALSE),"") ->  | M120: =IFERROR(VLOOKUP($A120,PQS!$F$5:$AW$137,MATCH(PQS!$AG$3,PQS!$F$3:$AW$3,0),FALSE),"") ->  | N120: =IFERROR(HYPERLINK(VLOOKUP($A120,PQS!$F$5:$AW$137,MATCH(PQS!$AK$3,PQS!$F$3:$AW$3,0),FALSE),VLOOKUP($A120,PQS!$F$5:$AW$137,MATCH(PQS!$AJ$3,PQS!$F$3:$AW$3,0),FALSE)),"") -> 
E121: =IFERROR(VLOOKUP($A121,PQS!$F$5:$AR$137,MATCH(PQS!$AN$3, PQS!$F$3:$AR$3,0),FALSE),"") ->  | F121: =IFERROR(VLOOKUP($A121,PQS!$F$5:$AW$137,MATCH(PQS!$AM$3,PQS!$F$3:$AW$3,0),FALSE),"") ->  | H121: =IFERROR(VLOOKUP($A121,PQS!$F$5:$AW$137,MATCH(PQS!$K$3,PQS!$F$3:$AW$3,0),FALSE),"") ->  | I121: =IFERROR(VLOOKUP($A121,PQS!$F$5:$AW$137,MATCH(PQS!$L$3,PQS!$F$3:$AW$3,0),FALSE),"") ->  | J121: =IFERROR(VLOOKUP($A121,PQS!$F$5:$AW$137,MATCH(PQS!$AL$3,PQS!$F$3:$AW$3,0),FALSE),"") ->  | K121: =IFERROR(VLOOKUP($A121,PQS!$F$5:$AW$137,COLUMN(PQS!$AC$5)-3,FALSE),"") ->  | L121: =IFERROR(VLOOKUP($A121,PQS!$F$5:$AW$137,MATCH(PQS!$J$3,PQS!$F$3:$AW$3,0),FALSE),"") ->  | M121: =IFERROR(VLOOKUP($A121,PQS!$F$5:$AW$137,MATCH(PQS!$AG$3,PQS!$F$3:$AW$3,0),FALSE),"") ->  | N121: =IFERROR(HYPERLINK(VLOOKUP($A121,PQS!$F$5:$AW$137,MATCH(PQS!$AK$3,PQS!$F$3:$AW$3,0),FALSE),VLOOKUP($A121,PQS!$F$5:$AW$137,MATCH(PQS!$AJ$3,PQS!$F$3:$AW$3,0),FALSE)),"") -> 
E122: =IFERROR(VLOOKUP($A122,PQS!$F$5:$AR$137,MATCH(PQS!$AN$3, PQS!$F$3:$AR$3,0),FALSE),"") ->  | F122: =IFERROR(VLOOKUP($A122,PQS!$F$5:$AW$137,MATCH(PQS!$AM$3,PQS!$F$3:$AW$3,0),FALSE),"") ->  | H122: =IFERROR(VLOOKUP($A122,PQS!$F$5:$AW$137,MATCH(PQS!$K$3,PQS!$F$3:$AW$3,0),FALSE),"") ->  | I122: =IFERROR(VLOOKUP($A122,PQS!$F$5:$AW$137,MATCH(PQS!$L$3,PQS!$F$3:$AW$3,0),FALSE),"") ->  | J122: =IFERROR(VLOOKUP($A122,PQS!$F$5:$AW$137,MATCH(PQS!$AL$3,PQS!$F$3:$AW$3,0),FALSE),"") ->  | K122: =IFERROR(VLOOKUP($A122,PQS!$F$5:$AW$137,COLUMN(PQS!$AC$5)-3,FALSE),"") ->  | L122: =IFERROR(VLOOKUP($A122,PQS!$F$5:$AW$137,MATCH(PQS!$J$3,PQS!$F$3:$AW$3,0),FALSE),"") ->  | M122: =IFERROR(VLOOKUP($A122,PQS!$F$5:$AW$137,MATCH(PQS!$AG$3,PQS!$F$3:$AW$3,0),FALSE),"") ->  | N122: =IFERROR(HYPERLINK(VLOOKUP($A122,PQS!$F$5:$AW$137,MATCH(PQS!$AK$3,PQS!$F$3:$AW$3,0),FALSE),VLOOKUP($A122,PQS!$F$5:$AW$137,MATCH(PQS!$AJ$3,PQS!$F$3:$AW$3,0),FALSE)),"") -> 
E123: =IFERROR(VLOOKUP($A123,PQS!$F$5:$AR$137,MATCH(PQS!$AN$3, PQS!$F$3:$AR$3,0),FALSE),"") ->  | F123: =IFERROR(VLOOKUP($A123,PQS!$F$5:$AW$137,MATCH(PQS!$AM$3,PQS!$F$3:$AW$3,0),FALSE),"") ->  | H123: =IFERROR(VLOOKUP($A123,PQS!$F$5:$AW$137,MATCH(PQS!$K$3,PQS!$F$3:$AW$3,0),FALSE),"") ->  | I123: =IFERROR(VLOOKUP($A123,PQS!$F$5:$AW$137,MATCH(PQS!$L$3,PQS!$F$3:$AW$3,0),FALSE),"") ->  | J123: =IFERROR(VLOOKUP($A123,PQS!$F$5:$AW$137,MATCH(PQS!$AL$3,PQS!$F$3:$AW$3,0),FALSE),"") ->  | K123: =IFERROR(VLOOKUP($A123,PQS!$F$5:$AW$137,COLUMN(PQS!$AC$5)-3,FALSE),"") ->  | L123: =IFERROR(VLOOKUP($A123,PQS!$F$5:$AW$137,MATCH(PQS!$J$3,PQS!$F$3:$AW$3,0),FALSE),"") ->  | M123: =IFERROR(VLOOKUP($A123,PQS!$F$5:$AW$137,MATCH(PQS!$AG$3,PQS!$F$3:$AW$3,0),FALSE),"") ->  | N123: =IFERROR(HYPERLINK(VLOOKUP($A123,PQS!$F$5:$AW$137,MATCH(PQS!$AK$3,PQS!$F$3:$AW$3,0),FALSE),VLOOKUP($A123,PQS!$F$5:$AW$137,MATCH(PQS!$AJ$3,PQS!$F$3:$AW$3,0),FALSE)),"") -> 
E124: =IFERROR(VLOOKUP($A124,PQS!$F$5:$AR$137,MATCH(PQS!$AN$3, PQS!$F$3:$AR$3,0),FALSE),"") ->  | F124: =IFERROR(VLOOKUP($A124,PQS!$F$5:$AW$137,MATCH(PQS!$AM$3,PQS!$F$3:$AW$3,0),FALSE),"") ->  | H124: =IFERROR(VLOOKUP($A124,PQS!$F$5:$AW$137,MATCH(PQS!$K$3,PQS!$F$3:$AW$3,0),FALSE),"") ->  | I124: =IFERROR(VLOOKUP($A124,PQS!$F$5:$AW$137,MATCH(PQS!$L$3,PQS!$F$3:$AW$3,0),FALSE),"") ->  | J124: =IFERROR(VLOOKUP($A124,PQS!$F$5:$AW$137,MATCH(PQS!$AL$3,PQS!$F$3:$AW$3,0),FALSE),"") ->  | K124: =IFERROR(VLOOKUP($A124,PQS!$F$5:$AW$137,COLUMN(PQS!$AC$5)-3,FALSE),"") ->  | L124: =IFERROR(VLOOKUP($A124,PQS!$F$5:$AW$137,MATCH(PQS!$J$3,PQS!$F$3:$AW$3,0),FALSE),"") ->  | M124: =IFERROR(VLOOKUP($A124,PQS!$F$5:$AW$137,MATCH(PQS!$AG$3,PQS!$F$3:$AW$3,0),FALSE),"") ->  | N124: =IFERROR(HYPERLINK(VLOOKUP($A124,PQS!$F$5:$AW$137,MATCH(PQS!$AK$3,PQS!$F$3:$AW$3,0),FALSE),VLOOKUP($A124,PQS!$F$5:$AW$137,MATCH(PQS!$AJ$3,PQS!$F$3:$AW$3,0),FALSE)),"") -> 
E125: =IFERROR(VLOOKUP($A125,PQS!$F$5:$AR$137,MATCH(PQS!$AN$3, PQS!$F$3:$AR$3,0),FALSE),"") ->  | F125: =IFERROR(VLOOKUP($A125,PQS!$F$5:$AW$137,MATCH(PQS!$AM$3,PQS!$F$3:$AW$3,0),FALSE),"") ->  | H125: =IFERROR(VLOOKUP($A125,PQS!$F$5:$AW$137,MATCH(PQS!$K$3,PQS!$F$3:$AW$3,0),FALSE),"") ->  | I125: =IFERROR(VLOOKUP($A125,PQS!$F$5:$AW$137,MATCH(PQS!$L$3,PQS!$F$3:$AW$3,0),FALSE),"") ->  | J125: =IFERROR(VLOOKUP($A125,PQS!$F$5:$AW$137,MATCH(PQS!$AL$3,PQS!$F$3:$AW$3,0),FALSE),"") ->  | K125: =IFERROR(VLOOKUP($A125,PQS!$F$5:$AW$137,COLUMN(PQS!$AC$5)-3,FALSE),"") ->  | L125: =IFERROR(VLOOKUP($A125,PQS!$F$5:$AW$137,MATCH(PQS!$J$3,PQS!$F$3:$AW$3,0),FALSE),"") ->  | M125: =IFERROR(VLOOKUP($A125,PQS!$F$5:$AW$137,MATCH(PQS!$AG$3,PQS!$F$3:$AW$3,0),FALSE),"") ->  | N125: =IFERROR(HYPERLINK(VLOOKUP($A125,PQS!$F$5:$AW$137,MATCH(PQS!$AK$3,PQS!$F$3:$AW$3,0),FALSE),VLOOKUP($A125,PQS!$F$5:$AW$137,MATCH(PQS!$AJ$3,PQS!$F$3:$AW$3,0),FALSE)),"") -> 
E126: =IFERROR(VLOOKUP($A126,PQS!$F$5:$AR$137,MATCH(PQS!$AN$3, PQS!$F$3:$AR$3,0),FALSE),"") ->  | F126: =IFERROR(VLOOKUP($A126,PQS!$F$5:$AW$137,MATCH(PQS!$AM$3,PQS!$F$3:$AW$3,0),FALSE),"") ->  | H126: =IFERROR(VLOOKUP($A126,PQS!$F$5:$AW$137,MATCH(PQS!$K$3,PQS!$F$3:$AW$3,0),FALSE),"") ->  | I126: =IFERROR(VLOOKUP($A126,PQS!$F$5:$AW$137,MATCH(PQS!$L$3,PQS!$F$3:$AW$3,0),FALSE),"") ->  | J126: =IFERROR(VLOOKUP($A126,PQS!$F$5:$AW$137,MATCH(PQS!$AL$3,PQS!$F$3:$AW$3,0),FALSE),"") ->  | K126: =IFERROR(VLOOKUP($A126,PQS!$F$5:$AW$137,COLUMN(PQS!$AC$5)-3,FALSE),"") ->  | L126: =IFERROR(VLOOKUP($A126,PQS!$F$5:$AW$137,MATCH(PQS!$J$3,PQS!$F$3:$AW$3,0),FALSE),"") ->  | M126: =IFERROR(VLOOKUP($A126,PQS!$F$5:$AW$137,MATCH(PQS!$AG$3,PQS!$F$3:$AW$3,0),FALSE),"") ->  | N126: =IFERROR(HYPERLINK(VLOOKUP($A126,PQS!$F$5:$AW$137,MATCH(PQS!$AK$3,PQS!$F$3:$AW$3,0),FALSE),VLOOKUP($A126,PQS!$F$5:$AW$137,MATCH(PQS!$AJ$3,PQS!$F$3:$AW$3,0),FALSE)),"") -> 
E127: =IFERROR(VLOOKUP($A127,PQS!$F$5:$AR$137,MATCH(PQS!$AN$3, PQS!$F$3:$AR$3,0),FALSE),"") ->  | F127: =IFERROR(VLOOKUP($A127,PQS!$F$5:$AW$137,MATCH(PQS!$AM$3,PQS!$F$3:$AW$3,0),FALSE),"") ->  | H127: =IFERROR(VLOOKUP($A127,PQS!$F$5:$AW$137,MATCH(PQS!$K$3,PQS!$F$3:$AW$3,0),FALSE),"") ->  | I127: =IFERROR(VLOOKUP($A127,PQS!$F$5:$AW$137,MATCH(PQS!$L$3,PQS!$F$3:$AW$3,0),FALSE),"") ->  | J127: =IFERROR(VLOOKUP($A127,PQS!$F$5:$AW$137,MATCH(PQS!$AL$3,PQS!$F$3:$AW$3,0),FALSE),"") ->  | K127: =IFERROR(VLOOKUP($A127,PQS!$F$5:$AW$137,COLUMN(PQS!$AC$5)-3,FALSE),"") ->  | L127: =IFERROR(VLOOKUP($A127,PQS!$F$5:$AW$137,MATCH(PQS!$J$3,PQS!$F$3:$AW$3,0),FALSE),"") ->  | M127: =IFERROR(VLOOKUP($A127,PQS!$F$5:$AW$137,MATCH(PQS!$AG$3,PQS!$F$3:$AW$3,0),FALSE),"") ->  | N127: =IFERROR(HYPERLINK(VLOOKUP($A127,PQS!$F$5:$AW$137,MATCH(PQS!$AK$3,PQS!$F$3:$AW$3,0),FALSE),VLOOKUP($A127,PQS!$F$5:$AW$137,MATCH(PQS!$AJ$3,PQS!$F$3:$AW$3,0),FALSE)),"") -> 
E128: =IFERROR(VLOOKUP($A128,PQS!$F$5:$AR$137,MATCH(PQS!$AN$3, PQS!$F$3:$AR$3,0),FALSE),"") ->  | F128: =IFERROR(VLOOKUP($A128,PQS!$F$5:$AW$137,MATCH(PQS!$AM$3,PQS!$F$3:$AW$3,0),FALSE),"") ->  | H128: =IFERROR(VLOOKUP($A128,PQS!$F$5:$AW$137,MATCH(PQS!$K$3,PQS!$F$3:$AW$3,0),FALSE),"") ->  | I128: =IFERROR(VLOOKUP($A128,PQS!$F$5:$AW$137,MATCH(PQS!$L$3,PQS!$F$3:$AW$3,0),FALSE),"") ->  | J128: =IFERROR(VLOOKUP($A128,PQS!$F$5:$AW$137,MATCH(PQS!$AL$3,PQS!$F$3:$AW$3,0),FALSE),"") ->  | K128: =IFERROR(VLOOKUP($A128,PQS!$F$5:$AW$137,COLUMN(PQS!$AC$5)-3,FALSE),"") ->  | L128: =IFERROR(VLOOKUP($A128,PQS!$F$5:$AW$137,MATCH(PQS!$J$3,PQS!$F$3:$AW$3,0),FALSE),"") ->  | M128: =IFERROR(VLOOKUP($A128,PQS!$F$5:$AW$137,MATCH(PQS!$AG$3,PQS!$F$3:$AW$3,0),FALSE),"") ->  | N128: =IFERROR(HYPERLINK(VLOOKUP($A128,PQS!$F$5:$AW$137,MATCH(PQS!$AK$3,PQS!$F$3:$AW$3,0),FALSE),VLOOKUP($A128,PQS!$F$5:$AW$137,MATCH(PQS!$AJ$3,PQS!$F$3:$AW$3,0),FALSE)),"") -> 
E129: =IFERROR(VLOOKUP($A129,PQS!$F$5:$AR$137,MATCH(PQS!$AN$3, PQS!$F$3:$AR$3,0),FALSE),"") ->  | F129: =IFERROR(VLOOKUP($A129,PQS!$F$5:$AW$137,MATCH(PQS!$AM$3,PQS!$F$3:$AW$3,0),FALSE),"") ->  | H129: =IFERROR(VLOOKUP($A129,PQS!$F$5:$AW$137,MATCH(PQS!$K$3,PQS!$F$3:$AW$3,0),FALSE),"") ->  | I129: =IFERROR(VLOOKUP($A129,PQS!$F$5:$AW$137,MATCH(PQS!$L$3,PQS!$F$3:$AW$3,0),FALSE),"") ->  | J129: =IFERROR(VLOOKUP($A129,PQS!$F$5:$AW$137,MATCH(PQS!$AL$3,PQS!$F$3:$AW$3,0),FALSE),"") ->  | K129: =IFERROR(VLOOKUP($A129,PQS!$F$5:$AW$137,COLUMN(PQS!$AC$5)-3,FALSE),"") ->  | L129: =IFERROR(VLOOKUP($A129,PQS!$F$5:$AW$137,MATCH(PQS!$J$3,PQS!$F$3:$AW$3,0),FALSE),"") ->  | M129: =IFERROR(VLOOKUP($A129,PQS!$F$5:$AW$137,MATCH(PQS!$AG$3,PQS!$F$3:$AW$3,0),FALSE),"") ->  | N129: =IFERROR(HYPERLINK(VLOOKUP($A129,PQS!$F$5:$AW$137,MATCH(PQS!$AK$3,PQS!$F$3:$AW$3,0),FALSE),VLOOKUP($A129,PQS!$F$5:$AW$137,MATCH(PQS!$AJ$3,PQS!$F$3:$AW$3,0),FALSE)),"") -> 
E130: =IFERROR(VLOOKUP($A130,PQS!$F$5:$AR$137,MATCH(PQS!$AN$3, PQS!$F$3:$AR$3,0),FALSE),"") ->  | F130: =IFERROR(VLOOKUP($A130,PQS!$F$5:$AW$137,MATCH(PQS!$AM$3,PQS!$F$3:$AW$3,0),FALSE),"") ->  | H130: =IFERROR(VLOOKUP($A130,PQS!$F$5:$AW$137,MATCH(PQS!$K$3,PQS!$F$3:$AW$3,0),FALSE),"") ->  | I130: =IFERROR(VLOOKUP($A130,PQS!$F$5:$AW$137,MATCH(PQS!$L$3,PQS!$F$3:$AW$3,0),FALSE),"") ->  | J130: =IFERROR(VLOOKUP($A130,PQS!$F$5:$AW$137,MATCH(PQS!$AL$3,PQS!$F$3:$AW$3,0),FALSE),"") ->  | K130: =IFERROR(VLOOKUP($A130,PQS!$F$5:$AW$137,COLUMN(PQS!$AC$5)-3,FALSE),"") ->  | L130: =IFERROR(VLOOKUP($A130,PQS!$F$5:$AW$137,MATCH(PQS!$J$3,PQS!$F$3:$AW$3,0),FALSE),"") ->  | M130: =IFERROR(VLOOKUP($A130,PQS!$F$5:$AW$137,MATCH(PQS!$AG$3,PQS!$F$3:$AW$3,0),FALSE),"") ->  | N130: =IFERROR(HYPERLINK(VLOOKUP($A130,PQS!$F$5:$AW$137,MATCH(PQS!$AK$3,PQS!$F$3:$AW$3,0),FALSE),VLOOKUP($A130,PQS!$F$5:$AW$137,MATCH(PQS!$AJ$3,PQS!$F$3:$AW$3,0),FALSE)),"") -> 
E131: =IFERROR(VLOOKUP($A131,PQS!$F$5:$AR$137,MATCH(PQS!$AN$3, PQS!$F$3:$AR$3,0),FALSE),"") ->  | F131: =IFERROR(VLOOKUP($A131,PQS!$F$5:$AW$137,MATCH(PQS!$AM$3,PQS!$F$3:$AW$3,0),FALSE),"") ->  | H131: =IFERROR(VLOOKUP($A131,PQS!$F$5:$AW$137,MATCH(PQS!$K$3,PQS!$F$3:$AW$3,0),FALSE),"") ->  | I131: =IFERROR(VLOOKUP($A131,PQS!$F$5:$AW$137,MATCH(PQS!$L$3,PQS!$F$3:$AW$3,0),FALSE),"") ->  | J131: =IFERROR(VLOOKUP($A131,PQS!$F$5:$AW$137,MATCH(PQS!$AL$3,PQS!$F$3:$AW$3,0),FALSE),"") ->  | K131: =IFERROR(VLOOKUP($A131,PQS!$F$5:$AW$137,COLUMN(PQS!$AC$5)-3,FALSE),"") ->  | L131: =IFERROR(VLOOKUP($A131,PQS!$F$5:$AW$137,MATCH(PQS!$J$3,PQS!$F$3:$AW$3,0),FALSE),"") ->  | M131: =IFERROR(VLOOKUP($A131,PQS!$F$5:$AW$137,MATCH(PQS!$AG$3,PQS!$F$3:$AW$3,0),FALSE),"") ->  | N131: =IFERROR(HYPERLINK(VLOOKUP($A131,PQS!$F$5:$AW$137,MATCH(PQS!$AK$3,PQS!$F$3:$AW$3,0),FALSE),VLOOKUP($A131,PQS!$F$5:$AW$137,MATCH(PQS!$AJ$3,PQS!$F$3:$AW$3,0),FALSE)),"") -> 
E132: =IFERROR(VLOOKUP($A132,PQS!$F$5:$AR$137,MATCH(PQS!$AN$3, PQS!$F$3:$AR$3,0),FALSE),"") ->  | F132: =IFERROR(VLOOKUP($A132,PQS!$F$5:$AW$137,MATCH(PQS!$AM$3,PQS!$F$3:$AW$3,0),FALSE),"") ->  | H132: =IFERROR(VLOOKUP($A132,PQS!$F$5:$AW$137,MATCH(PQS!$K$3,PQS!$F$3:$AW$3,0),FALSE),"") ->  | I132: =IFERROR(VLOOKUP($A132,PQS!$F$5:$AW$137,MATCH(PQS!$L$3,PQS!$F$3:$AW$3,0),FALSE),"") ->  | J132: =IFERROR(VLOOKUP($A132,PQS!$F$5:$AW$137,MATCH(PQS!$AL$3,PQS!$F$3:$AW$3,0),FALSE),"") ->  | K132: =IFERROR(VLOOKUP($A132,PQS!$F$5:$AW$137,COLUMN(PQS!$AC$5)-3,FALSE),"") ->  | L132: =IFERROR(VLOOKUP($A132,PQS!$F$5:$AW$137,MATCH(PQS!$J$3,PQS!$F$3:$AW$3,0),FALSE),"") ->  | M132: =IFERROR(VLOOKUP($A132,PQS!$F$5:$AW$137,MATCH(PQS!$AG$3,PQS!$F$3:$AW$3,0),FALSE),"") ->  | N132: =IFERROR(HYPERLINK(VLOOKUP($A132,PQS!$F$5:$AW$137,MATCH(PQS!$AK$3,PQS!$F$3:$AW$3,0),FALSE),VLOOKUP($A132,PQS!$F$5:$AW$137,MATCH(PQS!$AJ$3,PQS!$F$3:$AW$3,0),FALSE)),"") -> 
E133: =IFERROR(VLOOKUP($A133,PQS!$F$5:$AR$137,MATCH(PQS!$AN$3, PQS!$F$3:$AR$3,0),FALSE),"") ->  | F133: =IFERROR(VLOOKUP($A133,PQS!$F$5:$AW$137,MATCH(PQS!$AM$3,PQS!$F$3:$AW$3,0),FALSE),"") ->  | H133: =IFERROR(VLOOKUP($A133,PQS!$F$5:$AW$137,MATCH(PQS!$K$3,PQS!$F$3:$AW$3,0),FALSE),"") ->  | I133: =IFERROR(VLOOKUP($A133,PQS!$F$5:$AW$137,MATCH(PQS!$L$3,PQS!$F$3:$AW$3,0),FALSE),"") ->  | J133: =IFERROR(VLOOKUP($A133,PQS!$F$5:$AW$137,MATCH(PQS!$AL$3,PQS!$F$3:$AW$3,0),FALSE),"") ->  | K133: =IFERROR(VLOOKUP($A133,PQS!$F$5:$AW$137,COLUMN(PQS!$AC$5)-3,FALSE),"") ->  | L133: =IFERROR(VLOOKUP($A133,PQS!$F$5:$AW$137,MATCH(PQS!$J$3,PQS!$F$3:$AW$3,0),FALSE),"") ->  | M133: =IFERROR(VLOOKUP($A133,PQS!$F$5:$AW$137,MATCH(PQS!$AG$3,PQS!$F$3:$AW$3,0),FALSE),"") ->  | N133: =IFERROR(HYPERLINK(VLOOKUP($A133,PQS!$F$5:$AW$137,MATCH(PQS!$AK$3,PQS!$F$3:$AW$3,0),FALSE),VLOOKUP($A133,PQS!$F$5:$AW$137,MATCH(PQS!$AJ$3,PQS!$F$3:$AW$3,0),FALSE)),"") -> 
E134: =IFERROR(VLOOKUP($A134,PQS!$F$5:$AR$137,MATCH(PQS!$AN$3, PQS!$F$3:$AR$3,0),FALSE),"") ->  | F134: =IFERROR(VLOOKUP($A134,PQS!$F$5:$AW$137,MATCH(PQS!$AM$3,PQS!$F$3:$AW$3,0),FALSE),"") ->  | H134: =IFERROR(VLOOKUP($A134,PQS!$F$5:$AW$137,MATCH(PQS!$K$3,PQS!$F$3:$AW$3,0),FALSE),"") ->  | I134: =IFERROR(VLOOKUP($A134,PQS!$F$5:$AW$137,MATCH(PQS!$L$3,PQS!$F$3:$AW$3,0),FALSE),"") ->  | J134: =IFERROR(VLOOKUP($A134,PQS!$F$5:$AW$137,MATCH(PQS!$AL$3,PQS!$F$3:$AW$3,0),FALSE),"") ->  | K134: =IFERROR(VLOOKUP($A134,PQS!$F$5:$AW$137,COLUMN(PQS!$AC$5)-3,FALSE),"") ->  | L134: =IFERROR(VLOOKUP($A134,PQS!$F$5:$AW$137,MATCH(PQS!$J$3,PQS!$F$3:$AW$3,0),FALSE),"") ->  | M134: =IFERROR(VLOOKUP($A134,PQS!$F$5:$AW$137,MATCH(PQS!$AG$3,PQS!$F$3:$AW$3,0),FALSE),"") ->  | N134: =IFERROR(HYPERLINK(VLOOKUP($A134,PQS!$F$5:$AW$137,MATCH(PQS!$AK$3,PQS!$F$3:$AW$3,0),FALSE),VLOOKUP($A134,PQS!$F$5:$AW$137,MATCH(PQS!$AJ$3,PQS!$F$3:$AW$3,0),FALSE)),"") -> 
E135: =IFERROR(VLOOKUP($A135,PQS!$F$5:$AR$137,MATCH(PQS!$AN$3, PQS!$F$3:$AR$3,0),FALSE),"") ->  | F135: =IFERROR(VLOOKUP($A135,PQS!$F$5:$AW$137,MATCH(PQS!$AM$3,PQS!$F$3:$AW$3,0),FALSE),"") ->  | H135: =IFERROR(VLOOKUP($A135,PQS!$F$5:$AW$137,MATCH(PQS!$K$3,PQS!$F$3:$AW$3,0),FALSE),"") ->  | I135: =IFERROR(VLOOKUP($A135,PQS!$F$5:$AW$137,MATCH(PQS!$L$3,PQS!$F$3:$AW$3,0),FALSE),"") ->  | J135: =IFERROR(VLOOKUP($A135,PQS!$F$5:$AW$137,MATCH(PQS!$AL$3,PQS!$F$3:$AW$3,0),FALSE),"") ->  | K135: =IFERROR(VLOOKUP($A135,PQS!$F$5:$AW$137,COLUMN(PQS!$AC$5)-3,FALSE),"") ->  | L135: =IFERROR(VLOOKUP($A135,PQS!$F$5:$AW$137,MATCH(PQS!$J$3,PQS!$F$3:$AW$3,0),FALSE),"") ->  | M135: =IFERROR(VLOOKUP($A135,PQS!$F$5:$AW$137,MATCH(PQS!$AG$3,PQS!$F$3:$AW$3,0),FALSE),"") ->  | N135: =IFERROR(HYPERLINK(VLOOKUP($A135,PQS!$F$5:$AW$137,MATCH(PQS!$AK$3,PQS!$F$3:$AW$3,0),FALSE),VLOOKUP($A135,PQS!$F$5:$AW$137,MATCH(PQS!$AJ$3,PQS!$F$3:$AW$3,0),FALSE)),"") -> 
E136: =IFERROR(VLOOKUP($A136,PQS!$F$5:$AR$137,MATCH(PQS!$AN$3, PQS!$F$3:$AR$3,0),FALSE),"") ->  | F136: =IFERROR(VLOOKUP($A136,PQS!$F$5:$AW$137,MATCH(PQS!$AM$3,PQS!$F$3:$AW$3,0),FALSE),"") ->  | H136: =IFERROR(VLOOKUP($A136,PQS!$F$5:$AW$137,MATCH(PQS!$K$3,PQS!$F$3:$AW$3,0),FALSE),"") ->  | I136: =IFERROR(VLOOKUP($A136,PQS!$F$5:$AW$137,MATCH(PQS!$L$3,PQS!$F$3:$AW$3,0),FALSE),"") ->  | J136: =IFERROR(VLOOKUP($A136,PQS!$F$5:$AW$137,MATCH(PQS!$AL$3,PQS!$F$3:$AW$3,0),FALSE),"") ->  | K136: =IFERROR(VLOOKUP($A136,PQS!$F$5:$AW$137,COLUMN(PQS!$AC$5)-3,FALSE),"") ->  | L136: =IFERROR(VLOOKUP($A136,PQS!$F$5:$AW$137,MATCH(PQS!$J$3,PQS!$F$3:$AW$3,0),FALSE),"") ->  | M136: =IFERROR(VLOOKUP($A136,PQS!$F$5:$AW$137,MATCH(PQS!$AG$3,PQS!$F$3:$AW$3,0),FALSE),"") ->  | N136: =IFERROR(HYPERLINK(VLOOKUP($A136,PQS!$F$5:$AW$137,MATCH(PQS!$AK$3,PQS!$F$3:$AW$3,0),FALSE),VLOOKUP($A136,PQS!$F$5:$AW$137,MATCH(PQS!$AJ$3,PQS!$F$3:$AW$3,0),FALSE)),"") -> 
E137: =IFERROR(VLOOKUP($A137,PQS!$F$5:$AR$137,MATCH(PQS!$AN$3, PQS!$F$3:$AR$3,0),FALSE),"") ->  | F137: =IFERROR(VLOOKUP($A137,PQS!$F$5:$AW$137,MATCH(PQS!$AM$3,PQS!$F$3:$AW$3,0),FALSE),"") ->  | H137: =IFERROR(VLOOKUP($A137,PQS!$F$5:$AW$137,MATCH(PQS!$K$3,PQS!$F$3:$AW$3,0),FALSE),"") ->  | I137: =IFERROR(VLOOKUP($A137,PQS!$F$5:$AW$137,MATCH(PQS!$L$3,PQS!$F$3:$AW$3,0),FALSE),"") ->  | J137: =IFERROR(VLOOKUP($A137,PQS!$F$5:$AW$137,MATCH(PQS!$AL$3,PQS!$F$3:$AW$3,0),FALSE),"") ->  | K137: =IFERROR(VLOOKUP($A137,PQS!$F$5:$AW$137,COLUMN(PQS!$AC$5)-3,FALSE),"") ->  | L137: =IFERROR(VLOOKUP($A137,PQS!$F$5:$AW$137,MATCH(PQS!$J$3,PQS!$F$3:$AW$3,0),FALSE),"") ->  | M137: =IFERROR(VLOOKUP($A137,PQS!$F$5:$AW$137,MATCH(PQS!$AG$3,PQS!$F$3:$AW$3,0),FALSE),"") ->  | N137: =IFERROR(HYPERLINK(VLOOKUP($A137,PQS!$F$5:$AW$137,MATCH(PQS!$AK$3,PQS!$F$3:$AW$3,0),FALSE),VLOOKUP($A137,PQS!$F$5:$AW$137,MATCH(PQS!$AJ$3,PQS!$F$3:$AW$3,0),FALSE)),"") -> 
E138: =IFERROR(VLOOKUP($A138,PQS!$F$5:$AR$137,MATCH(PQS!$AN$3, PQS!$F$3:$AR$3,0),FALSE),"") ->  | F138: =IFERROR(VLOOKUP($A138,PQS!$F$5:$AW$137,MATCH(PQS!$AM$3,PQS!$F$3:$AW$3,0),FALSE),"") ->  | H138: =IFERROR(VLOOKUP($A138,PQS!$F$5:$AW$137,MATCH(PQS!$K$3,PQS!$F$3:$AW$3,0),FALSE),"") ->  | I138: =IFERROR(VLOOKUP($A138,PQS!$F$5:$AW$137,MATCH(PQS!$L$3,PQS!$F$3:$AW$3,0),FALSE),"") ->  | J138: =IFERROR(VLOOKUP($A138,PQS!$F$5:$AW$137,MATCH(PQS!$AL$3,PQS!$F$3:$AW$3,0),FALSE),"") ->  | K138: =IFERROR(VLOOKUP($A138,PQS!$F$5:$AW$137,COLUMN(PQS!$AC$5)-3,FALSE),"") ->  | L138: =IFERROR(VLOOKUP($A138,PQS!$F$5:$AW$137,MATCH(PQS!$J$3,PQS!$F$3:$AW$3,0),FALSE),"") ->  | M138: =IFERROR(VLOOKUP($A138,PQS!$F$5:$AW$137,MATCH(PQS!$AG$3,PQS!$F$3:$AW$3,0),FALSE),"") ->  | N138: =IFERROR(HYPERLINK(VLOOKUP($A138,PQS!$F$5:$AW$137,MATCH(PQS!$AK$3,PQS!$F$3:$AW$3,0),FALSE),VLOOKUP($A138,PQS!$F$5:$AW$137,MATCH(PQS!$AJ$3,PQS!$F$3:$AW$3,0),FALSE)),"") -> 
E139: =IFERROR(VLOOKUP($A139,PQS!$F$5:$AR$137,MATCH(PQS!$AN$3, PQS!$F$3:$AR$3,0),FALSE),"") ->  | F139: =IFERROR(VLOOKUP($A139,PQS!$F$5:$AW$137,MATCH(PQS!$AM$3,PQS!$F$3:$AW$3,0),FALSE),"") ->  | H139: =IFERROR(VLOOKUP($A139,PQS!$F$5:$AW$137,MATCH(PQS!$K$3,PQS!$F$3:$AW$3,0),FALSE),"") ->  | I139: =IFERROR(VLOOKUP($A139,PQS!$F$5:$AW$137,MATCH(PQS!$L$3,PQS!$F$3:$AW$3,0),FALSE),"") ->  | J139: =IFERROR(VLOOKUP($A139,PQS!$F$5:$AW$137,MATCH(PQS!$AL$3,PQS!$F$3:$AW$3,0),FALSE),"") ->  | K139: =IFERROR(VLOOKUP($A139,PQS!$F$5:$AW$137,COLUMN(PQS!$AC$5)-3,FALSE),"") ->  | L139: =IFERROR(VLOOKUP($A139,PQS!$F$5:$AW$137,MATCH(PQS!$J$3,PQS!$F$3:$AW$3,0),FALSE),"") ->  | M139: =IFERROR(VLOOKUP($A139,PQS!$F$5:$AW$137,MATCH(PQS!$AG$3,PQS!$F$3:$AW$3,0),FALSE),"") ->  | N139: =IFERROR(HYPERLINK(VLOOKUP($A139,PQS!$F$5:$AW$137,MATCH(PQS!$AK$3,PQS!$F$3:$AW$3,0),FALSE),VLOOKUP($A139,PQS!$F$5:$AW$137,MATCH(PQS!$AJ$3,PQS!$F$3:$AW$3,0),FALSE)),"") -> 
E140: =IFERROR(VLOOKUP($A140,PQS!$F$5:$AR$137,MATCH(PQS!$AN$3, PQS!$F$3:$AR$3,0),FALSE),"") ->  | F140: =IFERROR(VLOOKUP($A140,PQS!$F$5:$AW$137,MATCH(PQS!$AM$3,PQS!$F$3:$AW$3,0),FALSE),"") ->  | H140: =IFERROR(VLOOKUP($A140,PQS!$F$5:$AW$137,MATCH(PQS!$K$3,PQS!$F$3:$AW$3,0),FALSE),"") ->  | I140: =IFERROR(VLOOKUP($A140,PQS!$F$5:$AW$137,MATCH(PQS!$L$3,PQS!$F$3:$AW$3,0),FALSE),"") ->  | J140: =IFERROR(VLOOKUP($A140,PQS!$F$5:$AW$137,MATCH(PQS!$AL$3,PQS!$F$3:$AW$3,0),FALSE),"") ->  | K140: =IFERROR(VLOOKUP($A140,PQS!$F$5:$AW$137,COLUMN(PQS!$AC$5)-3,FALSE),"") ->  | L140: =IFERROR(VLOOKUP($A140,PQS!$F$5:$AW$137,MATCH(PQS!$J$3,PQS!$F$3:$AW$3,0),FALSE),"") ->  | M140: =IFERROR(VLOOKUP($A140,PQS!$F$5:$AW$137,MATCH(PQS!$AG$3,PQS!$F$3:$AW$3,0),FALSE),"") ->  | N140: =IFERROR(HYPERLINK(VLOOKUP($A140,PQS!$F$5:$AW$137,MATCH(PQS!$AK$3,PQS!$F$3:$AW$3,0),FALSE),VLOOKUP($A140,PQS!$F$5:$AW$137,MATCH(PQS!$AJ$3,PQS!$F$3:$AW$3,0),FALSE)),"") -> 
E141: =IFERROR(VLOOKUP($A141,PQS!$F$5:$AR$137,MATCH(PQS!$AN$3, PQS!$F$3:$AR$3,0),FALSE),"") ->  | F141: =IFERROR(VLOOKUP($A141,PQS!$F$5:$AW$137,MATCH(PQS!$AM$3,PQS!$F$3:$AW$3,0),FALSE),"") ->  | H141: =IFERROR(VLOOKUP($A141,PQS!$F$5:$AW$137,MATCH(PQS!$K$3,PQS!$F$3:$AW$3,0),FALSE),"") ->  | I141: =IFERROR(VLOOKUP($A141,PQS!$F$5:$AW$137,MATCH(PQS!$L$3,PQS!$F$3:$AW$3,0),FALSE),"") ->  | J141: =IFERROR(VLOOKUP($A141,PQS!$F$5:$AW$137,MATCH(PQS!$AL$3,PQS!$F$3:$AW$3,0),FALSE),"") ->  | K141: =IFERROR(VLOOKUP($A141,PQS!$F$5:$AW$137,COLUMN(PQS!$AC$5)-3,FALSE),"") ->  | L141: =IFERROR(VLOOKUP($A141,PQS!$F$5:$AW$137,MATCH(PQS!$J$3,PQS!$F$3:$AW$3,0),FALSE),"") ->  | M141: =IFERROR(VLOOKUP($A141,PQS!$F$5:$AW$137,MATCH(PQS!$AG$3,PQS!$F$3:$AW$3,0),FALSE),"") ->  | N141: =IFERROR(HYPERLINK(VLOOKUP($A141,PQS!$F$5:$AW$137,MATCH(PQS!$AK$3,PQS!$F$3:$AW$3,0),FALSE),VLOOKUP($A141,PQS!$F$5:$AW$137,MATCH(PQS!$AJ$3,PQS!$F$3:$AW$3,0),FALSE)),"") -> 
E142: =IFERROR(VLOOKUP($A142,PQS!$F$5:$AR$137,MATCH(PQS!$AN$3, PQS!$F$3:$AR$3,0),FALSE),"") ->  | F142: =IFERROR(VLOOKUP($A142,PQS!$F$5:$AW$137,MATCH(PQS!$AM$3,PQS!$F$3:$AW$3,0),FALSE),"") ->  | H142: =IFERROR(VLOOKUP($A142,PQS!$F$5:$AW$137,MATCH(PQS!$K$3,PQS!$F$3:$AW$3,0),FALSE),"") ->  | I142: =IFERROR(VLOOKUP($A142,PQS!$F$5:$AW$137,MATCH(PQS!$L$3,PQS!$F$3:$AW$3,0),FALSE),"") ->  | J142: =IFERROR(VLOOKUP($A142,PQS!$F$5:$AW$137,MATCH(PQS!$AL$3,PQS!$F$3:$AW$3,0),FALSE),"") ->  | K142: =IFERROR(VLOOKUP($A142,PQS!$F$5:$AW$137,COLUMN(PQS!$AC$5)-3,FALSE),"") ->  | L142: =IFERROR(VLOOKUP($A142,PQS!$F$5:$AW$137,MATCH(PQS!$J$3,PQS!$F$3:$AW$3,0),FALSE),"") ->  | M142: =IFERROR(VLOOKUP($A142,PQS!$F$5:$AW$137,MATCH(PQS!$AG$3,PQS!$F$3:$AW$3,0),FALSE),"") ->  | N142: =IFERROR(HYPERLINK(VLOOKUP($A142,PQS!$F$5:$AW$137,MATCH(PQS!$AK$3,PQS!$F$3:$AW$3,0),FALSE),VLOOKUP($A142,PQS!$F$5:$AW$137,MATCH(PQS!$AJ$3,PQS!$F$3:$AW$3,0),FALSE)),"") -> 
E143: =IFERROR(VLOOKUP($A143,PQS!$F$5:$AR$137,MATCH(PQS!$AN$3, PQS!$F$3:$AR$3,0),FALSE),"") ->  | F143: =IFERROR(VLOOKUP($A143,PQS!$F$5:$AW$137,MATCH(PQS!$AM$3,PQS!$F$3:$AW$3,0),FALSE),"") ->  | H143: =IFERROR(VLOOKUP($A143,PQS!$F$5:$AW$137,MATCH(PQS!$K$3,PQS!$F$3:$AW$3,0),FALSE),"") ->  | I143: =IFERROR(VLOOKUP($A143,PQS!$F$5:$AW$137,MATCH(PQS!$L$3,PQS!$F$3:$AW$3,0),FALSE),"") ->  | J143: =IFERROR(VLOOKUP($A143,PQS!$F$5:$AW$137,MATCH(PQS!$AL$3,PQS!$F$3:$AW$3,0),FALSE),"") ->  | K143: =IFERROR(VLOOKUP($A143,PQS!$F$5:$AW$137,COLUMN(PQS!$AC$5)-3,FALSE),"") ->  | L143: =IFERROR(VLOOKUP($A143,PQS!$F$5:$AW$137,MATCH(PQS!$J$3,PQS!$F$3:$AW$3,0),FALSE),"") ->  | M143: =IFERROR(VLOOKUP($A143,PQS!$F$5:$AW$137,MATCH(PQS!$AG$3,PQS!$F$3:$AW$3,0),FALSE),"") ->  | N143: =IFERROR(HYPERLINK(VLOOKUP($A143,PQS!$F$5:$AW$137,MATCH(PQS!$AK$3,PQS!$F$3:$AW$3,0),FALSE),VLOOKUP($A143,PQS!$F$5:$AW$137,MATCH(PQS!$AJ$3,PQS!$F$3:$AW$3,0),FALSE)),"") -> 
E144: =IFERROR(VLOOKUP($A144,PQS!$F$5:$AR$137,MATCH(PQS!$AN$3, PQS!$F$3:$AR$3,0),FALSE),"") ->  | F144: =IFERROR(VLOOKUP($A144,PQS!$F$5:$AW$137,MATCH(PQS!$AM$3,PQS!$F$3:$AW$3,0),FALSE),"") ->  | H144: =IFERROR(VLOOKUP($A144,PQS!$F$5:$AW$137,MATCH(PQS!$K$3,PQS!$F$3:$AW$3,0),FALSE),"") ->  | I144: =IFERROR(VLOOKUP($A144,PQS!$F$5:$AW$137,MATCH(PQS!$L$3,PQS!$F$3:$AW$3,0),FALSE),"") ->  | J144: =IFERROR(VLOOKUP($A144,PQS!$F$5:$AW$137,MATCH(PQS!$AL$3,PQS!$F$3:$AW$3,0),FALSE),"") ->  | K144: =IFERROR(VLOOKUP($A144,PQS!$F$5:$AW$137,COLUMN(PQS!$AC$5)-3,FALSE),"") ->  | L144: =IFERROR(VLOOKUP($A144,PQS!$F$5:$AW$137,MATCH(PQS!$J$3,PQS!$F$3:$AW$3,0),FALSE),"") ->  | M144: =IFERROR(VLOOKUP($A144,PQS!$F$5:$AW$137,MATCH(PQS!$AG$3,PQS!$F$3:$AW$3,0),FALSE),"") ->  | N144: =IFERROR(HYPERLINK(VLOOKUP($A144,PQS!$F$5:$AW$137,MATCH(PQS!$AK$3,PQS!$F$3:$AW$3,0),FALSE),VLOOKUP($A144,PQS!$F$5:$AW$137,MATCH(PQS!$AJ$3,PQS!$F$3:$AW$3,0),FALSE)),"") -> 
E145: =IFERROR(VLOOKUP($A145,PQS!$F$5:$AR$137,MATCH(PQS!$AN$3, PQS!$F$3:$AR$3,0),FALSE),"") ->  | F145: =IFERROR(VLOOKUP($A145,PQS!$F$5:$AW$137,MATCH(PQS!$AM$3,PQS!$F$3:$AW$3,0),FALSE),"") ->  | H145: =IFERROR(VLOOKUP($A145,PQS!$F$5:$AW$137,MATCH(PQS!$K$3,PQS!$F$3:$AW$3,0),FALSE),"") ->  | I145: =IFERROR(VLOOKUP($A145,PQS!$F$5:$AW$137,MATCH(PQS!$L$3,PQS!$F$3:$AW$3,0),FALSE),"") ->  | J145: =IFERROR(VLOOKUP($A145,PQS!$F$5:$AW$137,MATCH(PQS!$AL$3,PQS!$F$3:$AW$3,0),FALSE),"") ->  | K145: =IFERROR(VLOOKUP($A145,PQS!$F$5:$AW$137,COLUMN(PQS!$AC$5)-3,FALSE),"") ->  | L145: =IFERROR(VLOOKUP($A145,PQS!$F$5:$AW$137,MATCH(PQS!$J$3,PQS!$F$3:$AW$3,0),FALSE),"") ->  | M145: =IFERROR(VLOOKUP($A145,PQS!$F$5:$AW$137,MATCH(PQS!$AG$3,PQS!$F$3:$AW$3,0),FALSE),"") ->  | N145: =IFERROR(HYPERLINK(VLOOKUP($A145,PQS!$F$5:$AW$137,MATCH(PQS!$AK$3,PQS!$F$3:$AW$3,0),FALSE),VLOOKUP($A145,PQS!$F$5:$AW$137,MATCH(PQS!$AJ$3,PQS!$F$3:$AW$3,0),FALSE)),"") -> 
E146: =IFERROR(VLOOKUP($A146,PQS!$F$5:$AR$137,MATCH(PQS!$AN$3, PQS!$F$3:$AR$3,0),FALSE),"") ->  | F146: =IFERROR(VLOOKUP($A146,PQS!$F$5:$AW$137,MATCH(PQS!$AM$3,PQS!$F$3:$AW$3,0),FALSE),"") ->  | H146: =IFERROR(VLOOKUP($A146,PQS!$F$5:$AW$137,MATCH(PQS!$K$3,PQS!$F$3:$AW$3,0),FALSE),"") ->  | I146: =IFERROR(VLOOKUP($A146,PQS!$F$5:$AW$137,MATCH(PQS!$L$3,PQS!$F$3:$AW$3,0),FALSE),"") ->  | J146: =IFERROR(VLOOKUP($A146,PQS!$F$5:$AW$137,MATCH(PQS!$AL$3,PQS!$F$3:$AW$3,0),FALSE),"") ->  | K146: =IFERROR(VLOOKUP($A146,PQS!$F$5:$AW$137,COLUMN(PQS!$AC$5)-3,FALSE),"") ->  | L146: =IFERROR(VLOOKUP($A146,PQS!$F$5:$AW$137,MATCH(PQS!$J$3,PQS!$F$3:$AW$3,0),FALSE),"") ->  | M146: =IFERROR(VLOOKUP($A146,PQS!$F$5:$AW$137,MATCH(PQS!$AG$3,PQS!$F$3:$AW$3,0),FALSE),"") ->  | N146: =IFERROR(HYPERLINK(VLOOKUP($A146,PQS!$F$5:$AW$137,MATCH(PQS!$AK$3,PQS!$F$3:$AW$3,0),FALSE),VLOOKUP($A146,PQS!$F$5:$AW$137,MATCH(PQS!$AJ$3,PQS!$F$3:$AW$3,0),FALSE)),"") -> 
E147: =IFERROR(VLOOKUP($A147,PQS!$F$5:$AR$137,MATCH(PQS!$AN$3, PQS!$F$3:$AR$3,0),FALSE),"") ->  | F147: =IFERROR(VLOOKUP($A147,PQS!$F$5:$AW$137,MATCH(PQS!$AM$3,PQS!$F$3:$AW$3,0),FALSE),"") ->  | H147: =IFERROR(VLOOKUP($A147,PQS!$F$5:$AW$137,MATCH(PQS!$K$3,PQS!$F$3:$AW$3,0),FALSE),"") ->  | I147: =IFERROR(VLOOKUP($A147,PQS!$F$5:$AW$137,MATCH(PQS!$L$3,PQS!$F$3:$AW$3,0),FALSE),"") ->  | J147: =IFERROR(VLOOKUP($A147,PQS!$F$5:$AW$137,MATCH(PQS!$AL$3,PQS!$F$3:$AW$3,0),FALSE),"") ->  | K147: =IFERROR(VLOOKUP($A147,PQS!$F$5:$AW$137,COLUMN(PQS!$AC$5)-3,FALSE),"") ->  | L147: =IFERROR(VLOOKUP($A147,PQS!$F$5:$AW$137,MATCH(PQS!$J$3,PQS!$F$3:$AW$3,0),FALSE),"") ->  | M147: =IFERROR(VLOOKUP($A147,PQS!$F$5:$AW$137,MATCH(PQS!$AG$3,PQS!$F$3:$AW$3,0),FALSE),"") ->  | N147: =IFERROR(HYPERLINK(VLOOKUP($A147,PQS!$F$5:$AW$137,MATCH(PQS!$AK$3,PQS!$F$3:$AW$3,0),FALSE),VLOOKUP($A147,PQS!$F$5:$AW$137,MATCH(PQS!$AJ$3,PQS!$F$3:$AW$3,0),FALSE)),"") -> 
E148: =IFERROR(VLOOKUP($A148,PQS!$F$5:$AR$137,MATCH(PQS!$AN$3, PQS!$F$3:$AR$3,0),FALSE),"") ->  | F148: =IFERROR(VLOOKUP($A148,PQS!$F$5:$AW$137,MATCH(PQS!$AM$3,PQS!$F$3:$AW$3,0),FALSE),"") ->  | H148: =IFERROR(VLOOKUP($A148,PQS!$F$5:$AW$137,MATCH(PQS!$K$3,PQS!$F$3:$AW$3,0),FALSE),"") ->  | I148: =IFERROR(VLOOKUP($A148,PQS!$F$5:$AW$137,MATCH(PQS!$L$3,PQS!$F$3:$AW$3,0),FALSE),"") ->  | J148: =IFERROR(VLOOKUP($A148,PQS!$F$5:$AW$137,MATCH(PQS!$AL$3,PQS!$F$3:$AW$3,0),FALSE),"") ->  | K148: =IFERROR(VLOOKUP($A148,PQS!$F$5:$AW$137,COLUMN(PQS!$AC$5)-3,FALSE),"") ->  | L148: =IFERROR(VLOOKUP($A148,PQS!$F$5:$AW$137,MATCH(PQS!$J$3,PQS!$F$3:$AW$3,0),FALSE),"") ->  | M148: =IFERROR(VLOOKUP($A148,PQS!$F$5:$AW$137,MATCH(PQS!$AG$3,PQS!$F$3:$AW$3,0),FALSE),"") ->  | N148: =IFERROR(HYPERLINK(VLOOKUP($A148,PQS!$F$5:$AW$137,MATCH(PQS!$AK$3,PQS!$F$3:$AW$3,0),FALSE),VLOOKUP($A148,PQS!$F$5:$AW$137,MATCH(PQS!$AJ$3,PQS!$F$3:$AW$3,0),FALSE)),"") -> 
E149: =IFERROR(VLOOKUP($A149,PQS!$F$5:$AR$137,MATCH(PQS!$AN$3, PQS!$F$3:$AR$3,0),FALSE),"") ->  | F149: =IFERROR(VLOOKUP($A149,PQS!$F$5:$AW$137,MATCH(PQS!$AM$3,PQS!$F$3:$AW$3,0),FALSE),"") ->  | H149: =IFERROR(VLOOKUP($A149,PQS!$F$5:$AW$137,MATCH(PQS!$K$3,PQS!$F$3:$AW$3,0),FALSE),"") ->  | I149: =IFERROR(VLOOKUP($A149,PQS!$F$5:$AW$137,MATCH(PQS!$L$3,PQS!$F$3:$AW$3,0),FALSE),"") ->  | J149: =IFERROR(VLOOKUP($A149,PQS!$F$5:$AW$137,MATCH(PQS!$AL$3,PQS!$F$3:$AW$3,0),FALSE),"") ->  | K149: =IFERROR(VLOOKUP($A149,PQS!$F$5:$AW$137,COLUMN(PQS!$AC$5)-3,FALSE),"") ->  | L149: =IFERROR(VLOOKUP($A149,PQS!$F$5:$AW$137,MATCH(PQS!$J$3,PQS!$F$3:$AW$3,0),FALSE),"") ->  | M149: =IFERROR(VLOOKUP($A149,PQS!$F$5:$AW$137,MATCH(PQS!$AG$3,PQS!$F$3:$AW$3,0),FALSE),"") ->  | N149: =IFERROR(HYPERLINK(VLOOKUP($A149,PQS!$F$5:$AW$137,MATCH(PQS!$AK$3,PQS!$F$3:$AW$3,0),FALSE),VLOOKUP($A149,PQS!$F$5:$AW$137,MATCH(PQS!$AJ$3,PQS!$F$3:$AW$3,0),FALSE)),"") -> 
E150: =IFERROR(VLOOKUP($A150,PQS!$F$5:$AR$137,MATCH(PQS!$AN$3, PQS!$F$3:$AR$3,0),FALSE),"") ->  | F150: =IFERROR(VLOOKUP($A150,PQS!$F$5:$AW$137,MATCH(PQS!$AM$3,PQS!$F$3:$AW$3,0),FALSE),"") ->  | H150: =IFERROR(VLOOKUP($A150,PQS!$F$5:$AW$137,MATCH(PQS!$K$3,PQS!$F$3:$AW$3,0),FALSE),"") ->  | I150: =IFERROR(VLOOKUP($A150,PQS!$F$5:$AW$137,MATCH(PQS!$L$3,PQS!$F$3:$AW$3,0),FALSE),"") ->  | J150: =IFERROR(VLOOKUP($A150,PQS!$F$5:$AW$137,MATCH(PQS!$AL$3,PQS!$F$3:$AW$3,0),FALSE),"") ->  | K150: =IFERROR(VLOOKUP($A150,PQS!$F$5:$AW$137,COLUMN(PQS!$AC$5)-3,FALSE),"") ->  | L150: =IFERROR(VLOOKUP($A150,PQS!$F$5:$AW$137,MATCH(PQS!$J$3,PQS!$F$3:$AW$3,0),FALSE),"") ->  | M150: =IFERROR(VLOOKUP($A150,PQS!$F$5:$AW$137,MATCH(PQS!$AG$3,PQS!$F$3:$AW$3,0),FALSE),"") ->  | N150: =IFERROR(HYPERLINK(VLOOKUP($A150,PQS!$F$5:$AW$137,MATCH(PQS!$AK$3,PQS!$F$3:$AW$3,0),FALSE),VLOOKUP($A150,PQS!$F$5:$AW$137,MATCH(PQS!$AJ$3,PQS!$F$3:$AW$3,0),FALSE)),"") -> 
E151: =IFERROR(VLOOKUP($A151,PQS!$F$5:$AR$137,MATCH(PQS!$AN$3, PQS!$F$3:$AR$3,0),FALSE),"") ->  | F151: =IFERROR(VLOOKUP($A151,PQS!$F$5:$AW$137,MATCH(PQS!$AM$3,PQS!$F$3:$AW$3,0),FALSE),"") ->  | H151: =IFERROR(VLOOKUP($A151,PQS!$F$5:$AW$137,MATCH(PQS!$K$3,PQS!$F$3:$AW$3,0),FALSE),"") ->  | I151: =IFERROR(VLOOKUP($A151,PQS!$F$5:$AW$137,MATCH(PQS!$L$3,PQS!$F$3:$AW$3,0),FALSE),"") ->  | J151: =IFERROR(VLOOKUP($A151,PQS!$F$5:$AW$137,MATCH(PQS!$AL$3,PQS!$F$3:$AW$3,0),FALSE),"") ->  | K151: =IFERROR(VLOOKUP($A151,PQS!$F$5:$AW$137,COLUMN(PQS!$AC$5)-3,FALSE),"") ->  | L151: =IFERROR(VLOOKUP($A151,PQS!$F$5:$AW$137,MATCH(PQS!$J$3,PQS!$F$3:$AW$3,0),FALSE),"") ->  | M151: =IFERROR(VLOOKUP($A151,PQS!$F$5:$AW$137,MATCH(PQS!$AG$3,PQS!$F$3:$AW$3,0),FALSE),"") ->  | N151: =IFERROR(HYPERLINK(VLOOKUP($A151,PQS!$F$5:$AW$137,MATCH(PQS!$AK$3,PQS!$F$3:$AW$3,0),FALSE),VLOOKUP($A151,PQS!$F$5:$AW$137,MATCH(PQS!$AJ$3,PQS!$F$3:$AW$3,0),FALSE)),"") -> 
E152: =IFERROR(VLOOKUP($A152,PQS!$F$5:$AR$137,MATCH(PQS!$AN$3, PQS!$F$3:$AR$3,0),FALSE),"") ->  | F152: =IFERROR(VLOOKUP($A152,PQS!$F$5:$AW$137,MATCH(PQS!$AM$3,PQS!$F$3:$AW$3,0),FALSE),"") ->  | H152: =IFERROR(VLOOKUP($A152,PQS!$F$5:$AW$137,MATCH(PQS!$K$3,PQS!$F$3:$AW$3,0),FALSE),"") ->  | I152: =IFERROR(VLOOKUP($A152,PQS!$F$5:$AW$137,MATCH(PQS!$L$3,PQS!$F$3:$AW$3,0),FALSE),"") ->  | J152: =IFERROR(VLOOKUP($A152,PQS!$F$5:$AW$137,MATCH(PQS!$AL$3,PQS!$F$3:$AW$3,0),FALSE),"") ->  | K152: =IFERROR(VLOOKUP($A152,PQS!$F$5:$AW$137,COLUMN(PQS!$AC$5)-3,FALSE),"") ->  | L152: =IFERROR(VLOOKUP($A152,PQS!$F$5:$AW$137,MATCH(PQS!$J$3,PQS!$F$3:$AW$3,0),FALSE),"") ->  | M152: =IFERROR(VLOOKUP($A152,PQS!$F$5:$AW$137,MATCH(PQS!$AG$3,PQS!$F$3:$AW$3,0),FALSE),"") ->  | N152: =IFERROR(HYPERLINK(VLOOKUP($A152,PQS!$F$5:$AW$137,MATCH(PQS!$AK$3,PQS!$F$3:$AW$3,0),FALSE),VLOOKUP($A152,PQS!$F$5:$AW$137,MATCH(PQS!$AJ$3,PQS!$F$3:$AW$3,0),FALSE)),"") -> 
E153: =IFERROR(VLOOKUP($A153,PQS!$F$5:$AR$137,MATCH(PQS!$AN$3, PQS!$F$3:$AR$3,0),FALSE),"") ->  | F153: =IFERROR(VLOOKUP($A153,PQS!$F$5:$AW$137,MATCH(PQS!$AM$3,PQS!$F$3:$AW$3,0),FALSE),"") ->  | H153: =IFERROR(VLOOKUP($A153,PQS!$F$5:$AW$137,MATCH(PQS!$K$3,PQS!$F$3:$AW$3,0),FALSE),"") ->  | I153: =IFERROR(VLOOKUP($A153,PQS!$F$5:$AW$137,MATCH(PQS!$L$3,PQS!$F$3:$AW$3,0),FALSE),"") ->  | J153: =IFERROR(VLOOKUP($A153,PQS!$F$5:$AW$137,MATCH(PQS!$AL$3,PQS!$F$3:$AW$3,0),FALSE),"") ->  | K153: =IFERROR(VLOOKUP($A153,PQS!$F$5:$AW$137,COLUMN(PQS!$AC$5)-3,FALSE),"") ->  | L153: =IFERROR(VLOOKUP($A153,PQS!$F$5:$AW$137,MATCH(PQS!$J$3,PQS!$F$3:$AW$3,0),FALSE),"") ->  | M153: =IFERROR(VLOOKUP($A153,PQS!$F$5:$AW$137,MATCH(PQS!$AG$3,PQS!$F$3:$AW$3,0),FALSE),"") ->  | N153: =IFERROR(HYPERLINK(VLOOKUP($A153,PQS!$F$5:$AW$137,MATCH(PQS!$AK$3,PQS!$F$3:$AW$3,0),FALSE),VLOOKUP($A153,PQS!$F$5:$AW$137,MATCH(PQS!$AJ$3,PQS!$F$3:$AW$3,0),FALSE)),"") -> 
E154: =IFERROR(VLOOKUP($A154,PQS!$F$5:$AR$137,MATCH(PQS!$AN$3, PQS!$F$3:$AR$3,0),FALSE),"") ->  | F154: =IFERROR(VLOOKUP($A154,PQS!$F$5:$AW$137,MATCH(PQS!$AM$3,PQS!$F$3:$AW$3,0),FALSE),"") ->  | H154: =IFERROR(VLOOKUP($A154,PQS!$F$5:$AW$137,MATCH(PQS!$K$3,PQS!$F$3:$AW$3,0),FALSE),"") ->  | I154: =IFERROR(VLOOKUP($A154,PQS!$F$5:$AW$137,MATCH(PQS!$L$3,PQS!$F$3:$AW$3,0),FALSE),"") ->  | J154: =IFERROR(VLOOKUP($A154,PQS!$F$5:$AW$137,MATCH(PQS!$AL$3,PQS!$F$3:$AW$3,0),FALSE),"") ->  | K154: =IFERROR(VLOOKUP($A154,PQS!$F$5:$AW$137,COLUMN(PQS!$AC$5)-3,FALSE),"") ->  | L154: =IFERROR(VLOOKUP($A154,PQS!$F$5:$AW$137,MATCH(PQS!$J$3,PQS!$F$3:$AW$3,0),FALSE),"") ->  | M154: =IFERROR(VLOOKUP($A154,PQS!$F$5:$AW$137,MATCH(PQS!$AG$3,PQS!$F$3:$AW$3,0),FALSE),"") ->  | N154: =IFERROR(HYPERLINK(VLOOKUP($A154,PQS!$F$5:$AW$137,MATCH(PQS!$AK$3,PQS!$F$3:$AW$3,0),FALSE),VLOOKUP($A154,PQS!$F$5:$AW$137,MATCH(PQS!$AJ$3,PQS!$F$3:$AW$3,0),FALSE)),"") -> 
E155: =IFERROR(VLOOKUP($A155,PQS!$F$5:$AR$137,MATCH(PQS!$AN$3, PQS!$F$3:$AR$3,0),FALSE),"") ->  | F155: =IFERROR(VLOOKUP($A155,PQS!$F$5:$AW$137,MATCH(PQS!$AM$3,PQS!$F$3:$AW$3,0),FALSE),"") ->  | H155: =IFERROR(VLOOKUP($A155,PQS!$F$5:$AW$137,MATCH(PQS!$K$3,PQS!$F$3:$AW$3,0),FALSE),"") ->  | I155: =IFERROR(VLOOKUP($A155,PQS!$F$5:$AW$137,MATCH(PQS!$L$3,PQS!$F$3:$AW$3,0),FALSE),"") ->  | J155: =IFERROR(VLOOKUP($A155,PQS!$F$5:$AW$137,MATCH(PQS!$AL$3,PQS!$F$3:$AW$3,0),FALSE),"") ->  | K155: =IFERROR(VLOOKUP($A155,PQS!$F$5:$AW$137,COLUMN(PQS!$AC$5)-3,FALSE),"") ->  | L155: =IFERROR(VLOOKUP($A155,PQS!$F$5:$AW$137,MATCH(PQS!$J$3,PQS!$F$3:$AW$3,0),FALSE),"") ->  | M155: =IFERROR(VLOOKUP($A155,PQS!$F$5:$AW$137,MATCH(PQS!$AG$3,PQS!$F$3:$AW$3,0),FALSE),"") ->  | N155: =IFERROR(HYPERLINK(VLOOKUP($A155,PQS!$F$5:$AW$137,MATCH(PQS!$AK$3,PQS!$F$3:$AW$3,0),FALSE),VLOOKUP($A155,PQS!$F$5:$AW$137,MATCH(PQS!$AJ$3,PQS!$F$3:$AW$3,0),FALSE)),"") -> 
E156: =IFERROR(VLOOKUP($A156,PQS!$F$5:$AR$137,MATCH(PQS!$AN$3, PQS!$F$3:$AR$3,0),FALSE),"") ->  | F156: =IFERROR(VLOOKUP($A156,PQS!$F$5:$AW$137,MATCH(PQS!$AM$3,PQS!$F$3:$AW$3,0),FALSE),"") ->  | G156: =IF(E156="","",(B156/C156)) ->  | H156: =IFERROR(VLOOKUP($A156,PQS!$F$5:$AW$137,MATCH(PQS!$K$3,PQS!$F$3:$AW$3,0),FALSE),"") ->  | I156: =IFERROR(VLOOKUP($A156,PQS!$F$5:$AW$137,MATCH(PQS!$L$3,PQS!$F$3:$AW$3,0),FALSE),"") ->  | J156: =IFERROR(VLOOKUP($A156,PQS!$F$5:$AW$137,MATCH(PQS!$AL$3,PQS!$F$3:$AW$3,0),FALSE),"") ->  | K156: =IFERROR(VLOOKUP($A156,PQS!$F$5:$AW$137,COLUMN(PQS!$AC$5)-3,FALSE),"") ->  | L156: =IFERROR(VLOOKUP($A156,PQS!$F$5:$AW$137,MATCH(PQS!$J$3,PQS!$F$3:$AW$3,0),FALSE),"") ->  | M156: =IFERROR(VLOOKUP($A156,PQS!$F$5:$AW$137,MATCH(PQS!$AG$3,PQS!$F$3:$AW$3,0),FALSE),"") ->  | N156: =IFERROR(HYPERLINK(VLOOKUP($A156,PQS!$F$5:$AW$137,MATCH(PQS!$AK$3,PQS!$F$3:$AW$3,0),FALSE),VLOOKUP($A156,PQS!$F$5:$AW$137,MATCH(PQS!$AJ$3,PQS!$F$3:$AW$3,0),FALSE)),"") -> 
E157: =IFERROR(VLOOKUP($A157,PQS!$F$5:$AR$137,MATCH(PQS!$AN$3, PQS!$F$3:$AR$3,0),FALSE),"") ->  | F157: =IFERROR(VLOOKUP($A157,PQS!$F$5:$AW$137,MATCH(PQS!$AM$3,PQS!$F$3:$AW$3,0),FALSE),"") ->  | H157: =IFERROR(VLOOKUP($A157,PQS!$F$5:$AW$137,MATCH(PQS!$K$3,PQS!$F$3:$AW$3,0),FALSE),"") ->  | I157: =IFERROR(VLOOKUP($A157,PQS!$F$5:$AW$137,MATCH(PQS!$L$3,PQS!$F$3:$AW$3,0),FALSE),"") ->  | J157: =IFERROR(VLOOKUP($A157,PQS!$F$5:$AW$137,MATCH(PQS!$AL$3,PQS!$F$3:$AW$3,0),FALSE),"") ->  | K157: =IFERROR(VLOOKUP($A157,PQS!$F$5:$AW$137,COLUMN(PQS!$AC$5)-3,FALSE),"") ->  | L157: =IFERROR(VLOOKUP($A157,PQS!$F$5:$AW$137,MATCH(PQS!$J$3,PQS!$F$3:$AW$3,0),FALSE),"") ->  | M157: =IFERROR(VLOOKUP($A157,PQS!$F$5:$AW$137,MATCH(PQS!$AG$3,PQS!$F$3:$AW$3,0),FALSE),"") ->  | N157: =IFERROR(HYPERLINK(VLOOKUP($A157,PQS!$F$5:$AW$137,MATCH(PQS!$AK$3,PQS!$F$3:$AW$3,0),FALSE),VLOOKUP($A157,PQS!$F$5:$AW$137,MATCH(PQS!$AJ$3,PQS!$F$3:$AW$3,0),FALSE)),"") -> 
E158: =IFERROR(VLOOKUP($A158,PQS!$F$5:$AR$137,MATCH(PQS!$AN$3, PQS!$F$3:$AR$3,0),FALSE),"") ->  | F158: =IFERROR(VLOOKUP($A158,PQS!$F$5:$AW$137,MATCH(PQS!$AM$3,PQS!$F$3:$AW$3,0),FALSE),"") ->  | H158: =IFERROR(VLOOKUP($A158,PQS!$F$5:$AW$137,MATCH(PQS!$K$3,PQS!$F$3:$AW$3,0),FALSE),"") ->  | I158: =IFERROR(VLOOKUP($A158,PQS!$F$5:$AW$137,MATCH(PQS!$L$3,PQS!$F$3:$AW$3,0),FALSE),"") ->  | J158: =IFERROR(VLOOKUP($A158,PQS!$F$5:$AW$137,MATCH(PQS!$AL$3,PQS!$F$3:$AW$3,0),FALSE),"") ->  | K158: =IFERROR(VLOOKUP($A158,PQS!$F$5:$AW$137,COLUMN(PQS!$AC$5)-3,FALSE),"") ->  | L158: =IFERROR(VLOOKUP($A158,PQS!$F$5:$AW$137,MATCH(PQS!$J$3,PQS!$F$3:$AW$3,0),FALSE),"") ->  | M158: =IFERROR(VLOOKUP($A158,PQS!$F$5:$AW$137,MATCH(PQS!$AG$3,PQS!$F$3:$AW$3,0),FALSE),"") ->  | N158: =IFERROR(HYPERLINK(VLOOKUP($A158,PQS!$F$5:$AW$137,MATCH(PQS!$AK$3,PQS!$F$3:$AW$3,0),FALSE),VLOOKUP($A158,PQS!$F$5:$AW$137,MATCH(PQS!$AJ$3,PQS!$F$3:$AW$3,0),FALSE)),"") -> 
E159: =IFERROR(VLOOKUP($A159,PQS!$F$5:$AR$137,MATCH(PQS!$AN$3, PQS!$F$3:$AR$3,0),FALSE),"") ->  | F159: =IFERROR(VLOOKUP($A159,PQS!$F$5:$AW$137,MATCH(PQS!$AM$3,PQS!$F$3:$AW$3,0),FALSE),"") ->  | H159: =IFERROR(VLOOKUP($A159,PQS!$F$5:$AW$137,MATCH(PQS!$K$3,PQS!$F$3:$AW$3,0),FALSE),"") ->  | I159: =IFERROR(VLOOKUP($A159,PQS!$F$5:$AW$137,MATCH(PQS!$L$3,PQS!$F$3:$AW$3,0),FALSE),"") ->  | J159: =IFERROR(VLOOKUP($A159,PQS!$F$5:$AW$137,MATCH(PQS!$AL$3,PQS!$F$3:$AW$3,0),FALSE),"") ->  | K159: =IFERROR(VLOOKUP($A159,PQS!$F$5:$AW$137,COLUMN(PQS!$AC$5)-3,FALSE),"") ->  | L159: =IFERROR(VLOOKUP($A159,PQS!$F$5:$AW$137,MATCH(PQS!$J$3,PQS!$F$3:$AW$3,0),FALSE),"") ->  | M159: =IFERROR(VLOOKUP($A159,PQS!$F$5:$AW$137,MATCH(PQS!$AG$3,PQS!$F$3:$AW$3,0),FALSE),"") ->  | N159: =IFERROR(HYPERLINK(VLOOKUP($A159,PQS!$F$5:$AW$137,MATCH(PQS!$AK$3,PQS!$F$3:$AW$3,0),FALSE),VLOOKUP($A159,PQS!$F$5:$AW$137,MATCH(PQS!$AJ$3,PQS!$F$3:$AW$3,0),FALSE)),"") -> 
E160: =IFERROR(VLOOKUP($A160,PQS!$F$5:$AR$137,MATCH(PQS!$AN$3, PQS!$F$3:$AR$3,0),FALSE),"") ->  | F160: =IFERROR(VLOOKUP($A160,PQS!$F$5:$AW$137,MATCH(PQS!$AM$3,PQS!$F$3:$AW$3,0),FALSE),"") ->  | H160: =IFERROR(VLOOKUP($A160,PQS!$F$5:$AW$137,MATCH(PQS!$K$3,PQS!$F$3:$AW$3,0),FALSE),"") ->  | I160: =IFERROR(VLOOKUP($A160,PQS!$F$5:$AW$137,MATCH(PQS!$L$3,PQS!$F$3:$AW$3,0),FALSE),"") ->  | J160: =IFERROR(VLOOKUP($A160,PQS!$F$5:$AW$137,MATCH(PQS!$AL$3,PQS!$F$3:$AW$3,0),FALSE),"") ->  | K160: =IFERROR(VLOOKUP($A160,PQS!$F$5:$AW$137,COLUMN(PQS!$AC$5)-3,FALSE),"") ->  | L160: =IFERROR(VLOOKUP($A160,PQS!$F$5:$AW$137,MATCH(PQS!$J$3,PQS!$F$3:$AW$3,0),FALSE),"") ->  | M160: =IFERROR(VLOOKUP($A160,PQS!$F$5:$AW$137,MATCH(PQS!$AG$3,PQS!$F$3:$AW$3,0),FALSE),"") ->  | N160: =IFERROR(HYPERLINK(VLOOKUP($A160,PQS!$F$5:$AW$137,MATCH(PQS!$AK$3,PQS!$F$3:$AW$3,0),FALSE),VLOOKUP($A160,PQS!$F$5:$AW$137,MATCH(PQS!$AJ$3,PQS!$F$3:$AW$3,0),FALSE)),"") -> 
E161: =IFERROR(VLOOKUP($A161,PQS!$F$5:$AR$137,MATCH(PQS!$AN$3, PQS!$F$3:$AR$3,0),FALSE),"") ->  | F161: =IFERROR(VLOOKUP($A161,PQS!$F$5:$AW$137,MATCH(PQS!$AM$3,PQS!$F$3:$AW$3,0),FALSE),"") ->  | H161: =IFERROR(VLOOKUP($A161,PQS!$F$5:$AW$137,MATCH(PQS!$K$3,PQS!$F$3:$AW$3,0),FALSE),"") ->  | I161: =IFERROR(VLOOKUP($A161,PQS!$F$5:$AW$137,MATCH(PQS!$L$3,PQS!$F$3:$AW$3,0),FALSE),"") ->  | J161: =IFERROR(VLOOKUP($A161,PQS!$F$5:$AW$137,MATCH(PQS!$AL$3,PQS!$F$3:$AW$3,0),FALSE),"") ->  | K161: =IFERROR(VLOOKUP($A161,PQS!$F$5:$AW$137,COLUMN(PQS!$AC$5)-3,FALSE),"") ->  | L161: =IFERROR(VLOOKUP($A161,PQS!$F$5:$AW$137,MATCH(PQS!$J$3,PQS!$F$3:$AW$3,0),FALSE),"") ->  | M161: =IFERROR(VLOOKUP($A161,PQS!$F$5:$AW$137,MATCH(PQS!$AG$3,PQS!$F$3:$AW$3,0),FALSE),"") ->  | N161: =IFERROR(HYPERLINK(VLOOKUP($A161,PQS!$F$5:$AW$137,MATCH(PQS!$AK$3,PQS!$F$3:$AW$3,0),FALSE),VLOOKUP($A161,PQS!$F$5:$AW$137,MATCH(PQS!$AJ$3,PQS!$F$3:$AW$3,0),FALSE)),"") -> 
E162: =IFERROR(VLOOKUP($A162,PQS!$F$5:$AR$137,MATCH(PQS!$AN$3, PQS!$F$3:$AR$3,0),FALSE),"") ->  | F162: =IFERROR(VLOOKUP($A162,PQS!$F$5:$AW$137,MATCH(PQS!$AM$3,PQS!$F$3:$AW$3,0),FALSE),"") ->  | H162: =IFERROR(VLOOKUP($A162,PQS!$F$5:$AW$137,MATCH(PQS!$K$3,PQS!$F$3:$AW$3,0),FALSE),"") ->  | I162: =IFERROR(VLOOKUP($A162,PQS!$F$5:$AW$137,MATCH(PQS!$L$3,PQS!$F$3:$AW$3,0),FALSE),"") ->  | J162: =IFERROR(VLOOKUP($A162,PQS!$F$5:$AW$137,MATCH(PQS!$AL$3,PQS!$F$3:$AW$3,0),FALSE),"") ->  | K162: =IFERROR(VLOOKUP($A162,PQS!$F$5:$AW$137,COLUMN(PQS!$AC$5)-3,FALSE),"") ->  | L162: =IFERROR(VLOOKUP($A162,PQS!$F$5:$AW$137,MATCH(PQS!$J$3,PQS!$F$3:$AW$3,0),FALSE),"") ->  | M162: =IFERROR(VLOOKUP($A162,PQS!$F$5:$AW$137,MATCH(PQS!$AG$3,PQS!$F$3:$AW$3,0),FALSE),"") ->  | N162: =IFERROR(HYPERLINK(VLOOKUP($A162,PQS!$F$5:$AW$137,MATCH(PQS!$AK$3,PQS!$F$3:$AW$3,0),FALSE),VLOOKUP($A162,PQS!$F$5:$AW$137,MATCH(PQS!$AJ$3,PQS!$F$3:$AW$3,0),FALSE)),"") -> 
E163: =IFERROR(VLOOKUP($A163,PQS!$F$5:$AR$137,MATCH(PQS!$AN$3, PQS!$F$3:$AR$3,0),FALSE),"") ->  | F163: =IFERROR(VLOOKUP($A163,PQS!$F$5:$AW$137,MATCH(PQS!$AM$3,PQS!$F$3:$AW$3,0),FALSE),"") ->  | H163: =IFERROR(VLOOKUP($A163,PQS!$F$5:$AW$137,MATCH(PQS!$K$3,PQS!$F$3:$AW$3,0),FALSE),"") ->  | I163: =IFERROR(VLOOKUP($A163,PQS!$F$5:$AW$137,MATCH(PQS!$L$3,PQS!$F$3:$AW$3,0),FALSE),"") ->  | J163: =IFERROR(VLOOKUP($A163,PQS!$F$5:$AW$137,MATCH(PQS!$AL$3,PQS!$F$3:$AW$3,0),FALSE),"") ->  | K163: =IFERROR(VLOOKUP($A163,PQS!$F$5:$AW$137,COLUMN(PQS!$AC$5)-3,FALSE),"") ->  | L163: =IFERROR(VLOOKUP($A163,PQS!$F$5:$AW$137,MATCH(PQS!$J$3,PQS!$F$3:$AW$3,0),FALSE),"") ->  | M163: =IFERROR(VLOOKUP($A163,PQS!$F$5:$AW$137,MATCH(PQS!$AG$3,PQS!$F$3:$AW$3,0),FALSE),"") ->  | N163: =IFERROR(HYPERLINK(VLOOKUP($A163,PQS!$F$5:$AW$137,MATCH(PQS!$AK$3,PQS!$F$3:$AW$3,0),FALSE),VLOOKUP($A163,PQS!$F$5:$AW$137,MATCH(PQS!$AJ$3,PQS!$F$3:$AW$3,0),FALSE)),"") -> 
E164: =IFERROR(VLOOKUP($A164,PQS!$F$5:$AR$137,MATCH(PQS!$AN$3, PQS!$F$3:$AR$3,0),FALSE),"") ->  | F164: =IFERROR(VLOOKUP($A164,PQS!$F$5:$AW$137,MATCH(PQS!$AM$3,PQS!$F$3:$AW$3,0),FALSE),"") ->  | H164: =IFERROR(VLOOKUP($A164,PQS!$F$5:$AW$137,MATCH(PQS!$K$3,PQS!$F$3:$AW$3,0),FALSE),"") ->  | I164: =IFERROR(VLOOKUP($A164,PQS!$F$5:$AW$137,MATCH(PQS!$L$3,PQS!$F$3:$AW$3,0),FALSE),"") ->  | J164: =IFERROR(VLOOKUP($A164,PQS!$F$5:$AW$137,MATCH(PQS!$AL$3,PQS!$F$3:$AW$3,0),FALSE),"") ->  | K164: =IFERROR(VLOOKUP($A164,PQS!$F$5:$AW$137,COLUMN(PQS!$AC$5)-3,FALSE),"") ->  | L164: =IFERROR(VLOOKUP($A164,PQS!$F$5:$AW$137,MATCH(PQS!$J$3,PQS!$F$3:$AW$3,0),FALSE),"") ->  | M164: =IFERROR(VLOOKUP($A164,PQS!$F$5:$AW$137,MATCH(PQS!$AG$3,PQS!$F$3:$AW$3,0),FALSE),"") ->  | N164: =IFERROR(HYPERLINK(VLOOKUP($A164,PQS!$F$5:$AW$137,MATCH(PQS!$AK$3,PQS!$F$3:$AW$3,0),FALSE),VLOOKUP($A164,PQS!$F$5:$AW$137,MATCH(PQS!$AJ$3,PQS!$F$3:$AW$3,0),FALSE)),"") -> 
E165: =IFERROR(VLOOKUP($A165,PQS!$F$5:$AR$137,MATCH(PQS!$AN$3, PQS!$F$3:$AR$3,0),FALSE),"") ->  | F165: =IFERROR(VLOOKUP($A165,PQS!$F$5:$AW$137,MATCH(PQS!$AM$3,PQS!$F$3:$AW$3,0),FALSE),"") ->  | H165: =IFERROR(VLOOKUP($A165,PQS!$F$5:$AW$137,MATCH(PQS!$K$3,PQS!$F$3:$AW$3,0),FALSE),"") ->  | I165: =IFERROR(VLOOKUP($A165,PQS!$F$5:$AW$137,MATCH(PQS!$L$3,PQS!$F$3:$AW$3,0),FALSE),"") ->  | J165: =IFERROR(VLOOKUP($A165,PQS!$F$5:$AW$137,MATCH(PQS!$AL$3,PQS!$F$3:$AW$3,0),FALSE),"") ->  | K165: =IFERROR(VLOOKUP($A165,PQS!$F$5:$AW$137,COLUMN(PQS!$AC$5)-3,FALSE),"") ->  | L165: =IFERROR(VLOOKUP($A165,PQS!$F$5:$AW$137,MATCH(PQS!$J$3,PQS!$F$3:$AW$3,0),FALSE),"") ->  | M165: =IFERROR(VLOOKUP($A165,PQS!$F$5:$AW$137,MATCH(PQS!$AG$3,PQS!$F$3:$AW$3,0),FALSE),"") ->  | N165: =IFERROR(HYPERLINK(VLOOKUP($A165,PQS!$F$5:$AW$137,MATCH(PQS!$AK$3,PQS!$F$3:$AW$3,0),FALSE),VLOOKUP($A165,PQS!$F$5:$AW$137,MATCH(PQS!$AJ$3,PQS!$F$3:$AW$3,0),FALSE)),"") -> 
E166: =IFERROR(VLOOKUP($A166,PQS!$F$5:$AR$137,MATCH(PQS!$AN$3, PQS!$F$3:$AR$3,0),FALSE),"") ->  | F166: =IFERROR(VLOOKUP($A166,PQS!$F$5:$AW$137,MATCH(PQS!$AM$3,PQS!$F$3:$AW$3,0),FALSE),"") ->  | H166: =IFERROR(VLOOKUP($A166,PQS!$F$5:$AW$137,MATCH(PQS!$K$3,PQS!$F$3:$AW$3,0),FALSE),"") ->  | I166: =IFERROR(VLOOKUP($A166,PQS!$F$5:$AW$137,MATCH(PQS!$L$3,PQS!$F$3:$AW$3,0),FALSE),"") ->  | J166: =IFERROR(VLOOKUP($A166,PQS!$F$5:$AW$137,MATCH(PQS!$AL$3,PQS!$F$3:$AW$3,0),FALSE),"") ->  | K166: =IFERROR(VLOOKUP($A166,PQS!$F$5:$AW$137,COLUMN(PQS!$AC$5)-3,FALSE),"") ->  | L166: =IFERROR(VLOOKUP($A166,PQS!$F$5:$AW$137,MATCH(PQS!$J$3,PQS!$F$3:$AW$3,0),FALSE),"") ->  | M166: =IFERROR(VLOOKUP($A166,PQS!$F$5:$AW$137,MATCH(PQS!$AG$3,PQS!$F$3:$AW$3,0),FALSE),"") ->  | N166: =IFERROR(HYPERLINK(VLOOKUP($A166,PQS!$F$5:$AW$137,MATCH(PQS!$AK$3,PQS!$F$3:$AW$3,0),FALSE),VLOOKUP($A166,PQS!$F$5:$AW$137,MATCH(PQS!$AJ$3,PQS!$F$3:$AW$3,0),FALSE)),"") -> 
E167: =IFERROR(VLOOKUP($A167,PQS!$F$5:$AR$137,MATCH(PQS!$AN$3, PQS!$F$3:$AR$3,0),FALSE),"") ->  | F167: =IFERROR(VLOOKUP($A167,PQS!$F$5:$AW$137,MATCH(PQS!$AM$3,PQS!$F$3:$AW$3,0),FALSE),"") ->  | H167: =IFERROR(VLOOKUP($A167,PQS!$F$5:$AW$137,MATCH(PQS!$K$3,PQS!$F$3:$AW$3,0),FALSE),"") ->  | I167: =IFERROR(VLOOKUP($A167,PQS!$F$5:$AW$137,MATCH(PQS!$L$3,PQS!$F$3:$AW$3,0),FALSE),"") ->  | J167: =IFERROR(VLOOKUP($A167,PQS!$F$5:$AW$137,MATCH(PQS!$AL$3,PQS!$F$3:$AW$3,0),FALSE),"") ->  | K167: =IFERROR(VLOOKUP($A167,PQS!$F$5:$AW$137,COLUMN(PQS!$AC$5)-3,FALSE),"") ->  | L167: =IFERROR(VLOOKUP($A167,PQS!$F$5:$AW$137,MATCH(PQS!$J$3,PQS!$F$3:$AW$3,0),FALSE),"") ->  | M167: =IFERROR(VLOOKUP($A167,PQS!$F$5:$AW$137,MATCH(PQS!$AG$3,PQS!$F$3:$AW$3,0),FALSE),"") ->  | N167: =IFERROR(HYPERLINK(VLOOKUP($A167,PQS!$F$5:$AW$137,MATCH(PQS!$AK$3,PQS!$F$3:$AW$3,0),FALSE),VLOOKUP($A167,PQS!$F$5:$AW$137,MATCH(PQS!$AJ$3,PQS!$F$3:$AW$3,0),FALSE)),"") -> 
E168: =IFERROR(VLOOKUP($A168,PQS!$F$5:$AR$137,MATCH(PQS!$AN$3, PQS!$F$3:$AR$3,0),FALSE),"") ->  | F168: =IFERROR(VLOOKUP($A168,PQS!$F$5:$AW$137,MATCH(PQS!$AM$3,PQS!$F$3:$AW$3,0),FALSE),"") ->  | H168: =IFERROR(VLOOKUP($A168,PQS!$F$5:$AW$137,MATCH(PQS!$K$3,PQS!$F$3:$AW$3,0),FALSE),"") ->  | I168: =IFERROR(VLOOKUP($A168,PQS!$F$5:$AW$137,MATCH(PQS!$L$3,PQS!$F$3:$AW$3,0),FALSE),"") ->  | J168: =IFERROR(VLOOKUP($A168,PQS!$F$5:$AW$137,MATCH(PQS!$AL$3,PQS!$F$3:$AW$3,0),FALSE),"") ->  | K168: =IFERROR(VLOOKUP($A168,PQS!$F$5:$AW$137,COLUMN(PQS!$AC$5)-3,FALSE),"") ->  | L168: =IFERROR(VLOOKUP($A168,PQS!$F$5:$AW$137,MATCH(PQS!$J$3,PQS!$F$3:$AW$3,0),FALSE),"") ->  | M168: =IFERROR(VLOOKUP($A168,PQS!$F$5:$AW$137,MATCH(PQS!$AG$3,PQS!$F$3:$AW$3,0),FALSE),"") ->  | N168: =IFERROR(HYPERLINK(VLOOKUP($A168,PQS!$F$5:$AW$137,MATCH(PQS!$AK$3,PQS!$F$3:$AW$3,0),FALSE),VLOOKUP($A168,PQS!$F$5:$AW$137,MATCH(PQS!$AJ$3,PQS!$F$3:$AW$3,0),FALSE)),"") -> 
E169: =IFERROR(VLOOKUP($A169,PQS!$F$5:$AR$137,MATCH(PQS!$AN$3, PQS!$F$3:$AR$3,0),FALSE),"") ->  | F169: =IFERROR(VLOOKUP($A169,PQS!$F$5:$AW$137,MATCH(PQS!$AM$3,PQS!$F$3:$AW$3,0),FALSE),"") ->  | H169: =IFERROR(VLOOKUP($A169,PQS!$F$5:$AW$137,MATCH(PQS!$K$3,PQS!$F$3:$AW$3,0),FALSE),"") ->  | I169: =IFERROR(VLOOKUP($A169,PQS!$F$5:$AW$137,MATCH(PQS!$L$3,PQS!$F$3:$AW$3,0),FALSE),"") ->  | J169: =IFERROR(VLOOKUP($A169,PQS!$F$5:$AW$137,MATCH(PQS!$AL$3,PQS!$F$3:$AW$3,0),FALSE),"") ->  | K169: =IFERROR(VLOOKUP($A169,PQS!$F$5:$AW$137,COLUMN(PQS!$AC$5)-3,FALSE),"") ->  | L169: =IFERROR(VLOOKUP($A169,PQS!$F$5:$AW$137,MATCH(PQS!$J$3,PQS!$F$3:$AW$3,0),FALSE),"") ->  | M169: =IFERROR(VLOOKUP($A169,PQS!$F$5:$AW$137,MATCH(PQS!$AG$3,PQS!$F$3:$AW$3,0),FALSE),"") ->  | N169: =IFERROR(HYPERLINK(VLOOKUP($A169,PQS!$F$5:$AW$137,MATCH(PQS!$AK$3,PQS!$F$3:$AW$3,0),FALSE),VLOOKUP($A169,PQS!$F$5:$AW$137,MATCH(PQS!$AJ$3,PQS!$F$3:$AW$3,0),FALSE)),"") -> 
E170: =IFERROR(VLOOKUP($A170,PQS!$F$5:$AR$137,MATCH(PQS!$AN$3, PQS!$F$3:$AR$3,0),FALSE),"") ->  | F170: =IFERROR(VLOOKUP($A170,PQS!$F$5:$AW$137,MATCH(PQS!$AM$3,PQS!$F$3:$AW$3,0),FALSE),"") ->  | H170: =IFERROR(VLOOKUP($A170,PQS!$F$5:$AW$137,MATCH(PQS!$K$3,PQS!$F$3:$AW$3,0),FALSE),"") ->  | I170: =IFERROR(VLOOKUP($A170,PQS!$F$5:$AW$137,MATCH(PQS!$L$3,PQS!$F$3:$AW$3,0),FALSE),"") ->  | J170: =IFERROR(VLOOKUP($A170,PQS!$F$5:$AW$137,MATCH(PQS!$AL$3,PQS!$F$3:$AW$3,0),FALSE),"") ->  | K170: =IFERROR(VLOOKUP($A170,PQS!$F$5:$AW$137,COLUMN(PQS!$AC$5)-3,FALSE),"") ->  | L170: =IFERROR(VLOOKUP($A170,PQS!$F$5:$AW$137,MATCH(PQS!$J$3,PQS!$F$3:$AW$3,0),FALSE),"") ->  | M170: =IFERROR(VLOOKUP($A170,PQS!$F$5:$AW$137,MATCH(PQS!$AG$3,PQS!$F$3:$AW$3,0),FALSE),"") ->  | N170: =IFERROR(HYPERLINK(VLOOKUP($A170,PQS!$F$5:$AW$137,MATCH(PQS!$AK$3,PQS!$F$3:$AW$3,0),FALSE),VLOOKUP($A170,PQS!$F$5:$AW$137,MATCH(PQS!$AJ$3,PQS!$F$3:$AW$3,0),FALSE)),"") -> 
E171: =IFERROR(VLOOKUP($A171,PQS!$F$5:$AR$137,MATCH(PQS!$AN$3, PQS!$F$3:$AR$3,0),FALSE),"") ->  | F171: =IFERROR(VLOOKUP($A171,PQS!$F$5:$AW$137,MATCH(PQS!$AM$3,PQS!$F$3:$AW$3,0),FALSE),"") ->  | H171: =IFERROR(VLOOKUP($A171,PQS!$F$5:$AW$137,MATCH(PQS!$K$3,PQS!$F$3:$AW$3,0),FALSE),"") ->  | I171: =IFERROR(VLOOKUP($A171,PQS!$F$5:$AW$137,MATCH(PQS!$L$3,PQS!$F$3:$AW$3,0),FALSE),"") ->  | J171: =IFERROR(VLOOKUP($A171,PQS!$F$5:$AW$137,MATCH(PQS!$AL$3,PQS!$F$3:$AW$3,0),FALSE),"") ->  | K171: =IFERROR(VLOOKUP($A171,PQS!$F$5:$AW$137,COLUMN(PQS!$AC$5)-3,FALSE),"") ->  | L171: =IFERROR(VLOOKUP($A171,PQS!$F$5:$AW$137,MATCH(PQS!$J$3,PQS!$F$3:$AW$3,0),FALSE),"") ->  | M171: =IFERROR(VLOOKUP($A171,PQS!$F$5:$AW$137,MATCH(PQS!$AG$3,PQS!$F$3:$AW$3,0),FALSE),"") ->  | N171: =IFERROR(HYPERLINK(VLOOKUP($A171,PQS!$F$5:$AW$137,MATCH(PQS!$AK$3,PQS!$F$3:$AW$3,0),FALSE),VLOOKUP($A171,PQS!$F$5:$AW$137,MATCH(PQS!$AJ$3,PQS!$F$3:$AW$3,0),FALSE)),"") -> 
E172: =IFERROR(VLOOKUP($A172,PQS!$F$5:$AR$137,MATCH(PQS!$AN$3, PQS!$F$3:$AR$3,0),FALSE),"") ->  | F172: =IFERROR(VLOOKUP($A172,PQS!$F$5:$AW$137,MATCH(PQS!$AM$3,PQS!$F$3:$AW$3,0),FALSE),"") ->  | H172: =IFERROR(VLOOKUP($A172,PQS!$F$5:$AW$137,MATCH(PQS!$K$3,PQS!$F$3:$AW$3,0),FALSE),"") ->  | I172: =IFERROR(VLOOKUP($A172,PQS!$F$5:$AW$137,MATCH(PQS!$L$3,PQS!$F$3:$AW$3,0),FALSE),"") ->  | J172: =IFERROR(VLOOKUP($A172,PQS!$F$5:$AW$137,MATCH(PQS!$AL$3,PQS!$F$3:$AW$3,0),FALSE),"") ->  | K172: =IFERROR(VLOOKUP($A172,PQS!$F$5:$AW$137,COLUMN(PQS!$AC$5)-3,FALSE),"") ->  | L172: =IFERROR(VLOOKUP($A172,PQS!$F$5:$AW$137,MATCH(PQS!$J$3,PQS!$F$3:$AW$3,0),FALSE),"") ->  | M172: =IFERROR(VLOOKUP($A172,PQS!$F$5:$AW$137,MATCH(PQS!$AG$3,PQS!$F$3:$AW$3,0),FALSE),"") ->  | N172: =IFERROR(HYPERLINK(VLOOKUP($A172,PQS!$F$5:$AW$137,MATCH(PQS!$AK$3,PQS!$F$3:$AW$3,0),FALSE),VLOOKUP($A172,PQS!$F$5:$AW$137,MATCH(PQS!$AJ$3,PQS!$F$3:$AW$3,0),FALSE)),"") -> 
E173: =IFERROR(VLOOKUP($A173,PQS!$F$5:$AR$137,MATCH(PQS!$AN$3, PQS!$F$3:$AR$3,0),FALSE),"") ->  | F173: =IFERROR(VLOOKUP($A173,PQS!$F$5:$AW$137,MATCH(PQS!$AM$3,PQS!$F$3:$AW$3,0),FALSE),"") ->  | H173: =IFERROR(VLOOKUP($A173,PQS!$F$5:$AW$137,MATCH(PQS!$K$3,PQS!$F$3:$AW$3,0),FALSE),"") ->  | I173: =IFERROR(VLOOKUP($A173,PQS!$F$5:$AW$137,MATCH(PQS!$L$3,PQS!$F$3:$AW$3,0),FALSE),"") ->  | J173: =IFERROR(VLOOKUP($A173,PQS!$F$5:$AW$137,MATCH(PQS!$AL$3,PQS!$F$3:$AW$3,0),FALSE),"") ->  | K173: =IFERROR(VLOOKUP($A173,PQS!$F$5:$AW$137,COLUMN(PQS!$AC$5)-3,FALSE),"") ->  | L173: =IFERROR(VLOOKUP($A173,PQS!$F$5:$AW$137,MATCH(PQS!$J$3,PQS!$F$3:$AW$3,0),FALSE),"") ->  | M173: =IFERROR(VLOOKUP($A173,PQS!$F$5:$AW$137,MATCH(PQS!$AG$3,PQS!$F$3:$AW$3,0),FALSE),"") ->  | N173: =IFERROR(HYPERLINK(VLOOKUP($A173,PQS!$F$5:$AW$137,MATCH(PQS!$AK$3,PQS!$F$3:$AW$3,0),FALSE),VLOOKUP($A173,PQS!$F$5:$AW$137,MATCH(PQS!$AJ$3,PQS!$F$3:$AW$3,0),FALSE)),"") -> 
E174: =IFERROR(VLOOKUP($A174,PQS!$F$5:$AR$137,MATCH(PQS!$AN$3, PQS!$F$3:$AR$3,0),FALSE),"") ->  | F174: =IFERROR(VLOOKUP($A174,PQS!$F$5:$AW$137,MATCH(PQS!$AM$3,PQS!$F$3:$AW$3,0),FALSE),"") ->  | H174: =IFERROR(VLOOKUP($A174,PQS!$F$5:$AW$137,MATCH(PQS!$K$3,PQS!$F$3:$AW$3,0),FALSE),"") ->  | I174: =IFERROR(VLOOKUP($A174,PQS!$F$5:$AW$137,MATCH(PQS!$L$3,PQS!$F$3:$AW$3,0),FALSE),"") ->  | J174: =IFERROR(VLOOKUP($A174,PQS!$F$5:$AW$137,MATCH(PQS!$AL$3,PQS!$F$3:$AW$3,0),FALSE),"") ->  | K174: =IFERROR(VLOOKUP($A174,PQS!$F$5:$AW$137,COLUMN(PQS!$AC$5)-3,FALSE),"") ->  | L174: =IFERROR(VLOOKUP($A174,PQS!$F$5:$AW$137,MATCH(PQS!$J$3,PQS!$F$3:$AW$3,0),FALSE),"") ->  | M174: =IFERROR(VLOOKUP($A174,PQS!$F$5:$AW$137,MATCH(PQS!$AG$3,PQS!$F$3:$AW$3,0),FALSE),"") ->  | N174: =IFERROR(HYPERLINK(VLOOKUP($A174,PQS!$F$5:$AW$137,MATCH(PQS!$AK$3,PQS!$F$3:$AW$3,0),FALSE),VLOOKUP($A174,PQS!$F$5:$AW$137,MATCH(PQS!$AJ$3,PQS!$F$3:$AW$3,0),FALSE)),"") -> 
E175: =IFERROR(VLOOKUP($A175,PQS!$F$5:$AR$137,MATCH(PQS!$AN$3, PQS!$F$3:$AR$3,0),FALSE),"") ->  | F175: =IFERROR(VLOOKUP($A175,PQS!$F$5:$AW$137,MATCH(PQS!$AM$3,PQS!$F$3:$AW$3,0),FALSE),"") ->  | H175: =IFERROR(VLOOKUP($A175,PQS!$F$5:$AW$137,MATCH(PQS!$K$3,PQS!$F$3:$AW$3,0),FALSE),"") ->  | I175: =IFERROR(VLOOKUP($A175,PQS!$F$5:$AW$137,MATCH(PQS!$L$3,PQS!$F$3:$AW$3,0),FALSE),"") ->  | J175: =IFERROR(VLOOKUP($A175,PQS!$F$5:$AW$137,MATCH(PQS!$AL$3,PQS!$F$3:$AW$3,0),FALSE),"") ->  | K175: =IFERROR(VLOOKUP($A175,PQS!$F$5:$AW$137,COLUMN(PQS!$AC$5)-3,FALSE),"") ->  | L175: =IFERROR(VLOOKUP($A175,PQS!$F$5:$AW$137,MATCH(PQS!$J$3,PQS!$F$3:$AW$3,0),FALSE),"") ->  | M175: =IFERROR(VLOOKUP($A175,PQS!$F$5:$AW$137,MATCH(PQS!$AG$3,PQS!$F$3:$AW$3,0),FALSE),"") ->  | N175: =IFERROR(HYPERLINK(VLOOKUP($A175,PQS!$F$5:$AW$137,MATCH(PQS!$AK$3,PQS!$F$3:$AW$3,0),FALSE),VLOOKUP($A175,PQS!$F$5:$AW$137,MATCH(PQS!$AJ$3,PQS!$F$3:$AW$3,0),FALSE)),"") -> 
E176: =IFERROR(VLOOKUP($A176,PQS!$F$5:$AR$137,MATCH(PQS!$AN$3, PQS!$F$3:$AR$3,0),FALSE),"") ->  | F176: =IFERROR(VLOOKUP($A176,PQS!$F$5:$AW$137,MATCH(PQS!$AM$3,PQS!$F$3:$AW$3,0),FALSE),"") ->  | H176: =IFERROR(VLOOKUP($A176,PQS!$F$5:$AW$137,MATCH(PQS!$K$3,PQS!$F$3:$AW$3,0),FALSE),"") ->  | I176: =IFERROR(VLOOKUP($A176,PQS!$F$5:$AW$137,MATCH(PQS!$L$3,PQS!$F$3:$AW$3,0),FALSE),"") ->  | J176: =IFERROR(VLOOKUP($A176,PQS!$F$5:$AW$137,MATCH(PQS!$AL$3,PQS!$F$3:$AW$3,0),FALSE),"") ->  | K176: =IFERROR(VLOOKUP($A176,PQS!$F$5:$AW$137,COLUMN(PQS!$AC$5)-3,FALSE),"") ->  | L176: =IFERROR(VLOOKUP($A176,PQS!$F$5:$AW$137,MATCH(PQS!$J$3,PQS!$F$3:$AW$3,0),FALSE),"") ->  | M176: =IFERROR(VLOOKUP($A176,PQS!$F$5:$AW$137,MATCH(PQS!$AG$3,PQS!$F$3:$AW$3,0),FALSE),"") ->  | N176: =IFERROR(HYPERLINK(VLOOKUP($A176,PQS!$F$5:$AW$137,MATCH(PQS!$AK$3,PQS!$F$3:$AW$3,0),FALSE),VLOOKUP($A176,PQS!$F$5:$AW$137,MATCH(PQS!$AJ$3,PQS!$F$3:$AW$3,0),FALSE)),"") -> 
E177: =IFERROR(VLOOKUP($A177,PQS!$F$5:$AR$137,MATCH(PQS!$AN$3, PQS!$F$3:$AR$3,0),FALSE),"") ->  | F177: =IFERROR(VLOOKUP($A177,PQS!$F$5:$AW$137,MATCH(PQS!$AM$3,PQS!$F$3:$AW$3,0),FALSE),"") ->  | H177: =IFERROR(VLOOKUP($A177,PQS!$F$5:$AW$137,MATCH(PQS!$K$3,PQS!$F$3:$AW$3,0),FALSE),"") ->  | I177: =IFERROR(VLOOKUP($A177,PQS!$F$5:$AW$137,MATCH(PQS!$L$3,PQS!$F$3:$AW$3,0),FALSE),"") ->  | J177: =IFERROR(VLOOKUP($A177,PQS!$F$5:$AW$137,MATCH(PQS!$AL$3,PQS!$F$3:$AW$3,0),FALSE),"") ->  | K177: =IFERROR(VLOOKUP($A177,PQS!$F$5:$AW$137,COLUMN(PQS!$AC$5)-3,FALSE),"") ->  | L177: =IFERROR(VLOOKUP($A177,PQS!$F$5:$AW$137,MATCH(PQS!$J$3,PQS!$F$3:$AW$3,0),FALSE),"") ->  | M177: =IFERROR(VLOOKUP($A177,PQS!$F$5:$AW$137,MATCH(PQS!$AG$3,PQS!$F$3:$AW$3,0),FALSE),"") ->  | N177: =IFERROR(HYPERLINK(VLOOKUP($A177,PQS!$F$5:$AW$137,MATCH(PQS!$AK$3,PQS!$F$3:$AW$3,0),FALSE),VLOOKUP($A177,PQS!$F$5:$AW$137,MATCH(PQS!$AJ$3,PQS!$F$3:$AW$3,0),FALSE)),"") -> 
E178: =IFERROR(VLOOKUP($A178,PQS!$F$5:$AR$137,MATCH(PQS!$AN$3, PQS!$F$3:$AR$3,0),FALSE),"") ->  | F178: =IFERROR(VLOOKUP($A178,PQS!$F$5:$AW$137,MATCH(PQS!$AM$3,PQS!$F$3:$AW$3,0),FALSE),"") ->  | H178: =IFERROR(VLOOKUP($A178,PQS!$F$5:$AW$137,MATCH(PQS!$K$3,PQS!$F$3:$AW$3,0),FALSE),"") ->  | I178: =IFERROR(VLOOKUP($A178,PQS!$F$5:$AW$137,MATCH(PQS!$L$3,PQS!$F$3:$AW$3,0),FALSE),"") ->  | J178: =IFERROR(VLOOKUP($A178,PQS!$F$5:$AW$137,MATCH(PQS!$AL$3,PQS!$F$3:$AW$3,0),FALSE),"") ->  | K178: =IFERROR(VLOOKUP($A178,PQS!$F$5:$AW$137,COLUMN(PQS!$AC$5)-3,FALSE),"") ->  | L178: =IFERROR(VLOOKUP($A178,PQS!$F$5:$AW$137,MATCH(PQS!$J$3,PQS!$F$3:$AW$3,0),FALSE),"") ->  | M178: =IFERROR(VLOOKUP($A178,PQS!$F$5:$AW$137,MATCH(PQS!$AG$3,PQS!$F$3:$AW$3,0),FALSE),"") ->  | N178: =IFERROR(HYPERLINK(VLOOKUP($A178,PQS!$F$5:$AW$137,MATCH(PQS!$AK$3,PQS!$F$3:$AW$3,0),FALSE),VLOOKUP($A178,PQS!$F$5:$AW$137,MATCH(PQS!$AJ$3,PQS!$F$3:$AW$3,0),FALSE)),"") -> 
E179: =IFERROR(VLOOKUP($A179,PQS!$F$5:$AR$137,MATCH(PQS!$AN$3, PQS!$F$3:$AR$3,0),FALSE),"") ->  | F179: =IFERROR(VLOOKUP($A179,PQS!$F$5:$AW$137,MATCH(PQS!$AM$3,PQS!$F$3:$AW$3,0),FALSE),"") ->  | H179: =IFERROR(VLOOKUP($A179,PQS!$F$5:$AW$137,MATCH(PQS!$K$3,PQS!$F$3:$AW$3,0),FALSE),"") ->  | I179: =IFERROR(VLOOKUP($A179,PQS!$F$5:$AW$137,MATCH(PQS!$L$3,PQS!$F$3:$AW$3,0),FALSE),"") ->  | J179: =IFERROR(VLOOKUP($A179,PQS!$F$5:$AW$137,MATCH(PQS!$AL$3,PQS!$F$3:$AW$3,0),FALSE),"") ->  | K179: =IFERROR(VLOOKUP($A179,PQS!$F$5:$AW$137,COLUMN(PQS!$AC$5)-3,FALSE),"") ->  | L179: =IFERROR(VLOOKUP($A179,PQS!$F$5:$AW$137,MATCH(PQS!$J$3,PQS!$F$3:$AW$3,0),FALSE),"") ->  | M179: =IFERROR(VLOOKUP($A179,PQS!$F$5:$AW$137,MATCH(PQS!$AG$3,PQS!$F$3:$AW$3,0),FALSE),"") ->  | N179: =IFERROR(HYPERLINK(VLOOKUP($A179,PQS!$F$5:$AW$137,MATCH(PQS!$AK$3,PQS!$F$3:$AW$3,0),FALSE),VLOOKUP($A179,PQS!$F$5:$AW$137,MATCH(PQS!$AJ$3,PQS!$F$3:$AW$3,0),FALSE)),"") -> 
E180: =IFERROR(VLOOKUP($A180,PQS!$F$5:$AR$137,MATCH(PQS!$AN$3, PQS!$F$3:$AR$3,0),FALSE),"") ->  | F180: =IFERROR(VLOOKUP($A180,PQS!$F$5:$AW$137,MATCH(PQS!$AM$3,PQS!$F$3:$AW$3,0),FALSE),"") ->  | H180: =IFERROR(VLOOKUP($A180,PQS!$F$5:$AW$137,MATCH(PQS!$K$3,PQS!$F$3:$AW$3,0),FALSE),"") ->  | I180: =IFERROR(VLOOKUP($A180,PQS!$F$5:$AW$137,MATCH(PQS!$L$3,PQS!$F$3:$AW$3,0),FALSE),"") ->  | J180: =IFERROR(VLOOKUP($A180,PQS!$F$5:$AW$137,MATCH(PQS!$AL$3,PQS!$F$3:$AW$3,0),FALSE),"") ->  | K180: =IFERROR(VLOOKUP($A180,PQS!$F$5:$AW$137,COLUMN(PQS!$AC$5)-3,FALSE),"") ->  | L180: =IFERROR(VLOOKUP($A180,PQS!$F$5:$AW$137,MATCH(PQS!$J$3,PQS!$F$3:$AW$3,0),FALSE),"") ->  | M180: =IFERROR(VLOOKUP($A180,PQS!$F$5:$AW$137,MATCH(PQS!$AG$3,PQS!$F$3:$AW$3,0),FALSE),"") ->  | N180: =IFERROR(HYPERLINK(VLOOKUP($A180,PQS!$F$5:$AW$137,MATCH(PQS!$AK$3,PQS!$F$3:$AW$3,0),FALSE),VLOOKUP($A180,PQS!$F$5:$AW$137,MATCH(PQS!$AJ$3,PQS!$F$3:$AW$3,0),FALSE)),"") -> 
E181: =IFERROR(VLOOKUP($A181,PQS!$F$5:$AR$137,MATCH(PQS!$AN$3, PQS!$F$3:$AR$3,0),FALSE),"") ->  | F181: =IFERROR(VLOOKUP($A181,PQS!$F$5:$AW$137,MATCH(PQS!$AM$3,PQS!$F$3:$AW$3,0),FALSE),"") ->  | H181: =IFERROR(VLOOKUP($A181,PQS!$F$5:$AW$137,MATCH(PQS!$K$3,PQS!$F$3:$AW$3,0),FALSE),"") ->  | I181: =IFERROR(VLOOKUP($A181,PQS!$F$5:$AW$137,MATCH(PQS!$L$3,PQS!$F$3:$AW$3,0),FALSE),"") ->  | J181: =IFERROR(VLOOKUP($A181,PQS!$F$5:$AW$137,MATCH(PQS!$AL$3,PQS!$F$3:$AW$3,0),FALSE),"") ->  | K181: =IFERROR(VLOOKUP($A181,PQS!$F$5:$AW$137,COLUMN(PQS!$AC$5)-3,FALSE),"") ->  | L181: =IFERROR(VLOOKUP($A181,PQS!$F$5:$AW$137,MATCH(PQS!$J$3,PQS!$F$3:$AW$3,0),FALSE),"") ->  | M181: =IFERROR(VLOOKUP($A181,PQS!$F$5:$AW$137,MATCH(PQS!$AG$3,PQS!$F$3:$AW$3,0),FALSE),"") ->  | N181: =IFERROR(HYPERLINK(VLOOKUP($A181,PQS!$F$5:$AW$137,MATCH(PQS!$AK$3,PQS!$F$3:$AW$3,0),FALSE),VLOOKUP($A181,PQS!$F$5:$AW$137,MATCH(PQS!$AJ$3,PQS!$F$3:$AW$3,0),FALSE)),"") -> 
E182: =IFERROR(VLOOKUP($A182,PQS!$F$5:$AR$137,MATCH(PQS!$AN$3, PQS!$F$3:$AR$3,0),FALSE),"") ->  | F182: =IFERROR(VLOOKUP($A182,PQS!$F$5:$AW$137,MATCH(PQS!$AM$3,PQS!$F$3:$AW$3,0),FALSE),"") ->  | H182: =IFERROR(VLOOKUP($A182,PQS!$F$5:$AW$137,MATCH(PQS!$K$3,PQS!$F$3:$AW$3,0),FALSE),"") ->  | I182: =IFERROR(VLOOKUP($A182,PQS!$F$5:$AW$137,MATCH(PQS!$L$3,PQS!$F$3:$AW$3,0),FALSE),"") ->  | J182: =IFERROR(VLOOKUP($A182,PQS!$F$5:$AW$137,MATCH(PQS!$AL$3,PQS!$F$3:$AW$3,0),FALSE),"") ->  | K182: =IFERROR(VLOOKUP($A182,PQS!$F$5:$AW$137,COLUMN(PQS!$AC$5)-3,FALSE),"") ->  | L182: =IFERROR(VLOOKUP($A182,PQS!$F$5:$AW$137,MATCH(PQS!$J$3,PQS!$F$3:$AW$3,0),FALSE),"") ->  | M182: =IFERROR(VLOOKUP($A182,PQS!$F$5:$AW$137,MATCH(PQS!$AG$3,PQS!$F$3:$AW$3,0),FALSE),"") ->  | N182: =IFERROR(HYPERLINK(VLOOKUP($A182,PQS!$F$5:$AW$137,MATCH(PQS!$AK$3,PQS!$F$3:$AW$3,0),FALSE),VLOOKUP($A182,PQS!$F$5:$AW$137,MATCH(PQS!$AJ$3,PQS!$F$3:$AW$3,0),FALSE)),"") -> 
E183: =IFERROR(VLOOKUP($A183,PQS!$F$5:$AR$137,MATCH(PQS!$AN$3, PQS!$F$3:$AR$3,0),FALSE),"") ->  | F183: =IFERROR(VLOOKUP($A183,PQS!$F$5:$AW$137,MATCH(PQS!$AM$3,PQS!$F$3:$AW$3,0),FALSE),"") ->  | H183: =IFERROR(VLOOKUP($A183,PQS!$F$5:$AW$137,MATCH(PQS!$K$3,PQS!$F$3:$AW$3,0),FALSE),"") ->  | I183: =IFERROR(VLOOKUP($A183,PQS!$F$5:$AW$137,MATCH(PQS!$L$3,PQS!$F$3:$AW$3,0),FALSE),"") ->  | J183: =IFERROR(VLOOKUP($A183,PQS!$F$5:$AW$137,MATCH(PQS!$AL$3,PQS!$F$3:$AW$3,0),FALSE),"") ->  | K183: =IFERROR(VLOOKUP($A183,PQS!$F$5:$AW$137,COLUMN(PQS!$AC$5)-3,FALSE),"") ->  | L183: =IFERROR(VLOOKUP($A183,PQS!$F$5:$AW$137,MATCH(PQS!$J$3,PQS!$F$3:$AW$3,0),FALSE),"") ->  | M183: =IFERROR(VLOOKUP($A183,PQS!$F$5:$AW$137,MATCH(PQS!$AG$3,PQS!$F$3:$AW$3,0),FALSE),"") ->  | N183: =IFERROR(HYPERLINK(VLOOKUP($A183,PQS!$F$5:$AW$137,MATCH(PQS!$AK$3,PQS!$F$3:$AW$3,0),FALSE),VLOOKUP($A183,PQS!$F$5:$AW$137,MATCH(PQS!$AJ$3,PQS!$F$3:$AW$3,0),FALSE)),"") -> 
E184: =IFERROR(VLOOKUP($A184,PQS!$F$5:$AR$137,MATCH(PQS!$AN$3, PQS!$F$3:$AR$3,0),FALSE),"") ->  | F184: =IFERROR(VLOOKUP($A184,PQS!$F$5:$AW$137,MATCH(PQS!$AM$3,PQS!$F$3:$AW$3,0),FALSE),"") ->  | H184: =IFERROR(VLOOKUP($A184,PQS!$F$5:$AW$137,MATCH(PQS!$K$3,PQS!$F$3:$AW$3,0),FALSE),"") ->  | I184: =IFERROR(VLOOKUP($A184,PQS!$F$5:$AW$137,MATCH(PQS!$L$3,PQS!$F$3:$AW$3,0),FALSE),"") ->  | J184: =IFERROR(VLOOKUP($A184,PQS!$F$5:$AW$137,MATCH(PQS!$AL$3,PQS!$F$3:$AW$3,0),FALSE),"") ->  | K184: =IFERROR(VLOOKUP($A184,PQS!$F$5:$AW$137,COLUMN(PQS!$AC$5)-3,FALSE),"") ->  | L184: =IFERROR(VLOOKUP($A184,PQS!$F$5:$AW$137,MATCH(PQS!$J$3,PQS!$F$3:$AW$3,0),FALSE),"") ->  | M184: =IFERROR(VLOOKUP($A184,PQS!$F$5:$AW$137,MATCH(PQS!$AG$3,PQS!$F$3:$AW$3,0),FALSE),"") ->  | N184: =IFERROR(HYPERLINK(VLOOKUP($A184,PQS!$F$5:$AW$137,MATCH(PQS!$AK$3,PQS!$F$3:$AW$3,0),FALSE),VLOOKUP($A184,PQS!$F$5:$AW$137,MATCH(PQS!$AJ$3,PQS!$F$3:$AW$3,0),FALSE)),"") -> 
E185: =IFERROR(VLOOKUP($A185,PQS!$F$5:$AR$137,MATCH(PQS!$AN$3, PQS!$F$3:$AR$3,0),FALSE),"") ->  | F185: =IFERROR(VLOOKUP($A185,PQS!$F$5:$AW$137,MATCH(PQS!$AM$3,PQS!$F$3:$AW$3,0),FALSE),"") ->  | H185: =IFERROR(VLOOKUP($A185,PQS!$F$5:$AW$137,MATCH(PQS!$K$3,PQS!$F$3:$AW$3,0),FALSE),"") ->  | I185: =IFERROR(VLOOKUP($A185,PQS!$F$5:$AW$137,MATCH(PQS!$L$3,PQS!$F$3:$AW$3,0),FALSE),"") ->  | J185: =IFERROR(VLOOKUP($A185,PQS!$F$5:$AW$137,MATCH(PQS!$AL$3,PQS!$F$3:$AW$3,0),FALSE),"") ->  | K185: =IFERROR(VLOOKUP($A185,PQS!$F$5:$AW$137,COLUMN(PQS!$AC$5)-3,FALSE),"") ->  | L185: =IFERROR(VLOOKUP($A185,PQS!$F$5:$AW$137,MATCH(PQS!$J$3,PQS!$F$3:$AW$3,0),FALSE),"") ->  | M185: =IFERROR(VLOOKUP($A185,PQS!$F$5:$AW$137,MATCH(PQS!$AG$3,PQS!$F$3:$AW$3,0),FALSE),"") ->  | N185: =IFERROR(HYPERLINK(VLOOKUP($A185,PQS!$F$5:$AW$137,MATCH(PQS!$AK$3,PQS!$F$3:$AW$3,0),FALSE),VLOOKUP($A185,PQS!$F$5:$AW$137,MATCH(PQS!$AJ$3,PQS!$F$3:$AW$3,0),FALSE)),"") -> 
E186: =IFERROR(VLOOKUP($A186,PQS!$F$5:$AR$137,MATCH(PQS!$AN$3, PQS!$F$3:$AR$3,0),FALSE),"") ->  | F186: =IFERROR(VLOOKUP($A186,PQS!$F$5:$AW$137,MATCH(PQS!$AM$3,PQS!$F$3:$AW$3,0),FALSE),"") ->  | H186: =IFERROR(VLOOKUP($A186,PQS!$F$5:$AW$137,MATCH(PQS!$K$3,PQS!$F$3:$AW$3,0),FALSE),"") ->  | I186: =IFERROR(VLOOKUP($A186,PQS!$F$5:$AW$137,MATCH(PQS!$L$3,PQS!$F$3:$AW$3,0),FALSE),"") ->  | J186: =IFERROR(VLOOKUP($A186,PQS!$F$5:$AW$137,MATCH(PQS!$AL$3,PQS!$F$3:$AW$3,0),FALSE),"") ->  | K186: =IFERROR(VLOOKUP($A186,PQS!$F$5:$AW$137,COLUMN(PQS!$AC$5)-3,FALSE),"") ->  | L186: =IFERROR(VLOOKUP($A186,PQS!$F$5:$AW$137,MATCH(PQS!$J$3,PQS!$F$3:$AW$3,0),FALSE),"") ->  | M186: =IFERROR(VLOOKUP($A186,PQS!$F$5:$AW$137,MATCH(PQS!$AG$3,PQS!$F$3:$AW$3,0),FALSE),"") ->  | N186: =IFERROR(HYPERLINK(VLOOKUP($A186,PQS!$F$5:$AW$137,MATCH(PQS!$AK$3,PQS!$F$3:$AW$3,0),FALSE),VLOOKUP($A186,PQS!$F$5:$AW$137,MATCH(PQS!$AJ$3,PQS!$F$3:$AW$3,0),FALSE)),"") -> 
E187: =IFERROR(VLOOKUP($A187,PQS!$F$5:$AR$137,MATCH(PQS!$AN$3, PQS!$F$3:$AR$3,0),FALSE),"") ->  | F187: =IFERROR(VLOOKUP($A187,PQS!$F$5:$AW$137,MATCH(PQS!$AM$3,PQS!$F$3:$AW$3,0),FALSE),"") ->  | H187: =IFERROR(VLOOKUP($A187,PQS!$F$5:$AW$137,MATCH(PQS!$K$3,PQS!$F$3:$AW$3,0),FALSE),"") ->  | I187: =IFERROR(VLOOKUP($A187,PQS!$F$5:$AW$137,MATCH(PQS!$L$3,PQS!$F$3:$AW$3,0),FALSE),"") ->  | J187: =IFERROR(VLOOKUP($A187,PQS!$F$5:$AW$137,MATCH(PQS!$AL$3,PQS!$F$3:$AW$3,0),FALSE),"") ->  | K187: =IFERROR(VLOOKUP($A187,PQS!$F$5:$AW$137,COLUMN(PQS!$AC$5)-3,FALSE),"") ->  | L187: =IFERROR(VLOOKUP($A187,PQS!$F$5:$AW$137,MATCH(PQS!$J$3,PQS!$F$3:$AW$3,0),FALSE),"") ->  | M187: =IFERROR(VLOOKUP($A187,PQS!$F$5:$AW$137,MATCH(PQS!$AG$3,PQS!$F$3:$AW$3,0),FALSE),"") ->  | N187: =IFERROR(HYPERLINK(VLOOKUP($A187,PQS!$F$5:$AW$137,MATCH(PQS!$AK$3,PQS!$F$3:$AW$3,0),FALSE),VLOOKUP($A187,PQS!$F$5:$AW$137,MATCH(PQS!$AJ$3,PQS!$F$3:$AW$3,0),FALSE)),"") -> 
E188: =IFERROR(VLOOKUP($A188,PQS!$F$5:$AR$137,MATCH(PQS!$AN$3, PQS!$F$3:$AR$3,0),FALSE),"") ->  | F188: =IFERROR(VLOOKUP($A188,PQS!$F$5:$AW$137,MATCH(PQS!$AM$3,PQS!$F$3:$AW$3,0),FALSE),"") ->  | H188: =IFERROR(VLOOKUP($A188,PQS!$F$5:$AW$137,MATCH(PQS!$K$3,PQS!$F$3:$AW$3,0),FALSE),"") ->  | I188: =IFERROR(VLOOKUP($A188,PQS!$F$5:$AW$137,MATCH(PQS!$L$3,PQS!$F$3:$AW$3,0),FALSE),"") ->  | J188: =IFERROR(VLOOKUP($A188,PQS!$F$5:$AW$137,MATCH(PQS!$AL$3,PQS!$F$3:$AW$3,0),FALSE),"") ->  | K188: =IFERROR(VLOOKUP($A188,PQS!$F$5:$AW$137,COLUMN(PQS!$AC$5)-3,FALSE),"") ->  | L188: =IFERROR(VLOOKUP($A188,PQS!$F$5:$AW$137,MATCH(PQS!$J$3,PQS!$F$3:$AW$3,0),FALSE),"") ->  | M188: =IFERROR(VLOOKUP($A188,PQS!$F$5:$AW$137,MATCH(PQS!$AG$3,PQS!$F$3:$AW$3,0),FALSE),"") ->  | N188: =IFERROR(HYPERLINK(VLOOKUP($A188,PQS!$F$5:$AW$137,MATCH(PQS!$AK$3,PQS!$F$3:$AW$3,0),FALSE),VLOOKUP($A188,PQS!$F$5:$AW$137,MATCH(PQS!$AJ$3,PQS!$F$3:$AW$3,0),FALSE)),"") -> 
E189: =IFERROR(VLOOKUP($A189,PQS!$F$5:$AR$137,MATCH(PQS!$AN$3, PQS!$F$3:$AR$3,0),FALSE),"") ->  | F189: =IFERROR(VLOOKUP($A189,PQS!$F$5:$AW$137,MATCH(PQS!$AM$3,PQS!$F$3:$AW$3,0),FALSE),"") ->  | H189: =IFERROR(VLOOKUP($A189,PQS!$F$5:$AW$137,MATCH(PQS!$K$3,PQS!$F$3:$AW$3,0),FALSE),"") ->  | I189: =IFERROR(VLOOKUP($A189,PQS!$F$5:$AW$137,MATCH(PQS!$L$3,PQS!$F$3:$AW$3,0),FALSE),"") ->  | J189: =IFERROR(VLOOKUP($A189,PQS!$F$5:$AW$137,MATCH(PQS!$AL$3,PQS!$F$3:$AW$3,0),FALSE),"") ->  | K189: =IFERROR(VLOOKUP($A189,PQS!$F$5:$AW$137,COLUMN(PQS!$AC$5)-3,FALSE),"") ->  | L189: =IFERROR(VLOOKUP($A189,PQS!$F$5:$AW$137,MATCH(PQS!$J$3,PQS!$F$3:$AW$3,0),FALSE),"") ->  | M189: =IFERROR(VLOOKUP($A189,PQS!$F$5:$AW$137,MATCH(PQS!$AG$3,PQS!$F$3:$AW$3,0),FALSE),"") ->  | N189: =IFERROR(HYPERLINK(VLOOKUP($A189,PQS!$F$5:$AW$137,MATCH(PQS!$AK$3,PQS!$F$3:$AW$3,0),FALSE),VLOOKUP($A189,PQS!$F$5:$AW$137,MATCH(PQS!$AJ$3,PQS!$F$3:$AW$3,0),FALSE)),"") -> 
E190: =IFERROR(VLOOKUP($A190,PQS!$F$5:$AR$137,MATCH(PQS!$AN$3, PQS!$F$3:$AR$3,0),FALSE),"") ->  | F190: =IFERROR(VLOOKUP($A190,PQS!$F$5:$AW$137,MATCH(PQS!$AM$3,PQS!$F$3:$AW$3,0),FALSE),"") ->  | H190: =IFERROR(VLOOKUP($A190,PQS!$F$5:$AW$137,MATCH(PQS!$K$3,PQS!$F$3:$AW$3,0),FALSE),"") ->  | I190: =IFERROR(VLOOKUP($A190,PQS!$F$5:$AW$137,MATCH(PQS!$L$3,PQS!$F$3:$AW$3,0),FALSE),"") ->  | J190: =IFERROR(VLOOKUP($A190,PQS!$F$5:$AW$137,MATCH(PQS!$AL$3,PQS!$F$3:$AW$3,0),FALSE),"") ->  | K190: =IFERROR(VLOOKUP($A190,PQS!$F$5:$AW$137,COLUMN(PQS!$AC$5)-3,FALSE),"") ->  | L190: =IFERROR(VLOOKUP($A190,PQS!$F$5:$AW$137,MATCH(PQS!$J$3,PQS!$F$3:$AW$3,0),FALSE),"") ->  | M190: =IFERROR(VLOOKUP($A190,PQS!$F$5:$AW$137,MATCH(PQS!$AG$3,PQS!$F$3:$AW$3,0),FALSE),"") ->  | N190: =IFERROR(HYPERLINK(VLOOKUP($A190,PQS!$F$5:$AW$137,MATCH(PQS!$AK$3,PQS!$F$3:$AW$3,0),FALSE),VLOOKUP($A190,PQS!$F$5:$AW$137,MATCH(PQS!$AJ$3,PQS!$F$3:$AW$3,0),FALSE)),"") -> 
E191: =IFERROR(VLOOKUP($A191,PQS!$F$5:$AR$137,MATCH(PQS!$AN$3, PQS!$F$3:$AR$3,0),FALSE),"") ->  | F191: =IFERROR(VLOOKUP($A191,PQS!$F$5:$AW$137,MATCH(PQS!$AM$3,PQS!$F$3:$AW$3,0),FALSE),"") ->  | H191: =IFERROR(VLOOKUP($A191,PQS!$F$5:$AW$137,MATCH(PQS!$K$3,PQS!$F$3:$AW$3,0),FALSE),"") ->  | I191: =IFERROR(VLOOKUP($A191,PQS!$F$5:$AW$137,MATCH(PQS!$L$3,PQS!$F$3:$AW$3,0),FALSE),"") ->  | J191: =IFERROR(VLOOKUP($A191,PQS!$F$5:$AW$137,MATCH(PQS!$AL$3,PQS!$F$3:$AW$3,0),FALSE),"") ->  | K191: =IFERROR(VLOOKUP($A191,PQS!$F$5:$AW$137,COLUMN(PQS!$AC$5)-3,FALSE),"") ->  | L191: =IFERROR(VLOOKUP($A191,PQS!$F$5:$AW$137,MATCH(PQS!$J$3,PQS!$F$3:$AW$3,0),FALSE),"") ->  | M191: =IFERROR(VLOOKUP($A191,PQS!$F$5:$AW$137,MATCH(PQS!$AG$3,PQS!$F$3:$AW$3,0),FALSE),"") ->  | N191: =IFERROR(HYPERLINK(VLOOKUP($A191,PQS!$F$5:$AW$137,MATCH(PQS!$AK$3,PQS!$F$3:$AW$3,0),FALSE),VLOOKUP($A191,PQS!$F$5:$AW$137,MATCH(PQS!$AJ$3,PQS!$F$3:$AW$3,0),FALSE)),"") -> 
E192: =IFERROR(VLOOKUP($A192,PQS!$F$5:$AR$137,MATCH(PQS!$AN$3, PQS!$F$3:$AR$3,0),FALSE),"") ->  | F192: =IFERROR(VLOOKUP($A192,PQS!$F$5:$AW$137,MATCH(PQS!$AM$3,PQS!$F$3:$AW$3,0),FALSE),"") ->  | H192: =IFERROR(VLOOKUP($A192,PQS!$F$5:$AW$137,MATCH(PQS!$K$3,PQS!$F$3:$AW$3,0),FALSE),"") ->  | I192: =IFERROR(VLOOKUP($A192,PQS!$F$5:$AW$137,MATCH(PQS!$L$3,PQS!$F$3:$AW$3,0),FALSE),"") ->  | J192: =IFERROR(VLOOKUP($A192,PQS!$F$5:$AW$137,MATCH(PQS!$AL$3,PQS!$F$3:$AW$3,0),FALSE),"") ->  | K192: =IFERROR(VLOOKUP($A192,PQS!$F$5:$AW$137,COLUMN(PQS!$AC$5)-3,FALSE),"") ->  | L192: =IFERROR(VLOOKUP($A192,PQS!$F$5:$AW$137,MATCH(PQS!$J$3,PQS!$F$3:$AW$3,0),FALSE),"") ->  | M192: =IFERROR(VLOOKUP($A192,PQS!$F$5:$AW$137,MATCH(PQS!$AG$3,PQS!$F$3:$AW$3,0),FALSE),"") ->  | N192: =IFERROR(HYPERLINK(VLOOKUP($A192,PQS!$F$5:$AW$137,MATCH(PQS!$AK$3,PQS!$F$3:$AW$3,0),FALSE),VLOOKUP($A192,PQS!$F$5:$AW$137,MATCH(PQS!$AJ$3,PQS!$F$3:$AW$3,0),FALSE)),"") -> 
E193: =IFERROR(VLOOKUP($A193,PQS!$F$5:$AR$137,MATCH(PQS!$AN$3, PQS!$F$3:$AR$3,0),FALSE),"") ->  | F193: =IFERROR(VLOOKUP($A193,PQS!$F$5:$AW$137,MATCH(PQS!$AM$3,PQS!$F$3:$AW$3,0),FALSE),"") ->  | H193: =IFERROR(VLOOKUP($A193,PQS!$F$5:$AW$137,MATCH(PQS!$K$3,PQS!$F$3:$AW$3,0),FALSE),"") ->  | I193: =IFERROR(VLOOKUP($A193,PQS!$F$5:$AW$137,MATCH(PQS!$L$3,PQS!$F$3:$AW$3,0),FALSE),"") ->  | J193: =IFERROR(VLOOKUP($A193,PQS!$F$5:$AW$137,MATCH(PQS!$AL$3,PQS!$F$3:$AW$3,0),FALSE),"") ->  | K193: =IFERROR(VLOOKUP($A193,PQS!$F$5:$AW$137,COLUMN(PQS!$AC$5)-3,FALSE),"") ->  | L193: =IFERROR(VLOOKUP($A193,PQS!$F$5:$AW$137,MATCH(PQS!$J$3,PQS!$F$3:$AW$3,0),FALSE),"") ->  | M193: =IFERROR(VLOOKUP($A193,PQS!$F$5:$AW$137,MATCH(PQS!$AG$3,PQS!$F$3:$AW$3,0),FALSE),"") ->  | N193: =IFERROR(HYPERLINK(VLOOKUP($A193,PQS!$F$5:$AW$137,MATCH(PQS!$AK$3,PQS!$F$3:$AW$3,0),FALSE),VLOOKUP($A193,PQS!$F$5:$AW$137,MATCH(PQS!$AJ$3,PQS!$F$3:$AW$3,0),FALSE)),"") -> 
E194: =IFERROR(VLOOKUP($A194,PQS!$F$5:$AR$137,MATCH(PQS!$AN$3, PQS!$F$3:$AR$3,0),FALSE),"") ->  | F194: =IFERROR(VLOOKUP($A194,PQS!$F$5:$AW$137,MATCH(PQS!$AM$3,PQS!$F$3:$AW$3,0),FALSE),"") ->  | H194: =IFERROR(VLOOKUP($A194,PQS!$F$5:$AW$137,MATCH(PQS!$K$3,PQS!$F$3:$AW$3,0),FALSE),"") ->  | I194: =IFERROR(VLOOKUP($A194,PQS!$F$5:$AW$137,MATCH(PQS!$L$3,PQS!$F$3:$AW$3,0),FALSE),"") ->  | J194: =IFERROR(VLOOKUP($A194,PQS!$F$5:$AW$137,MATCH(PQS!$AL$3,PQS!$F$3:$AW$3,0),FALSE),"") ->  | K194: =IFERROR(VLOOKUP($A194,PQS!$F$5:$AW$137,COLUMN(PQS!$AC$5)-3,FALSE),"") ->  | L194: =IFERROR(VLOOKUP($A194,PQS!$F$5:$AW$137,MATCH(PQS!$J$3,PQS!$F$3:$AW$3,0),FALSE),"") ->  | M194: =IFERROR(VLOOKUP($A194,PQS!$F$5:$AW$137,MATCH(PQS!$AG$3,PQS!$F$3:$AW$3,0),FALSE),"") ->  | N194: =IFERROR(HYPERLINK(VLOOKUP($A194,PQS!$F$5:$AW$137,MATCH(PQS!$AK$3,PQS!$F$3:$AW$3,0),FALSE),VLOOKUP($A194,PQS!$F$5:$AW$137,MATCH(PQS!$AJ$3,PQS!$F$3:$AW$3,0),FALSE)),"") -> 
E195: =IFERROR(VLOOKUP($A195,PQS!$F$5:$AR$137,MATCH(PQS!$AN$3, PQS!$F$3:$AR$3,0),FALSE),"") ->  | F195: =IFERROR(VLOOKUP($A195,PQS!$F$5:$AW$137,MATCH(PQS!$AM$3,PQS!$F$3:$AW$3,0),FALSE),"") ->  | H195: =IFERROR(VLOOKUP($A195,PQS!$F$5:$AW$137,MATCH(PQS!$K$3,PQS!$F$3:$AW$3,0),FALSE),"") ->  | I195: =IFERROR(VLOOKUP($A195,PQS!$F$5:$AW$137,MATCH(PQS!$L$3,PQS!$F$3:$AW$3,0),FALSE),"") ->  | J195: =IFERROR(VLOOKUP($A195,PQS!$F$5:$AW$137,MATCH(PQS!$AL$3,PQS!$F$3:$AW$3,0),FALSE),"") ->  | K195: =IFERROR(VLOOKUP($A195,PQS!$F$5:$AW$137,COLUMN(PQS!$AC$5)-3,FALSE),"") ->  | L195: =IFERROR(VLOOKUP($A195,PQS!$F$5:$AW$137,MATCH(PQS!$J$3,PQS!$F$3:$AW$3,0),FALSE),"") ->  | M195: =IFERROR(VLOOKUP($A195,PQS!$F$5:$AW$137,MATCH(PQS!$AG$3,PQS!$F$3:$AW$3,0),FALSE),"") ->  | N195: =IFERROR(HYPERLINK(VLOOKUP($A195,PQS!$F$5:$AW$137,MATCH(PQS!$AK$3,PQS!$F$3:$AW$3,0),FALSE),VLOOKUP($A195,PQS!$F$5:$AW$137,MATCH(PQS!$AJ$3,PQS!$F$3:$AW$3,0),FALSE)),"") -> 
E196: =IFERROR(VLOOKUP($A196,PQS!$F$5:$AR$137,MATCH(PQS!$AN$3, PQS!$F$3:$AR$3,0),FALSE),"") ->  | F196: =IFERROR(VLOOKUP($A196,PQS!$F$5:$AW$137,MATCH(PQS!$AM$3,PQS!$F$3:$AW$3,0),FALSE),"") ->  | H196: =IFERROR(VLOOKUP($A196,PQS!$F$5:$AW$137,MATCH(PQS!$K$3,PQS!$F$3:$AW$3,0),FALSE),"") ->  | I196: =IFERROR(VLOOKUP($A196,PQS!$F$5:$AW$137,MATCH(PQS!$L$3,PQS!$F$3:$AW$3,0),FALSE),"") ->  | J196: =IFERROR(VLOOKUP($A196,PQS!$F$5:$AW$137,MATCH(PQS!$AL$3,PQS!$F$3:$AW$3,0),FALSE),"") ->  | K196: =IFERROR(VLOOKUP($A196,PQS!$F$5:$AW$137,COLUMN(PQS!$AC$5)-3,FALSE),"") ->  | L196: =IFERROR(VLOOKUP($A196,PQS!$F$5:$AW$137,MATCH(PQS!$J$3,PQS!$F$3:$AW$3,0),FALSE),"") ->  | M196: =IFERROR(VLOOKUP($A196,PQS!$F$5:$AW$137,MATCH(PQS!$AG$3,PQS!$F$3:$AW$3,0),FALSE),"") ->  | N196: =IFERROR(HYPERLINK(VLOOKUP($A196,PQS!$F$5:$AW$137,MATCH(PQS!$AK$3,PQS!$F$3:$AW$3,0),FALSE),VLOOKUP($A196,PQS!$F$5:$AW$137,MATCH(PQS!$AJ$3,PQS!$F$3:$AW$3,0),FALSE)),"") -> 
E197: =IFERROR(VLOOKUP($A197,PQS!$F$5:$AR$137,MATCH(PQS!$AN$3, PQS!$F$3:$AR$3,0),FALSE),"") ->  | F197: =IFERROR(VLOOKUP($A197,PQS!$F$5:$AW$137,MATCH(PQS!$AM$3,PQS!$F$3:$AW$3,0),FALSE),"") ->  | H197: =IFERROR(VLOOKUP($A197,PQS!$F$5:$AW$137,MATCH(PQS!$K$3,PQS!$F$3:$AW$3,0),FALSE),"") ->  | I197: =IFERROR(VLOOKUP($A197,PQS!$F$5:$AW$137,MATCH(PQS!$L$3,PQS!$F$3:$AW$3,0),FALSE),"") ->  | J197: =IFERROR(VLOOKUP($A197,PQS!$F$5:$AW$137,MATCH(PQS!$AL$3,PQS!$F$3:$AW$3,0),FALSE),"") ->  | K197: =IFERROR(VLOOKUP($A197,PQS!$F$5:$AW$137,COLUMN(PQS!$AC$5)-3,FALSE),"") ->  | L197: =IFERROR(VLOOKUP($A197,PQS!$F$5:$AW$137,MATCH(PQS!$J$3,PQS!$F$3:$AW$3,0),FALSE),"") ->  | M197: =IFERROR(VLOOKUP($A197,PQS!$F$5:$AW$137,MATCH(PQS!$AG$3,PQS!$F$3:$AW$3,0),FALSE),"") ->  | N197: =IFERROR(HYPERLINK(VLOOKUP($A197,PQS!$F$5:$AW$137,MATCH(PQS!$AK$3,PQS!$F$3:$AW$3,0),FALSE),VLOOKUP($A197,PQS!$F$5:$AW$137,MATCH(PQS!$AJ$3,PQS!$F$3:$AW$3,0),FALSE)),"") -> 
E198: =IFERROR(VLOOKUP($A198,PQS!$F$5:$AR$137,MATCH(PQS!$AN$3, PQS!$F$3:$AR$3,0),FALSE),"") ->  | F198: =IFERROR(VLOOKUP($A198,PQS!$F$5:$AW$137,MATCH(PQS!$AM$3,PQS!$F$3:$AW$3,0),FALSE),"") ->  | H198: =IFERROR(VLOOKUP($A198,PQS!$F$5:$AW$137,MATCH(PQS!$K$3,PQS!$F$3:$AW$3,0),FALSE),"") ->  | I198: =IFERROR(VLOOKUP($A198,PQS!$F$5:$AW$137,MATCH(PQS!$L$3,PQS!$F$3:$AW$3,0),FALSE),"") ->  | J198: =IFERROR(VLOOKUP($A198,PQS!$F$5:$AW$137,MATCH(PQS!$AL$3,PQS!$F$3:$AW$3,0),FALSE),"") ->  | K198: =IFERROR(VLOOKUP($A198,PQS!$F$5:$AW$137,COLUMN(PQS!$AC$5)-3,FALSE),"") ->  | L198: =IFERROR(VLOOKUP($A198,PQS!$F$5:$AW$137,MATCH(PQS!$J$3,PQS!$F$3:$AW$3,0),FALSE),"") ->  | M198: =IFERROR(VLOOKUP($A198,PQS!$F$5:$AW$137,MATCH(PQS!$AG$3,PQS!$F$3:$AW$3,0),FALSE),"") ->  | N198: =IFERROR(HYPERLINK(VLOOKUP($A198,PQS!$F$5:$AW$137,MATCH(PQS!$AK$3,PQS!$F$3:$AW$3,0),FALSE),VLOOKUP($A198,PQS!$F$5:$AW$137,MATCH(PQS!$AJ$3,PQS!$F$3:$AW$3,0),FALSE)),"") -> 
E199: =IFERROR(VLOOKUP($A199,PQS!$F$5:$AR$137,MATCH(PQS!$AN$3, PQS!$F$3:$AR$3,0),FALSE),"") ->  | F199: =IFERROR(VLOOKUP($A199,PQS!$F$5:$AW$137,MATCH(PQS!$AM$3,PQS!$F$3:$AW$3,0),FALSE),"") ->  | H199: =IFERROR(VLOOKUP($A199,PQS!$F$5:$AW$137,MATCH(PQS!$K$3,PQS!$F$3:$AW$3,0),FALSE),"") ->  | I199: =IFERROR(VLOOKUP($A199,PQS!$F$5:$AW$137,MATCH(PQS!$L$3,PQS!$F$3:$AW$3,0),FALSE),"") ->  | J199: =IFERROR(VLOOKUP($A199,PQS!$F$5:$AW$137,MATCH(PQS!$AL$3,PQS!$F$3:$AW$3,0),FALSE),"") ->  | K199: =IFERROR(VLOOKUP($A199,PQS!$F$5:$AW$137,COLUMN(PQS!$AC$5)-3,FALSE),"") ->  | L199: =IFERROR(VLOOKUP($A199,PQS!$F$5:$AW$137,MATCH(PQS!$J$3,PQS!$F$3:$AW$3,0),FALSE),"") ->  | M199: =IFERROR(VLOOKUP($A199,PQS!$F$5:$AW$137,MATCH(PQS!$AG$3,PQS!$F$3:$AW$3,0),FALSE),"") ->  | N199: =IFERROR(HYPERLINK(VLOOKUP($A199,PQS!$F$5:$AW$137,MATCH(PQS!$AK$3,PQS!$F$3:$AW$3,0),FALSE),VLOOKUP($A199,PQS!$F$5:$AW$137,MATCH(PQS!$AJ$3,PQS!$F$3:$AW$3,0),FALSE)),"") -> 
E200: =IFERROR(VLOOKUP($A200,PQS!$F$5:$AR$137,MATCH(PQS!$AN$3, PQS!$F$3:$AR$3,0),FALSE),"") ->  | F200: =IFERROR(VLOOKUP($A200,PQS!$F$5:$AW$137,MATCH(PQS!$AM$3,PQS!$F$3:$AW$3,0),FALSE),"") ->  | H200: =IFERROR(VLOOKUP($A200,PQS!$F$5:$AW$137,MATCH(PQS!$K$3,PQS!$F$3:$AW$3,0),FALSE),"") ->  | I200: =IFERROR(VLOOKUP($A200,PQS!$F$5:$AW$137,MATCH(PQS!$L$3,PQS!$F$3:$AW$3,0),FALSE),"") ->  | J200: =IFERROR(VLOOKUP($A200,PQS!$F$5:$AW$137,MATCH(PQS!$AL$3,PQS!$F$3:$AW$3,0),FALSE),"") ->  | K200: =IFERROR(VLOOKUP($A200,PQS!$F$5:$AW$137,COLUMN(PQS!$AC$5)-3,FALSE),"") ->  | L200: =IFERROR(VLOOKUP($A200,PQS!$F$5:$AW$137,MATCH(PQS!$J$3,PQS!$F$3:$AW$3,0),FALSE),"") ->  | M200: =IFERROR(VLOOKUP($A200,PQS!$F$5:$AW$137,MATCH(PQS!$AG$3,PQS!$F$3:$AW$3,0),FALSE),"") ->  | N200: =IFERROR(HYPERLINK(VLOOKUP($A200,PQS!$F$5:$AW$137,MATCH(PQS!$AK$3,PQS!$F$3:$AW$3,0),FALSE),VLOOKUP($A200,PQS!$F$5:$AW$137,MATCH(PQS!$AJ$3,PQS!$F$3:$AW$3,0),FALSE)),"") -> 
E201: =IFERROR(VLOOKUP($A201,PQS!$F$5:$AR$137,MATCH(PQS!$AN$3, PQS!$F$3:$AR$3,0),FALSE),"") ->  | F201: =IFERROR(VLOOKUP($A201,PQS!$F$5:$AW$137,MATCH(PQS!$AM$3,PQS!$F$3:$AW$3,0),FALSE),"") ->  | H201: =IFERROR(VLOOKUP($A201,PQS!$F$5:$AW$137,MATCH(PQS!$K$3,PQS!$F$3:$AW$3,0),FALSE),"") ->  | I201: =IFERROR(VLOOKUP($A201,PQS!$F$5:$AW$137,MATCH(PQS!$L$3,PQS!$F$3:$AW$3,0),FALSE),"") ->  | J201: =IFERROR(VLOOKUP($A201,PQS!$F$5:$AW$137,MATCH(PQS!$AL$3,PQS!$F$3:$AW$3,0),FALSE),"") ->  | K201: =IFERROR(VLOOKUP($A201,PQS!$F$5:$AW$137,COLUMN(PQS!$AC$5)-3,FALSE),"") ->  | L201: =IFERROR(VLOOKUP($A201,PQS!$F$5:$AW$137,MATCH(PQS!$J$3,PQS!$F$3:$AW$3,0),FALSE),"") ->  | M201: =IFERROR(VLOOKUP($A201,PQS!$F$5:$AW$137,MATCH(PQS!$AG$3,PQS!$F$3:$AW$3,0),FALSE),"") ->  | N201: =IFERROR(HYPERLINK(VLOOKUP($A201,PQS!$F$5:$AW$137,MATCH(PQS!$AK$3,PQS!$F$3:$AW$3,0),FALSE),VLOOKUP($A201,PQS!$F$5:$AW$137,MATCH(PQS!$AJ$3,PQS!$F$3:$AW$3,0),FALSE)),"") -> 
E202: =IFERROR(VLOOKUP($A202,PQS!$F$5:$AR$137,MATCH(PQS!$AN$3, PQS!$F$3:$AR$3,0),FALSE),"") ->  | F202: =IFERROR(VLOOKUP($A202,PQS!$F$5:$AW$137,MATCH(PQS!$AM$3,PQS!$F$3:$AW$3,0),FALSE),"") ->  | H202: =IFERROR(VLOOKUP($A202,PQS!$F$5:$AW$137,MATCH(PQS!$K$3,PQS!$F$3:$AW$3,0),FALSE),"") ->  | I202: =IFERROR(VLOOKUP($A202,PQS!$F$5:$AW$137,MATCH(PQS!$L$3,PQS!$F$3:$AW$3,0),FALSE),"") ->  | J202: =IFERROR(VLOOKUP($A202,PQS!$F$5:$AW$137,MATCH(PQS!$AL$3,PQS!$F$3:$AW$3,0),FALSE),"") ->  | K202: =IFERROR(VLOOKUP($A202,PQS!$F$5:$AW$137,COLUMN(PQS!$AC$5)-3,FALSE),"") ->  | L202: =IFERROR(VLOOKUP($A202,PQS!$F$5:$AW$137,MATCH(PQS!$J$3,PQS!$F$3:$AW$3,0),FALSE),"") ->  | M202: =IFERROR(VLOOKUP($A202,PQS!$F$5:$AW$137,MATCH(PQS!$AG$3,PQS!$F$3:$AW$3,0),FALSE),"") ->  | N202: =IFERROR(HYPERLINK(VLOOKUP($A202,PQS!$F$5:$AW$137,MATCH(PQS!$AK$3,PQS!$F$3:$AW$3,0),FALSE),VLOOKUP($A202,PQS!$F$5:$AW$137,MATCH(PQS!$AJ$3,PQS!$F$3:$AW$3,0),FALSE)),"") -> 
E203: =IFERROR(VLOOKUP($A203,PQS!$F$5:$AR$137,MATCH(PQS!$AN$3, PQS!$F$3:$AR$3,0),FALSE),"") ->  | H203: =IFERROR(VLOOKUP($A203,PQS!$F$5:$AW$137,MATCH(PQS!$K$3,PQS!$F$3:$AW$3,0),FALSE),"") ->  | I203: =IFERROR(VLOOKUP($A203,PQS!$F$5:$AW$137,MATCH(PQS!$L$3,PQS!$F$3:$AW$3,0),FALSE),"") ->  | J203: =IFERROR(VLOOKUP($A203,PQS!$F$5:$AW$137,MATCH(PQS!$AL$3,PQS!$F$3:$AW$3,0),FALSE),"") ->  | K203: =IFERROR(VLOOKUP($A203,PQS!$F$5:$AW$137,COLUMN(PQS!$AC$5)-3,FALSE),"") ->  | L203: =IFERROR(VLOOKUP($A203,PQS!$F$5:$AW$137,MATCH(PQS!$AG$3,PQS!$F$3:$AW$3,0),FALSE),"") ->  | M203: =IFERROR(HYPERLINK(VLOOKUP($A203,PQS!$F:$AW,MATCH(PQS!$AK$3,PQS!$F$3:$AW$3,0),FALSE),VLOOKUP($A203,PQS!$F:$AW,MATCH(PQS!$AJ$3,PQS!$F$3:$AW$3,0),FALSE)),"") ->  | N203: =IFERROR(HYPERLINK(VLOOKUP($A203,PQS!$F$5:$AW$137,MATCH(PQS!$AK$3,PQS!$F$3:$AW$3,0),FALSE),VLOOKUP($A203,PQS!$F$5:$AW$137,MATCH(PQS!$AJ$3,PQS!$F$3:$AW$3,0),FALSE)),"") -> 
E204: =IFERROR(VLOOKUP($A204,PQS!$F$5:$AR$137,MATCH(PQS!$AN$3, PQS!$F$3:$AR$3,0),FALSE),"") ->  | H204: =IFERROR(VLOOKUP($A204,PQS!$F$5:$AW$137,MATCH(PQS!$K$3,PQS!$F$3:$AW$3,0),FALSE),"") ->  | I204: =IFERROR(VLOOKUP($A204,PQS!$F$5:$AW$137,MATCH(PQS!$L$3,PQS!$F$3:$AW$3,0),FALSE),"") ->  | J204: =IFERROR(VLOOKUP($A204,PQS!$F$5:$AW$137,MATCH(PQS!$AL$3,PQS!$F$3:$AW$3,0),FALSE),"") ->  | K204: =IFERROR(VLOOKUP($A204,PQS!$F$5:$AW$137,COLUMN(PQS!$AC$5)-3,FALSE),"") ->  | L204: =IFERROR(VLOOKUP($A204,PQS!$F$5:$AW$137,MATCH(PQS!$AG$3,PQS!$F$3:$AW$3,0),FALSE),"") ->  | M204: =IFERROR(HYPERLINK(VLOOKUP($A204,PQS!$F:$AW,MATCH(PQS!$AK$3,PQS!$F$3:$AW$3,0),FALSE),VLOOKUP($A204,PQS!$F:$AW,MATCH(PQS!$AJ$3,PQS!$F$3:$AW$3,0),FALSE)),"") ->  | N204: =IFERROR(HYPERLINK(VLOOKUP($A204,PQS!$F$5:$AW$137,MATCH(PQS!$AK$3,PQS!$F$3:$AW$3,0),FALSE),VLOOKUP($A204,PQS!$F$5:$AW$137,MATCH(PQS!$AJ$3,PQS!$F$3:$AW$3,0),FALSE)),"") -> 
E205: =IFERROR(VLOOKUP($A205,PQS!$F$5:$AR$137,MATCH(PQS!$AN$3, PQS!$F$3:$AR$3,0),FALSE),"") ->  | H205: =IFERROR(VLOOKUP($A205,PQS!$F$5:$AJ$137,13,FALSE),"") ->  | J205: =IFERROR(VLOOKUP($A205,PQS!$F$5:$AJ$137,6,FALSE),"") -> 
E206: =IFERROR(VLOOKUP($A206,PQS!$F$5:$AR$137,MATCH(PQS!$AN$3, PQS!$F$3:$AR$3,0),FALSE),"") -> 
E207: =IFERROR(VLOOKUP($A207,PQS!$F$5:$AR$137,MATCH(PQS!$AN$3, PQS!$F$3:$AR$3,0),FALSE),"") -> 
E208: =IFERROR(VLOOKUP($A208,PQS!$F$5:$AR$137,MATCH(PQS!$AN$3, PQS!$F$3:$AR$3,0),FALSE),"") -> 
E209: =IFERROR(VLOOKUP($A209,PQS!$F$5:$AR$137,MATCH(PQS!$AN$3, PQS!$F$3:$AR$3,0),FALSE),"") -> 
E210: =IFERROR(VLOOKUP($A210,PQS!$F$5:$AR$137,MATCH(PQS!$AN$3, PQS!$F$3:$AR$3,0),FALSE),"") -> 
E211: =IFERROR(VLOOKUP($A211,PQS!$F$5:$AR$137,MATCH(PQS!$AN$3, PQS!$F$3:$AR$3,0),FALSE),"") -> 
E212: =IFERROR(VLOOKUP($A212,PQS!$F$5:$AR$137,MATCH(PQS!$AN$3, PQS!$F$3:$AR$3,0),FALSE),"") -> 
E213: =IFERROR(VLOOKUP($A213,PQS!$F$5:$AR$137,MATCH(PQS!$AN$3, PQS!$F$3:$AR$3,0),FALSE),"") -> 
E214: =IFERROR(VLOOKUP($A214,PQS!$F$5:$AR$137,MATCH(PQS!$AN$3, PQS!$F$3:$AR$3,0),FALSE),"") -> 
E215: =IFERROR(VLOOKUP($A215,PQS!$F$5:$AR$137,MATCH(PQS!$AN$3, PQS!$F$3:$AR$3,0),FALSE),"") -> 
E216: =IFERROR(VLOOKUP($A216,PQS!$F$5:$AR$137,MATCH(PQS!$AN$3, PQS!$F$3:$AR$3,0),FALSE),"") -> 
E217: =IFERROR(VLOOKUP($A217,PQS!$F$5:$AR$137,MATCH(PQS!$AN$3, PQS!$F$3:$AR$3,0),FALSE),"") -> 
E218: =IFERROR(VLOOKUP($A218,PQS!$F$5:$AR$137,MATCH(PQS!$AN$3, PQS!$F$3:$AR$3,0),FALSE),"") -> 
E219: =IFERROR(VLOOKUP($A219,PQS!$F$5:$AR$137,MATCH(PQS!$AN$3, PQS!$F$3:$AR$3,0),FALSE),"") -> 
... 83 more rows

Sheet Comparaison flux de trésorerie
A1: Comparaison cumulée des flux de trésorerie pendant les années prévues
E4: Période de prévision | H4: ='Coûts totaux de la solution'!B2 -> 10
E5: Niveau de la chaîne du froid (segmentation) évalué | H5: =facilitysegment -> nom?
E6: Nombre d'installations à équiper | H6: =NumberFacilitiestoEquip -> 10
E7: Volume de stockage nécessaire par installation | H7: =LitersPerFacility -> 12.5
A57: Is it cumulative? | B57: YES
B59: SDD | AN59: Congélateur | AX59: Coffre isotherme à longue durée | AY59: RGG
B60: SunDanzer BFRV 55* | C60: Zero ZLF 100 DC* | D60: SunDanzer BFRV 15 SDD* | E60: B Medical TCW 40 SDD* | F60: B Medical TCW 2043 SDD* | G60: B Medical TCW 3043 SDD* | H60: Zero ZLF 150DC* | I60: Zero ZLF 30DC SDD* | J60: Haier HTCD-160* | K60: B Medical TCW 15R SDD* | L60: B Medical TCW 40R SDD* | M60: Vestfrost VLS 024 SDD* | N60: Haier HTCD 90 SDD* | O60: Haier HTC 40 SDD* | P60: Haier HTC 110 SDD* | Q60: B Medical TCW 15 SDD* | R60: B Medical Ultra 16 SDD* | S60: Vestfrost VLS 056 RF SDD* | T60: Dulas VC 200 SDD* | U60: Dulas VC 150 SDD* | V60: Godrej GVR 50DC SDD* | W60: Godrej GVR 100DC (SureChill)* | X60: Dulas VC 110 SDD* | Y60: Dulas VC 88 SDD* | Z60: Dulas VC 50 SDD* | AA60: Dulas VC 60 SDD* | AB60: Dulas VC 30 SDD* | AC60: Vestfrost VLS 026 RF SDD* | AD60: B Medical TCW 4000 SDD* | AE60: Godrej GVR 55 FF DC* | AF60: Aucma CFD-50 SDD* | AG60: Haier HTC-112* | AH60: Godrej GVR 25 Lite DC* | AI60: Vestfrost VLS 054A SDD Green line* | AJ60: Vestfrost VLS 094A SDD Greenline* | AK60: Vestfrost VLS 154A SDD Greenline* | AL60: Haier HTC-120* | AM60: Haier HTC-240* | AN60: Haier HBD 286* | AO60: Vestfrost MF 114* | AP60: Vestfrost MF 214* | AQ60: Aucma DW-25W147* | AR60: Aucma DW-25W300* | AS60: B Medical TFW 3000 AC* | AT60: B Medical TFW 40 SDD* | AU60: Haier HBD 116* | AV60: Haier HTD-40* | AW60: Vestfrost VFS 048 SDD* | AX60: Aucma ARKTEK-YBC-5* | AY60: Zero ZLF 100 AC* | AZ60: Zero ZLF 150 AC* | BA60: Zero ZLF 30 AC* | BB60: B Medical TCW 4000 AC* | BC60: Haier HBC-260* | BD60: Haier HBC-150* | BE60: Haier HBC-80* | BF60: Godrej GVR 50 AC* | BG60: Godrej GVR 100 AC* | BH60: Dulas VC 225 ILR* | BI60: Godrej GVR 51 LITE AC* | BJ60: Godrej GVR 75 Lite* | BK60: Godrej GVR 99 Lite* | BL60: Godrej GVR 225 AC* | BM60: Zero ZLF 80 AC* | BN60: Haier HBCD-90* | BO60: B Medical TCW 40R AC* | BP60: B Medical TCW 80 AC* | BQ60: Godrej GVR 55 FF AC* | BR60: Godrej GVR 25 Lite* | BS60: Vestfrost VLS 064 RF* | BT60: Aucma CFD-50* | BU60: Vestfrost VLS 204A* | BV60: Vestfrost VLS 304A AC* | BW60: Vestfrost VLS 354A AC* | BX60: Vestfrost VLS 404A AC* | BY60: Vestfrost VLS 504A AC* | BZ60: Haier HBC-120* | CA60: Haier HBC-240*
A61: Year 1 | B61: 45878.3 | C61: 65698.98 | D61: 37052.7 | E61: 77041.944 | F61: 121524.733 | G61: 87403.931 | H61: 70867.08 | I61: 45080.08 | J61: 74132.68 | K61: 64140.847 | L61: 73729.01 | M61: 45507.93534 | N61: 54979.68 | O61: 38608.68 | P61: 41283.68 | Q61: 64551.941 | R61: 75216.203 | S61: 71463.53994 | T61: 59739.0186 | U61: 78818.6166 | V61: 50462.608 | W61: 64372.608 | X61: 57320.8186 | Y61: 57320.8186 | Z61: 45859.7597 | AA61: 68541.2666 | AB61: 42837.0097 | AC61: 68017.60494 | AD61: 94670.622 | AE61: 72564.528 | AF61: 41077.424 | AG61: 41671.876 | AH61: 38104.108 | AI61: 49002.23434 | AJ61: 53113.17434 | AK61: 63257.52334 | AL61: 51876.68 | AM61: 57547.68 | AN61: 19821.53333 | AO61: 17454.98632 | AP61: 18874.051 | AQ61: 17030.59333 | AR61: 18051.08933 | AS61: 46890.96648 | AT61: 66828.76317 | AU61: 15950.99333 | AV61: 34118.25333 | AW61: 40863.96941 | AX61: 91485.3 | AY61: 33296.77333 | AZ61: 37140.26133 | BA61: 25514.80933 | BB61: 59104.8255 | BC61: 22607.00667 | BD61: 20259.80667 | BE61: 18149.00667 | BF61: 27374.87733 | BG61: 35142.67733 | BH61: 42826.22901 | BI61: 21134.63733 | BJ61: 21317.43733 | BK61: 21610.89733 | BL61: 31281.78933 | BM61: 32440.13333 | BN61: 28323.30667 | BO61: 44556.15401 | BP61: 47503.15601 | BQ61: 25836.03333 | BR61: 18548.21733 | BS61: 26102.26768 | BT61: 26272.12533 | BU61: 19398.65259 | BV61: 21270.47559 | BW61: 22532.75071 | BX61: 23548.62171 | BY61: 31580.65348 | BZ61: 28602.80667 | CA61: 30779.30667
A62: Year 2 | B62: 46786.3 | C62: 66606.98 | D62: 37459.7 | E62: 77281.944 | F62: 121764.733 | G62: 87643.931 | H62: 71775.08 | I62: 45988.08 | J62: 74957.18 | K62: 64380.847 | L62: 73969.01 | M62: 46415.93534 | N62: 55804.18 | O62: 39433.18 | P62: 42108.18 | Q62: 64791.941 | R62: 75456.203 | S62: 72371.53994 | T62: 60563.5186 | U62: 79643.1166 | V62: 51370.608 | W62: 65280.608 | X62: 58145.3186 | Y62: 58145.3186 | Z62: 46684.2597 | AA62: 69365.7666 | AB62: 43661.5097 | AC62: 68925.60494 | AD62: 94910.622 | AE62: 73472.528 | AF62: 41985.424 | AG62: 42496.376 | AH62: 39012.108 | AI62: 49910.23434 | AJ62: 54021.17434 | AK62: 64165.52334 | AL62: 52701.18 | AM62: 58372.18 | AN62: 24001.66667 | AO62: 20087.51965 | AP62: 22061.38433 | AQ62: 20444.22667 | AR62: 21508.52267 | AS62: 49457.79982 | AT62: 67826.09651 | AU62: 17225.72667 | AV62: 35115.58667 | AW62: 41861.30274 | AX62: 93465.3 | AY62: 35724.90667 | AZ62: 39582.99467 | BA62: 27740.00267 | BB62: 60722.65883 | BC62: 24692.27333 | BD62: 21549.37333 | BE62: 19467.77333 | BF62: 28781.01067 | BG62: 36687.51067 | BH62: 44315.08567 | BI62: 23321.87067 | BJ62: 23387.87067 | BK62: 23506.13067 | BL62: 33768.32267 | BM62: 34459.46667 | BN62: 29736.97333 | BO62: 46137.48734 | BP62: 49347.28934 | BQ62: 28227.66667 | BR62: 20209.85067 | BS62: 28194.60102 | BT62: 27824.25867 | BU62: 20812.08592 | BV62: 22705.80892 | BW62: 23982.68405 | BX62: 25035.05505 | BY62: 33043.72681 | BZ62: 29760.97333 | CA62: 31973.97333
A63: Year 3 | B63: 47694.3 | C63: 67514.98 | D63: 37866.7 | E63: 77521.944 | F63: 122004.733 | G63: 87883.931 | H63: 72683.08 | I63: 46896.08 | J63: 75781.68 | K63: 64620.847 | L63: 74209.01 | M63: 47323.93534 | N63: 56628.68 | O63: 40257.68 | P63: 42932.68 | Q63: 65031.941 | R63: 75696.203 | S63: 73279.53994 | T63: 61388.0186 | U63: 80467.6166 | V63: 52278.608 | W63: 66188.608 | X63: 58969.8186 | Y63: 58969.8186 | Z63: 47508.7597 | AA63: 70190.2666 | AB63: 44486.0097 | AC63: 69833.60494 | AD63: 95150.622 | AE63: 74380.528 | AF63: 42893.424 | AG63: 43320.876 | AH63: 39920.108 | AI63: 50818.23434 | AJ63: 54929.17434 | AK63: 65073.52334 | AL63: 53525.68 | AM63: 59196.68 | AN63: 28181.8 | AO63: 22720.05299 | AP63: 25248.71767 | AQ63: 23857.86 | AR63: 24965.956 | AS63: 52024.63315 | AT63: 68823.42984 | AU63: 18500.46 | AV63: 36112.92 | AW63: 42858.63607 | AX63: 95445.3 | AY63: 38153.04 | AZ63: 42025.728 | BA63: 29965.196 | BB63: 62340.49216 | BC63: 26777.54 | BD63: 22838.94 | BE63: 20786.54 | BF63: 30187.144 | BG63: 38232.344 | BH63: 45803.94234 | BI63: 25509.104 | BJ63: 25458.304 | BK63: 25401.364 | BL63: 36254.856 | BM63: 36478.8 | BN63: 31150.64 | BO63: 47718.82067 | BP63: 51191.42267 | BQ63: 30619.3 | BR63: 21871.484 | BS63: 30286.93435 | BT63: 29376.392 | BU63: 22225.51925 | BV63: 24141.14225 | BW63: 25432.61738 | BX63: 26521.48838 | BY63: 34506.80015 | BZ63: 30919.14 | CA63: 33168.64
A64: Year 4 | B64: 48602.3 | C64: 68422.98 | D64: 38273.7 | E64: 77761.944 | F64: 122244.733 | G64: 88123.931 | H64: 73591.08 | I64: 47804.08 | J64: 76606.18 | K64: 64860.847 | L64: 74449.01 | M64: 48231.93534 | N64: 57453.18 | O64: 41082.18 | P64: 43757.18 | Q64: 65271.941 | R64: 75936.203 | S64: 74187.53994 | T64: 62212.5186 | U64: 81292.1166 | V64: 53186.608 | W64: 67096.608 | X64: 59794.3186 | Y64: 59794.3186 | Z64: 48333.2597 | AA64: 71014.7666 | AB64: 45310.5097 | AC64: 70741.60494 | AD64: 95390.622 | AE64: 75288.528 | AF64: 43801.424 | AG64: 44145.376 | AH64: 40828.108 | AI64: 51726.23434 | AJ64: 55837.17434 | AK64: 65981.52334 | AL64: 54350.18 | AM64: 60021.18 | AN64: 32361.93333 | AO64: 25352.58632 | AP64: 28436.051 | AQ64: 27271.49333 | AR64: 28423.38933 | AS64: 54591.46648 | AT64: 69820.76317 | AU64: 19775.19333 | AV64: 37110.25333 | AW64: 43855.96941 | AX64: 97425.3 | AY64: 40581.17333 | AZ64: 44468.46133 | BA64: 32190.38933 | BB64: 63958.3255 | BC64: 28862.80667 | BD64: 24128.50667 | BE64: 22105.30667 | BF64: 31593.27733 | BG64: 39777.17733 | BH64: 47292.79901 | BI64: 27696.33733 | BJ64: 27528.73733 | BK64: 27296.59733 | BL64: 38741.38933 | BM64: 38498.13333 | BN64: 32564.30667 | BO64: 49300.15401 | BP64: 53035.55601 | BQ64: 33010.93333 | BR64: 23533.11733 | BS64: 32379.26768 | BT64: 30928.52533 | BU64: 23638.95259 | BV64: 25576.47559 | BW64: 26882.55071 | BX64: 28007.92171 | BY64: 35969.87348 | BZ64: 32077.30667 | CA64: 34363.30667
A65: Year 5 | B65: 49510.3 | C65: 69330.98 | D65: 38680.7 | E65: 78001.944 | F65: 122484.733 | G65: 88363.931 | H65: 74499.08 | I65: 48712.08 | J65: 77430.68 | K65: 65100.847 | L65: 74689.01 | M65: 49139.93534 | N65: 58277.68 | O65: 41906.68 | P65: 44581.68 | Q65: 65511.941 | R65: 76176.203 | S65: 75095.53994 | T65: 63037.0186 | U65: 82116.6166 | V65: 54094.608 | W65: 68004.608 | X65: 60618.8186 | Y65: 60618.8186 | Z65: 49157.7597 | AA65: 71839.2666 | AB65: 46135.0097 | AC65: 71649.60494 | AD65: 95630.622 | AE65: 76196.528 | AF65: 44709.424 | AG65: 44969.876 | AH65: 41736.108 | AI65: 52634.23434 | AJ65: 56745.17434 | AK65: 66889.52334 | AL65: 55174.68 | AM65: 60845.68 | AN65: 36542.06667 | AO65: 27985.11965 | AP65: 31623.38433 | AQ65: 30685.12667 | AR65: 31880.82267 | AS65: 57158.29982 | AT65: 70818.09651 | AU65: 21049.92667 | AV65: 38107.58667 | AW65: 44853.30274 | AX65: 99405.3 | AY65: 43009.30667 | AZ65: 46911.19467 | BA65: 34415.58267 | BB65: 65576.15883 | BC65: 30948.07333 | BD65: 25418.07333 | BE65: 23424.07333 | BF65: 32999.41067 | BG65: 41322.01067 | BH65: 48781.65567 | BI65: 29883.57067 | BJ65: 29599.17067 | BK65: 29191.83067 | BL65: 41227.92267 | BM65: 40517.46667 | BN65: 33977.97333 | BO65: 50881.48734 | BP65: 54879.68934 | BQ65: 35402.56667 | BR65: 25194.75067 | BS65: 34471.60102 | BT65: 32480.65867 | BU65: 25052.38592 | BV65: 27011.80892 | BW65: 28332.48405 | BX65: 29494.35505 | BY65: 37432.94681 | BZ65: 33235.47333 | CA65: 35557.97333
A66: Year 6 | B66: 50418.3 | C66: 70238.98 | D66: 39087.7 | E66: 78241.944 | F66: 122724.733 | G66: 88603.931 | H66: 75407.08 | I66: 49620.08 | J66: 78255.18 | K66: 65340.847 | L66: 74929.01 | M66: 50047.93534 | N66: 59102.18 | O66: 42731.18 | P66: 45406.18 | Q66: 65751.941 | R66: 76416.203 | S66: 76003.53994 | T66: 63861.5186 | U66: 82941.1166 | V66: 55002.608 | W66: 68912.608 | X66: 61443.3186 | Y66: 61443.3186 | Z66: 49982.2597 | AA66: 72663.7666 | AB66: 46959.5097 | AC66: 72557.60494 | AD66: 95870.622 | AE66: 77104.528 | AF66: 45617.424 | AG66: 45794.376 | AH66: 42644.108 | AI66: 53542.23434 | AJ66: 57653.17434 | AK66: 67797.52334 | AL66: 55999.18 | AM66: 61670.18 | AN66: 40722.2 | AO66: 30617.65299 | AP66: 34810.71767 | AQ66: 34098.76 | AR66: 35338.256 | AS66: 59725.13315 | AT66: 71815.42984 | AU66: 22324.66 | AV66: 39104.92 | AW66: 45850.63607 | AX66: 101385.3 | AY66: 45437.44 | AZ66: 49353.928 | BA66: 36640.776 | BB66: 67193.99216 | BC66: 33033.34 | BD66: 26707.64 | BE66: 24742.84 | BF66: 34405.544 | BG66: 42866.844 | BH66: 50270.51234 | BI66: 32070.804 | BJ66: 31669.604 | BK66: 31087.064 | BL66: 43714.456 | BM66: 42536.8 | BN66: 35391.64 | BO66: 52462.82067 | BP66: 56723.82267 | BQ66: 37794.2 | BR66: 26856.384 | BS66: 36563.93435 | BT66: 34032.792 | BU66: 26465.81925 | BV66: 28447.14225 | BW66: 29782.41738 | BX66: 30980.78838 | BY66: 38896.02015 | BZ66: 34393.64 | CA66: 36752.64
A67: Year 7 | B67: 51326.3 | C67: 71146.98 | D67: 39494.7 | E67: 78481.944 | F67: 122964.733 | G67: 88843.931 | H67: 76315.08 | I67: 50528.08 | J67: 79079.68 | K67: 65580.847 | L67: 75169.01 | M67: 50955.93534 | N67: 59926.68 | O67: 43555.68 | P67: 46230.68 | Q67: 65991.941 | R67: 76656.203 | S67: 76911.53994 | T67: 64686.0186 | U67: 83765.6166 | V67: 55910.608 | W67: 69820.608 | X67: 62267.8186 | Y67: 62267.8186 | Z67: 50806.7597 | AA67: 73488.2666 | AB67: 47784.0097 | AC67: 73465.60494 | AD67: 96110.622 | AE67: 78012.528 | AF67: 46525.424 | AG67: 46618.876 | AH67: 43552.108 | AI67: 54450.23434 | AJ67: 58561.17434 | AK67: 68705.52334 | AL67: 56823.68 | AM67: 62494.68 | AN67: 44902.33333 | AO67: 33250.18632 | AP67: 37998.051 | AQ67: 37512.39333 | AR67: 38795.68933 | AS67: 62291.96648 | AT67: 72812.76317 | AU67: 23599.39333 | AV67: 40102.25333 | AW67: 46847.96941 | AX67: 103365.3 | AY67: 47865.57333 | AZ67: 51796.66133 | BA67: 38865.96933 | BB67: 68811.8255 | BC67: 35118.60667 | BD67: 27997.20667 | BE67: 26061.60667 | BF67: 35811.67733 | BG67: 44411.67733 | BH67: 51759.36901 | BI67: 34258.03733 | BJ67: 33740.03733 | BK67: 32982.29733 | BL67: 46200.98933 | BM67: 44556.13333 | BN67: 36805.30667 | BO67: 54044.15401 | BP67: 58567.95601 | BQ67: 40185.83333 | BR67: 28518.01733 | BS67: 38656.26768 | BT67: 35584.92533 | BU67: 27879.25259 | BV67: 29882.47559 | BW67: 31232.35071 | BX67: 32467.22171 | BY67: 40359.09348 | BZ67: 35551.80667 | CA67: 37947.30667
A68: Year 8 | B68: 52234.3 | C68: 72054.98 | D68: 39901.7 | E68: 78721.944 | F68: 123204.733 | G68: 89083.931 | H68: 77223.08 | I68: 51436.08 | J68: 79904.18 | K68: 65820.847 | L68: 75409.01 | M68: 51863.93534 | N68: 60751.18 | O68: 44380.18 | P68: 47055.18 | Q68: 66231.941 | R68: 76896.203 | S68: 77819.53994 | T68: 65510.5186 | U68: 84590.1166 | V68: 56818.608 | W68: 70728.608 | X68: 63092.3186 | Y68: 63092.3186 | Z68: 51631.2597 | AA68: 74312.7666 | AB68: 48608.5097 | AC68: 74373.60494 | AD68: 96350.622 | AE68: 78920.528 | AF68: 47433.424 | AG68: 47443.376 | AH68: 44460.108 | AI68: 55358.23434 | AJ68: 59469.17434 | AK68: 69613.52334 | AL68: 57648.18 | AM68: 63319.18 | AN68: 49082.46667 | AO68: 35882.71965 | AP68: 41185.38433 | AQ68: 40926.02667 | AR68: 42253.12267 | AS68: 64858.79982 | AT68: 73810.09651 | AU68: 24874.12667 | AV68: 41099.58667 | AW68: 47845.30274 | AX68: 105345.3 | AY68: 50293.70667 | AZ68: 54239.39467 | BA68: 41091.16267 | BB68: 70429.65883 | BC68: 37203.87333 | BD68: 29286.77333 | BE68: 27380.37333 | BF68: 37217.81067 | BG68: 45956.51067 | BH68: 53248.22567 | BI68: 36445.27067 | BJ68: 35810.47067 | BK68: 34877.53067 | BL68: 48687.52267 | BM68: 46575.46667 | BN68: 38218.97333 | BO68: 55625.48734 | BP68: 60412.08934 | BQ68: 42577.46667 | BR68: 30179.65067 | BS68: 40748.60102 | BT68: 37137.05867 | BU68: 29292.68592 | BV68: 31317.80892 | BW68: 32682.28405 | BX68: 33953.65505 | BY68: 41822.16681 | BZ68: 36709.97333 | CA68: 39141.97333
A69: Year 9 | B69: 51326.3 | C69: 71146.98 | D69: 39494.7 | E69: 78481.944 | F69: 122964.733 | G69: 88843.931 | H69: 76315.08 | I69: 50528.08 | J69: 79079.68 | K69: 65580.847 | L69: 75169.01 | M69: 50955.93534 | N69: 59926.68 | O69: 43555.68 | P69: 46230.68 | Q69: 65991.941 | R69: 76656.203 | S69: 76911.53994 | T69: 64686.0186 | U69: 83765.6166 | V69: 55910.608 | W69: 69820.608 | X69: 62267.8186 | Y69: 62267.8186 | Z69: 50806.7597 | AA69: 73488.2666 | AB69: 47784.0097 | AC69: 73465.60494 | AD69: 96110.622 | AE69: 78012.528 | AF69: 46525.424 | AG69: 46618.876 | AH69: 43552.108 | AI69: 54450.23434 | AJ69: 58561.17434 | AK69: 68705.52334 | AL69: 56823.68 | AM69: 62494.68 | AN69: 44902.33333 | AO69: 33250.18632 | AP69: 37998.051 | AQ69: 37512.39333 | AR69: 38795.68933 | AS69: 62291.96648 | AT69: 72812.76317 | AU69: 23599.39333 | AV69: 40102.25333 | AW69: 46847.96941 | AX69: 103365.3 | AY69: 47865.57333 | AZ69: 51796.66133 | BA69: 38865.96933 | BB69: 68811.8255 | BC69: 35118.60667 | BD69: 27997.20667 | BE69: 26061.60667 | BF69: 35811.67733 | BG69: 44411.67733 | BH69: 51759.36901 | BI69: 34258.03733 | BJ69: 33740.03733 | BK69: 32982.29733 | BL69: 46200.98933 | BM69: 44556.13333 | BN69: 36805.30667 | BO69: 54044.15401 | BP69: 58567.95601 | BQ69: 40185.83333 | BR69: 28518.01733 | BS69: 38656.26768 | BT69: 35584.92533 | BU69: 27879.25259 | BV69: 29882.47559 | BW69: 31232.35071 | BX69: 32467.22171 | BY69: 40359.09348 | BZ69: 35551.80667 | CA69: 37947.30667
A70: Year 10 | B70: 52234.3 | C70: 72054.98 | D70: 39901.7 | E70: 78721.944 | F70: 123204.733 | G70: 89083.931 | H70: 77223.08 | I70: 51436.08 | J70: 79904.18 | K70: 65820.847 | L70: 75409.01 | M70: 51863.93534 | N70: 60751.18 | O70: 44380.18 | P70: 47055.18 | Q70: 66231.941 | R70: 76896.203 | S70: 77819.53994 | T70: 65510.5186 | U70: 84590.1166 | V70: 56818.608 | W70: 70728.608 | X70: 63092.3186 | Y70: 63092.3186 | Z70: 51631.2597 | AA70: 74312.7666 | AB70: 48608.5097 | AC70: 74373.60494 | AD70: 96350.622 | AE70: 78920.528 | AF70: 47433.424 | AG70: 47443.376 | AH70: 44460.108 | AI70: 55358.23434 | AJ70: 59469.17434 | AK70: 69613.52334 | AL70: 57648.18 | AM70: 63319.18 | AN70: 49082.46667 | AO70: 35882.71965 | AP70: 41185.38433 | AQ70: 40926.02667 | AR70: 42253.12267 | AS70: 64858.79982 | AT70: 73810.09651 | AU70: 24874.12667 | AV70: 41099.58667 | AW70: 47845.30274 | AX70: 105345.3 | AY70: 50293.70667 | AZ70: 54239.39467 | BA70: 41091.16267 | BB70: 70429.65883 | BC70: 37203.87333 | BD70: 29286.77333 | BE70: 27380.37333 | BF70: 37217.81067 | BG70: 45956.51067 | BH70: 53248.22567 | BI70: 36445.27067 | BJ70: 35810.47067 | BK70: 34877.53067 | BL70: 48687.52267 | BM70: 46575.46667 | BN70: 38218.97333 | BO70: 55625.48734 | BP70: 60412.08934 | BQ70: 42577.46667 | BR70: 30179.65067 | BS70: 40748.60102 | BT70: 37137.05867 | BU70: 29292.68592 | BV70: 31317.80892 | BW70: 32682.28405 | BX70: 33953.65505 | BY70: 41822.16681 | BZ70: 36709.97333 | CA70: 39141.97333

Sheet Données hypothèses ==>
A1: Données et hypothèses
B2: Les feuilles de calcul suivantes contiennent les données et les hypothèses pour les équipements dans le modèle.
B3: Les feuilles de calcul individuelles relatives à la technologie contiennent des hypothèses de main-d'œuvre pour chaque modèle. Les valeurs par défaut sont obtenues à partir de la feuille de calcul Main-d'œuvre et entretien.
B4: Kits de pièces de rechange incluent les pièces recommandées pour le fonctionnement de 10 unités sur une période de 5 ans. Les utilisateurs peuvent ajuster ces valeurs dans les cellules oranges sur la base de leur expérience avec un équipement particulier.
C6: Les cellules en orange clair sont des cellules d'hypothèse sans valeur. Si une hypothèse ou des données applicables existent pour un modèle en particulier, elles peuvent être saisies dans ces cellules, qui deviendront orange.
C7: Les cellules oranges représentent les hypothèses par défaut compilées pour une utilisation générale de l’outil. Les valeurs par défaut pour les sections MAIN D'ŒUVRE viennent des classeurs nommés Données relatives au pays et Main-d'œuvre et entretien et peuvent être changées au besoin sur la base des coûts locaux ou de l’expérience acquise avec une technologie particulière. Si les cellules oranges de la section PIÈCES incluent un 0, un kit de pieces détachées est disponible et inclus. S’il s’agit d’un nombre, aucun Spare Part Kit n’a pu être trouvé. Toutes les cellules oranges peuvent être modifiées pour que les utilisateurs puissent ajouter des pièces additionnelles au TCO au-delà des pièces incluses dans les kits de pièces de rechange.
C8: Pour les variances de modèles individuels, veuillez vous reporter à la feuille de calcul relative à la technologie adéquate et repérer le modèle spécifique à mettre à jour s'il diffère de l'hypothèse par défaut (par exemple, la durée de vie utile du congélateur-coffre Vestfrost MK204 est égale à XX ans au lieu de la durée de 10 ans par défaut).
C9: Les cellules grises correspondent à des valeurs calculées et ne doivent pas être modifiées afin d'éviter d'endommager les formules et les flux de données.

Sheet CF CC
A1: Hypothèses de technologie : chambre froide/chambre congelée
A2: Technologie | C2: =PQS!$A$98 -> CF CC | D2: =PQS!$A$99 -> CF CC | E2: =PQS!$A$100 -> CF CC | F2: =PQS!$A$101 -> CF CC | G2: =PQS!$A$102 -> CF CC | H2: =PQS!$A$103 -> CF CC | I2: =PQS!$A$104 -> CF CC | J2: =PQS!$A$105 -> CF CC | K2: =PQS!$A$106 -> CF CC | L2: =PQS!$A$107 -> CF CC | M2: =PQS!$A$108 -> CF CC | N2: =PQS!$A$109 -> CF CC | O2: =PQS!$A$110 -> CF CC | P2: =PQS!$A$111 -> CF CC | Q2: =PQS!$A$112 -> CF CC | R2: =PQS!$A$113 -> CF CC | S2: =PQS!$A$114 -> CF CC | T2: =PQS!$A$115 -> CF CC | U2: =PQS!$A$116 -> CF CC | V2: =PQS!$A$117 -> CF CC | W2: =PQS!$A$118 -> CF CC | X2: =PQS!$A$119 -> CF CC | Y2: =PQS!$A$120 -> CF CC | Z2: =PQS!$A$121 -> CF CC | AA2: =PQS!$A$122 -> CF CC | AB2: =PQS!$A$123 -> CF CC | AC2: =PQS!$A$124 -> CF CC | AD2: =PQS!$A$125 -> CF CC | AE2: =PQS!$A$126 -> CF CC | AF2: =PQS!$A$127 -> CF CC | AG2: =PQS!$A$128 -> CF CC | AH2: =PQS!$A$129 -> CF CC | AI2: =PQS!$A$130 -> CF CC | AJ2: =PQS!$A$131 -> CF CC | AK2: =PQS!$A$132 -> CF CC | AL2: =PQS!$A$133 -> CF CC | AM2: =PQS!$A$134 -> CF CC | AN2: =PQS!$A$135 -> CF CC | AO2: =PQS!$A$136 -> CF CC | AQ2: MOYENNES
A3: Fabricant | C3: =PQS!$H$98 -> Zhendre | D3: =PQS!$H$99 -> Zhendre | E3: =PQS!$H$100 -> Zhendre | F3: =PQS!$H$101 -> Zhendre | G3: =PQS!$H$102 -> Zhendre | H3: =PQS!$H$103 -> Foster | I3: =PQS!$H$104 -> Foster | J3: =PQS!$H$105 -> Foster | K3: =PQS!$H$106 -> Viessmann | L3: =PQS!$H$107 -> Viessmann | M3: =PQS!$H$108 -> Viessmann | N3: =PQS!$H$109 -> Viessmann | O3: =PQS!$H$110 -> Viessmann | P3: =PQS!$H$111 -> Porkka | Q3: =PQS!$H$112 -> Porkka | R3: =PQS!$H$113 -> Porkka | S3: =PQS!$H$114 -> Porkka | T3: =PQS!$H$115 -> Porkka | U3: =PQS!$H$116 -> Haier | V3: =PQS!$H$117 -> Haier | W3: =PQS!$H$118 -> Haier | X3: =PQS!$H$119 -> Haier | Y3: =PQS!$H$120 -> Haier | Z3: =PQS!$H$121 -> Zhendre | AA3: =PQS!$H$122 -> Zhendre | AB3: =PQS!$H$123 -> Viessmann | AC3: =PQS!$H$124 -> Viessmann | AD3: =PQS!$H$125 -> Porkka | AE3: =PQS!$H$126 -> Porkka | AF3: =PQS!$H$127 -> Haier | AG3: =PQS!$H$128 -> Haier | AH3: =PQS!$H$129 -> Zhendre | AI3: =PQS!$H$130 -> Zhendre | AJ3: =PQS!$H$131 -> Viessmann | AK3: =PQS!$H$132 -> Viessmann | AL3: =PQS!$H$133 -> Porkka | AM3: =PQS!$H$134 -> Porkka | AN3: =PQS!$H$135 -> Haier | AO3: =PQS!$H$136 -> Haier
A4: Modèle | C4: =PQS!$D$98 -> E001/WICR10-Zhendre-mono | D4: =PQS!$D$99 -> E001/WICR30-Zhendre-mono | E4: =PQS!$D$100 -> E001/WICR30-Zhendre-split | F4: =PQS!$D$101 -> E001/WICR40-Zhendre-mono | G4: =PQS!$D$102 -> E001/WICR40-Zhendre-split | H4: =PQS!$D$103 -> E001/WICR10-Foster-mono | I4: =PQS!$D$104 -> E001/WICR30-Foster-mono | J4: =PQS!$D$105 -> E001/WICR40-Foster-mono | K4: =PQS!$D$106 -> E001/WICR10-Viessmann-mono | L4: =PQS!$D$107 -> E001/WICR30-Viessmann-mono | M4: =PQS!$D$108 -> E001/WICR30-Viessmann-mono | N4: =PQS!$D$109 -> E001/WICR40-Viessmann-mono | O4: =PQS!$D$110 -> E001/WICR40-Viessmann-split | P4: =PQS!$D$111 -> E001/WICR10-Porkka-mono | Q4: =PQS!$D$112 -> E001/WICR30-Porkka-mono | R4: =PQS!$D$113 -> E001/WICR30-Porkka-mono | S4: =PQS!$D$114 -> E001/WICR40-Porkka-mono | T4: =PQS!$D$115 -> E001/WICR40-Porkka-mono | U4: =PQS!$D$116 -> E001/WICR10-Haier-mono | V4: =PQS!$D$117 -> E001/WICR30-Haier-mono | W4: =PQS!$D$118 -> E001/WICR30-Haier-mono | X4: =PQS!$D$119 -> E001/WICR40-Haier-mono | Y4: =PQS!$D$120 -> E001/WICR40-Haier-split | Z4: =PQS!$D$121 -> E001/WIFR20-Zhendre-mono | AA4: =PQS!$D$122 -> E001/WIFR20-Zhendre-split | AB4: =PQS!$D$123 -> E001/WIFR20-Viessmann-mono | AC4: =PQS!$D$124 -> E001/WIFR20-Viessmann-split | AD4: =PQS!$D$125 -> E001/WIFR20-Porkka-mono | AE4: =PQS!$D$126 -> E001/WIFR20-Porkka-split | AF4: =PQS!$D$127 -> E001/WIFR20-Haier-mono | AG4: =PQS!$D$128 -> E001/WIFR20-Haier-split | AH4: =PQS!$D$129 -> E001/CRFR40-Zhendre-mono | AI4: =PQS!$D$130 -> E001/CRFR40-Zhendre-split | AJ4: =PQS!$D$131 -> E001/CRFR40-Viessmann-mono | AK4: =PQS!$D$132 -> E001/CRFR40-Viessmann-split | AL4: =PQS!$D$133 -> E001/CRFR40-Porkka-mono | AM4: =PQS!$D$134 -> E001/CRFR40-Porkka-split | AN4: =PQS!$D$135 -> E001/CRFR40-Haier-mono | AO4: =PQS!$D$136 -> E001/CRFR40-Haier-split | AQ4: Capacité
A5: CCEOP | C5: =VLOOKUP(C4, PQS!$D:$I, COLUMN(PQS!$I$3)-COLUMN(PQS!$D$3)+1, FALSE) -> Non | D5: =VLOOKUP(D4, PQS!$D:$I, COLUMN(PQS!$I$3)-COLUMN(PQS!$D$3)+1, FALSE) -> Non | E5: =VLOOKUP(E4, PQS!$D:$I, COLUMN(PQS!$I$3)-COLUMN(PQS!$D$3)+1, FALSE) -> Non | F5: =VLOOKUP(F4, PQS!$D:$I, COLUMN(PQS!$I$3)-COLUMN(PQS!$D$3)+1, FALSE) -> Non | G5: =VLOOKUP(G4, PQS!$D:$I, COLUMN(PQS!$I$3)-COLUMN(PQS!$D$3)+1, FALSE) -> Non | H5: =VLOOKUP(H4, PQS!$D:$I, COLUMN(PQS!$I$3)-COLUMN(PQS!$D$3)+1, FALSE) -> Non | I5: =VLOOKUP(I4, PQS!$D:$I, COLUMN(PQS!$I$3)-COLUMN(PQS!$D$3)+1, FALSE) -> Non | J5: =VLOOKUP(J4, PQS!$D:$I, COLUMN(PQS!$I$3)-COLUMN(PQS!$D$3)+1, FALSE) -> Non | K5: =VLOOKUP(K4, PQS!$D:$I, COLUMN(PQS!$I$3)-COLUMN(PQS!$D$3)+1, FALSE) -> Non | L5: =VLOOKUP(L4, PQS!$D:$I, COLUMN(PQS!$I$3)-COLUMN(PQS!$D$3)+1, FALSE) -> Non | M5: =VLOOKUP(M4, PQS!$D:$I, COLUMN(PQS!$I$3)-COLUMN(PQS!$D$3)+1, FALSE) -> Non | N5: =VLOOKUP(N4, PQS!$D:$I, COLUMN(PQS!$I$3)-COLUMN(PQS!$D$3)+1, FALSE) -> Non | O5: =VLOOKUP(O4, PQS!$D:$I, COLUMN(PQS!$I$3)-COLUMN(PQS!$D$3)+1, FALSE) -> Non | P5: =VLOOKUP(P4, PQS!$D:$I, COLUMN(PQS!$I$3)-COLUMN(PQS!$D$3)+1, FALSE) -> Non | Q5: =VLOOKUP(Q4, PQS!$D:$I, COLUMN(PQS!$I$3)-COLUMN(PQS!$D$3)+1, FALSE) -> Non | R5: =VLOOKUP(R4,PQS!$D:$I,COLUMN(PQS!$I$3)-COLUMN(PQS!$D$3)+1,FALSE) -> Non | S5: =VLOOKUP(S4,PQS!$D:$I,COLUMN(PQS!$I$3)-COLUMN(PQS!$D$3)+1,FALSE) -> Non | T5: =VLOOKUP(T4,PQS!$D:$I,COLUMN(PQS!$I$3)-COLUMN(PQS!$D$3)+1,FALSE) -> Non | U5: =VLOOKUP(U4,PQS!$D:$I,COLUMN(PQS!$I$3)-COLUMN(PQS!$D$3)+1,FALSE) -> Non | V5: =VLOOKUP(V4,PQS!$D:$I,COLUMN(PQS!$I$3)-COLUMN(PQS!$D$3)+1,FALSE) -> Non | W5: =VLOOKUP(W4,PQS!$D:$I,COLUMN(PQS!$I$3)-COLUMN(PQS!$D$3)+1,FALSE) -> Non | X5: =VLOOKUP(X4,PQS!$D:$I,COLUMN(PQS!$I$3)-COLUMN(PQS!$D$3)+1,FALSE) -> Non | Y5: =VLOOKUP(Y4,PQS!$D:$I,COLUMN(PQS!$I$3)-COLUMN(PQS!$D$3)+1,FALSE) -> Non | Z5: =VLOOKUP(Z4,PQS!$D:$I,COLUMN(PQS!$I$3)-COLUMN(PQS!$D$3)+1,FALSE) -> Non | AA5: =VLOOKUP(AA4,PQS!$D:$I,COLUMN(PQS!$I$3)-COLUMN(PQS!$D$3)+1,FALSE) -> Non | AB5: =VLOOKUP(AB4,PQS!$D:$I,COLUMN(PQS!$I$3)-COLUMN(PQS!$D$3)+1,FALSE) -> Non | AC5: =VLOOKUP(AC4,PQS!$D:$I,COLUMN(PQS!$I$3)-COLUMN(PQS!$D$3)+1,FALSE) -> Non | AD5: =VLOOKUP(AD4,PQS!$D:$I,COLUMN(PQS!$I$3)-COLUMN(PQS!$D$3)+1,FALSE) -> Non | AE5: =VLOOKUP(AE4,PQS!$D:$I,COLUMN(PQS!$I$3)-COLUMN(PQS!$D$3)+1,FALSE) -> Non | AF5: =VLOOKUP(AF4,PQS!$D:$I,COLUMN(PQS!$I$3)-COLUMN(PQS!$D$3)+1,FALSE) -> Non | AG5: =VLOOKUP(AG4,PQS!$D:$I,COLUMN(PQS!$I$3)-COLUMN(PQS!$D$3)+1,FALSE) -> Non | AH5: =VLOOKUP(AH4,PQS!$D:$I,COLUMN(PQS!$I$3)-COLUMN(PQS!$D$3)+1,FALSE) -> Non | AI5: =VLOOKUP(AI4,PQS!$D:$I,COLUMN(PQS!$I$3)-COLUMN(PQS!$D$3)+1,FALSE) -> Non | AJ5: =VLOOKUP(AJ4,PQS!$D:$I,COLUMN(PQS!$I$3)-COLUMN(PQS!$D$3)+1,FALSE) -> Non | AK5: =VLOOKUP(AK4,PQS!$D:$I,COLUMN(PQS!$I$3)-COLUMN(PQS!$D$3)+1,FALSE) -> Non | AL5: =VLOOKUP(AL4,PQS!$D:$I,COLUMN(PQS!$I$3)-COLUMN(PQS!$D$3)+1,FALSE) -> Non | AM5: =VLOOKUP(AM4,PQS!$D:$I,COLUMN(PQS!$I$3)-COLUMN(PQS!$D$3)+1,FALSE) -> Non | AN5: =VLOOKUP(AN4,PQS!$D:$I,COLUMN(PQS!$I$3)-COLUMN(PQS!$D$3)+1,FALSE) -> Non | AO5: =VLOOKUP(AO4,PQS!$D:$I,COLUMN(PQS!$I$3)-COLUMN(PQS!$D$3)+1,FALSE) -> Non
A6: Capacité de stockage nette des vaccins | C6: =PQS!$K$98 -> 3030.30303 | D6: =PQS!$K$99 -> 7692.307692 | E6: =PQS!$K$100 -> 7692.307692 | F6: =PQS!$K$101 -> 9523.809524 | G6: =PQS!$K$102 -> 9523.809524 | H6: =PQS!$K$103 -> 3030.30303 | I6: =PQS!$K$104 -> 7692.307692 | J6: =PQS!$K$105 -> 9523.809524 | K6: =PQS!$K$106 -> 3030.30303 | L6: =PQS!$K$107 -> 7692.307692 | M6: =PQS!$K$108 -> 7692.307692 | N6: =PQS!$K$109 -> 9523.809524 | O6: =PQS!$K$110 -> 9523.809524 | P6: =PQS!$K$111 -> 3030.30303 | Q6: =PQS!$K$112 -> 7692.307692 | R6: =PQS!$K$113 -> 7692.307692 | S6: =PQS!$K$114 -> 9523.809524 | T6: =PQS!$K$115 -> 9523.809524 | U6: =PQS!$K$116 -> 3030.30303 | V6: =PQS!$K$117 -> 7692.307692 | W6: =PQS!$K$118 -> 7692.307692 | X6: =PQS!$K$119 -> 9523.809524 | Y6: =PQS!$K$120 -> 9523.809524 | Z6: =PQS!$K$121 -> 5555.555556 | AA6: =PQS!$K$122 -> 5555.555556 | AB6: =PQS!$K$123 -> 5555.555556 | AC6: =PQS!$K$124 -> 5555.555556 | AD6: =PQS!$K$125 -> 5555.555556 | AE6: =PQS!$K$126 -> 5555.555556 | AF6: =PQS!$K$127 -> 5555.555556 | AG6: =PQS!$K$128 -> 5555.555556 | AH6: =PQS!$K$129 -> 6666.666667 | AI6: =PQS!$K$130 -> 6666.666667 | AJ6: =PQS!$K$131 -> 6666.666667 | AK6: =PQS!$K$132 -> 6666.666667 | AL6: =PQS!$K$133 -> 6666.666667 | AM6: =PQS!$K$134 -> 6666.666667 | AN6: =PQS!$K$135 -> 6666.666667 | AO6: =PQS!$K$136 -> 6666.666667 | AQ6: =AVERAGE(C6:AO6) -> 6868.573022
A7: Capacité de congélation d'un bloc réfrigérant | C7: =PQS!$M$98 -> 0 | D7: =PQS!$M$99 -> 0 | E7: =PQS!$M$100 -> 0 | F7: =PQS!$M$101 -> 0 | G7: =PQS!$M$102 -> 0 | H7: =PQS!$M$103 -> 0 | I7: =PQS!$M$104 -> 0 | J7: =PQS!$M$105 -> 0 | K7: =PQS!$M$106 -> 0 | L7: =PQS!$M$107 -> 0 | M7: =PQS!$M$108 -> 0 | N7: =PQS!$M$109 -> 0 | O7: =PQS!$M$110 -> 0 | P7: =PQS!$M$111 -> 0 | Q7: =PQS!$M$112 -> 0 | R7: =PQS!$M$113 -> 0 | S7: =PQS!$M$114 -> 0 | T7: =PQS!$M$115 -> 0 | U7: =PQS!$M$116 -> 0 | V7: =PQS!$M$117 -> 0 | W7: =PQS!$M$118 -> 0 | X7: =PQS!$M$119 -> 0 | Y7: =PQS!$M$120 -> 0 | Z7: =PQS!$M$121 -> 0 | AA7: =PQS!$M$122 -> 0 | AB7: =PQS!$M$123 -> 0 | AC7: =PQS!$M$124 -> 0 | AD7: =PQS!$M$125 -> 0 | AE7: =PQS!$M$126 -> 0 | AF7: =PQS!$M$127 -> 0 | AG7: =PQS!$M$128 -> 0 | AH7: =PQS!$M$129 -> 4411.764706 | AI7: =PQS!$M$130 -> 4411.764706 | AJ7: =PQS!$M$131 -> 4411.764706 | AK7: =PQS!$M$132 -> 4411.764706 | AL7: =PQS!$M$133 -> 4411.764706 | AM7: =PQS!$M$134 -> 4411.764706 | AN7: =PQS!$M$135 -> 4411.764706 | AO7: =PQS!$M$136 -> 4411.764706 | AQ7: =AVERAGE(C7:AO7) -> 904.9773756
A9: MATÉRIEL
A10: [Unité] | C10: =C4 -> E001/WICR10-Zhendre-mono | D10: =D4 -> E001/WICR30-Zhendre-mono | E10: E001/WICR30-Zhendre-split | F10: E001/WICR40-Zhendre-mono | G10: E001/WICR40-Zhendre-split | H10: E001/WICR10-Foster-mono | I10: E001/WICR30-Foster-mono | J10: E001/WICR40-Foster-mono | K10: E001/WICR10-Viessmann-mono | L10: E001/WICR30-Viessmann-mono | M10: E001/WICR30-Viessmann-mono | N10: E001/WICR40-Viessmann-mono | O10: E001/WICR40-Viessmann-split | P10: E001/WICR10-Porkka-mono | Q10: E001/WICR30-Porkka-mono | R10: E001/WICR30-Porkka-mono | S10: E001/WICR40-Porkka-mono | T10: E001/WICR40-Porkka-mono | U10: E001/WICR10-Haier-mono | V10: E001/WICR30-Haier-mono | W10: E001/WICR30-Haier-mono | X10: E001/WICR40-Haier-mono | Y10: E001/WICR40-Haier-split | Z10: E001/WIFR20-Zhendre-mono | AA10: E001/WIFR20-Zhendre-split | AB10: E001/WIFR20-Viessmann-mono | AC10: E001/WIFR20-Viessmann-split | AD10: E001/WIFR20-Porkka-mono | AE10: E001/WIFR20-Porkka-split | AF10: E001/WIFR20-Haier-mono | AG10: E001/WIFR20-Haier-split | AH10: E001/CRFR40-Zhendre-mono | AI10: E001/CRFR40-Zhendre-split | AJ10: E001/CRFR40-Viessmann-mono | AK10: E001/CRFR40-Viessmann-split | AL10: E001/CRFR40-Porkka-mono | AM10: E001/CRFR40-Porkka-split | AN10: E001/CRFR40-Haier-mono | AO10: E001/CRFR40-Haier-split | AQ10: Durée de vie utile
A11: [unité] Durée de vie utile attendue | C11: =Chambre_froide_chambre_congeléeUL -> 15 | D11: 15 | E11: 15 | F11: 15 | G11: 15 | H11: 15 | I11: 15 | J11: 15 | K11: 15 | L11: 15 | M11: 15 | N11: 15 | O11: 15 | P11: 15 | Q11: 15 | R11: 15 | S11: 15 | T11: 15 | U11: 15 | V11: 15 | W11: 15 | X11: 15 | Y11: 15 | Z11: 15 | AA11: 15 | AB11: 15 | AC11: 15 | AD11: 15 | AE11: 15 | AF11: 15 | AG11: 15 | AH11: 15 | AI11: 15 | AJ11: 15 | AK11: 15 | AL11: 15 | AM11: 15 | AN11: 15 | AO11: 15 | AQ11: =AVERAGE(C11:Q11) -> 15
A12: Durée de vie utile attendue pour un panneau solaire (le cas échéant)
A13: Durée de vie utile attendue d'une batterie
A14: Prix du kit d'installation | C14: =WICRHW -> 3000 | D14: 3000 | E14: 3000 | F14: 3000 | G14: 3000 | H14: 3000 | I14: 3000 | J14: 3000 | K14: 3000 | L14: 3000 | M14: 3000 | N14: 3000 | O14: 3000 | P14: 3000 | Q14: 3000 | R14: 3000 | S14: 3000 | T14: 3000 | U14: 3000 | V14: 3000 | W14: 3000 | X14: 3000 | Y14: 3000 | Z14: 3000 | AA14: 3000 | AB14: 3000 | AC14: 3000 | AD14: 3000 | AE14: 3000 | AF14: 3000 | AG14: 3000 | AH14: 3000 | AI14: 3000 | AJ14: 3000 | AK14: 3000 | AL14: 3000 | AM14: 3000 | AN14: 3000 | AO14: 3000 | AQ14: =AVERAGE(C14:Q14) -> 3000
A15: Stabilisateur de tension intégré | C15: - | D15: - | E15: - | F15: - | G15: - | H15: - | I15: - | J15: - | K15: - | L15: - | M15: - | N15: - | O15: - | P15: - | Q15: - | R15: - | S15: - | T15: - | U15: - | V15: - | W15: - | X15: - | Y15: - | Z15: - | AA15: - | AB15: - | AC15: - | AD15: - | AE15: - | AF15: - | AG15: - | AH15: - | AI15: - | AJ15: - | AK15: - | AL15: - | AM15: - | AN15: - | AO15: -
A16: Kits de pièces de rechange | C16: =IF(ISERROR(VLOOKUP(C10,'Spare part sets for 10 system'!$C:$C,1,FALSE)), "N", "O") -> N | D16: =IF(ISERROR(VLOOKUP(D10,'Spare part sets for 10 system'!$C:$C,1,FALSE)), "N", "O") -> N | E16: =IF(ISERROR(VLOOKUP(E10,'Spare part sets for 10 system'!$C:$C,1,FALSE)), "N", "O") -> N | F16: =IF(ISERROR(VLOOKUP(F10,'Spare part sets for 10 system'!$C:$C,1,FALSE)), "N", "O") -> N | G16: =IF(ISERROR(VLOOKUP(G10,'Spare part sets for 10 system'!$C:$C,1,FALSE)), "N", "O") -> N | H16: =IF(ISERROR(VLOOKUP(H10,'Spare part sets for 10 system'!$C:$C,1,FALSE)), "N", "O") -> N | I16: =IF(ISERROR(VLOOKUP(I10,'Spare part sets for 10 system'!$C:$C,1,FALSE)), "N", "O") -> N | J16: =IF(ISERROR(VLOOKUP(J10,'Spare part sets for 10 system'!$C:$C,1,FALSE)), "N", "O") -> N | K16: =IF(ISERROR(VLOOKUP(K10,'Spare part sets for 10 system'!$C:$C,1,FALSE)), "N", "O") -> N | L16: =IF(ISERROR(VLOOKUP(L10,'Spare part sets for 10 system'!$C:$C,1,FALSE)), "N", "O") -> N | M16: =IF(ISERROR(VLOOKUP(M10,'Spare part sets for 10 system'!$C:$C,1,FALSE)), "N", "O") -> N | N16: =IF(ISERROR(VLOOKUP(N10,'Spare part sets for 10 system'!$C:$C,1,FALSE)), "N", "O") -> N | O16: =IF(ISERROR(VLOOKUP(O10,'Spare part sets for 10 system'!$C:$C,1,FALSE)), "N", "O") -> N | P16: =IF(ISERROR(VLOOKUP(P10,'Spare part sets for 10 system'!$C:$C,1,FALSE)), "N", "O") -> N | Q16: =IF(ISERROR(VLOOKUP(Q10,'Spare part sets for 10 system'!$C:$C,1,FALSE)), "N", "O") -> N | R16: =IF(ISERROR(VLOOKUP(R10,'Spare part sets for 10 system'!$C:$C,1,FALSE)), "N", "O") -> N | S16: =IF(ISERROR(VLOOKUP(S10,'Spare part sets for 10 system'!$C:$C,1,FALSE)), "N", "O") -> N | T16: =IF(ISERROR(VLOOKUP(T10,'Spare part sets for 10 system'!$C:$C,1,FALSE)), "N", "O") -> N | U16: =IF(ISERROR(VLOOKUP(U10,'Spare part sets for 10 system'!$C:$C,1,FALSE)), "N", "O") -> N | V16: =IF(ISERROR(VLOOKUP(V10,'Spare part sets for 10 system'!$C:$C,1,FALSE)), "N", "O") -> N | W16: =IF(ISERROR(VLOOKUP(W10,'Spare part sets for 10 system'!$C:$C,1,FALSE)), "N", "O") -> N | X16: =IF(ISERROR(VLOOKUP(X10,'Spare part sets for 10 system'!$C:$C,1,FALSE)), "N", "O") -> N | Y16: =IF(ISERROR(VLOOKUP(Y10,'Spare part sets for 10 system'!$C:$C,1,FALSE)), "N", "O") -> N | Z16: =IF(ISERROR(VLOOKUP(Z10,'Spare part sets for 10 system'!$C:$C,1,FALSE)), "N", "O") -> N | AA16: =IF(ISERROR(VLOOKUP(AA10,'Spare part sets for 10 system'!$C:$C,1,FALSE)), "N", "O") -> N | AB16: =IF(ISERROR(VLOOKUP(AB10,'Spare part sets for 10 system'!$C:$C,1,FALSE)), "N", "O") -> N | AC16: =IF(ISERROR(VLOOKUP(AC10,'Spare part sets for 10 system'!$C:$C,1,FALSE)), "N", "O") -> N | AD16: =IF(ISERROR(VLOOKUP(AD10,'Spare part sets for 10 system'!$C:$C,1,FALSE)), "N", "O") -> N | AE16: =IF(ISERROR(VLOOKUP(AE10,'Spare part sets for 10 system'!$C:$C,1,FALSE)), "N", "O") -> N | AF16: =IF(ISERROR(VLOOKUP(AF10,'Spare part sets for 10 system'!$C:$C,1,FALSE)), "N", "O") -> N | AG16: =IF(ISERROR(VLOOKUP(AG10,'Spare part sets for 10 system'!$C:$C,1,FALSE)), "N", "O") -> N | AH16: =IF(ISERROR(VLOOKUP(AH10,'Spare part sets for 10 system'!$C:$C,1,FALSE)), "N", "O") -> N | AI16: =IF(ISERROR(VLOOKUP(AI10,'Spare part sets for 10 system'!$C:$C,1,FALSE)), "N", "O") -> N | AJ16: =IF(ISERROR(VLOOKUP(AJ10,'Spare part sets for 10 system'!$C:$C,1,FALSE)), "N", "O") -> N | AK16: =IF(ISERROR(VLOOKUP(AK10,'Spare part sets for 10 system'!$C:$C,1,FALSE)), "N", "O") -> N | AL16: =IF(ISERROR(VLOOKUP(AL10,'Spare part sets for 10 system'!$C:$C,1,FALSE)), "N", "O") -> N | AM16: =IF(ISERROR(VLOOKUP(AM10,'Spare part sets for 10 system'!$C:$C,1,FALSE)), "N", "O") -> N | AN16: =IF(ISERROR(VLOOKUP(AN10,'Spare part sets for 10 system'!$C:$C,1,FALSE)), "N", "O") -> N | AO16: =IF(ISERROR(VLOOKUP(AO10,'Spare part sets for 10 system'!$C:$C,1,FALSE)), "N", "O") -> N
A17: [unité] PIÈCES
A18: Les pièces recommandées pour le fonctionnement de 10 unités sur une période de 5 ans | AQ18: Durée de vie utile
A19: Part 1
A20: Part 2
A21: Part 3
A22: Part 4
A25: MAIN D'ŒUVRE
AQ26: Coût d'installation
A27: Coût de la main d'œuvre d'installation (ponctuel) | C27: ='Main-d''œuvre et entretien '!$J$17 -> 728 | D27: ='Main-d''œuvre et entretien '!$J$17 -> 728 | E27: ='Main-d''œuvre et entretien '!$J$17 -> 728 | F27: ='Main-d''œuvre et entretien '!$J$17 -> 728 | G27: ='Main-d''œuvre et entretien '!$J$17 -> 728 | H27: ='Main-d''œuvre et entretien '!$J$17 -> 728 | I27: ='Main-d''œuvre et entretien '!$J$17 -> 728 | J27: ='Main-d''œuvre et entretien '!$J$17 -> 728 | K27: ='Main-d''œuvre et entretien '!$J$17 -> 728 | L27: ='Main-d''œuvre et entretien '!$J$17 -> 728 | M27: ='Main-d''œuvre et entretien '!$J$17 -> 728 | N27: ='Main-d''œuvre et entretien '!$J$17 -> 728 | O27: ='Main-d''œuvre et entretien '!$J$17 -> 728 | P27: ='Main-d''œuvre et entretien '!$J$17 -> 728 | Q27: ='Main-d''œuvre et entretien '!$J$17 -> 728 | R27: ='Main-d''œuvre et entretien '!$J$17 -> 728 | S27: ='Main-d''œuvre et entretien '!$J$17 -> 728 | T27: ='Main-d''œuvre et entretien '!$J$17 -> 728 | U27: ='Main-d''œuvre et entretien '!$J$17 -> 728 | V27: ='Main-d''œuvre et entretien '!$J$17 -> 728 | W27: ='Main-d''œuvre et entretien '!$J$17 -> 728 | X27: ='Main-d''œuvre et entretien '!$J$17 -> 728 | Y27: ='Main-d''œuvre et entretien '!$J$17 -> 728 | Z27: ='Main-d''œuvre et entretien '!$J$17 -> 728 | AA27: ='Main-d''œuvre et entretien '!$J$17 -> 728 | AB27: ='Main-d''œuvre et entretien '!$J$17 -> 728 | AC27: ='Main-d''œuvre et entretien '!$J$17 -> 728 | AD27: ='Main-d''œuvre et entretien '!$J$17 -> 728 | AE27: ='Main-d''œuvre et entretien '!$J$17 -> 728 | AF27: ='Main-d''œuvre et entretien '!$J$17 -> 728 | AG27: ='Main-d''œuvre et entretien '!$J$17 -> 728 | AH27: ='Main-d''œuvre et entretien '!$J$17 -> 728 | AI27: ='Main-d''œuvre et entretien '!$J$17 -> 728 | AJ27: ='Main-d''œuvre et entretien '!$J$17 -> 728 | AK27: ='Main-d''œuvre et entretien '!$J$17 -> 728 | AL27: ='Main-d''œuvre et entretien '!$J$17 -> 728 | AM27: ='Main-d''œuvre et entretien '!$J$17 -> 728 | AN27: ='Main-d''œuvre et entretien '!$J$17 -> 728 | AO27: ='Main-d''œuvre et entretien '!$J$17 -> 728 | AQ27: =AVERAGE(C27:AO27) -> 728
A29: Entretien et réparations : FRÉQUENCE
A30: Exprimé en fréquence d'occurrence (en années : trimestrielle = 0,25 ; annuelle = 1 ; tous les 5 ans = 5, etc.) | AQ30: Fréquence d'entretien courant
A31: Fréquence : entretien courant | C31: ='Main-d''œuvre et entretien '!$E$77 -> 0.25 | D31: ='Main-d''œuvre et entretien '!$E$77 -> 0.25 | E31: ='Main-d''œuvre et entretien '!$E$77 -> 0.25 | F31: ='Main-d''œuvre et entretien '!$E$77 -> 0.25 | G31: ='Main-d''œuvre et entretien '!$E$77 -> 0.25 | H31: ='Main-d''œuvre et entretien '!$E$77 -> 0.25 | I31: ='Main-d''œuvre et entretien '!$E$77 -> 0.25 | J31: ='Main-d''œuvre et entretien '!$E$77 -> 0.25 | K31: ='Main-d''œuvre et entretien '!$E$77 -> 0.25 | L31: ='Main-d''œuvre et entretien '!$E$77 -> 0.25 | M31: ='Main-d''œuvre et entretien '!$E$77 -> 0.25 | N31: ='Main-d''œuvre et entretien '!$E$77 -> 0.25 | O31: ='Main-d''œuvre et entretien '!$E$77 -> 0.25 | P31: ='Main-d''œuvre et entretien '!$E$77 -> 0.25 | Q31: ='Main-d''œuvre et entretien '!$E$77 -> 0.25 | R31: ='Main-d''œuvre et entretien '!$E$77 -> 0.25 | S31: ='Main-d''œuvre et entretien '!$E$77 -> 0.25 | T31: ='Main-d''œuvre et entretien '!$E$77 -> 0.25 | U31: ='Main-d''œuvre et entretien '!$E$77 -> 0.25 | V31: ='Main-d''œuvre et entretien '!$E$77 -> 0.25 | W31: ='Main-d''œuvre et entretien '!$E$77 -> 0.25 | X31: ='Main-d''œuvre et entretien '!$E$77 -> 0.25 | Y31: ='Main-d''œuvre et entretien '!$E$77 -> 0.25 | Z31: ='Main-d''œuvre et entretien '!$E$77 -> 0.25 | AA31: ='Main-d''œuvre et entretien '!$E$77 -> 0.25 | AB31: ='Main-d''œuvre et entretien '!$E$77 -> 0.25 | AC31: ='Main-d''œuvre et entretien '!$E$77 -> 0.25 | AD31: ='Main-d''œuvre et entretien '!$E$77 -> 0.25 | AE31: ='Main-d''œuvre et entretien '!$E$77 -> 0.25 | AF31: ='Main-d''œuvre et entretien '!$E$77 -> 0.25 | AG31: ='Main-d''œuvre et entretien '!$E$77 -> 0.25 | AH31: ='Main-d''œuvre et entretien '!$E$77 -> 0.25 | AI31: ='Main-d''œuvre et entretien '!$E$77 -> 0.25 | AJ31: ='Main-d''œuvre et entretien '!$E$77 -> 0.25 | AK31: ='Main-d''œuvre et entretien '!$E$77 -> 0.25 | AL31: ='Main-d''œuvre et entretien '!$E$77 -> 0.25 | AM31: ='Main-d''œuvre et entretien '!$E$77 -> 0.25 | AN31: ='Main-d''œuvre et entretien '!$E$77 -> 0.25 | AO31: ='Main-d''œuvre et entretien '!$E$77 -> 0.25 | AQ31: =AVERAGE(C31:AO31) -> 0.25
A33: Réparations majeures (réalisées par un technicien avec des outils) | AQ33: Fréquence des réparations majeures
A34: Fréquence : réparations sur site 1 | C34: ='Main-d''œuvre et entretien '!$E$78 -> 3 | D34: ='Main-d''œuvre et entretien '!$E$78 -> 3 | E34: ='Main-d''œuvre et entretien '!$E$78 -> 3 | F34: ='Main-d''œuvre et entretien '!$E$78 -> 3 | G34: ='Main-d''œuvre et entretien '!$E$78 -> 3 | H34: ='Main-d''œuvre et entretien '!$E$78 -> 3 | I34: ='Main-d''œuvre et entretien '!$E$78 -> 3 | J34: ='Main-d''œuvre et entretien '!$E$78 -> 3 | K34: ='Main-d''œuvre et entretien '!$E$78 -> 3 | L34: ='Main-d''œuvre et entretien '!$E$78 -> 3 | M34: ='Main-d''œuvre et entretien '!$E$78 -> 3 | N34: ='Main-d''œuvre et entretien '!$E$78 -> 3 | O34: ='Main-d''œuvre et entretien '!$E$78 -> 3 | P34: ='Main-d''œuvre et entretien '!$E$78 -> 3 | Q34: ='Main-d''œuvre et entretien '!$E$78 -> 3 | R34: ='Main-d''œuvre et entretien '!$E$78 -> 3 | S34: ='Main-d''œuvre et entretien '!$E$78 -> 3 | T34: ='Main-d''œuvre et entretien '!$E$78 -> 3 | U34: ='Main-d''œuvre et entretien '!$E$78 -> 3 | V34: ='Main-d''œuvre et entretien '!$E$78 -> 3 | W34: ='Main-d''œuvre et entretien '!$E$78 -> 3 | X34: ='Main-d''œuvre et entretien '!$E$78 -> 3 | Y34: ='Main-d''œuvre et entretien '!$E$78 -> 3 | Z34: ='Main-d''œuvre et entretien '!$E$78 -> 3 | AA34: ='Main-d''œuvre et entretien '!$E$78 -> 3 | AB34: ='Main-d''œuvre et entretien '!$E$78 -> 3 | AC34: ='Main-d''œuvre et entretien '!$E$78 -> 3 | AD34: ='Main-d''œuvre et entretien '!$E$78 -> 3 | AE34: ='Main-d''œuvre et entretien '!$E$78 -> 3 | AF34: ='Main-d''œuvre et entretien '!$E$78 -> 3 | AG34: ='Main-d''œuvre et entretien '!$E$78 -> 3 | AH34: ='Main-d''œuvre et entretien '!$E$78 -> 3 | AI34: ='Main-d''œuvre et entretien '!$E$78 -> 3 | AJ34: ='Main-d''œuvre et entretien '!$E$78 -> 3 | AK34: ='Main-d''œuvre et entretien '!$E$78 -> 3 | AL34: ='Main-d''œuvre et entretien '!$E$78 -> 3 | AM34: ='Main-d''œuvre et entretien '!$E$78 -> 3 | AN34: ='Main-d''œuvre et entretien '!$E$78 -> 3 | AO34: ='Main-d''œuvre et entretien '!$E$78 -> 3 | AQ34: =AVERAGE(C34:AO34) -> 3
A35: Fréquence : réparations sur site 2 | C35: ='Main-d''œuvre et entretien '!$E$79 -> 0 | D35: ='Main-d''œuvre et entretien '!$E$79 -> 0 | E35: ='Main-d''œuvre et entretien '!$E$79 -> 0 | F35: ='Main-d''œuvre et entretien '!$E$79 -> 0 | G35: ='Main-d''œuvre et entretien '!$E$79 -> 0 | H35: ='Main-d''œuvre et entretien '!$E$79 -> 0 | I35: ='Main-d''œuvre et entretien '!$E$79 -> 0 | J35: ='Main-d''œuvre et entretien '!$E$79 -> 0 | K35: ='Main-d''œuvre et entretien '!$E$79 -> 0 | L35: ='Main-d''œuvre et entretien '!$E$79 -> 0 | M35: ='Main-d''œuvre et entretien '!$E$79 -> 0 | N35: ='Main-d''œuvre et entretien '!$E$79 -> 0 | O35: ='Main-d''œuvre et entretien '!$E$79 -> 0 | P35: ='Main-d''œuvre et entretien '!$E$79 -> 0 | Q35: ='Main-d''œuvre et entretien '!$E$79 -> 0 | R35: ='Main-d''œuvre et entretien '!$E$79 -> 0 | S35: ='Main-d''œuvre et entretien '!$E$79 -> 0 | T35: ='Main-d''œuvre et entretien '!$E$79 -> 0 | U35: ='Main-d''œuvre et entretien '!$E$79 -> 0 | V35: ='Main-d''œuvre et entretien '!$E$79 -> 0 | W35: ='Main-d''œuvre et entretien '!$E$79 -> 0 | X35: ='Main-d''œuvre et entretien '!$E$79 -> 0 | Y35: ='Main-d''œuvre et entretien '!$E$79 -> 0 | Z35: ='Main-d''œuvre et entretien '!$E$79 -> 0 | AA35: ='Main-d''œuvre et entretien '!$E$79 -> 0 | AB35: ='Main-d''œuvre et entretien '!$E$79 -> 0 | AC35: ='Main-d''œuvre et entretien '!$E$79 -> 0 | AD35: ='Main-d''œuvre et entretien '!$E$79 -> 0 | AE35: ='Main-d''œuvre et entretien '!$E$79 -> 0 | AF35: ='Main-d''œuvre et entretien '!$E$79 -> 0 | AG35: ='Main-d''œuvre et entretien '!$E$79 -> 0 | AH35: ='Main-d''œuvre et entretien '!$E$79 -> 0 | AI35: ='Main-d''œuvre et entretien '!$E$79 -> 0 | AJ35: ='Main-d''œuvre et entretien '!$E$79 -> 0 | AK35: ='Main-d''œuvre et entretien '!$E$79 -> 0 | AL35: ='Main-d''œuvre et entretien '!$E$79 -> 0 | AM35: ='Main-d''œuvre et entretien '!$E$79 -> 0 | AN35: ='Main-d''œuvre et entretien '!$E$79 -> 0 | AO35: ='Main-d''œuvre et entretien '!$E$79 -> 0 | AQ35: =AVERAGE(C35:AO35) -> 0
A36: Fréquence : réparations majeures dans un atelier réalisées par un technicien | C36: ='Main-d''œuvre et entretien '!$E$80 -> 0 | D36: ='Main-d''œuvre et entretien '!$E$80 -> 0 | E36: ='Main-d''œuvre et entretien '!$E$80 -> 0 | F36: ='Main-d''œuvre et entretien '!$E$80 -> 0 | G36: ='Main-d''œuvre et entretien '!$E$80 -> 0 | H36: ='Main-d''œuvre et entretien '!$E$80 -> 0 | I36: ='Main-d''œuvre et entretien '!$E$80 -> 0 | J36: ='Main-d''œuvre et entretien '!$E$80 -> 0 | K36: ='Main-d''œuvre et entretien '!$E$80 -> 0 | L36: ='Main-d''œuvre et entretien '!$E$80 -> 0 | M36: ='Main-d''œuvre et entretien '!$E$80 -> 0 | N36: ='Main-d''œuvre et entretien '!$E$80 -> 0 | O36: ='Main-d''œuvre et entretien '!$E$80 -> 0 | P36: ='Main-d''œuvre et entretien '!$E$80 -> 0 | Q36: ='Main-d''œuvre et entretien '!$E$80 -> 0 | R36: ='Main-d''œuvre et entretien '!$E$80 -> 0 | S36: ='Main-d''œuvre et entretien '!$E$80 -> 0 | T36: ='Main-d''œuvre et entretien '!$E$80 -> 0 | U36: ='Main-d''œuvre et entretien '!$E$80 -> 0 | V36: ='Main-d''œuvre et entretien '!$E$80 -> 0 | W36: ='Main-d''œuvre et entretien '!$E$80 -> 0 | X36: ='Main-d''œuvre et entretien '!$E$80 -> 0 | Y36: ='Main-d''œuvre et entretien '!$E$80 -> 0 | Z36: ='Main-d''œuvre et entretien '!$E$80 -> 0 | AA36: ='Main-d''œuvre et entretien '!$E$80 -> 0 | AB36: ='Main-d''œuvre et entretien '!$E$80 -> 0 | AC36: ='Main-d''œuvre et entretien '!$E$80 -> 0 | AD36: ='Main-d''œuvre et entretien '!$E$80 -> 0 | AE36: ='Main-d''œuvre et entretien '!$E$80 -> 0 | AF36: ='Main-d''œuvre et entretien '!$E$80 -> 0 | AG36: ='Main-d''œuvre et entretien '!$E$80 -> 0 | AH36: ='Main-d''œuvre et entretien '!$E$80 -> 0 | AI36: ='Main-d''œuvre et entretien '!$E$80 -> 0 | AJ36: ='Main-d''œuvre et entretien '!$E$80 -> 0 | AK36: ='Main-d''œuvre et entretien '!$E$80 -> 0 | AL36: ='Main-d''œuvre et entretien '!$E$80 -> 0 | AM36: ='Main-d''œuvre et entretien '!$E$80 -> 0 | AN36: ='Main-d''œuvre et entretien '!$E$80 -> 0 | AO36: ='Main-d''œuvre et entretien '!$E$80 -> 0 | AQ36: 0
A38: Entretien et réparations : HEURES
A39: Exprimé en nombre d'heures nécessaires pour terminer la réparation
A40: Heures : entretien courant | C40: ='Main-d''œuvre et entretien '!$C$77 -> 4 | D40: ='Main-d''œuvre et entretien '!$C$77 -> 4 | E40: ='Main-d''œuvre et entretien '!$C$77 -> 4 | F40: ='Main-d''œuvre et entretien '!$C$77 -> 4 | G40: ='Main-d''œuvre et entretien '!$C$77 -> 4 | H40: ='Main-d''œuvre et entretien '!$C$77 -> 4 | I40: ='Main-d''œuvre et entretien '!$C$77 -> 4 | J40: ='Main-d''œuvre et entretien '!$C$77 -> 4 | K40: ='Main-d''œuvre et entretien '!$C$77 -> 4 | L40: ='Main-d''œuvre et entretien '!$C$77 -> 4 | M40: ='Main-d''œuvre et entretien '!$C$77 -> 4 | N40: ='Main-d''œuvre et entretien '!$C$77 -> 4 | O40: ='Main-d''œuvre et entretien '!$C$77 -> 4 | P40: ='Main-d''œuvre et entretien '!$C$77 -> 4 | Q40: ='Main-d''œuvre et entretien '!$C$77 -> 4 | R40: ='Main-d''œuvre et entretien '!$C$77 -> 4 | S40: ='Main-d''œuvre et entretien '!$C$77 -> 4 | T40: ='Main-d''œuvre et entretien '!$C$77 -> 4 | U40: ='Main-d''œuvre et entretien '!$C$77 -> 4 | V40: ='Main-d''œuvre et entretien '!$C$77 -> 4 | W40: ='Main-d''œuvre et entretien '!$C$77 -> 4 | X40: ='Main-d''œuvre et entretien '!$C$77 -> 4 | Y40: ='Main-d''œuvre et entretien '!$C$77 -> 4 | Z40: ='Main-d''œuvre et entretien '!$C$77 -> 4 | AA40: ='Main-d''œuvre et entretien '!$C$77 -> 4 | AB40: ='Main-d''œuvre et entretien '!$C$77 -> 4 | AC40: ='Main-d''œuvre et entretien '!$C$77 -> 4 | AD40: ='Main-d''œuvre et entretien '!$C$77 -> 4 | AE40: ='Main-d''œuvre et entretien '!$C$77 -> 4 | AF40: ='Main-d''œuvre et entretien '!$C$77 -> 4 | AG40: ='Main-d''œuvre et entretien '!$C$77 -> 4 | AH40: ='Main-d''œuvre et entretien '!$C$77 -> 4 | AI40: ='Main-d''œuvre et entretien '!$C$77 -> 4 | AJ40: ='Main-d''œuvre et entretien '!$C$77 -> 4 | AK40: ='Main-d''œuvre et entretien '!$C$77 -> 4 | AL40: ='Main-d''œuvre et entretien '!$C$77 -> 4 | AM40: ='Main-d''œuvre et entretien '!$C$77 -> 4 | AN40: ='Main-d''œuvre et entretien '!$C$77 -> 4 | AO40: ='Main-d''œuvre et entretien '!$C$77 -> 4 | AQ40: =AVERAGE(C40:AO40) -> 4
A42: Réparations majeures (réalisées par un technicien avec des outils)
A43: Heures : réparations sur site 1 | C43: ='Main-d''œuvre et entretien '!$C$78 -> 16 | D43: ='Main-d''œuvre et entretien '!$C$78 -> 16 | E43: ='Main-d''œuvre et entretien '!$C$78 -> 16 | F43: ='Main-d''œuvre et entretien '!$C$78 -> 16 | G43: ='Main-d''œuvre et entretien '!$C$78 -> 16 | H43: ='Main-d''œuvre et entretien '!$C$78 -> 16 | I43: ='Main-d''œuvre et entretien '!$C$78 -> 16 | J43: ='Main-d''œuvre et entretien '!$C$78 -> 16 | K43: ='Main-d''œuvre et entretien '!$C$78 -> 16 | L43: ='Main-d''œuvre et entretien '!$C$78 -> 16 | M43: ='Main-d''œuvre et entretien '!$C$78 -> 16 | N43: ='Main-d''œuvre et entretien '!$C$78 -> 16 | O43: ='Main-d''œuvre et entretien '!$C$78 -> 16 | P43: ='Main-d''œuvre et entretien '!$C$78 -> 16 | Q43: ='Main-d''œuvre et entretien '!$C$78 -> 16 | R43: ='Main-d''œuvre et entretien '!$C$78 -> 16 | S43: ='Main-d''œuvre et entretien '!$C$78 -> 16 | T43: ='Main-d''œuvre et entretien '!$C$78 -> 16 | U43: ='Main-d''œuvre et entretien '!$C$78 -> 16 | V43: ='Main-d''œuvre et entretien '!$C$78 -> 16 | W43: ='Main-d''œuvre et entretien '!$C$78 -> 16 | X43: ='Main-d''œuvre et entretien '!$C$78 -> 16 | Y43: ='Main-d''œuvre et entretien '!$C$78 -> 16 | Z43: ='Main-d''œuvre et entretien '!$C$78 -> 16 | AA43: ='Main-d''œuvre et entretien '!$C$78 -> 16 | AB43: ='Main-d''œuvre et entretien '!$C$78 -> 16 | AC43: ='Main-d''œuvre et entretien '!$C$78 -> 16 | AD43: ='Main-d''œuvre et entretien '!$C$78 -> 16 | AE43: ='Main-d''œuvre et entretien '!$C$78 -> 16 | AF43: ='Main-d''œuvre et entretien '!$C$78 -> 16 | AG43: ='Main-d''œuvre et entretien '!$C$78 -> 16 | AH43: ='Main-d''œuvre et entretien '!$C$78 -> 16 | AI43: ='Main-d''œuvre et entretien '!$C$78 -> 16 | AJ43: ='Main-d''œuvre et entretien '!$C$78 -> 16 | AK43: ='Main-d''œuvre et entretien '!$C$78 -> 16 | AL43: ='Main-d''œuvre et entretien '!$C$78 -> 16 | AM43: ='Main-d''œuvre et entretien '!$C$78 -> 16 | AN43: ='Main-d''œuvre et entretien '!$C$78 -> 16 | AO43: ='Main-d''œuvre et entretien '!$C$78 -> 16 | AQ43: =AVERAGE(C43:AO43) -> 16
A44: Heures : réparations sur site 2 | C44: ='Main-d''œuvre et entretien '!$C$79 -> 0 | D44: ='Main-d''œuvre et entretien '!$C$79 -> 0 | E44: ='Main-d''œuvre et entretien '!$C$79 -> 0 | F44: ='Main-d''œuvre et entretien '!$C$79 -> 0 | G44: ='Main-d''œuvre et entretien '!$C$79 -> 0 | H44: ='Main-d''œuvre et entretien '!$C$79 -> 0 | I44: ='Main-d''œuvre et entretien '!$C$79 -> 0 | J44: ='Main-d''œuvre et entretien '!$C$79 -> 0 | K44: ='Main-d''œuvre et entretien '!$C$79 -> 0 | L44: ='Main-d''œuvre et entretien '!$C$79 -> 0 | M44: ='Main-d''œuvre et entretien '!$C$79 -> 0 | N44: ='Main-d''œuvre et entretien '!$C$79 -> 0 | O44: ='Main-d''œuvre et entretien '!$C$79 -> 0 | P44: ='Main-d''œuvre et entretien '!$C$79 -> 0 | Q44: ='Main-d''œuvre et entretien '!$C$79 -> 0 | R44: ='Main-d''œuvre et entretien '!$C$79 -> 0 | S44: ='Main-d''œuvre et entretien '!$C$79 -> 0 | T44: ='Main-d''œuvre et entretien '!$C$79 -> 0 | U44: ='Main-d''œuvre et entretien '!$C$79 -> 0 | V44: ='Main-d''œuvre et entretien '!$C$79 -> 0 | W44: ='Main-d''œuvre et entretien '!$C$79 -> 0 | X44: ='Main-d''œuvre et entretien '!$C$79 -> 0 | Y44: ='Main-d''œuvre et entretien '!$C$79 -> 0 | Z44: ='Main-d''œuvre et entretien '!$C$79 -> 0 | AA44: ='Main-d''œuvre et entretien '!$C$79 -> 0 | AB44: ='Main-d''œuvre et entretien '!$C$79 -> 0 | AC44: ='Main-d''œuvre et entretien '!$C$79 -> 0 | AD44: ='Main-d''œuvre et entretien '!$C$79 -> 0 | AE44: ='Main-d''œuvre et entretien '!$C$79 -> 0 | AF44: ='Main-d''œuvre et entretien '!$C$79 -> 0 | AG44: ='Main-d''œuvre et entretien '!$C$79 -> 0 | AH44: ='Main-d''œuvre et entretien '!$C$79 -> 0 | AI44: ='Main-d''œuvre et entretien '!$C$79 -> 0 | AJ44: ='Main-d''œuvre et entretien '!$C$79 -> 0 | AK44: ='Main-d''œuvre et entretien '!$C$79 -> 0 | AL44: ='Main-d''œuvre et entretien '!$C$79 -> 0 | AM44: ='Main-d''œuvre et entretien '!$C$79 -> 0 | AN44: ='Main-d''œuvre et entretien '!$C$79 -> 0 | AO44: ='Main-d''œuvre et entretien '!$C$79 -> 0 | AQ44: =AVERAGE(C44:AO44) -> 0
A45: Heures : réparations majeures dans un atelier réalisées par un technicien | C45: ='Main-d''œuvre et entretien '!$C$80 -> 0 | D45: ='Main-d''œuvre et entretien '!$C$80 -> 0 | E45: ='Main-d''œuvre et entretien '!$C$80 -> 0 | F45: ='Main-d''œuvre et entretien '!$C$80 -> 0 | G45: ='Main-d''œuvre et entretien '!$C$80 -> 0 | H45: ='Main-d''œuvre et entretien '!$C$80 -> 0 | I45: ='Main-d''œuvre et entretien '!$C$80 -> 0 | J45: ='Main-d''œuvre et entretien '!$C$80 -> 0 | K45: ='Main-d''œuvre et entretien '!$C$80 -> 0 | L45: ='Main-d''œuvre et entretien '!$C$80 -> 0 | M45: ='Main-d''œuvre et entretien '!$C$80 -> 0 | N45: ='Main-d''œuvre et entretien '!$C$80 -> 0 | O45: ='Main-d''œuvre et entretien '!$C$80 -> 0 | P45: ='Main-d''œuvre et entretien '!$C$80 -> 0 | Q45: ='Main-d''œuvre et entretien '!$C$80 -> 0 | R45: ='Main-d''œuvre et entretien '!$C$80 -> 0 | S45: ='Main-d''œuvre et entretien '!$C$80 -> 0 | T45: ='Main-d''œuvre et entretien '!$C$80 -> 0 | U45: ='Main-d''œuvre et entretien '!$C$80 -> 0 | V45: ='Main-d''œuvre et entretien '!$C$80 -> 0 | W45: ='Main-d''œuvre et entretien '!$C$80 -> 0 | X45: ='Main-d''œuvre et entretien '!$C$80 -> 0 | Y45: ='Main-d''œuvre et entretien '!$C$80 -> 0 | Z45: ='Main-d''œuvre et entretien '!$C$80 -> 0 | AA45: ='Main-d''œuvre et entretien '!$C$80 -> 0 | AB45: ='Main-d''œuvre et entretien '!$C$80 -> 0 | AC45: ='Main-d''œuvre et entretien '!$C$80 -> 0 | AD45: ='Main-d''œuvre et entretien '!$C$80 -> 0 | AE45: ='Main-d''œuvre et entretien '!$C$80 -> 0 | AF45: ='Main-d''œuvre et entretien '!$C$80 -> 0 | AG45: ='Main-d''œuvre et entretien '!$C$80 -> 0 | AH45: ='Main-d''œuvre et entretien '!$C$80 -> 0 | AI45: ='Main-d''œuvre et entretien '!$C$80 -> 0 | AJ45: ='Main-d''œuvre et entretien '!$C$80 -> 0 | AK45: ='Main-d''œuvre et entretien '!$C$80 -> 0 | AL45: ='Main-d''œuvre et entretien '!$C$80 -> 0 | AM45: ='Main-d''œuvre et entretien '!$C$80 -> 0 | AN45: ='Main-d''œuvre et entretien '!$C$80 -> 0 | AO45: ='Main-d''œuvre et entretien '!$C$80 -> 0 | AQ45: 0

Sheet RGG
A1: Hypothèses de technologie : réfrigérateur à garniture de glace (RGG)
A2: Technologie | C2: =PQS!A18 -> RGG | D2: =PQS!A19 -> RGG | E2: =PQS!A20 -> RGG | F2: =PQS!A21 -> RGG | G2: =PQS!A22 -> RGG | H2: =PQS!A23 -> RGG | I2: =PQS!A24 -> RGG | J2: =PQS!A25 -> RGG | K2: =PQS!A26 -> RGG | L2: =PQS!A27 -> RGG | M2: =PQS!A28 -> RGG | N2: =PQS!A29 -> RGG | O2: =PQS!A30 -> RGG | P2: =PQS!A31 -> RGG | Q2: =PQS!A32 -> RGG | R2: =PQS!A33 -> RGG | S2: =PQS!A34 -> RGG | T2: =PQS!A35 -> RGG | U2: =PQS!A36 -> RGG | V2: =PQS!A37 -> RGG | W2: =PQS!A38 -> RGG | X2: =PQS!A39 -> RGG | Y2: =PQS!A40 -> RGG | Z2: =PQS!A41 -> RGG | AA2: =PQS!A42 -> RGG | AB2: =PQS!A43 -> RGG | AC2: =PQS!A44 -> RGG | AD2: =PQS!A45 -> RGG | AE2: =PQS!A46 -> RGG | AF2: =PQS!A47 -> RGG | AG2: =PQS!A48 -> RGG | AH2: =PQS!A49 -> RGG | AI2: =PQS!A50 -> RGG | AJ2: =PQS!A51 -> RGG | AL2: MOYENNES
A3: Fabricant | C3: =PQS!H18 -> Vestfrost | D3: =PQS!H19 -> Vestfrost | E3: =PQS!H20 -> B Medical | F3: =PQS!H21 -> B Medical | G3: =PQS!H22 -> Vestfrost | H3: =PQS!H23 -> Zero | I3: =PQS!H24 -> Zero | J3: =PQS!H25 -> Godrej | K3: =PQS!H26 -> Godrej | L3: =PQS!H27 -> Zero | M3: =PQS!H28 -> B Medical | N3: =PQS!H29 -> Vestfrost | O3: =PQS!H30 -> Dulas | P3: =PQS!H31 -> Aucma | Q3: =PQS!H32 -> Godrej | R3: =PQS!H33 -> Godrej | S3: =PQS!H34 -> Godrej | T3: =PQS!H35 -> Godrej | U3: =PQS!H36 -> Haier | V3: =PQS!H37 -> Haier | W3: =PQS!H38 -> Haier | X3: =PQS!H39 -> Zero | Y3: =PQS!H40 -> Haier | Z3: =PQS!H41 -> B Medical | AA3: =PQS!H42 -> B Medical | AB3: =PQS!H43 -> Godrej | AC3: =PQS!H44 -> Godrej | AD3: =PQS!H45 -> Vestfrost | AE3: =PQS!H46 -> Vestfrost | AF3: =PQS!H47 -> Vestfrost | AG3: =PQS!H48 -> Vestfrost | AH3: =PQS!H49 -> Vestfrost | AI3: =PQS!H50 -> Haier | AJ3: =PQS!H51 -> Haier
A4: Modèle | C4: =PQS!G18 -> MK 304 | D4: =PQS!G19 -> MK 204 | E4: =PQS!G20 -> TCW 2000 AC | F4: =PQS!G21 -> TCW 3000 AC | G4: =PQS!G22 -> MK 144 | H4: =PQS!G23 -> ZLF 100 AC* | I4: =PQS!G24 -> ZLF 150 AC* | J4: =PQS!G25 -> GVR 50 AC* | K4: =PQS!G26 -> GVR 100 AC* | L4: =PQS!G27 -> ZLF 30 AC* | M4: =PQS!G28 -> TCW 4000 AC* | N4: =PQS!G29 -> VLS 064 RF* | O4: =PQS!G30 -> VC 225 ILR* | P4: =PQS!G31 -> CFD-50* | Q4: =PQS!G32 -> GVR 51 LITE AC* | R4: =PQS!G33 -> GVR 75 Lite* | S4: =PQS!G34 -> GVR 99 Lite* | T4: =PQS!G35 -> GVR 225 AC* | U4: =PQS!G36 -> HBC-260* | V4: =PQS!G37 -> HBC-150* | W4: =PQS!G38 -> HBC-80* | X4: =PQS!G39 -> ZLF 80 AC* | Y4: =PQS!G40 -> HBCD-90* | Z4: =PQS!G41 -> TCW 40R AC* | AA4: =PQS!G42 -> TCW 80 AC* | AB4: =PQS!G43 -> GVR 55 FF AC* | AC4: =PQS!G44 -> GVR 25 Lite* | AD4: =PQS!G45 -> VLS 204A* | AE4: =PQS!G46 -> VLS 304A AC* | AF4: =PQS!G47 -> VLS 354A AC* | AG4: =PQS!G48 -> VLS 404A AC* | AH4: =PQS!G49 -> VLS 504A AC* | AI4: =PQS!G50 -> HBC-120* | AJ4: =PQS!G51 -> HBC-240* | AL4: Capacité
A5: CCEOP | C5: =VLOOKUP(C4, PQS!$G:$I, COLUMN(PQS!$I$3)-COLUMN(PQS!$G$3)+1, FALSE) -> Non | D5: =VLOOKUP(D4, PQS!$G:$I, COLUMN(PQS!$I$3)-COLUMN(PQS!$G$3)+1, FALSE) -> Non | E5: =VLOOKUP(E4, PQS!$G:$I, COLUMN(PQS!$I$3)-COLUMN(PQS!$G$3)+1, FALSE) -> Non | F5: =VLOOKUP(F4, PQS!$G:$I, COLUMN(PQS!$I$3)-COLUMN(PQS!$G$3)+1, FALSE) -> Non | G5: =VLOOKUP(G4, PQS!$G:$I, COLUMN(PQS!$I$3)-COLUMN(PQS!$G$3)+1, FALSE) -> Non | H5: =VLOOKUP(H4, PQS!$G:$I, COLUMN(PQS!$I$3)-COLUMN(PQS!$G$3)+1, FALSE) -> Oui | I5: =VLOOKUP(I4, PQS!$G:$I, COLUMN(PQS!$I$3)-COLUMN(PQS!$G$3)+1, FALSE) -> Oui | J5: =VLOOKUP(J4, PQS!$G:$I, COLUMN(PQS!$I$3)-COLUMN(PQS!$G$3)+1, FALSE) -> Oui | K5: =VLOOKUP(K4, PQS!$G:$I, COLUMN(PQS!$I$3)-COLUMN(PQS!$G$3)+1, FALSE) -> Oui | L5: =VLOOKUP(L4, PQS!$G:$I, COLUMN(PQS!$I$3)-COLUMN(PQS!$G$3)+1, FALSE) -> Oui | M5: =VLOOKUP(M4, PQS!$G:$I, COLUMN(PQS!$I$3)-COLUMN(PQS!$G$3)+1, FALSE) -> Oui | N5: =VLOOKUP(N4, PQS!$G:$I, COLUMN(PQS!$I$3)-COLUMN(PQS!$G$3)+1, FALSE) -> Oui | O5: =VLOOKUP(O4, PQS!$G:$I, COLUMN(PQS!$I$3)-COLUMN(PQS!$G$3)+1, FALSE) -> Oui | P5: =VLOOKUP(P4, PQS!$G:$I, COLUMN(PQS!$I$3)-COLUMN(PQS!$G$3)+1, FALSE) -> Oui | Q5: =VLOOKUP(Q4, PQS!$G:$I, COLUMN(PQS!$I$3)-COLUMN(PQS!$G$3)+1, FALSE) -> Oui | R5: =VLOOKUP(R4, PQS!$G:$I, COLUMN(PQS!$I$3)-COLUMN(PQS!$G$3)+1, FALSE) -> Oui | S5: =VLOOKUP(S4, PQS!$G:$I, COLUMN(PQS!$I$3)-COLUMN(PQS!$G$3)+1, FALSE) -> Oui | T5: =VLOOKUP(T4, PQS!$G:$I, COLUMN(PQS!$I$3)-COLUMN(PQS!$G$3)+1, FALSE) -> Oui | U5: =VLOOKUP(U4, PQS!$G:$I, COLUMN(PQS!$I$3)-COLUMN(PQS!$G$3)+1, FALSE) -> Oui | V5: =VLOOKUP(V4, PQS!$G:$I, COLUMN(PQS!$I$3)-COLUMN(PQS!$G$3)+1, FALSE) -> Oui | W5: =VLOOKUP(W4, PQS!$G:$I, COLUMN(PQS!$I$3)-COLUMN(PQS!$G$3)+1, FALSE) -> Oui | X5: =VLOOKUP(X4, PQS!$G:$I, COLUMN(PQS!$I$3)-COLUMN(PQS!$G$3)+1, FALSE) -> Oui | Y5: =VLOOKUP(Y4, PQS!$G:$I, COLUMN(PQS!$I$3)-COLUMN(PQS!$G$3)+1, FALSE) -> Oui | Z5: =VLOOKUP(Z4, PQS!$G:$I, COLUMN(PQS!$I$3)-COLUMN(PQS!$G$3)+1, FALSE) -> Oui | AA5: =VLOOKUP(AA4, PQS!$G:$I, COLUMN(PQS!$I$3)-COLUMN(PQS!$G$3)+1, FALSE) -> Oui | AB5: =VLOOKUP(AB4, PQS!$G:$I, COLUMN(PQS!$I$3)-COLUMN(PQS!$G$3)+1, FALSE) -> Oui | AC5: =VLOOKUP(AC4, PQS!$G:$I, COLUMN(PQS!$I$3)-COLUMN(PQS!$G$3)+1, FALSE) -> Oui | AD5: =VLOOKUP(AD4, PQS!$G:$I, COLUMN(PQS!$I$3)-COLUMN(PQS!$G$3)+1, FALSE) -> Oui | AE5: =VLOOKUP(AE4, PQS!$G:$I, COLUMN(PQS!$I$3)-COLUMN(PQS!$G$3)+1, FALSE) -> Oui | AF5: =VLOOKUP(AF4, PQS!$G:$I, COLUMN(PQS!$I$3)-COLUMN(PQS!$G$3)+1, FALSE) -> Oui | AG5: =VLOOKUP(AG4, PQS!$G:$I, COLUMN(PQS!$I$3)-COLUMN(PQS!$G$3)+1, FALSE) -> Oui | AH5: =VLOOKUP(AH4, PQS!$G:$I, COLUMN(PQS!$I$3)-COLUMN(PQS!$G$3)+1, FALSE) -> Oui | AI5: =VLOOKUP(AI4, PQS!$G:$I, COLUMN(PQS!$I$3)-COLUMN(PQS!$G$3)+1, FALSE) -> Oui | AJ5: =VLOOKUP(AJ4, PQS!$G:$I, COLUMN(PQS!$I$3)-COLUMN(PQS!$G$3)+1, FALSE) -> Oui
A6: Capacité de stockage nette des vaccins | C6: =PQS!K18 -> 105 | D6: =PQS!K19 -> 75 | E6: =PQS!K20 -> 60 | F6: =PQS!K21 -> 150 | G6: =PQS!K22 -> 48 | H6: =PQS!K23 -> 99 | I6: =PQS!K24 -> 128 | J6: =PQS!K25 -> 46.5 | K6: =PQS!K26 -> 99 | L6: =PQS!K27 -> 27 | M6: =PQS!K28 -> 240 | N6: =PQS!K29 -> 52.5 | O6: =PQS!K30 -> 184 | P6: =PQS!K31 -> 50 | Q6: =PQS!K32 -> 51 | R6: =PQS!K33 -> 72.5 | S6: =PQS!K34 -> 98.5 | T6: =PQS!K35 -> 225 | U6: =PQS!K36 -> 211 | V6: =PQS!K37 -> 122 | W6: =PQS!K38 -> 61 | X6: =PQS!K39 -> 77 | Y6: =PQS!K40 -> 30 | Z6: =PQS!K41 -> 36.5 | AA6: =PQS!K42 -> 80.5 | AB6: =PQS!K43 -> 58 | AC6: =PQS!K44 -> 27.5 | AD6: =PQS!K45 -> 60 | AE6: =PQS!K46 -> 98 | AF6: =PQS!K47 -> 127 | AG6: =PQS!K48 -> 145 | AH6: =PQS!K49 -> 242 | AI6: =PQS!K50 -> 100 | AJ6: =PQS!K51 -> 200 | AL6: =AVERAGE(C6:AJ6) -> 102.5441176
A7: Capacité de congélation d'un bloc réfrigérant | C7: =PQS!M18 -> 0 | D7: =PQS!M19 -> 0 | E7: =PQS!M20 -> 10 | F7: =PQS!M21 -> 0 | G7: =PQS!M22 -> 0 | H7: =PQS!M23 -> 0 | I7: =PQS!M24 -> 0 | J7: =PQS!M25 -> 0 | K7: =PQS!M26 -> 0 | L7: =PQS!M27 -> 0 | M7: =PQS!M28 -> 0 | N7: =PQS!M29 -> 1.6 | O7: =PQS!M30 -> 0 | P7: =PQS!M31 -> 0 | Q7: =PQS!M32 -> 0 | R7: =PQS!M33 -> 0 | S7: =PQS!M34 -> 0 | T7: =PQS!M35 -> 0 | U7: =PQS!M36 -> 0 | V7: =PQS!M37 -> 0 | W7: =PQS!M38 -> 0 | X7: =PQS!M39 -> 0 | Y7: =PQS!M40 -> 4 | Z7: =PQS!M41 -> 0 | AA7: =PQS!M42 -> 0 | AB7: =PQS!M43 -> 2.4 | AC7: =PQS!M44 -> 0 | AD7: =PQS!M45 -> 0 | AE7: =PQS!M46 -> 0 | AF7: =PQS!M47 -> 0 | AG7: =PQS!M48 -> 0 | AH7: =PQS!M49 -> 0 | AI7: =PQS!M50 -> 0 | AJ7: =PQS!M51 -> 0 | AL7: =AVERAGE(C7:AJ7) -> 0.5294117647
A9: MATÉRIEL
A10: [Unité] | C10: =PQS!D18 -> E003/007 | D10: =PQS!D19 -> E003/011 | E10: =PQS!D20 -> E003/014 | F10: =PQS!D21 -> E003/017 | G10: =PQS!D22 -> E003/022 | H10: =PQS!D23 -> E003/036 | I10: =PQS!D24 -> E003/044 | J10: =PQS!D25 -> E003/046 | K10: =PQS!D26 -> E003/047 | L10: =PQS!D27 -> E003/051 | M10: =PQS!D28 -> E003/066 | N10: =PQS!D29 -> E003/070 | O10: =PQS!D30 -> E003/072 | P10: =PQS!D31 -> E003/079 | Q10: =PQS!D32 -> E003/080 | R10: =PQS!D33 -> E003/081 | S10: =PQS!D34 -> E003/082 | T10: =PQS!D35 -> E003/083 | U10: =PQS!D36 -> E003/087 | V10: =PQS!D37 -> E003/088 | W10: =PQS!D38 -> E003/089 | X10: =PQS!D39 -> E003/096 | Y10: =PQS!D40 -> E003/097 | Z10: =PQS!D41 -> E003/100 | AA10: =PQS!D42 -> E003/101 | AB10: =PQS!D43 -> E003/103 | AC10: =PQS!D44 -> E003/104 | AD10: =PQS!D45 -> E003/109 | AE10: =PQS!D46 -> E003/110 | AF10: =PQS!D47 -> E003/111 | AG10: =PQS!D48 -> E003/112 | AH10: =PQS!D49 -> E003/113 | AI10: =PQS!D50 -> E003/114 | AJ10: =PQS!D51 -> E003/115 | AL10: Durée de vie utile
A11: [unité] Durée de vie utile attendue | C11: =ILRUL -> 10 | D11: 10 | E11: 10 | F11: 10 | G11: 10 | H11: 10 | I11: 10 | J11: 10 | K11: 10 | L11: 10 | M11: 10 | N11: 10 | O11: 10 | P11: 10 | Q11: 10 | R11: 10 | S11: 10 | T11: 10 | U11: 10 | V11: 10 | W11: 10 | X11: 10 | Y11: 10 | Z11: 10 | AA11: 10 | AB11: 10 | AC11: 10 | AD11: 10 | AE11: 10 | AF11: 10 | AG11: 10 | AH11: 10 | AI11: 10 | AJ11: 10 | AL11: =AVERAGE(C11:AJ11) -> 10
A12: Durée de vie utile attendue pour un panneau solaire (le cas échéant)
A13: Durée de vie utile attendue d'une batterie
A14: Prix du kit d'installation | C14: =IlrHardware -> 50 | D14: 50 | E14: 50 | F14: 50 | G14: 50 | H14: 50 | I14: 50 | J14: 50 | K14: 50 | L14: 50 | M14: 50 | N14: 50 | O14: 50 | P14: 50 | Q14: 50 | R14: 50 | S14: 50 | T14: 50 | U14: 50 | V14: 50 | W14: 50 | X14: 50 | Y14: 50 | Z14: 50 | AA14: 50 | AB14: 50 | AC14: 50 | AD14: 50 | AE14: 50 | AF14: 50 | AG14: 50 | AH14: 50 | AI14: 50 | AJ14: 50 | AL14: =AVERAGE(C14:AJ14) -> 50
A15: Stabilisateur de tension intégré | C15: N | D15: N | E15: O | F15: N | G15: N | H15: N | I15: N | J15: O | K15: O | L15: N | M15: N | N15: N | O15: N | P15: N | Q15: O | R15: O | S15: O | T15: O | U15: N | V15: N | W15: N | X15: O | Y15: N | Z15: O | AA15: O | AB15: O | AC15: O | AD15: O | AE15: O | AF15: O | AG15: O | AH15: O | AI15: N | AJ15: N
